Workbook

Sheet Notes
A2: Maternity Friends and Family Test (FFT) Data - December 2020

Sheet Summary
B7: FFT | C7: Number of organisations submitting | D7: Total responses to date | E7: Responses | G7: Percentage Positive | I7: Percentage Negative
C8: =[1]Instructions!$D$1 -> 2020-12-01 | D8: =[1]Instructions!$D$1 -> 2020-12-01 | E8: =[1]Instructions!$D$1 -> 2020-12-01 | F8: =[1]Instructions!$D$1-5 -> 2020-11-26 | G8: =[1]Instructions!$D$1 -> 2020-12-01 | H8: =[1]Instructions!$D$1-5 -> 2020-11-26 | I8: =[1]Instructions!$D$1 -> 2020-12-01 | J8: =[1]Instructions!$D$1-5 -> 2020-11-26
B9: Maternity Total | C9: 445 | D9: 2710127 | E9: 11302 | F9: NA | G9: 0.8568394974 | H9: NA | I9: 0.03831180322 | J9: NA
B10: Maternity NHS Total | C10: 445 | D10: 2710127 | E10: 11302 | F10: NA | G10: 0.8568394974 | H10: NA | I10: 0.03831180322 | J10: NA
B11: Maternity IS Total | C11: NA | D11: NA | E11: NA | F11: NA | G11: NA | H11: NA | I11: NA | J11: NA
B12: Antenatal Total | C12: 105 | D12: 542095 | E12: 2273 | F12: NA | G12: 0.8794544655 | H12: NA | I12: 0.0624725033 | J12: NA
B13: Antenatal NHS | C13: 105 | D13: 542095 | E13: 2273 | F13: NA | G13: 0.8794544655 | H13: NA | I13: 0.0624725033 | J13: NA
B14: Antenatal IS | C14: NA | D14: NA | E14: NA | F14: NA | G14: NA | H14: NA | I14: NA | J14: NA
B15: Birth Total | C15: 113 | D15: 845272 | E15: 3517 | F15: NA | G15: 0.9516633494 | H15: NA | I15: 0.02758032414 | J15: NA
B16: Birth NHS | C16: 113 | D16: 845272 | E16: 3517 | F16: NA | G16: 0.9516633494 | H16: NA | I16: 0.02758032414 | J16: NA
B17: Birth IS | C17: NA | D17: NA | E17: NA | F17: NA | G17: NA | H17: NA | I17: NA | J17: NA
B18: Postnatal Ward Total | C18: 107 | D18: 919729 | E18: 4356 | F18: NA | G18: 0.9302112029 | H18: NA | I18: 0.03213957759 | J18: NA
B19: Postnatal Ward Total NHS | C19: 107 | D19: 919729 | E19: 4356 | F19: NA | G19: 0.9302112029 | H19: NA | I19: 0.03213957759 | J19: NA
B20: Postnatal Ward Total IS | C20: NA | D20: NA | E20: NA | F20: NA | G20: NA | H20: NA | I20: NA | J20: NA
B21: Postnatal Community Total | C21: 120 | D21: 403031 | E21: 1156 | F21: NA | G21: 0.8823529412 | H21: NA | I21: 0.04671280277 | J21: NA
B22: Postnatal Community NHS | C22: 120 | D22: 403031 | E22: 1156 | F22: NA | G22: 0.8823529412 | H22: NA | I22: 0.04671280277 | J22: NA
B23: Postnatal Community IS | C23: NA | D23: NA | E23: NA | F23: NA | G23: NA | H23: NA | I23: NA | J23: NA

Sheet Region (Local Office) Q1
B6: Sort data by:
A9: STP Code | B9: STP | C9: Total Responses | D9: Percentage Positive | E9: Percentage Negative | F9: Breakdown of Responses
F10: Very Good | G10: Good | H10: Neither Good nor Poor | I10: Poor | J10: Very Poor | K10: Don't Know
B11: England (including Independent Sector providers) | C11: 2273 | D11: 0.8794544655 | E11: 0.0624725033 | F11: 1525 | G11: 474 | H11: 108 | I11: 72 | J11: 70 | K11: 24
B12: England (excluding Independent Sector providers) | C12: 2273 | D12: 0.8794544655 | E12: 0.0624725033 | F12: 1525 | G12: 474 | H12: 108 | I12: 72 | J12: 70 | K12: 24
B13: Selection (excluding suppressed data) | C13: =SUBTOTAL(9,C14:C54) -> 2273 | D13: =IFERROR((F13+G13)/SUM(F13:K13), "-") -> 0.8792184725 | E13: =IFERROR((I13+J13)/SUM(F13:K13), "-") -> 0.06261101243 | F13: =SUBTOTAL(9,F14:F54) -> 1507 | G13: 473 | H13: 107 | I13: 71 | J13: 70 | K13: 24
A14: QE1 | B14: HEALTHIER LANCASHIRE AND SOUTH CUMBRIA | C14: 44 | D14: 0.8181818182 | E14: 0.06818181818 | F14: 22 | G14: 14 | H14: 3 | I14: 2 | J14: 1 | K14: 2
A15: QF7 | B15: SOUTH YORKSHIRE AND BASSETLAW STP | C15: 23 | D15: 0.8695652174 | E15: 0.04347826087 | F15: 17 | G15: 3 | H15: 2 | I15: 0 | J15: 1 | K15: 0
A16: QGH | B16: HEREFORDSHIRE AND WORCESTERSHIRE STP | C16: 27 | D16: 0.962962963 | E16: 0 | F16: 26 | G16: 0 | H16: 1 | I16: 0 | J16: 0 | K16: 0
A17: QHG | B17: BEDFORDSHIRE, LUTON AND MILTON KEYNES STP | C17: 57 | D17: 0.7543859649 | E17: 0.0350877193 | F17: 21 | G17: 22 | H17: 12 | I17: 0 | J17: 2 | K17: 0
A18: QHL | B18: BIRMINGHAM AND SOLIHULL STP | C18: 9 | D18: 0.8888888889 | E18: 0.1111111111 | F18: 7 | G18: 1 | H18: 0 | I18: 1 | J18: 0 | K18: 0
A19: QHM | B19: CUMBRIA AND NORTH EAST STP | C19: 23 | D19: 1 | E19: 0 | F19: 17 | G19: 6 | H19: 0 | I19: 0 | J19: 0 | K19: 0
A20: QJ2 | B20: JOINED UP CARE DERBYSHIRE STP | C20: 8 | D20: 0.625 | E20: 0.25 | F20: 3 | G20: 2 | H20: 1 | I20: 0 | J20: 2 | K20: 0
A21: QJG | B21: SUFFOLK AND NORTH EAST ESSEX ICS | C21: 1 | D21: * | E21: * | F21: * | G21: * | H21: * | I21: * | J21: * | K21: *
A22: QJK | B22: DEVON STP | C22: 13 | D22: 0.9230769231 | E22: 0 | F22: 10 | G22: 2 | H22: 0 | I22: 0 | J22: 0 | K22: 1
A23: QJM | B23: LINCOLNSHIRE STP | C23: 5 | D23: 1 | E23: 0 | F23: * | G23: * | H23: * | I23: * | J23: * | K23: *
A24: QK1 | B24: LEICESTER, LEICESTERSHIRE AND RUTLAND STP | C24: 77 | D24: 0.974025974 | E24: 0.01298701299 | F24: 56 | G24: 19 | H24: 1 | I24: 1 | J24: 0 | K24: 0
A25: QKK | B25: OUR HEALTHIER SOUTH EAST LONDON STP | C25: 26 | D25: 0.9230769231 | E25: 0.07692307692 | F25: 13 | G25: 11 | H25: 0 | I25: 2 | J25: 0 | K25: 0
A26: QKS | B26: KENT AND MEDWAY STP | C26: 447 | D26: 0.8993288591 | E26: 0.06263982103 | F26: 318 | G26: 84 | H26: 17 | I26: 17 | J26: 11 | K26: 0
A27: QM7 | B27: HERTFORDSHIRE AND WEST ESSEX STP | C27: 17 | D27: 0.8823529412 | E27: 0 | F27: 10 | G27: 5 | H27: 1 | I27: 0 | J27: 0 | K27: 1
A28: QMF | B28: EAST LONDON HEALTH & CARE PARTNERSHIP (STP) | C28: 78 | D28: 0.9102564103 | E28: 0.0641025641 | F28: 52 | G28: 19 | H28: 2 | I28: 2 | J28: 3 | K28: 0
A29: QMJ | B29: NORTH LONDON PARTNERS IN HEALTH & CARE (STP) | C29: 14 | D29: 0.4285714286 | E29: 0.4285714286 | F29: 2 | G29: 4 | H29: 2 | I29: 0 | J29: 6 | K29: 0
A30: QMM | B30: NORFOLK AND WAVENEY HEALTH & CARE PARTNERSHIP (STP) | C30: 32 | D30: 0.875 | E30: 0.0625 | F30: 25 | G30: 3 | H30: 1 | I30: 0 | J30: 2 | K30: 1
A31: QNC | B31: STAFFORDSHIRE & STOKE ON TRENT STP | C31: 0 | D31: NA | E31: NA | F31: 0 | G31: 0 | H31: 0 | I31: 0 | J31: 0 | K31: 0
A32: QNQ | B32: FRIMLEY HEALTH & CARE (STP) | C32: 19 | D32: 1 | E32: 0 | F32: 17 | G32: 2 | H32: 0 | I32: 0 | J32: 0 | K32: 0
A33: QNX | B33: SUSSEX HEALTH AND CARE PARTNERSHIP | C33: 1 | D33: * | E33: * | F33: * | G33: * | H33: * | I33: * | J33: * | K33: *
A34: QOC | B34: SHROPSHIRE AND TELFORD AND WREKIN STP | C34: 14 | D34: 0.9285714286 | E34: 0 | F34: * | G34: * | H34: * | I34: * | J34: * | K34: *
A35: QOP | B35: GREATER MANCHESTER HEALTH & SOCIAL CARE PARTNERSHIP | C35: 40 | D35: 0.95 | E35: 0.025 | F35: 30 | G35: 8 | H35: 1 | I35: 0 | J35: 1 | K35: 0
A36: QOQ | B36: HUMBER, COAST AND VALE STP | C36: 55 | D36: 1 | E36: 0 | F36: 49 | G36: 6 | H36: 0 | I36: 0 | J36: 0 | K36: 0
A37: QOX | B37: BATH AND NORTH EAST SOMERSET, SWINDON AND WILTSHIRE STP | C37: 5 | D37: 1 | E37: 0 | F37: 4 | G37: 1 | H37: 0 | I37: 0 | J37: 0 | K37: 0
A38: QPM | B38: NORTHAMPTONSHIRE STP | C38: 0 | D38: NA | E38: NA | F38: 0 | G38: 0 | H38: 0 | I38: 0 | J38: 0 | K38: 0
A39: QR1 | B39: GLOUCESTERSHIRE STP | C39: 0 | D39: NA | E39: NA | F39: 0 | G39: 0 | H39: 0 | I39: 0 | J39: 0 | K39: 0
A40: QRL | B40: HAMPSHIRE AND THE ISLE OF WIGHT STP | C40: 134 | D40: 0.8656716418 | E40: 0.08208955224 | F40: 70 | G40: 46 | H40: 6 | I40: 7 | J40: 4 | K40: 1
A41: QRV | B41: NORTH WEST LONDON HEALTH & CARE PARTNERSHIP (STP) | C41: 304 | D41: 0.8684210526 | E41: 0.0625 | F41: 176 | G41: 88 | H41: 21 | I41: 8 | J41: 11 | K41: 0
A42: QSL | B42: SOMERSET STP | C42: 0 | D42: NA | E42: NA | F42: 0 | G42: 0 | H42: 0 | I42: 0 | J42: 0 | K42: 0
A43: QT1 | B43: NOTTINGHAM AND NOTTINGHAMSHIRE HEALTH AND CARE STP | C43: 47 | D43: 0.8723404255 | E43: 0.08510638298 | F43: 31 | G43: 10 | H43: 2 | I43: 1 | J43: 3 | K43: 0
A44: QT6 | B44: CORNWALL AND THE ISLES OF SCILLY HEALTH & SOCIAL CARE PARTNERSHIP (STP) | C44: 7 | D44: 1 | E44: 0 | F44: 7 | G44: 0 | H44: 0 | I44: 0 | J44: 0 | K44: 0
A45: QU9 | B45: BUCKINGHAMSHIRE, OXFORDSHIRE AND BERKSHIRE WEST STP | C45: 25 | D45: 0.72 | E45: 0.16 | F45: 12 | G45: 6 | H45: 3 | I45: 2 | J45: 2 | K45: 0
A46: QUA | B46: THE BLACK COUNTRY AND WEST BIRMINGHAM STP | C46: 224 | D46: 0.7544642857 | E46: 0.1026785714 | F46: 138 | G46: 31 | H46: 19 | I46: 12 | J46: 11 | K46: 13
A47: QUE | B47: CAMBRIDGESHIRE AND PETERBOROUGH STP | C47: 205 | D47: 0.9707317073 | E47: 0.00487804878 | F47: 183 | G47: 16 | H47: 5 | I47: 1 | J47: 0 | K47: 0
A48: QUY | B48: BRISTOL, NORTH SOMERSET AND SOUTH GLOUCESTERSHIRE STP | C48: 0 | D48: NA | E48: NA | F48: 0 | G48: 0 | H48: 0 | I48: 0 | J48: 0 | K48: 0
A49: QVV | B49: DORSET STP | C49: 75 | D49: 0.88 | E49: 0.08 | F49: 43 | G49: 23 | H49: 1 | I49: 3 | J49: 3 | K49: 2
A50: QWE | B50: SOUTH WEST LONDON HEALTH & CARE PARTNERSHIP (STP) | C50: 89 | D50: 0.8651685393 | E50: 0.07865168539 | F50: 59 | G50: 18 | H50: 2 | I50: 4 | J50: 3 | K50: 3
A51: QWO | B51: WEST YORKSHIRE AND HARROGATE HEALTH & CARE PARTNERSHIP (STP) | C51: 10 | D51: 0.5 | E51: 0.5 | F51: 5 | G51: 0 | H51: 0 | I51: 3 | J51: 2 | K51: 0
A52: QWU | B52: COVENTRY AND WARWICKSHIRE STP | C52: 53 | D52: 0.9622641509 | E52: 0.03773584906 | F52: 43 | G52: 8 | H52: 0 | I52: 1 | J52: 1 | K52: 0
A53: QXU | B53: SURREY HEARTLANDS HEALTH & CARE PARTNERSHIP (STP) | C53: 21 | D53: 0.9523809524 | E53: 0 | F53: 16 | G53: 4 | H53: 1 | I53: 0 | J53: 0 | K53: 0
A54: QYG | B54: CHESHIRE AND MERSEYSIDE STP | C54: 44 | D54: 0.8181818182 | E54: 0.1136363636 | F54: 25 | G54: 11 | H54: 3 | I54: 4 | J54: 1 | K54: 0

Sheet Trusts Q1
B6: Sort data by:
A9: STP Code | B9: Trust Code | C9: Trust Name | D9: Total Responses | E9: Percentage Positive | F9: Percentage Negative | G9: Breakdown of Responses | M9: Mode of Collection
G10: Very Good | H10: Good | I10: Neither Good nor Poor | J10: Poor | K10: Very Poor | L10: Don't Know | M10: Mode SMS | N10: Mode Electronic Discharge | O10: Mode Electronic Home | P10: Mode Paper Discharge | Q10: Mode Paper Home | R10: Mode Telephone | S10: Mode Online | T10: Mode Other
C11: England (including Independent Sector providers) | D11: 2273 | E11: 0.8794544655 | F11: 0.0624725033 | G11: 1525 | H11: 474 | I11: 108 | J11: 72 | K11: 70 | L11: 24 | M11: 881 | N11: 187 | O11: 92 | P11: 558 | Q11: 136 | R11: 0 | S11: 419 | T11: 0
C12: England (excluding Independent Sector providers) | D12: 2273 | E12: 0.8794544655 | F12: 0.0624725033 | G12: 1525 | H12: 474 | I12: 108 | J12: 72 | K12: 70 | L12: 24 | M12: 881 | N12: 187 | O12: 92 | P12: 558 | Q12: 136 | R12: 0 | S12: 419 | T12: 0
C13: Selection (excluding suppressed data) | D13: =SUBTOTAL(9,D14:D298) -> 2273 | E13: =IFERROR((G13+H13)/SUM(G13:L13), "-") -> 0.8694951665 | F13: =IFERROR((J13+K13)/SUM(G13:L13), "-") -> 0.06820622986 | G13: =SUBTOTAL(9,G14:G298) -> 1192 | H13: 427 | I13: 93 | J13: 64 | K13: 63 | L13: 23 | M13: 843 | N13: 176 | O13: 89 | P13: 265 | Q13: 97 | R13: 0 | S13: 392 | T13: 0
A14: QE1 | B14: RTX | C14: UNIVERSITY HOSPITALS OF MORECAMBE BAY NHS FOUNDATION TRUST | D14: 0 | E14: NA | F14: NA | G14: 0 | H14: 0 | I14: 0 | J14: 0 | K14: 0 | L14: 0 | M14: 0 | N14: 0 | O14: 0 | P14: 0 | Q14: 0 | R14: 0 | S14: 0 | T14: 0
A15: QE1 | B15: RXR | C15: EAST LANCASHIRE HOSPITALS NHS TRUST | D15: 13 | E15: 0.7692307692 | F15: 0 | G15: 7 | H15: 3 | I15: 1 | J15: 0 | K15: 0 | L15: 2 | M15: 11 | N15: 0 | O15: 0 | P15: 0 | Q15: 0 | R15: 0 | S15: 2 | T15: 0
A16: QE1 | B16: RXN | C16: LANCASHIRE TEACHING HOSPITALS NHS FOUNDATION TRUST | D16: 31 | E16: 0.8387096774 | F16: 0.09677419355 | G16: 15 | H16: 11 | I16: 2 | J16: 2 | K16: 1 | L16: 0 | M16: 31 | N16: 0 | O16: 0 | P16: 0 | Q16: 0 | R16: 0 | S16: 0 | T16: 0
A17: QF7 | B17: RFR | C17: THE ROTHERHAM NHS FOUNDATION TRUST | D17: 0 | E17: NA | F17: NA | G17: 0 | H17: 0 | I17: 0 | J17: 0 | K17: 0 | L17: 0 | M17: 0 | N17: 0 | O17: 0 | P17: 0 | Q17: 0 | R17: 0 | S17: 0 | T17: 0
A18: QF7 | B18: RFF | C18: BARNSLEY HOSPITAL NHS FOUNDATION TRUST | D18: 2 | E18: * | F18: * | G18: * | H18: * | I18: * | J18: * | K18: * | L18: * | M18: * | N18: * | O18: * | P18: * | Q18: * | R18: * | S18: * | T18: *
A19: QF7 | B19: RP5 | C19: DONCASTER AND BASSETLAW TEACHING HOSPITALS NHS FOUNDATION TRUST | D19: 4 | E19: * | F19: * | G19: * | H19: * | I19: * | J19: * | K19: * | L19: * | M19: * | N19: * | O19: * | P19: * | Q19: * | R19: * | S19: * | T19: *
A20: QF7 | B20: RHQ | C20: SHEFFIELD TEACHING HOSPITALS NHS FOUNDATION TRUST | D20: 17 | E20: 0.8235294118 | F20: 0.05882352941 | G20: 12 | H20: 2 | I20: 2 | J20: 0 | K20: 1 | L20: 0 | M20: 17 | N20: 0 | O20: 0 | P20: 0 | Q20: 0 | R20: 0 | S20: 0 | T20: 0
A21: QGH | B21: RLQ | C21: WYE VALLEY NHS TRUST | D21: 1 | E21: * | F21: * | G21: * | H21: * | I21: * | J21: * | K21: * | L21: * | M21: * | N21: * | O21: * | P21: * | Q21: * | R21: * | S21: * | T21: *
A22: QGH | B22: RWP | C22: WORCESTERSHIRE ACUTE HOSPITALS NHS TRUST | D22: 26 | E22: 0.9615384615 | F22: 0 | G22: * | H22: * | I22: * | J22: * | K22: * | L22: * | M22: * | N22: * | O22: * | P22: * | Q22: * | R22: * | S22: * | T22: *
A23: QHG | B23: RD8 | C23: MILTON KEYNES UNIVERSITY HOSPITAL NHS FOUNDATION TRUST | D23: 26 | E23: 0.5 | F23: 0.07692307692 | G23: 7 | H23: 6 | I23: 11 | J23: 0 | K23: 2 | L23: 0 | M23: 0 | N23: 0 | O23: 0 | P23: 14 | Q23: 0 | R23: 0 | S23: 12 | T23: 0
A24: QHG | B24: RC9 | C24: BEDFORDSHIRE HOSPITALS NHS FOUNDATION TRUST | D24: 31 | E24: 0.9677419355 | F24: 0 | G24: 14 | H24: 16 | I24: 1 | J24: 0 | K24: 0 | L24: 0 | M24: 0 | N24: 31 | O24: 0 | P24: 0 | Q24: 0 | R24: 0 | S24: 0 | T24: 0
A25: QHL | B25: RRK | C25: UNIVERSITY HOSPITALS BIRMINGHAM NHS FOUNDATION TRUST | D25: 0 | E25: NA | F25: NA | G25: 0 | H25: 0 | I25: 0 | J25: 0 | K25: 0 | L25: 0 | M25: 0 | N25: 0 | O25: 0 | P25: 0 | Q25: 0 | R25: 0 | S25: 0 | T25: 0
A26: QHL | B26: RQ3 | C26: BIRMINGHAM WOMEN'S AND CHILDREN'S NHS FOUNDATION TRUST | D26: 9 | E26: 0.8888888889 | F26: 0.1111111111 | G26: 7 | H26: 1 | I26: 0 | J26: 1 | K26: 0 | L26: 0 | M26: 0 | N26: 8 | O26: 0 | P26: 0 | Q26: 0 | R26: 0 | S26: 1 | T26: 0
A27: QHM | B27: RTF | C27: NORTHUMBRIA HEALTHCARE NHS FOUNDATION TRUST | D27: 0 | E27: NA | F27: NA | G27: 0 | H27: 0 | I27: 0 | J27: 0 | K27: 0 | L27: 0 | M27: 0 | N27: 0 | O27: 0 | P27: 0 | Q27: 0 | R27: 0 | S27: 0 | T27: 0
A28: QHM | B28: RVW | C28: NORTH TEES AND HARTLEPOOL NHS FOUNDATION TRUST | D28: 0 | E28: NA | F28: NA | G28: 0 | H28: 0 | I28: 0 | J28: 0 | K28: 0 | L28: 0 | M28: 0 | N28: 0 | O28: 0 | P28: 0 | Q28: 0 | R28: 0 | S28: 0 | T28: 0
A29: QHM | B29: R0B | C29: SOUTH TYNESIDE AND SUNDERLAND NHS FOUNDATION TRUST | D29: 2 | E29: * | F29: * | G29: * | H29: * | I29: * | J29: * | K29: * | L29: * | M29: * | N29: * | O29: * | P29: * | Q29: * | R29: * | S29: * | T29: *
A30: QHM | B30: RTR | C30: SOUTH TEES HOSPITALS NHS FOUNDATION TRUST | D30: 3 | E30: * | F30: * | G30: * | H30: * | I30: * | J30: * | K30: * | L30: * | M30: * | N30: * | O30: * | P30: * | Q30: * | R30: * | S30: * | T30: *
A31: QHM | B31: RNN | C31: NORTH CUMBRIA INTEGRATED CARE NHS FOUNDATION TRUST | D31: 18 | E31: 1 | F31: 0 | G31: 14 | H31: 4 | I31: 0 | J31: 0 | K31: 0 | L31: 0 | M31: 0 | N31: 0 | O31: 0 | P31: 18 | Q31: 0 | R31: 0 | S31: 0 | T31: 0
A32: QJ2 | B32: RFS | C32: CHESTERFIELD ROYAL HOSPITAL NHS FOUNDATION TRUST | D32: 1 | E32: * | F32: * | G32: * | H32: * | I32: * | J32: * | K32: * | L32: * | M32: * | N32: * | O32: * | P32: * | Q32: * | R32: * | S32: * | T32: *
A33: QJ2 | B33: RTG | C33: UNIVERSITY HOSPITALS OF DERBY AND BURTON NHS FOUNDATION TRUST | D33: 7 | E33: 0.7142857143 | F33: 0.1428571429 | G33: * | H33: * | I33: * | J33: * | K33: * | L33: * | M33: * | N33: * | O33: * | P33: * | Q33: * | R33: * | S33: * | T33: *
A34: QJG | B34: RGR | C34: WEST SUFFOLK NHS FOUNDATION TRUST | D34: 0 | E34: NA | F34: NA | G34: 0 | H34: 0 | I34: 0 | J34: 0 | K34: 0 | L34: 0 | M34: 0 | N34: 0 | O34: 0 | P34: 0 | Q34: 0 | R34: 0 | S34: 0 | T34: 0
A35: QJG | B35: RDE | C35: EAST SUFFOLK AND NORTH ESSEX NHS FOUNDATION TRUST | D35: 1 | E35: * | F35: * | G35: * | H35: * | I35: * | J35: * | K35: * | L35: * | M35: * | N35: * | O35: * | P35: * | Q35: * | R35: * | S35: * | T35: *
A36: QJK | B36: RH8 | C36: ROYAL DEVON AND EXETER NHS FOUNDATION TRUST | D36: 0 | E36: NA | F36: NA | G36: 0 | H36: 0 | I36: 0 | J36: 0 | K36: 0 | L36: 0 | M36: 0 | N36: 0 | O36: 0 | P36: 0 | Q36: 0 | R36: 0 | S36: 0 | T36: 0
A37: QJK | B37: RBZ | C37: NORTHERN DEVON HEALTHCARE NHS TRUST | D37: 4 | E37: * | F37: * | G37: * | H37: * | I37: * | J37: * | K37: * | L37: * | M37: * | N37: * | O37: * | P37: * | Q37: * | R37: * | S37: * | T37: *
A38: QJK | B38: RK9 | C38: UNIVERSITY HOSPITALS PLYMOUTH NHS TRUST | D38: 9 | E38: 0.8888888889 | F38: 0 | G38: * | H38: * | I38: * | J38: * | K38: * | L38: * | M38: * | N38: * | O38: * | P38: * | Q38: * | R38: * | S38: * | T38: *
A39: QJM | B39: RWD | C39: UNITED LINCOLNSHIRE HOSPITALS NHS TRUST | D39: 5 | E39: 1 | F39: 0 | G39: * | H39: * | I39: * | J39: * | K39: * | L39: * | M39: * | N39: * | O39: * | P39: * | Q39: * | R39: * | S39: * | T39: *
A40: QK1 | B40: RWE | C40: UNIVERSITY HOSPITALS OF LEICESTER NHS TRUST | D40: 77 | E40: 0.974025974 | F40: 0.01298701299 | G40: 56 | H40: 19 | I40: 1 | J40: 1 | K40: 0 | L40: 0 | M40: 0 | N40: 66 | O40: 0 | P40: 4 | Q40: 7 | R40: 0 | S40: 0 | T40: 0
A41: QKK | B41: RJZ | C41: KING'S COLLEGE HOSPITAL NHS FOUNDATION TRUST | D41: 1 | E41: * | F41: * | G41: * | H41: * | I41: * | J41: * | K41: * | L41: * | M41: * | N41: * | O41: * | P41: * | Q41: * | R41: * | S41: * | T41: *
A42: QKK | B42: RJ1 | C42: GUY'S AND ST THOMAS' NHS FOUNDATION TRUST | D42: 5 | E42: 0.8 | F42: 0.2 | G42: * | H42: * | I42: * | J42: * | K42: * | L42: * | M42: * | N42: * | O42: * | P42: * | Q42: * | R42: * | S42: * | T42: *
A43: QKK | B43: RJ2 | C43: LEWISHAM AND GREENWICH NHS TRUST | D43: 20 | E43: 0.95 | F43: 0.05 | G43: 9 | H43: 10 | I43: 0 | J43: 1 | K43: 0 | L43: 0 | M43: 13 | N43: 0 | O43: 0 | P43: 7 | Q43: 0 | R43: 0 | S43: 0 | T43: 0
A44: QKS | B44: RWF | C44: MAIDSTONE AND TUNBRIDGE WELLS NHS TRUST | D44: 45 | E44: 0.9333333333 | F44: 0.02222222222 | G44: 38 | H44: 4 | I44: 2 | J44: 1 | K44: 0 | L44: 0 | M44: 0 | N44: 0 | O44: 0 | P44: 45 | Q44: 0 | R44: 0 | S44: 0 | T44: 0
A45: QKS | B45: RPA | C45: MEDWAY NHS FOUNDATION TRUST | D45: 79 | E45: 1 | F45: 0 | G45: 79 | H45: 0 | I45: 0 | J45: 0 | K45: 0 | L45: 0 | M45: 0 | N45: 0 | O45: 79 | P45: 0 | Q45: 0 | R45: 0 | S45: 0 | T45: 0
A46: QKS | B46: RVV | C46: EAST KENT HOSPITALS UNIVERSITY NHS FOUNDATION TRUST | D46: 323 | E46: 0.8699690402 | F46: 0.08359133127 | G46: 201 | H46: 80 | I46: 15 | J46: 16 | K46: 11 | L46: 0 | M46: 323 | N46: 0 | O46: 0 | P46: 0 | Q46: 0 | R46: 0 | S46: 0 | T46: 0
A47: QM7 | B47: RQW | C47: THE PRINCESS ALEXANDRA HOSPITAL NHS TRUST | D47: 0 | E47: NA | F47: NA | G47: 0 | H47: 0 | I47: 0 | J47: 0 | K47: 0 | L47: 0 | M47: 0 | N47: 0 | O47: 0 | P47: 0 | Q47: 0 | R47: 0 | S47: 0 | T47: 0
A48: QM7 | B48: RWH | C48: EAST AND NORTH HERTFORDSHIRE NHS TRUST | D48: 7 | E48: 0.8571428571 | F48: 0 | G48: 4 | H48: 2 | I48: 1 | J48: 0 | K48: 0 | L48: 0 | M48: 0 | N48: 0 | O48: 0 | P48: 0 | Q48: 0 | R48: 0 | S48: 7 | T48: 0
A49: QM7 | B49: RWG | C49: WEST HERTFORDSHIRE HOSPITALS NHS TRUST | D49: 10 | E49: 0.9 | F49: 0 | G49: 6 | H49: 3 | I49: 0 | J49: 0 | K49: 0 | L49: 1 | M49: 0 | N49: 10 | O49: 0 | P49: 0 | Q49: 0 | R49: 0 | S49: 0 | T49: 0
A50: QMF | B50: RF4 | C50: BARKING, HAVERING AND REDBRIDGE UNIVERSITY HOSPITALS NHS TRUST | D50: 0 | E50: NA | F50: NA | G50: 0 | H50: 0 | I50: 0 | J50: 0 | K50: 0 | L50: 0 | M50: 0 | N50: 0 | O50: 0 | P50: 0 | Q50: 0 | R50: 0 | S50: 0 | T50: 0
A51: QMF | B51: R1H | C51: BARTS HEALTH NHS TRUST | D51: 78 | E51: 0.9102564103 | F51: 0.0641025641 | G51: 52 | H51: 19 | I51: 2 | J51: 2 | K51: 3 | L51: 0 | M51: 21 | N51: 0 | O51: 0 | P51: 0 | Q51: 57 | R51: 0 | S51: 0 | T51: 0
A52: QMJ | B52: RKE | C52: WHITTINGTON HEALTH NHS TRUST | D52: 0 | E52: NA | F52: NA | G52: 0 | H52: 0 | I52: 0 | J52: 0 | K52: 0 | L52: 0 | M52: 0 | N52: 0 | O52: 0 | P52: 0 | Q52: 0 | R52: 0 | S52: 0 | T52: 0
A53: QMJ | B53: RAL | C53: ROYAL FREE LONDON NHS FOUNDATION TRUST | D53: 14 | E53: 0.4285714286 | F53: 0.4285714286 | G53: 2 | H53: 4 | I53: 2 | J53: 0 | K53: 6 | L53: 0 | M53: 0 | N53: 14 | O53: 0 | P53: 0 | Q53: 0 | R53: 0 | S53: 0 | T53: 0
A54: QMM | B54: RCX | C54: THE QUEEN ELIZABETH HOSPITAL, KING'S LYNN, NHS FOUNDATION TRUST | D54: 6 | E54: 1 | F54: 0 | G54: 6 | H54: 0 | I54: 0 | J54: 0 | K54: 0 | L54: 0 | M54: 0 | N54: 3 | O54: 0 | P54: 0 | Q54: 0 | R54: 0 | S54: 3 | T54: 0
A55: QMM | B55: RM1 | C55: NORFOLK AND NORWICH UNIVERSITY HOSPITALS NHS FOUNDATION TRUST | D55: 26 | E55: 0.8461538462 | F55: 0.07692307692 | G55: 19 | H55: 3 | I55: 1 | J55: 0 | K55: 2 | L55: 1 | M55: 0 | N55: 0 | O55: 0 | P55: 2 | Q55: 0 | R55: 0 | S55: 24 | T55: 0
A56: QNC | B56: RJE | C56: UNIVERSITY HOSPITALS OF NORTH MIDLANDS NHS TRUST | D56: 0 | E56: NA | F56: NA | G56: 0 | H56: 0 | I56: 0 | J56: 0 | K56: 0 | L56: 0 | M56: 0 | N56: 0 | O56: 0 | P56: 0 | Q56: 0 | R56: 0 | S56: 0 | T56: 0
A57: QNQ | B57: RDU | C57: FRIMLEY HEALTH NHS FOUNDATION TRUST | D57: 19 | E57: 1 | F57: 0 | G57: 17 | H57: 2 | I57: 0 | J57: 0 | K57: 0 | L57: 0 | M57: 0 | N57: 0 | O57: 0 | P57: 19 | Q57: 0 | R57: 0 | S57: 0 | T57: 0
A58: QNX | B58: RXC | C58: EAST SUSSEX HEALTHCARE NHS TRUST | D58: 0 | E58: NA | F58: NA | G58: 0 | H58: 0 | I58: 0 | J58: 0 | K58: 0 | L58: 0 | M58: 0 | N58: 0 | O58: 0 | P58: 0 | Q58: 0 | R58: 0 | S58: 0 | T58: 0
A59: QNX | B59: RXH | C59: BRIGHTON AND SUSSEX UNIVERSITY HOSPITALS NHS TRUST | D59: 0 | E59: NA | F59: NA | G59: 0 | H59: 0 | I59: 0 | J59: 0 | K59: 0 | L59: 0 | M59: 0 | N59: 0 | O59: 0 | P59: 0 | Q59: 0 | R59: 0 | S59: 0 | T59: 0
A60: QNX | B60: RYR | C60: WESTERN SUSSEX HOSPITALS NHS FOUNDATION TRUST | D60: 1 | E60: * | F60: * | G60: * | H60: * | I60: * | J60: * | K60: * | L60: * | M60: * | N60: * | O60: * | P60: * | Q60: * | R60: * | S60: * | T60: *
A61: QOC | B61: RXW | C61: THE SHREWSBURY AND TELFORD HOSPITAL NHS TRUST | D61: 14 | E61: 0.9285714286 | F61: 0 | G61: * | H61: * | I61: * | J61: * | K61: * | L61: * | M61: * | N61: * | O61: * | P61: * | Q61: * | R61: * | S61: * | T61: *
A62: QOP | B62: RMP | C62: TAMESIDE AND GLOSSOP INTEGRATED CARE NHS FOUNDATION TRUST | D62: 1 | E62: * | F62: * | G62: * | H62: * | I62: * | J62: * | K62: * | L62: * | M62: * | N62: * | O62: * | P62: * | Q62: * | R62: * | S62: * | T62: *
A63: QOP | B63: R0A | C63: MANCHESTER UNIVERSITY NHS FOUNDATION TRUST | D63: 39 | E63: 0.9487179487 | F63: 0.02564102564 | G63: * | H63: * | I63: * | J63: * | K63: * | L63: * | M63: * | N63: * | O63: * | P63: * | Q63: * | R63: * | S63: * | T63: *
A64: QOQ | B64: RJL | C64: NORTHERN LINCOLNSHIRE AND GOOLE NHS FOUNDATION TRUST | D64: 0 | E64: NA | F64: NA | G64: 0 | H64: 0 | I64: 0 | J64: 0 | K64: 0 | L64: 0 | M64: 0 | N64: 0 | O64: 0 | P64: 0 | Q64: 0 | R64: 0 | S64: 0 | T64: 0
A65: QOQ | B65: RCB | C65: YORK TEACHING HOSPITAL NHS FOUNDATION TRUST | D65: 10 | E65: 1 | F65: 0 | G65: 10 | H65: 0 | I65: 0 | J65: 0 | K65: 0 | L65: 0 | M65: 0 | N65: 0 | O65: 10 | P65: 0 | Q65: 0 | R65: 0 | S65: 0 | T65: 0
A66: QOQ | B66: RCD | C66: HARROGATE AND DISTRICT NHS FOUNDATION TRUST | D66: 45 | E66: 1 | F66: 0 | G66: 39 | H66: 6 | I66: 0 | J66: 0 | K66: 0 | L66: 0 | M66: 0 | N66: 0 | O66: 0 | P66: 45 | Q66: 0 | R66: 0 | S66: 0 | T66: 0
A67: QOX | B67: RN3 | C67: GREAT WESTERN HOSPITALS NHS FOUNDATION TRUST | D67: 0 | E67: NA | F67: NA | G67: 0 | H67: 0 | I67: 0 | J67: 0 | K67: 0 | L67: 0 | M67: 0 | N67: 0 | O67: 0 | P67: 0 | Q67: 0 | R67: 0 | S67: 0 | T67: 0
A68: QOX | B68: RNZ | C68: SALISBURY NHS FOUNDATION TRUST | D68: 0 | E68: NA | F68: NA | G68: 0 | H68: 0 | I68: 0 | J68: 0 | K68: 0 | L68: 0 | M68: 0 | N68: 0 | O68: 0 | P68: 0 | Q68: 0 | R68: 0 | S68: 0 | T68: 0
A69: QOX | B69: RD1 | C69: ROYAL UNITED HOSPITALS BATH NHS FOUNDATION TRUST | D69: 5 | E69: 1 | F69: 0 | G69: 4 | H69: 1 | I69: 0 | J69: 0 | K69: 0 | L69: 0 | M69: 0 | N69: 0 | O69: 0 | P69: 4 | Q69: 0 | R69: 0 | S69: 1 | T69: 0
A70: QPM | B70: RNS | C70: NORTHAMPTON GENERAL HOSPITAL NHS TRUST | D70: 0 | E70: NA | F70: NA | G70: 0 | H70: 0 | I70: 0 | J70: 0 | K70: 0 | L70: 0 | M70: 0 | N70: 0 | O70: 0 | P70: 0 | Q70: 0 | R70: 0 | S70: 0 | T70: 0
A71: QR1 | B71: RTE | C71: GLOUCESTERSHIRE HOSPITALS NHS FOUNDATION TRUST | D71: 0 | E71: NA | F71: NA | G71: 0 | H71: 0 | I71: 0 | J71: 0 | K71: 0 | L71: 0 | M71: 0 | N71: 0 | O71: 0 | P71: 0 | Q71: 0 | R71: 0 | S71: 0 | T71: 0
A72: QRL | B72: RHU | C72: PORTSMOUTH HOSPITALS UNIVERSITY NATIONAL HEALTH SERVICE TRUST | D72: 0 | E72: NA | F72: NA | G72: 0 | H72: 0 | I72: 0 | J72: 0 | K72: 0 | L72: 0 | M72: 0 | N72: 0 | O72: 0 | P72: 0 | Q72: 0 | R72: 0 | S72: 0 | T72: 0
A73: QRL | B73: RN5 | C73: HAMPSHIRE HOSPITALS NHS FOUNDATION TRUST | D73: 1 | E73: * | F73: * | G73: * | H73: * | I73: * | J73: * | K73: * | L73: * | M73: * | N73: * | O73: * | P73: * | Q73: * | R73: * | S73: * | T73: *
A74: QRL | B74: R1F | C74: ISLE OF WIGHT NHS TRUST | D74: 8 | E74: 1 | F74: 0 | G74: * | H74: * | I74: * | J74: * | K74: * | L74: * | M74: * | N74: * | O74: * | P74: * | Q74: * | R74: * | S74: * | T74: *
A75: QRL | B75: RHM | C75: UNIVERSITY HOSPITAL SOUTHAMPTON NHS FOUNDATION TRUST | D75: 125 | E75: 0.856 | F75: 0.088 | G75: 64 | H75: 43 | I75: 6 | J75: 7 | K75: 4 | L75: 1 | M75: 0 | N75: 0 | O75: 0 | P75: 28 | Q75: 0 | R75: 0 | S75: 97 | T75: 0
A76: QRV | B76: R1K | C76: LONDON NORTH WEST UNIVERSITY HEALTHCARE NHS TRUST | D76: 5 | E76: 1 | F76: 0 | G76: 4 | H76: 1 | I76: 0 | J76: 0 | K76: 0 | L76: 0 | M76: 0 | N76: 0 | O76: 0 | P76: 5 | Q76: 0 | R76: 0 | S76: 0 | T76: 0
A77: QRV | B77: RQM | C77: CHELSEA AND WESTMINSTER HOSPITAL NHS FOUNDATION TRUST | D77: 22 | E77: 0.8181818182 | F77: 0.1363636364 | G77: 15 | H77: 3 | I77: 1 | J77: 1 | K77: 2 | L77: 0 | M77: 20 | N77: 0 | O77: 0 | P77: 0 | Q77: 0 | R77: 0 | S77: 2 | T77: 0
A78: QRV | B78: RYJ | C78: IMPERIAL COLLEGE HEALTHCARE NHS TRUST | D78: 61 | E78: 0.8524590164 | F78: 0.06557377049 | G78: 35 | H78: 17 | I78: 5 | J78: 3 | K78: 1 | L78: 0 | M78: 61 | N78: 0 | O78: 0 | P78: 0 | Q78: 0 | R78: 0 | S78: 0 | T78: 0
A79: QRV | B79: RAS | C79: THE HILLINGDON HOSPITALS NHS FOUNDATION TRUST | D79: 216 | E79: 0.875 | F79: 0.05555555556 | G79: 122 | H79: 67 | I79: 15 | J79: 4 | K79: 8 | L79: 0 | M79: 0 | N79: 0 | O79: 0 | P79: 0 | Q79: 0 | R79: 0 | S79: 216 | T79: 0
A80: QSL | B80: RA4 | C80: YEOVIL DISTRICT HOSPITAL NHS FOUNDATION TRUST | D80: 0 | E80: NA | F80: NA | G80: 0 | H80: 0 | I80: 0 | J80: 0 | K80: 0 | L80: 0 | M80: 0 | N80: 0 | O80: 0 | P80: 0 | Q80: 0 | R80: 0 | S80: 0 | T80: 0
A81: QSL | B81: RH5 | C81: SOMERSET NHS FOUNDATION TRUST | D81: 0 | E81: NA | F81: NA | G81: 0 | H81: 0 | I81: 0 | J81: 0 | K81: 0 | L81: 0 | M81: 0 | N81: 0 | O81: 0 | P81: 0 | Q81: 0 | R81: 0 | S81: 0 | T81: 0
A82: QT1 | B82: RX1 | C82: NOTTINGHAM UNIVERSITY HOSPITALS NHS TRUST | D82: 16 | E82: 1 | F82: 0 | G82: 15 | H82: 1 | I82: 0 | J82: 0 | K82: 0 | L82: 0 | M82: 0 | N82: 0 | O82: 0 | P82: 0 | Q82: 16 | R82: 0 | S82: 0 | T82: 0
A83: QT1 | B83: RK5 | C83: SHERWOOD FOREST HOSPITALS NHS FOUNDATION TRUST | D83: 31 | E83: 0.8064516129 | F83: 0.1290322581 | G83: 16 | H83: 9 | I83: 2 | J83: 1 | K83: 3 | L83: 0 | M83: 31 | N83: 0 | O83: 0 | P83: 0 | Q83: 0 | R83: 0 | S83: 0 | T83: 0
A84: QT6 | B84: REF | C84: ROYAL CORNWALL HOSPITALS NHS TRUST | D84: 7 | E84: 1 | F84: 0 | G84: 7 | H84: 0 | I84: 0 | J84: 0 | K84: 0 | L84: 0 | M84: 0 | N84: 0 | O84: 0 | P84: 7 | Q84: 0 | R84: 0 | S84: 0 | T84: 0
A85: QU9 | B85: RTH | C85: OXFORD UNIVERSITY HOSPITALS NHS FOUNDATION TRUST | D85: 0 | E85: NA | F85: NA | G85: 0 | H85: 0 | I85: 0 | J85: 0 | K85: 0 | L85: 0 | M85: 0 | N85: 0 | O85: 0 | P85: 0 | Q85: 0 | R85: 0 | S85: 0 | T85: 0
A86: QU9 | B86: RHW | C86: ROYAL BERKSHIRE NHS FOUNDATION TRUST | D86: 2 | E86: * | F86: * | G86: * | H86: * | I86: * | J86: * | K86: * | L86: * | M86: * | N86: * | O86: * | P86: * | Q86: * | R86: * | S86: * | T86: *
A87: QU9 | B87: RXQ | C87: BUCKINGHAMSHIRE HEALTHCARE NHS TRUST | D87: 23 | E87: 0.7391304348 | F87: 0.1304347826 | G87: * | H87: * | I87: * | J87: * | K87: * | L87: * | M87: * | N87: * | O87: * | P87: * | Q87: * | R87: * | S87: * | T87: *
A88: QUA | B88: RBK | C88: WALSALL HEALTHCARE NHS TRUST | D88: 24 | E88: 0.7916666667 | F88: 0.125 | G88: 18 | H88: 1 | I88: 2 | J88: 2 | K88: 1 | L88: 0 | M88: 24 | N88: 0 | O88: 0 | P88: 0 | Q88: 0 | R88: 0 | S88: 0 | T88: 0
A89: QUA | B89: RNA | C89: THE DUDLEY GROUP NHS FOUNDATION TRUST | D89: 33 | E89: 0.6060606061 | F89: 0 | G89: 19 | H89: 1 | I89: 0 | J89: 0 | K89: 0 | L89: 13 | M89: 0 | N89: 0 | O89: 0 | P89: 0 | Q89: 17 | R89: 0 | S89: 16 | T89: 0
A90: QUA | B90: RXK | C90: SANDWELL AND WEST BIRMINGHAM HOSPITALS NHS TRUST | D90: 167 | E90: 0.7784431138 | F90: 0.119760479 | G90: 101 | H90: 29 | I90: 17 | J90: 10 | K90: 10 | L90: 0 | M90: 167 | N90: 0 | O90: 0 | P90: 0 | Q90: 0 | R90: 0 | S90: 0 | T90: 0
A91: QUE | B91: RGT | C91: CAMBRIDGE UNIVERSITY HOSPITALS NHS FOUNDATION TRUST | D91: 4 | E91: * | F91: * | G91: * | H91: * | I91: * | J91: * | K91: * | L91: * | M91: * | N91: * | O91: * | P91: * | Q91: * | R91: * | S91: * | T91: *
A92: QUE | B92: RGN | C92: NORTH WEST ANGLIA NHS FOUNDATION TRUST | D92: 201 | E92: 0.9751243781 | F92: 0.004975124378 | G92: * | H92: * | I92: * | J92: * | K92: * | L92: * | M92: * | N92: * | O92: * | P92: * | Q92: * | R92: * | S92: * | T92: *
A93: QUY | B93: RA7 | C93: UNIVERSITY HOSPITALS BRISTOL AND WESTON NHS FOUNDATION TRUST | D93: 0 | E93: NA | F93: NA | G93: 0 | H93: 0 | I93: 0 | J93: 0 | K93: 0 | L93: 0 | M93: 0 | N93: 0 | O93: 0 | P93: 0 | Q93: 0 | R93: 0 | S93: 0 | T93: 0
A94: QUY | B94: RVJ | C94: NORTH BRISTOL NHS TRUST | D94: 0 | E94: NA | F94: NA | G94: 0 | H94: 0 | I94: 0 | J94: 0 | K94: 0 | L94: 0 | M94: 0 | N94: 0 | O94: 0 | P94: 0 | Q94: 0 | R94: 0 | S94: 0 | T94: 0
A95: QVV | B95: RBD | C95: DORSET COUNTY HOSPITAL NHS FOUNDATION TRUST | D95: 17 | E95: 0.8823529412 | F95: 0.05882352941 | G95: 11 | H95: 4 | I95: 0 | J95: 1 | K95: 0 | L95: 1 | M95: 17 | N95: 0 | O95: 0 | P95: 0 | Q95: 0 | R95: 0 | S95: 0 | T95: 0
A96: QVV | B96: R0D | C96: UNIVERSITY HOSPITALS DORSET NHS FOUNDATION TRUST | D96: 58 | E96: 0.8793103448 | F96: 0.08620689655 | G96: 32 | H96: 19 | I96: 1 | J96: 2 | K96: 3 | L96: 1 | M96: 22 | N96: 0 | O96: 0 | P96: 36 | Q96: 0 | R96: 0 | S96: 0 | T96: 0
A97: QWE | B97: RAX | C97: KINGSTON HOSPITAL NHS FOUNDATION TRUST | D97: 1 | E97: * | F97: * | G97: * | H97: * | I97: * | J97: * | K97: * | L97: * | M97: * | N97: * | O97: * | P97: * | Q97: * | R97: * | S97: * | T97: *
A98: QWE | B98: RJ7 | C98: ST GEORGE'S UNIVERSITY HOSPITALS NHS FOUNDATION TRUST | D98: 1 | E98: * | F98: * | G98: * | H98: * | I98: * | J98: * | K98: * | L98: * | M98: * | N98: * | O98: * | P98: * | Q98: * | R98: * | S98: * | T98: *
A99: QWE | B99: RVR | C99: EPSOM AND ST HELIER UNIVERSITY HOSPITALS NHS TRUST | D99: 16 | E99: 1 | F99: 0 | G99: 15 | H99: 1 | I99: 0 | J99: 0 | K99: 0 | L99: 0 | M99: 0 | N99: 1 | O99: 0 | P99: 12 | Q99: 0 | R99: 0 | S99: 3 | T99: 0
A100: QWE | B100: RJ6 | C100: CROYDON HEALTH SERVICES NHS TRUST | D100: 71 | E100: 0.8450704225 | F100: 0.08450704225 | G100: 43 | H100: 17 | I100: 2 | J100: 4 | K100: 2 | L100: 3 | M100: 71 | N100: 0 | O100: 0 | P100: 0 | Q100: 0 | R100: 0 | S100: 0 | T100: 0
A101: QWO | B101: RAE | C101: BRADFORD TEACHING HOSPITALS NHS FOUNDATION TRUST | D101: 0 | E101: NA | F101: NA | G101: 0 | H101: 0 | I101: 0 | J101: 0 | K101: 0 | L101: 0 | M101: 0 | N101: 0 | O101: 0 | P101: 0 | Q101: 0 | R101: 0 | S101: 0 | T101: 0
A102: QWO | B102: RCF | C102: AIREDALE NHS FOUNDATION TRUST | D102: 0 | E102: NA | F102: NA | G102: 0 | H102: 0 | I102: 0 | J102: 0 | K102: 0 | L102: 0 | M102: 0 | N102: 0 | O102: 0 | P102: 0 | Q102: 0 | R102: 0 | S102: 0 | T102: 0
A103: QWO | B103: RXF | C103: MID YORKSHIRE HOSPITALS NHS TRUST | D103: 0 | E103: NA | F103: NA | G103: 0 | H103: 0 | I103: 0 | J103: 0 | K103: 0 | L103: 0 | M103: 0 | N103: 0 | O103: 0 | P103: 0 | Q103: 0 | R103: 0 | S103: 0 | T103: 0
A104: QWO | B104: RR8 | C104: LEEDS TEACHING HOSPITALS NHS TRUST | D104: 5 | E104: 0.2 | F104: 0.8 | G104: 1 | H104: 0 | I104: 0 | J104: 3 | K104: 1 | L104: 0 | M104: 0 | N104: 5 | O104: 0 | P104: 0 | Q104: 0 | R104: 0 | S104: 0 | T104: 0
A105: QWO | B105: RWY | C105: CALDERDALE AND HUDDERSFIELD NHS FOUNDATION TRUST | D105: 5 | E105: 0.8 | F105: 0.2 | G105: 4 | H105: 0 | I105: 0 | J105: 0 | K105: 1 | L105: 0 | M105: 0 | N105: 0 | O105: 0 | P105: 0 | Q105: 0 | R105: 0 | S105: 5 | T105: 0
A106: QWU | B106: RJC | C106: SOUTH WARWICKSHIRE NHS FOUNDATION TRUST | D106: 2 | E106: * | F106: * | G106: * | H106: * | I106: * | J106: * | K106: * | L106: * | M106: * | N106: * | O106: * | P106: * | Q106: * | R106: * | S106: * | T106: *
A107: QWU | B107: RLT | C107: GEORGE ELIOT HOSPITAL NHS TRUST | D107: 10 | E107: 1 | F107: 0 | G107: * | H107: * | I107: * | J107: * | K107: * | L107: * | M107: * | N107: * | O107: * | P107: * | Q107: * | R107: * | S107: * | T107: *
A108: QWU | B108: RKB | C108: UNIVERSITY HOSPITALS COVENTRY AND WARWICKSHIRE NHS TRUST | D108: 41 | E108: 0.9512195122 | F108: 0.0487804878 | G108: 32 | H108: 7 | I108: 0 | J108: 1 | K108: 1 | L108: 0 | M108: 0 | N108: 38 | O108: 0 | P108: 0 | Q108: 0 | R108: 0 | S108: 3 | T108: 0
A109: QXU | B109: RA2 | C109: ROYAL SURREY COUNTY HOSPITAL NHS FOUNDATION TRUST | D109: 4 | E109: * | F109: * | G109: * | H109: * | I109: * | J109: * | K109: * | L109: * | M109: * | N109: * | O109: * | P109: * | Q109: * | R109: * | S109: * | T109: *
A110: QXU | B110: RTP | C110: SURREY AND SUSSEX HEALTHCARE NHS TRUST | D110: 17 | E110: 1 | F110: 0 | G110: * | H110: * | I110: * | J110: * | K110: * | L110: * | M110: * | N110: * | O110: * | P110: * | Q110: * | R110: * | S110: * | T110: *
A111: QYG | B111: RBL | C111: WIRRAL UNIVERSITY TEACHING HOSPITAL NHS FOUNDATION TRUST | D111: 0 | E111: NA | F111: NA | G111: 0 | H111: 0 | I111: 0 | J111: 0 | K111: 0 | L111: 0 | M111: 0 | N111: 0 | O111: 0 | P111: 0 | Q111: 0 | R111: 0 | S111: 0 | T111: 0
A112: QYG | B112: RJN | C112: EAST CHESHIRE NHS TRUST | D112: 0 | E112: NA | F112: NA | G112: 0 | H112: 0 | I112: 0 | J112: 0 | K112: 0 | L112: 0 | M112: 0 | N112: 0 | O112: 0 | P112: 0 | Q112: 0 | R112: 0 | S112: 0 | T112: 0
A113: QYG | B113: RWW | C113: WARRINGTON AND HALTON TEACHING HOSPITALS NHS FOUNDATION TRUST | D113: 0 | E113: NA | F113: NA | G113: 0 | H113: 0 | I113: 0 | J113: 0 | K113: 0 | L113: 0 | M113: 0 | N113: 0 | O113: 0 | P113: 0 | Q113: 0 | R113: 0 | S113: 0 | T113: 0
A114: QYG | B114: RY2 | C114: BRIDGEWATER COMMUNITY HEALTHCARE NHS FOUNDATION TRUST | D114: 0 | E114: NA | F114: NA | G114: 0 | H114: 0 | I114: 0 | J114: 0 | K114: 0 | L114: 0 | M114: 0 | N114: 0 | O114: 0 | P114: 0 | Q114: 0 | R114: 0 | S114: 0 | T114: 0
A115: QYG | B115: RBT | C115: MID CHESHIRE HOSPITALS NHS FOUNDATION TRUST | D115: 4 | E115: * | F115: * | G115: * | H115: * | I115: * | J115: * | K115: * | L115: * | M115: * | N115: * | O115: * | P115: * | Q115: * | R115: * | S115: * | T115: *
A116: QYG | B116: REP | C116: LIVERPOOL WOMEN'S NHS FOUNDATION TRUST | D116: 7 | E116: 0.4285714286 | F116: 0.2857142857 | G116: * | H116: * | I116: * | J116: * | K116: * | L116: * | M116: * | N116: * | O116: * | P116: * | Q116: * | R116: * | S116: * | T116: *
A117: QYG | B117: RJR | C117: COUNTESS OF CHESTER HOSPITAL NHS FOUNDATION TRUST | D117: 14 | E117: 0.9285714286 | F117: 0.07142857143 | G117: 8 | H117: 5 | I117: 0 | J117: 1 | K117: 0 | L117: 0 | M117: 14 | N117: 0 | O117: 0 | P117: 0 | Q117: 0 | R117: 0 | S117: 0 | T117: 0
A118: QYG | B118: RBN | C118: ST HELENS AND KNOWSLEY TEACHING HOSPITALS NHS TRUST | D118: 19 | E118: 0.9473684211 | F118: 0 | G118: 12 | H118: 6 | I118: 1 | J118: 0 | K118: 0 | L118: 0 | M118: 0 | N118: 0 | O118: 0 | P118: 19 | Q118: 0 | R118: 0 | S118: 0 | T118: 0

Sheet Sites Q1
B6: Sort data by:
A9: STP Code | B9: Trust Code | C9: Trust Name | D9: Site Code | E9: Site Name | F9: Total Responses | G9: Percentage Positive | H9: Percentage Negative | I9: Breakdown of Responses
I10: Very Good | J10: Good | K10: Neither Good nor Poor | L10: Poor | M10: Very Poor | N10: Don't Know
E11: England (including Independent Sector providers) | F11: 2273 | G11: 0.8794544655 | H11: 0.0624725033 | I11: 1525 | J11: 474 | K11: 108 | L11: 72 | M11: 70 | N11: 24
E12: England (excluding Independent Sector providers) | F12: 2273 | G12: 0.8794544655 | H12: 0.0624725033 | I12: 1525 | J12: 474 | K12: 108 | L12: 72 | M12: 70 | N12: 24
E13: Selection (excluding suppressed data) | F13: =SUBTOTAL(9,F14:F297) -> 2273 | G13: =IFERROR((I13+J13)/SUM(I13:N13), "-") -> 0.8726362625 | H13: =IFERROR((L13+M13)/SUM(I13:N13), "-") -> 0.06507230256 | I13: =SUBTOTAL(9,I14:I297) -> 1153 | J13: 416 | K13: 89 | L13: 63 | M13: 54 | N13: 23
A14: QE1 | B14: RXR | C14: EAST LANCASHIRE HOSPITALS NHS TRUST | D14: RXR20 | E14: Royal Blackburn Hospital | F14: 13 | G14: 0.7692307692 | H14: 0 | I14: 7 | J14: 3 | K14: 1 | L14: 0 | M14: 0 | N14: 2
A15: QE1 | B15: RXN | C15: LANCASHIRE TEACHING HOSPITALS NHS FOUNDATION TRUST | D15: RXN01 | E15: Chorley and South Ribble Hospital | F15: 0 | G15: NA | H15: NA | I15: 0 | J15: 0 | K15: 0 | L15: 0 | M15: 0 | N15: 0
A16: QE1 | B16: RXN | C16: LANCASHIRE TEACHING HOSPITALS NHS FOUNDATION TRUST | D16: RXN02 | E16: Royal Preston Hospital | F16: 31 | G16: 0.8387096774 | H16: 0.09677419355 | I16: 15 | J16: 11 | K16: 2 | L16: 2 | M16: 1 | N16: 0
A17: QE1 | B17: RTX | C17: UNIVERSITY HOSPITALS OF MORECAMBE BAY NHS FOUNDATION TRUST | D17: RTX02 | E17: Royal Lancaster Infirmary | F17: 0 | G17: NA | H17: NA | I17: 0 | J17: 0 | K17: 0 | L17: 0 | M17: 0 | N17: 0
A18: QE1 | B18: RTX | C18: UNIVERSITY HOSPITALS OF MORECAMBE BAY NHS FOUNDATION TRUST | D18: RTXBU | E18: Furness General Hospital | F18: 0 | G18: NA | H18: NA | I18: 0 | J18: 0 | K18: 0 | L18: 0 | M18: 0 | N18: 0
A19: QE1 | B19: RTX | C19: UNIVERSITY HOSPITALS OF MORECAMBE BAY NHS FOUNDATION TRUST | D19: RTXBW | E19: Westmorland General Hospital | F19: 0 | G19: NA | H19: NA | I19: 0 | J19: 0 | K19: 0 | L19: 0 | M19: 0 | N19: 0
A20: QF7 | B20: RFF | C20: BARNSLEY HOSPITAL NHS FOUNDATION TRUST | D20: RFFAA | E20: Barnsley Hospital NHS Foundation Trust HQ | F20: 2 | G20: * | H20: * | I20: * | J20: * | K20: * | L20: * | M20: * | N20: *
A21: QF7 | B21: RP5 | C21: DONCASTER AND BASSETLAW TEACHING HOSPITALS NHS FOUNDATION TRUST | D21: RP5BA | E21: Bassetlaw Hospital | F21: 0 | G21: NA | H21: NA | I21: 0 | J21: 0 | K21: 0 | L21: 0 | M21: 0 | N21: 0
A22: QF7 | B22: RP5 | C22: DONCASTER AND BASSETLAW TEACHING HOSPITALS NHS FOUNDATION TRUST | D22: RP5XXX | E22: Non-hospital site | F22: 0 | G22: NA | H22: NA | I22: 0 | J22: 0 | K22: 0 | L22: 0 | M22: 0 | N22: 0
A23: QF7 | B23: RP5 | C23: DONCASTER AND BASSETLAW TEACHING HOSPITALS NHS FOUNDATION TRUST | D23: RP5DR | E23: Doncaster Royal Infirmary | F23: 4 | G23: * | H23: * | I23: * | J23: * | K23: * | L23: * | M23: * | N23: *
A24: QF7 | B24: RHQ | C24: SHEFFIELD TEACHING HOSPITALS NHS FOUNDATION TRUST | D24: RHQHH | E24: Royal Hallamshire Hospital | F24: 17 | G24: 0.8235294118 | H24: 0.05882352941 | I24: 12 | J24: 2 | K24: 2 | L24: 0 | M24: 1 | N24: 0
A25: QF7 | B25: RFR | C25: THE ROTHERHAM NHS FOUNDATION TRUST | D25: RFRPA | E25: Rotherham District General Hospital | F25: 0 | G25: NA | H25: NA | I25: 0 | J25: 0 | K25: 0 | L25: 0 | M25: 0 | N25: 0
A26: QGH | B26: RWP | C26: WORCESTERSHIRE ACUTE HOSPITALS NHS TRUST | D26: RWP01 | E26: Alexandra Hospital | F26: 0 | G26: NA | H26: NA | I26: 0 | J26: 0 | K26: 0 | L26: 0 | M26: 0 | N26: 0
A27: QGH | B27: RWP | C27: WORCESTERSHIRE ACUTE HOSPITALS NHS TRUST | D27: RWP50 | E27: Worcestershire Royal Hospital | F27: 11 | G27: 1 | H27: 0 | I27: * | J27: * | K27: * | L27: * | M27: * | N27: *
A28: QGH | B28: RWP | C28: WORCESTERSHIRE ACUTE HOSPITALS NHS TRUST | D28: RWP31 | E28: Kidderminster Hospital | F28: 15 | G28: 0.9333333333 | H28: 0 | I28: * | J28: * | K28: * | L28: * | M28: * | N28: *
A29: QGH | B29: RLQ | C29: WYE VALLEY NHS TRUST | D29: RLQ01 | E29: Hereford County Hospital | F29: 1 | G29: * | H29: * | I29: * | J29: * | K29: * | L29: * | M29: * | N29: *
A30: QHG | B30: RC9 | C30: BEDFORDSHIRE HOSPITALS NHS FOUNDATION TRUST | D30: RC979 | E30: BEDFORD HOSPITAL SOUTH WING | F30: 0 | G30: NA | H30: NA | I30: 0 | J30: 0 | K30: 0 | L30: 0 | M30: 0 | N30: 0
A31: QHG | B31: RC9 | C31: BEDFORDSHIRE HOSPITALS NHS FOUNDATION TRUST | D31: RC971 | E31: Luton and Dunstable Hospital | F31: 31 | G31: 0.9677419355 | H31: 0 | I31: 14 | J31: 16 | K31: 1 | L31: 0 | M31: 0 | N31: 0
A32: QHG | B32: RD8 | C32: MILTON KEYNES UNIVERSITY HOSPITAL NHS FOUNDATION TRUST | D32: RD816 | E32: Milton Keynes Hospital | F32: 26 | G32: 0.5 | H32: 0.07692307692 | I32: 7 | J32: 6 | K32: 11 | L32: 0 | M32: 2 | N32: 0
A33: QHL | B33: RQ3 | C33: BIRMINGHAM WOMEN'S AND CHILDREN'S NHS FOUNDATION TRUST | D33: RQ370 | E33: Birmingham Women's Hospital | F33: 9 | G33: 0.8888888889 | H33: 0.1111111111 | I33: 7 | J33: 1 | K33: 0 | L33: 1 | M33: 0 | N33: 0
A34: QHL | B34: RRK | C34: UNIVERSITY HOSPITALS BIRMINGHAM NHS FOUNDATION TRUST | D34: RRK97 | E34: Heartlands Hospital | F34: 0 | G34: NA | H34: NA | I34: 0 | J34: 0 | K34: 0 | L34: 0 | M34: 0 | N34: 0
A35: QHL | B35: RRK | C35: UNIVERSITY HOSPITALS BIRMINGHAM NHS FOUNDATION TRUST | D35: RRK98 | E35: Good Hope Hospital | F35: 0 | G35: NA | H35: NA | I35: 0 | J35: 0 | K35: 0 | L35: 0 | M35: 0 | N35: 0
A36: QHL | B36: RRK | C36: UNIVERSITY HOSPITALS BIRMINGHAM NHS FOUNDATION TRUST | D36: RRK99 | E36: Solihull Hospital | F36: 0 | G36: NA | H36: NA | I36: 0 | J36: 0 | K36: 0 | L36: 0 | M36: 0 | N36: 0
A37: QHM | B37: RNN | C37: NORTH CUMBRIA INTEGRATED CARE NHS FOUNDATION TRUST | D37: RNNXXX | E37: Non-hospital site | F37: 18 | G37: 1 | H37: 0 | I37: 14 | J37: 4 | K37: 0 | L37: 0 | M37: 0 | N37: 0
A38: QHM | B38: RVW | C38: NORTH TEES AND HARTLEPOOL NHS FOUNDATION TRUST | D38: RVWAE | E38: University Hospital Of North Tees | F38: 0 | G38: NA | H38: NA | I38: 0 | J38: 0 | K38: 0 | L38: 0 | M38: 0 | N38: 0
A39: QHM | B39: RVW | C39: NORTH TEES AND HARTLEPOOL NHS FOUNDATION TRUST | D39: RVWXXX | E39: Non-hospital site | F39: 0 | G39: NA | H39: NA | I39: 0 | J39: 0 | K39: 0 | L39: 0 | M39: 0 | N39: 0
A40: QHM | B40: RTF | C40: NORTHUMBRIA HEALTHCARE NHS FOUNDATION TRUST | D40: RTFXXX | E40: Non-hospital site | F40: 0 | G40: NA | H40: NA | I40: 0 | J40: 0 | K40: 0 | L40: 0 | M40: 0 | N40: 0
A41: QHM | B41: RTR | C41: SOUTH TEES HOSPITALS NHS FOUNDATION TRUST | D41: RTRAT | E41: The James Cook University Hospital | F41: 3 | G41: * | H41: * | I41: * | J41: * | K41: * | L41: * | M41: * | N41: *
A42: QHM | B42: R0B | C42: SOUTH TYNESIDE AND SUNDERLAND NHS FOUNDATION TRUST | D42: R0B0Q | E42: South Tyneside District Hospital | F42: 0 | G42: NA | H42: NA | I42: 0 | J42: 0 | K42: 0 | L42: 0 | M42: 0 | N42: 0
A43: QHM | B43: R0B | C43: SOUTH TYNESIDE AND SUNDERLAND NHS FOUNDATION TRUST | D43: R0B01 | E43: Sunderland Royal Hospital | F43: 2 | G43: * | H43: * | I43: * | J43: * | K43: * | L43: * | M43: * | N43: *
A44: QJ2 | B44: RFS | C44: CHESTERFIELD ROYAL HOSPITAL NHS FOUNDATION TRUST | D44: RFSDA | E44: Chesterfield Royal Hospital | F44: 1 | G44: * | H44: * | I44: * | J44: * | K44: * | L44: * | M44: * | N44: *
A45: QJ2 | B45: RTG | C45: UNIVERSITY HOSPITALS OF DERBY AND BURTON NHS FOUNDATION TRUST | D45: RTG02 | E45: Queens Hospital, Burton Upon Trent | F45: 1 | G45: * | H45: * | I45: * | J45: * | K45: * | L45: * | M45: * | N45: *
A46: QJ2 | B46: RTG | C46: UNIVERSITY HOSPITALS OF DERBY AND BURTON NHS FOUNDATION TRUST | D46: RTGFG | E46: Royal Derby Hospital | F46: 6 | G46: 0.6666666667 | H46: 0.1666666667 | I46: * | J46: * | K46: * | L46: * | M46: * | N46: *
A47: QJG | B47: RDE | C47: EAST SUFFOLK AND NORTH ESSEX NHS FOUNDATION TRUST | D47: RDEE4 | E47: Colchester General Hospital | F47: 1 | G47: * | H47: * | I47: * | J47: * | K47: * | L47: * | M47: * | N47: *
A48: QJG | B48: RGR | C48: WEST SUFFOLK NHS FOUNDATION TRUST | D48: RGR50 | E48: West Suffolk Hospital | F48: 0 | G48: NA | H48: NA | I48: 0 | J48: 0 | K48: 0 | L48: 0 | M48: 0 | N48: 0
A49: QJK | B49: RBZ | C49: NORTHERN DEVON HEALTHCARE NHS TRUST | D49: RBZ12 | E49: North Devon District Hospital | F49: 4 | G49: * | H49: * | I49: * | J49: * | K49: * | L49: * | M49: * | N49: *
A50: QJK | B50: RH8 | C50: ROYAL DEVON AND EXETER NHS FOUNDATION TRUST | D50: RH801 | E50: Royal Devon and Exeter Hospital (Wonford) | F50: 0 | G50: NA | H50: NA | I50: 0 | J50: 0 | K50: 0 | L50: 0 | M50: 0 | N50: 0
A51: QJK | B51: RK9 | C51: UNIVERSITY HOSPITALS PLYMOUTH NHS TRUST | D51: RK9XXX | E51: Non-hospital site | F51: 9 | G51: 0.8888888889 | H51: 0 | I51: * | J51: * | K51: * | L51: * | M51: * | N51: *
A52: QJM | B52: RWD | C52: UNITED LINCOLNSHIRE HOSPITALS NHS TRUST | D52: RWDLA | E52: Pilgrim Hospital | F52: 0 | G52: NA | H52: NA | I52: 0 | J52: 0 | K52: 0 | L52: 0 | M52: 0 | N52: 0
A53: QJM | B53: RWD | C53: UNITED LINCOLNSHIRE HOSPITALS NHS TRUST | D53: RWDLP | E53: Grantham and District Hospital | F53: 0 | G53: NA | H53: NA | I53: 0 | J53: 0 | K53: 0 | L53: 0 | M53: 0 | N53: 0
A54: QJM | B54: RWD | C54: UNITED LINCOLNSHIRE HOSPITALS NHS TRUST | D54: RWDXXX | E54: Non-hospital site | F54: 0 | G54: NA | H54: NA | I54: 0 | J54: 0 | K54: 0 | L54: 0 | M54: 0 | N54: 0
A55: QJM | B55: RWD | C55: UNITED LINCOLNSHIRE HOSPITALS NHS TRUST | D55: RWDDA | E55: Lincoln County Hospital | F55: 5 | G55: 1 | H55: 0 | I55: * | J55: * | K55: * | L55: * | M55: * | N55: *
A56: QK1 | B56: RWE | C56: UNIVERSITY HOSPITALS OF LEICESTER NHS TRUST | D56: RWEXXX | E56: Non-hospital site | F56: 6 | G56: 1 | H56: 0 | I56: 5 | J56: 1 | K56: 0 | L56: 0 | M56: 0 | N56: 0
A57: QK1 | B57: RWE | C57: UNIVERSITY HOSPITALS OF LEICESTER NHS TRUST | D57: RWEAA | E57: Leicester Royal Infirmary | F57: 7 | G57: 1 | H57: 0 | I57: 3 | J57: 4 | K57: 0 | L57: 0 | M57: 0 | N57: 0
A58: QK1 | B58: RWE | C58: UNIVERSITY HOSPITALS OF LEICESTER NHS TRUST | D58: RWEAK | E58: Leicester General Hospital | F58: 64 | G58: 0.96875 | H58: 0.015625 | I58: 48 | J58: 14 | K58: 1 | L58: 1 | M58: 0 | N58: 0
A59: QKK | B59: RJ1 | C59: GUY'S AND ST THOMAS' NHS FOUNDATION TRUST | D59: RJ122 | E59: St Thomas' Hospital | F59: 5 | G59: 0.8 | H59: 0.2 | I59: * | J59: * | K59: * | L59: * | M59: * | N59: *
A60: QKK | B60: RJZ | C60: KING'S COLLEGE HOSPITAL NHS FOUNDATION TRUST | D60: RJZ30 | E60: Princess Royal University Hospital | F60: 0 | G60: NA | H60: NA | I60: 0 | J60: 0 | K60: 0 | L60: 0 | M60: 0 | N60: 0
A61: QKK | B61: RJZ | C61: KING'S COLLEGE HOSPITAL NHS FOUNDATION TRUST | D61: RJZ01 | E61: King's College Hospital (Denmark Hill) | F61: 1 | G61: * | H61: * | I61: * | J61: * | K61: * | L61: * | M61: * | N61: *
A62: QKK | B62: RJ2 | C62: LEWISHAM AND GREENWICH NHS TRUST | D62: RJ224 | E62: University Hospital Lewisham | F62: 0 | G62: NA | H62: NA | I62: 0 | J62: 0 | K62: 0 | L62: 0 | M62: 0 | N62: 0
A63: QKK | B63: RJ2 | C63: LEWISHAM AND GREENWICH NHS TRUST | D63: RJ2XXX | E63: Non-hospital site | F63: 0 | G63: NA | H63: NA | I63: 0 | J63: 0 | K63: 0 | L63: 0 | M63: 0 | N63: 0
A64: QKK | B64: RJ2 | C64: LEWISHAM AND GREENWICH NHS TRUST | D64: RJ231 | E64: Queen Elizabeth Hospital | F64: 20 | G64: 0.95 | H64: 0.05 | I64: 9 | J64: 10 | K64: 0 | L64: 1 | M64: 0 | N64: 0
A65: QKS | B65: RVV | C65: EAST KENT HOSPITALS UNIVERSITY NHS FOUNDATION TRUST | D65: RVV01 | E65: William Harvey Hospital (Ashford) | F65: 323 | G65: 0.8699690402 | H65: 0.08359133127 | I65: 201 | J65: 80 | K65: 15 | L65: 16 | M65: 11 | N65: 0
A66: QKS | B66: RWF | C66: MAIDSTONE AND TUNBRIDGE WELLS NHS TRUST | D66: RWF03 | E66: Maidstone District General Hospital | F66: 0 | G66: NA | H66: NA | I66: 0 | J66: 0 | K66: 0 | L66: 0 | M66: 0 | N66: 0
A67: QKS | B67: RWF | C67: MAIDSTONE AND TUNBRIDGE WELLS NHS TRUST | D67: RWFXXX | E67: Non-hospital site | F67: 9 | G67: 1 | H67: 0 | I67: 9 | J67: 0 | K67: 0 | L67: 0 | M67: 0 | N67: 0
A68: QKS | B68: RWF | C68: MAIDSTONE AND TUNBRIDGE WELLS NHS TRUST | D68: RWFTW | E68: The Tunbridge Wells Hospital | F68: 36 | G68: 0.9166666667 | H68: 0.02777777778 | I68: 29 | J68: 4 | K68: 2 | L68: 1 | M68: 0 | N68: 0
A69: QKS | B69: RPA | C69: MEDWAY NHS FOUNDATION TRUST | D69: RPA02 | E69: Medway Maritime Hospital | F69: 79 | G69: 1 | H69: 0 | I69: 79 | J69: 0 | K69: 0 | L69: 0 | M69: 0 | N69: 0
A70: QM7 | B70: RWH | C70: EAST AND NORTH HERTFORDSHIRE NHS TRUST | D70: RWHXXX | E70: Non-hospital site | F70: 3 | G70: * | H70: * | I70: * | J70: * | K70: * | L70: * | M70: * | N70: *
A71: QM7 | B71: RWH | C71: EAST AND NORTH HERTFORDSHIRE NHS TRUST | D71: RWH01 | E71: Lister Hospital | F71: 4 | G71: * | H71: * | I71: * | J71: * | K71: * | L71: * | M71: * | N71: *
A72: QM7 | B72: RQW | C72: THE PRINCESS ALEXANDRA HOSPITAL NHS TRUST | D72: RQWG0 | E72: Princess Alexandra Hospital | F72: 0 | G72: NA | H72: NA | I72: 0 | J72: 0 | K72: 0 | L72: 0 | M72: 0 | N72: 0
A73: QM7 | B73: RWG | C73: WEST HERTFORDSHIRE HOSPITALS NHS TRUST | D73: RWG02 | E73: Watford General Hospital | F73: 10 | G73: 0.9 | H73: 0 | I73: 6 | J73: 3 | K73: 0 | L73: 0 | M73: 0 | N73: 1
A74: QMF | B74: RF4 | C74: BARKING, HAVERING AND REDBRIDGE UNIVERSITY HOSPITALS NHS TRUST | D74: RF4XXX | E74: Non-hospital site | F74: 0 | G74: NA | H74: NA | I74: 0 | J74: 0 | K74: 0 | L74: 0 | M74: 0 | N74: 0
A75: QMF | B75: R1H | C75: BARTS HEALTH NHS TRUST | D75: R1H12 | E75: The Royal London Hospital | F75: 12 | G75: 0.9166666667 | H75: 0.08333333333 | I75: 8 | J75: 3 | K75: 0 | L75: 0 | M75: 1 | N75: 0
A76: QMF | B76: R1H | C76: BARTS HEALTH NHS TRUST | D76: R1HKH | E76: Whipps Cross University Hospital | F76: 28 | G76: 0.9285714286 | H76: 0.07142857143 | I76: 13 | J76: 13 | K76: 0 | L76: 2 | M76: 0 | N76: 0
A77: QMF | B77: R1H | C77: BARTS HEALTH NHS TRUST | D77: R1HNH | E77: Newham General Hospital | F77: 38 | G77: 0.8947368421 | H77: 0.05263157895 | I77: 31 | J77: 3 | K77: 2 | L77: 0 | M77: 2 | N77: 0
A78: QMJ | B78: RAL | C78: ROYAL FREE LONDON NHS FOUNDATION TRUST | D78: RAL01 | E78: Royal Free Hospital | F78: 1 | G78: * | H78: * | I78: * | J78: * | K78: * | L78: * | M78: * | N78: *
A79: QMJ | B79: RAL | C79: ROYAL FREE LONDON NHS FOUNDATION TRUST | D79: RAL26 | E79: Barnet Hospital | F79: 13 | G79: 0.3846153846 | H79: 0.4615384615 | I79: * | J79: * | K79: * | L79: * | M79: * | N79: *
A80: QMJ | B80: RKE | C80: WHITTINGTON HEALTH NHS TRUST | D80: RKEQ4 | E80: The Whittington Hospital | F80: 0 | G80: NA | H80: NA | I80: 0 | J80: 0 | K80: 0 | L80: 0 | M80: 0 | N80: 0
A81: QMJ | B81: RKE | C81: WHITTINGTON HEALTH NHS TRUST | D81: RKEXXX | E81: Non-hospital site | F81: 0 | G81: NA | H81: NA | I81: 0 | J81: 0 | K81: 0 | L81: 0 | M81: 0 | N81: 0
A82: QMM | B82: RM1 | C82: NORFOLK AND NORWICH UNIVERSITY HOSPITALS NHS FOUNDATION TRUST | D82: RM102 | E82: Norfolk and Norwich University Hospital | F82: 26 | G82: 0.8461538462 | H82: 0.07692307692 | I82: 19 | J82: 3 | K82: 1 | L82: 0 | M82: 2 | N82: 1
A83: QMM | B83: RCX | C83: THE QUEEN ELIZABETH HOSPITAL, KING'S LYNN, NHS FOUNDATION TRUST | D83: RCX66 | E83: North Cambridgeshire Hospital | F83: 0 | G83: NA | H83: NA | I83: 0 | J83: 0 | K83: 0 | L83: 0 | M83: 0 | N83: 0
A84: QMM | B84: RCX | C84: THE QUEEN ELIZABETH HOSPITAL, KING'S LYNN, NHS FOUNDATION TRUST | D84: RCX70 | E84: The Queen Elizabeth Hospital | F84: 2 | G84: * | H84: * | I84: * | J84: * | K84: * | L84: * | M84: * | N84: *
A85: QMM | B85: RCX | C85: THE QUEEN ELIZABETH HOSPITAL, KING'S LYNN, NHS FOUNDATION TRUST | D85: RCXXXX | E85: Non-hospital site | F85: 4 | G85: * | H85: * | I85: * | J85: * | K85: * | L85: * | M85: * | N85: *
A86: QNC | B86: RJE | C86: UNIVERSITY HOSPITALS OF NORTH MIDLANDS NHS TRUST | D86: RJE01 | E86: Royal Stoke University Hospital | F86: 0 | G86: NA | H86: NA | I86: 0 | J86: 0 | K86: 0 | L86: 0 | M86: 0 | N86: 0
A87: QNC | B87: RJE | C87: UNIVERSITY HOSPITALS OF NORTH MIDLANDS NHS TRUST | D87: RJE09 | E87: County Hospital | F87: 0 | G87: NA | H87: NA | I87: 0 | J87: 0 | K87: 0 | L87: 0 | M87: 0 | N87: 0
A88: QNC | B88: RJE | C88: UNIVERSITY HOSPITALS OF NORTH MIDLANDS NHS TRUST | D88: RJEXXX | E88: Non-hospital site | F88: 0 | G88: NA | H88: NA | I88: 0 | J88: 0 | K88: 0 | L88: 0 | M88: 0 | N88: 0
A89: QNQ | B89: RDU | C89: FRIMLEY HEALTH NHS FOUNDATION TRUST | D89: RDU01 | E89: Frimley Park Hospital | F89: 19 | G89: 1 | H89: 0 | I89: 17 | J89: 2 | K89: 0 | L89: 0 | M89: 0 | N89: 0
A90: QNX | B90: RXH | C90: BRIGHTON AND SUSSEX UNIVERSITY HOSPITALS NHS TRUST | D90: RXH01 | E90: Royal Sussex County Hospital | F90: 0 | G90: NA | H90: NA | I90: 0 | J90: 0 | K90: 0 | L90: 0 | M90: 0 | N90: 0
A91: QNX | B91: RXC | C91: EAST SUSSEX HEALTHCARE NHS TRUST | D91: RXC01 | E91: Conquest Hospital | F91: 0 | G91: NA | H91: NA | I91: 0 | J91: 0 | K91: 0 | L91: 0 | M91: 0 | N91: 0
A92: QNX | B92: RXC | C92: EAST SUSSEX HEALTHCARE NHS TRUST | D92: RXC02 | E92: Eastbourne District General Hospital | F92: 0 | G92: NA | H92: NA | I92: 0 | J92: 0 | K92: 0 | L92: 0 | M92: 0 | N92: 0
A93: QNX | B93: RXC | C93: EAST SUSSEX HEALTHCARE NHS TRUST | D93: RXCXXX | E93: Non-hospital site | F93: 0 | G93: NA | H93: NA | I93: 0 | J93: 0 | K93: 0 | L93: 0 | M93: 0 | N93: 0
A94: QNX | B94: RYR | C94: WESTERN SUSSEX HOSPITALS NHS FOUNDATION TRUST | D94: RYR18 | E94: Worthing Hospital | F94: 1 | G94: * | H94: * | I94: * | J94: * | K94: * | L94: * | M94: * | N94: *
A95: QOC | B95: RXW | C95: THE SHREWSBURY AND TELFORD HOSPITAL NHS TRUST | D95: RXWXXX | E95: Non-hospital site | F95: 14 | G95: 0.9285714286 | H95: 0 | I95: * | J95: * | K95: * | L95: * | M95: * | N95: *
A96: QOP | B96: R0A | C96: MANCHESTER UNIVERSITY NHS FOUNDATION TRUST | D96: R0A05 | E96: St Mary's Hospital | F96: 39 | G96: 0.9487179487 | H96: 0.02564102564 | I96: * | J96: * | K96: * | L96: * | M96: * | N96: *
A97: QOP | B97: RMP | C97: TAMESIDE AND GLOSSOP INTEGRATED CARE NHS FOUNDATION TRUST | D97: RMP01 | E97: Tameside General Hospital | F97: 1 | G97: * | H97: * | I97: * | J97: * | K97: * | L97: * | M97: * | N97: *
A98: QOQ | B98: RCD | C98: HARROGATE AND DISTRICT NHS FOUNDATION TRUST | D98: RCD01 | E98: Harrogate District Hospital | F98: 45 | G98: 1 | H98: 0 | I98: 39 | J98: 6 | K98: 0 | L98: 0 | M98: 0 | N98: 0
A99: QOQ | B99: RJL | C99: NORTHERN LINCOLNSHIRE AND GOOLE NHS FOUNDATION TRUST | D99: RJL30 | E99: Diana, Princess Of Wales Hospital | F99: 0 | G99: NA | H99: NA | I99: 0 | J99: 0 | K99: 0 | L99: 0 | M99: 0 | N99: 0
A100: QOQ | B100: RJL | C100: NORTHERN LINCOLNSHIRE AND GOOLE NHS FOUNDATION TRUST | D100: RJL32 | E100: Scunthorpe General Hospital | F100: 0 | G100: NA | H100: NA | I100: 0 | J100: 0 | K100: 0 | L100: 0 | M100: 0 | N100: 0
A101: QOQ | B101: RCB | C101: YORK TEACHING HOSPITAL NHS FOUNDATION TRUST | D101: RCBCA | E101: Scarborough General Hospital | F101: 0 | G101: NA | H101: NA | I101: 0 | J101: 0 | K101: 0 | L101: 0 | M101: 0 | N101: 0
A102: QOQ | B102: RCB | C102: YORK TEACHING HOSPITAL NHS FOUNDATION TRUST | D102: RCB55 | E102: York Hospital | F102: 10 | G102: 1 | H102: 0 | I102: 10 | J102: 0 | K102: 0 | L102: 0 | M102: 0 | N102: 0
A103: QOX | B103: RN3 | C103: GREAT WESTERN HOSPITALS NHS FOUNDATION TRUST | D103: RN325 | E103: The Great Western Hospital | F103: 0 | G103: NA | H103: NA | I103: 0 | J103: 0 | K103: 0 | L103: 0 | M103: 0 | N103: 0
A104: QOX | B104: RD1 | C104: ROYAL UNITED HOSPITALS BATH NHS FOUNDATION TRUST | D104: RD102 | E104: Chippenham Community Hospital | F104: 1 | G104: * | H104: * | I104: * | J104: * | K104: * | L104: * | M104: * | N104: *
A105: QOX | B105: RD1 | C105: ROYAL UNITED HOSPITALS BATH NHS FOUNDATION TRUST | D105: RD121 | E105: Frome Community Hospital | F105: 4 | G105: * | H105: * | I105: * | J105: * | K105: * | L105: * | M105: * | N105: *
A106: QOX | B106: RNZ | C106: SALISBURY NHS FOUNDATION TRUST | D106: RNZ02 | E106: Salisbury District Hospital | F106: 0 | G106: NA | H106: NA | I106: 0 | J106: 0 | K106: 0 | L106: 0 | M106: 0 | N106: 0
A107: QPM | B107: RNS | C107: NORTHAMPTON GENERAL HOSPITAL NHS TRUST | D107: RNS01 | E107: Northampton General Hospital (Acute) | F107: 0 | G107: NA | H107: NA | I107: 0 | J107: 0 | K107: 0 | L107: 0 | M107: 0 | N107: 0
A108: QR1 | B108: RTE | C108: GLOUCESTERSHIRE HOSPITALS NHS FOUNDATION TRUST | D108: RTE01 | E108: Cheltenham General Hospital | F108: 0 | G108: NA | H108: NA | I108: 0 | J108: 0 | K108: 0 | L108: 0 | M108: 0 | N108: 0
A109: QR1 | B109: RTE | C109: GLOUCESTERSHIRE HOSPITALS NHS FOUNDATION TRUST | D109: RTE03 | E109: Gloucestershire Royal Hospital | F109: 0 | G109: NA | H109: NA | I109: 0 | J109: 0 | K109: 0 | L109: 0 | M109: 0 | N109: 0
A110: QR1 | B110: RTE | C110: GLOUCESTERSHIRE HOSPITALS NHS FOUNDATION TRUST | D110: RTE27 | E110: Stroud Maternity Hospital | F110: 0 | G110: NA | H110: NA | I110: 0 | J110: 0 | K110: 0 | L110: 0 | M110: 0 | N110: 0
A111: QR1 | B111: RTE | C111: GLOUCESTERSHIRE HOSPITALS NHS FOUNDATION TRUST | D111: RTEXXX | E111: Non-hospital site | F111: 0 | G111: NA | H111: NA | I111: 0 | J111: 0 | K111: 0 | L111: 0 | M111: 0 | N111: 0
A112: QRL | B112: RN5 | C112: HAMPSHIRE HOSPITALS NHS FOUNDATION TRUST | D112: RN501 | E112: North Hampshire Hospital (Parklands) Paediatric Outpatients | F112: 0 | G112: NA | H112: NA | I112: 0 | J112: 0 | K112: 0 | L112: 0 | M112: 0 | N112: 0
A113: QRL | B113: RN5 | C113: HAMPSHIRE HOSPITALS NHS FOUNDATION TRUST | D113: RN541 | E113: Royal Hampshire County Hospital | F113: 0 | G113: NA | H113: NA | I113: 0 | J113: 0 | K113: 0 | L113: 0 | M113: 0 | N113: 0
A114: QRL | B114: RN5 | C114: HAMPSHIRE HOSPITALS NHS FOUNDATION TRUST | D114: RN506 | E114: Basingstoke and North Hampshire Hospital | F114: 1 | G114: * | H114: * | I114: * | J114: * | K114: * | L114: * | M114: * | N114: *
A115: QRL | B115: R1F | C115: ISLE OF WIGHT NHS TRUST | D115: R1F01 | E115: St Mary's Hospital | F115: 8 | G115: 1 | H115: 0 | I115: * | J115: * | K115: * | L115: * | M115: * | N115: *
A116: QRL | B116: RHU | C116: PORTSMOUTH HOSPITALS UNIVERSITY NATIONAL HEALTH SERVICE TRUST | D116: RHU02 | E116: St Mary's Hospital | F116: 0 | G116: NA | H116: NA | I116: 0 | J116: 0 | K116: 0 | L116: 0 | M116: 0 | N116: 0
A117: QRL | B117: RHU | C117: PORTSMOUTH HOSPITALS UNIVERSITY NATIONAL HEALTH SERVICE TRUST | D117: RHU03 | E117: Queen Alexandra Hospital | F117: 0 | G117: NA | H117: NA | I117: 0 | J117: 0 | K117: 0 | L117: 0 | M117: 0 | N117: 0
A118: QRL | B118: RHU | C118: PORTSMOUTH HOSPITALS UNIVERSITY NATIONAL HEALTH SERVICE TRUST | D118: RHU04 | E118: Petersfield Community Hospital | F118: 0 | G118: NA | H118: NA | I118: 0 | J118: 0 | K118: 0 | L118: 0 | M118: 0 | N118: 0
A119: QRL | B119: RHU | C119: PORTSMOUTH HOSPITALS UNIVERSITY NATIONAL HEALTH SERVICE TRUST | D119: RHU10 | E119: Gosport War Memorial Hospital | F119: 0 | G119: NA | H119: NA | I119: 0 | J119: 0 | K119: 0 | L119: 0 | M119: 0 | N119: 0
A120: QRL | B120: RHM | C120: UNIVERSITY HOSPITAL SOUTHAMPTON NHS FOUNDATION TRUST | D120: RHM12 | E120: Princess Anne Hospital | F120: 125 | G120: 0.856 | H120: 0.088 | I120: 64 | J120: 43 | K120: 6 | L120: 7 | M120: 4 | N120: 1
A121: QRV | B121: RQM | C121: CHELSEA AND WESTMINSTER HOSPITAL NHS FOUNDATION TRUST | D121: RQM91 | E121: West Middlesex University Hospital | F121: 1 | G121: * | H121: * | I121: * | J121: * | K121: * | L121: * | M121: * | N121: *
A122: QRV | B122: RQM | C122: CHELSEA AND WESTMINSTER HOSPITAL NHS FOUNDATION TRUST | D122: RQM01 | E122: Chelsea and Westminster Hospital | F122: 21 | G122: 0.8095238095 | H122: 0.1428571429 | I122: * | J122: * | K122: * | L122: * | M122: * | N122: *
A123: QRV | B123: RYJ | C123: IMPERIAL COLLEGE HEALTHCARE NHS TRUST | D123: RYJ01 | E123: St Mary's Hospital (HQ) | F123: 28 | G123: 0.8571428571 | H123: 0.07142857143 | I123: 17 | J123: 7 | K123: 2 | L123: 1 | M123: 1 | N123: 0
A124: QRV | B124: RYJ | C124: IMPERIAL COLLEGE HEALTHCARE NHS TRUST | D124: RYJ04 | E124: Queen Charlotte's Hospital | F124: 33 | G124: 0.8484848485 | H124: 0.06060606061 | I124: 18 | J124: 10 | K124: 3 | L124: 2 | M124: 0 | N124: 0
A125: QRV | B125: R1K | C125: LONDON NORTH WEST UNIVERSITY HEALTHCARE NHS TRUST | D125: R1K02 | E125: Central Middlesex Hospital | F125: 0 | G125: NA | H125: NA | I125: 0 | J125: 0 | K125: 0 | L125: 0 | M125: 0 | N125: 0
A126: QRV | B126: R1K | C126: LONDON NORTH WEST UNIVERSITY HEALTHCARE NHS TRUST | D126: R1K04 | E126: Ealing Hospital | F126: 0 | G126: NA | H126: NA | I126: 0 | J126: 0 | K126: 0 | L126: 0 | M126: 0 | N126: 0
A127: QRV | B127: R1K | C127: LONDON NORTH WEST UNIVERSITY HEALTHCARE NHS TRUST | D127: R1KXXX | E127: Non-hospital site | F127: 0 | G127: NA | H127: NA | I127: 0 | J127: 0 | K127: 0 | L127: 0 | M127: 0 | N127: 0
A128: QRV | B128: R1K | C128: LONDON NORTH WEST UNIVERSITY HEALTHCARE NHS TRUST | D128: R1K01 | E128: Northwick Park Hospital | F128: 5 | G128: 1 | H128: 0 | I128: 4 | J128: 1 | K128: 0 | L128: 0 | M128: 0 | N128: 0
A129: QRV | B129: RAS | C129: THE HILLINGDON HOSPITALS NHS FOUNDATION TRUST | D129: RAS01 | E129: Hillingdon Hospital | F129: 216 | G129: 0.875 | H129: 0.05555555556 | I129: 122 | J129: 67 | K129: 15 | L129: 4 | M129: 8 | N129: 0
A130: QSL | B130: RH5 | C130: SOMERSET NHS FOUNDATION TRUST | D130: RH5A8 | E130: MUSGROVE PARK HOSPITAL | F130: 0 | G130: NA | H130: NA | I130: 0 | J130: 0 | K130: 0 | L130: 0 | M130: 0 | N130: 0
A131: QSL | B131: RA4 | C131: YEOVIL DISTRICT HOSPITAL NHS FOUNDATION TRUST | D131: RA430 | E131: Yeovil District Hospital | F131: 0 | G131: NA | H131: NA | I131: 0 | J131: 0 | K131: 0 | L131: 0 | M131: 0 | N131: 0
A132: QT1 | B132: RX1 | C132: NOTTINGHAM UNIVERSITY HOSPITALS NHS TRUST | D132: RX1XXX | E132: Non-hospital site | F132: 16 | G132: 1 | H132: 0 | I132: 15 | J132: 1 | K132: 0 | L132: 0 | M132: 0 | N132: 0
A133: QT1 | B133: RK5 | C133: SHERWOOD FOREST HOSPITALS NHS FOUNDATION TRUST | D133: RK5BC | E133: King's Mill Hospital | F133: 31 | G133: 0.8064516129 | H133: 0.1290322581 | I133: 16 | J133: 9 | K133: 2 | L133: 1 | M133: 3 | N133: 0
A134: QT6 | B134: REF | C134: ROYAL CORNWALL HOSPITALS NHS TRUST | D134: REFXXX | E134: Non-hospital site | F134: 7 | G134: 1 | H134: 0 | I134: 7 | J134: 0 | K134: 0 | L134: 0 | M134: 0 | N134: 0
A135: QU9 | B135: RXQ | C135: BUCKINGHAMSHIRE HEALTHCARE NHS TRUST | D135: RXQ50 | E135: Wycombe Hospital | F135: 11 | G135: 0.7272727273 | H135: 0.09090909091 | I135: * | J135: * | K135: * | L135: * | M135: * | N135: *
A136: QU9 | B136: RXQ | C136: BUCKINGHAMSHIRE HEALTHCARE NHS TRUST | D136: RXQ02 | E136: Stoke Mandeville Hospital | F136: 12 | G136: 0.75 | H136: 0.1666666667 | I136: * | J136: * | K136: * | L136: * | M136: * | N136: *
A137: QU9 | B137: RTH | C137: OXFORD UNIVERSITY HOSPITALS NHS FOUNDATION TRUST | D137: RTH08 | E137: John Radcliffe Hospital | F137: 0 | G137: NA | H137: NA | I137: 0 | J137: 0 | K137: 0 | L137: 0 | M137: 0 | N137: 0
A138: QU9 | B138: RHW | C138: ROYAL BERKSHIRE NHS FOUNDATION TRUST | D138: RHW01 | E138: Royal Berkshire Hospital | F138: 2 | G138: * | H138: * | I138: * | J138: * | K138: * | L138: * | M138: * | N138: *
A139: QUA | B139: RXK | C139: SANDWELL AND WEST BIRMINGHAM HOSPITALS NHS TRUST | D139: RXK01 | E139: Sandwell General Hospital | F139: 48 | G139: 0.7916666667 | H139: 0.08333333333 | I139: 29 | J139: 9 | K139: 6 | L139: 2 | M139: 2 | N139: 0
A140: QUA | B140: RXK | C140: SANDWELL AND WEST BIRMINGHAM HOSPITALS NHS TRUST | D140: RXK02 | E140: City Hospital | F140: 119 | G140: 0.7731092437 | H140: 0.1344537815 | I140: 72 | J140: 20 | K140: 11 | L140: 8 | M140: 8 | N140: 0
A141: QUA | B141: RNA | C141: THE DUDLEY GROUP NHS FOUNDATION TRUST | D141: RNAXXX | E141: Non-hospital site | F141: 16 | G141: 0.1875 | H141: 0 | I141: 3 | J141: 0 | K141: 0 | L141: 0 | M141: 0 | N141: 13
A142: QUA | B142: RNA | C142: THE DUDLEY GROUP NHS FOUNDATION TRUST | D142: RNA01 | E142: Russells Hall Hospital | F142: 17 | G142: 1 | H142: 0 | I142: 16 | J142: 1 | K142: 0 | L142: 0 | M142: 0 | N142: 0
A143: QUA | B143: RBK | C143: WALSALL HEALTHCARE NHS TRUST | D143: RBK02 | E143: Manor Hospital | F143: 24 | G143: 0.7916666667 | H143: 0.125 | I143: 18 | J143: 1 | K143: 2 | L143: 2 | M143: 1 | N143: 0
A144: QUE | B144: RGT | C144: CAMBRIDGE UNIVERSITY HOSPITALS NHS FOUNDATION TRUST | D144: RGT32 | E144: Rosie Hospital | F144: 4 | G144: * | H144: * | I144: * | J144: * | K144: * | L144: * | M144: * | N144: *
A145: QUE | B145: RGN | C145: NORTH WEST ANGLIA NHS FOUNDATION TRUST | D145: RGN80 | E145: Peterborough City Hospital | F145: 75 | G145: 0.96 | H145: 0.01333333333 | I145: * | J145: * | K145: * | L145: * | M145: * | N145: *
A146: QUE | B146: RGN | C146: NORTH WEST ANGLIA NHS FOUNDATION TRUST | D146: RGN90 | E146: Hinchingbrooke Hospital | F146: 126 | G146: 0.9841269841 | H146: 0 | I146: * | J146: * | K146: * | L146: * | M146: * | N146: *
A147: QUY | B147: RVJ | C147: NORTH BRISTOL NHS TRUST | D147: RVJ01 | E147: Southmead Hospital | F147: 0 | G147: NA | H147: NA | I147: 0 | J147: 0 | K147: 0 | L147: 0 | M147: 0 | N147: 0
A148: QUY | B148: RA7 | C148: UNIVERSITY HOSPITALS BRISTOL AND WESTON NHS FOUNDATION TRUST | D148: RA707 | E148: St Michael's Hospital | F148: 0 | G148: NA | H148: NA | I148: 0 | J148: 0 | K148: 0 | L148: 0 | M148: 0 | N148: 0
A149: QVV | B149: RBD | C149: DORSET COUNTY HOSPITAL NHS FOUNDATION TRUST | D149: RBD01 | E149: Dorset County Hospital | F149: 17 | G149: 0.8823529412 | H149: 0.05882352941 | I149: 11 | J149: 4 | K149: 0 | L149: 1 | M149: 0 | N149: 1
A150: QVV | B150: R0D | C150: UNIVERSITY HOSPITALS DORSET NHS FOUNDATION TRUST | D150: R0D01 | E150: Poole Hospital | F150: 22 | G150: 0.8636363636 | H150: 0.1363636364 | I150: 14 | J150: 5 | K150: 0 | L150: 1 | M150: 2 | N150: 0
A151: QVV | B151: R0D | C151: UNIVERSITY HOSPITALS DORSET NHS FOUNDATION TRUST | D151: R0D02 | E151: Royal Bournemouth Hospital | F151: 36 | G151: 0.8888888889 | H151: 0.05555555556 | I151: 18 | J151: 14 | K151: 1 | L151: 1 | M151: 1 | N151: 1
A152: QWE | B152: RJ6 | C152: CROYDON HEALTH SERVICES NHS TRUST | D152: RJ611 | E152: Croydon University Hospital | F152: 71 | G152: 0.8450704225 | H152: 0.08450704225 | I152: 43 | J152: 17 | K152: 2 | L152: 4 | M152: 2 | N152: 3
A153: QWE | B153: RVR | C153: EPSOM AND ST HELIER UNIVERSITY HOSPITALS NHS TRUST | D153: RVRXXX | E153: Non-hospital site | F153: 1 | G153: * | H153: * | I153: * | J153: * | K153: * | L153: * | M153: * | N153: *
A154: QWE | B154: RVR | C154: EPSOM AND ST HELIER UNIVERSITY HOSPITALS NHS TRUST | D154: RVR50 | E154: Epsom Hospital | F154: 4 | G154: * | H154: * | I154: * | J154: * | K154: * | L154: * | M154: * | N154: *
A155: QWE | B155: RVR | C155: EPSOM AND ST HELIER UNIVERSITY HOSPITALS NHS TRUST | D155: RVR05 | E155: St Helier Hospital | F155: 11 | G155: 1 | H155: 0 | I155: 11 | J155: 0 | K155: 0 | L155: 0 | M155: 0 | N155: 0
A156: QWE | B156: RAX | C156: KINGSTON HOSPITAL NHS FOUNDATION TRUST | D156: RAX01 | E156: Kingston Hospital | F156: 1 | G156: * | H156: * | I156: * | J156: * | K156: * | L156: * | M156: * | N156: *
A157: QWE | B157: RJ7 | C157: ST GEORGE'S UNIVERSITY HOSPITALS NHS FOUNDATION TRUST | D157: RJ701 | E157: St George's Hospital (Tooting) | F157: 1 | G157: * | H157: * | I157: * | J157: * | K157: * | L157: * | M157: * | N157: *
A158: QWO | B158: RCF | C158: AIREDALE NHS FOUNDATION TRUST | D158: RCF22 | E158: Airedale General Hospital | F158: 0 | G158: NA | H158: NA | I158: 0 | J158: 0 | K158: 0 | L158: 0 | M158: 0 | N158: 0
A159: QWO | B159: RAE | C159: BRADFORD TEACHING HOSPITALS NHS FOUNDATION TRUST | D159: RAE01 | E159: Bradford Royal Infirmary | F159: 0 | G159: NA | H159: NA | I159: 0 | J159: 0 | K159: 0 | L159: 0 | M159: 0 | N159: 0
A160: QWO | B160: RAE | C160: BRADFORD TEACHING HOSPITALS NHS FOUNDATION TRUST | D160: RAEXXX | E160: Non-hospital site | F160: 0 | G160: NA | H160: NA | I160: 0 | J160: 0 | K160: 0 | L160: 0 | M160: 0 | N160: 0
A161: QWO | B161: RWY | C161: CALDERDALE AND HUDDERSFIELD NHS FOUNDATION TRUST | D161: RWY01 | E161: Huddersfield Royal Infirmary | F161: 1 | G161: * | H161: * | I161: * | J161: * | K161: * | L161: * | M161: * | N161: *
A162: QWO | B162: RWY | C162: CALDERDALE AND HUDDERSFIELD NHS FOUNDATION TRUST | D162: RWY02 | E162: Calderdale Royal Hospital | F162: 1 | G162: * | H162: * | I162: * | J162: * | K162: * | L162: * | M162: * | N162: *
A163: QWO | B163: RWY | C163: CALDERDALE AND HUDDERSFIELD NHS FOUNDATION TRUST | D163: RWYXXX | E163: Non-hospital site | F163: 3 | G163: * | H163: * | I163: * | J163: * | K163: * | L163: * | M163: * | N163: *
A164: QWO | B164: RR8 | C164: LEEDS TEACHING HOSPITALS NHS TRUST | D164: RR813 | E164: St James's University Hospital | F164: 0 | G164: NA | H164: NA | I164: 0 | J164: 0 | K164: 0 | L164: 0 | M164: 0 | N164: 0
A165: QWO | B165: RR8 | C165: LEEDS TEACHING HOSPITALS NHS TRUST | D165: RR8XXX | E165: Non-hospital site | F165: 0 | G165: NA | H165: NA | I165: 0 | J165: 0 | K165: 0 | L165: 0 | M165: 0 | N165: 0
A166: QWO | B166: RR8 | C166: LEEDS TEACHING HOSPITALS NHS TRUST | D166: RR801 | E166: Leeds General Infirmary | F166: 5 | G166: 0.2 | H166: 0.8 | I166: 1 | J166: 0 | K166: 0 | L166: 3 | M166: 1 | N166: 0
A167: QWO | B167: RXF | C167: MID YORKSHIRE HOSPITALS NHS TRUST | D167: RXF03 | E167: Pontefract General Infirmary | F167: 0 | G167: NA | H167: NA | I167: 0 | J167: 0 | K167: 0 | L167: 0 | M167: 0 | N167: 0
A168: QWO | B168: RXF | C168: MID YORKSHIRE HOSPITALS NHS TRUST | D168: RXF05 | E168: Pinderfields General Hospital | F168: 0 | G168: NA | H168: NA | I168: 0 | J168: 0 | K168: 0 | L168: 0 | M168: 0 | N168: 0
A169: QWO | B169: RXF | C169: MID YORKSHIRE HOSPITALS NHS TRUST | D169: RXF10 | E169: Dewsbury and District Hospital | F169: 0 | G169: NA | H169: NA | I169: 0 | J169: 0 | K169: 0 | L169: 0 | M169: 0 | N169: 0
A170: QWU | B170: RLT | C170: GEORGE ELIOT HOSPITAL NHS TRUST | D170: RLT01 | E170: George Eliot Hospital - Acute Services | F170: 10 | G170: 1 | H170: 0 | I170: * | J170: * | K170: * | L170: * | M170: * | N170: *
A171: QWU | B171: RJC | C171: SOUTH WARWICKSHIRE NHS FOUNDATION TRUST | D171: RJCXXX | E171: Non-hospital site | F171: 2 | G171: * | H171: * | I171: * | J171: * | K171: * | L171: * | M171: * | N171: *
A172: QWU | B172: RKB | C172: UNIVERSITY HOSPITALS COVENTRY AND WARWICKSHIRE NHS TRUST | D172: RKB03 | E172: Hospital Of St Cross | F172: 0 | G172: NA | H172: NA | I172: 0 | J172: 0 | K172: 0 | L172: 0 | M172: 0 | N172: 0
A173: QWU | B173: RKB | C173: UNIVERSITY HOSPITALS COVENTRY AND WARWICKSHIRE NHS TRUST | D173: RKBXXX | E173: Non-hospital site | F173: 0 | G173: NA | H173: NA | I173: 0 | J173: 0 | K173: 0 | L173: 0 | M173: 0 | N173: 0
A174: QWU | B174: RKB | C174: UNIVERSITY HOSPITALS COVENTRY AND WARWICKSHIRE NHS TRUST | D174: RKB02 | E174: Coventry and Warwickshire Hospital | F174: 41 | G174: 0.9512195122 | H174: 0.0487804878 | I174: 32 | J174: 7 | K174: 0 | L174: 1 | M174: 1 | N174: 0
A175: QXU | B175: RA2 | C175: ROYAL SURREY COUNTY HOSPITAL NHS FOUNDATION TRUST | D175: RA201 | E175: Royal Surrey County Hospital | F175: 4 | G175: * | H175: * | I175: * | J175: * | K175: * | L175: * | M175: * | N175: *
A176: QXU | B176: RTP | C176: SURREY AND SUSSEX HEALTHCARE NHS TRUST | D176: RTP04 | E176: East Surrey Hospital | F176: 17 | G176: 1 | H176: 0 | I176: * | J176: * | K176: * | L176: * | M176: * | N176: *
A177: QYG | B177: RY2 | C177: BRIDGEWATER COMMUNITY HEALTHCARE NHS FOUNDATION TRUST | D177: RY28P | E177: Health Care Resource Centre | F177: 0 | G177: NA | H177: NA | I177: 0 | J177: 0 | K177: 0 | L177: 0 | M177: 0 | N177: 0
A178: QYG | B178: RY2 | C178: BRIDGEWATER COMMUNITY HEALTHCARE NHS FOUNDATION TRUST | D178: RY2XXX | E178: Non-hospital site | F178: 0 | G178: NA | H178: NA | I178: 0 | J178: 0 | K178: 0 | L178: 0 | M178: 0 | N178: 0
A179: QYG | B179: RJR | C179: COUNTESS OF CHESTER HOSPITAL NHS FOUNDATION TRUST | D179: RJR05 | E179: Countess Of Chester Hospital | F179: 14 | G179: 0.9285714286 | H179: 0.07142857143 | I179: 8 | J179: 5 | K179: 0 | L179: 1 | M179: 0 | N179: 0
A180: QYG | B180: RJN | C180: EAST CHESHIRE NHS TRUST | D180: RJN71 | E180: Macclesfield District General Hospital | F180: 0 | G180: NA | H180: NA | I180: 0 | J180: 0 | K180: 0 | L180: 0 | M180: 0 | N180: 0
A181: QYG | B181: REP | C181: LIVERPOOL WOMEN'S NHS FOUNDATION TRUST | D181: REP01 | E181: Liverpool Womens Hospital | F181: 7 | G181: 0.4285714286 | H181: 0.2857142857 | I181: * | J181: * | K181: * | L181: * | M181: * | N181: *
A182: QYG | B182: RBT | C182: MID CHESHIRE HOSPITALS NHS FOUNDATION TRUST | D182: RBT20 | E182: Leighton Hospital | F182: 4 | G182: * | H182: * | I182: * | J182: * | K182: * | L182: * | M182: * | N182: *
A183: QYG | B183: RBN | C183: ST HELENS AND KNOWSLEY TEACHING HOSPITALS NHS TRUST | D183: RBN01 | E183: Whiston Hospital | F183: 19 | G183: 0.9473684211 | H183: 0 | I183: 12 | J183: 6 | K183: 1 | L183: 0 | M183: 0 | N183: 0
A184: QYG | B184: RWW | C184: WARRINGTON AND HALTON TEACHING HOSPITALS NHS FOUNDATION TRUST | D184: RWWWH | E184: Warrington Hospital | F184: 0 | G184: NA | H184: NA | I184: 0 | J184: 0 | K184: 0 | L184: 0 | M184: 0 | N184: 0
A185: QYG | B185: RBL | C185: WIRRAL UNIVERSITY TEACHING HOSPITAL NHS FOUNDATION TRUST | D185: RBL14 | E185: Arrowe Park Hospital | F185: 0 | G185: NA | H185: NA | I185: 0 | J185: 0 | K185: 0 | L185: 0 | M185: 0 | N185: 0

Sheet Region (Local Office) Q2
B6: Sort data by:
A9: STP Code | B9: STP | C9: Total Responses | D9: Total Eligible | E9: Percentage Positive | F9: Percentage Negative | G9: Breakdown of Responses
G10: Very Good | H10: Good | I10: Neither Good nor Poor | J10: Poor | K10: Very Poor | L10: Don't Know
B11: England (including Independent Sector providers) | C11: 3517 | D11: 36549 | E11: 0.9516633494 | F11: 0.02758032414 | G11: 2866 | H11: 481 | I11: 51 | J11: 43 | K11: 54 | L11: 22
B12: England (excluding Independent Sector providers) | C12: 3517 | D12: 36549 | E12: 0.9516633494 | F12: 0.02758032414 | G12: 2866 | H12: 481 | I12: 51 | J12: 43 | K12: 54 | L12: 22
B13: Selection (excluding suppressed data) | C13: =SUBTOTAL(9,C14:C298) -> 3517 | D13: =SUBTOTAL(9,D14:D298) -> 36549 | E13: =IFERROR((G13+H13)/SUM(G13:L13), "-") -> 0.9514871499 | F13: =IFERROR((J13+K13)/SUM(G13:L13), "-") -> 0.02772162865 | G13: =SUBTOTAL(9,G14:G298) -> 2818 | H13: 477 | I13: 50 | J13: 43 | K13: 53 | L13: 22
A14: QE1 | B14: HEALTHIER LANCASHIRE AND SOUTH CUMBRIA | C14: 142 | D14: 1126 | E14: 0.9154929577 | F14: 0.03521126761 | G14: 107 | H14: 23 | I14: 5 | J14: 1 | K14: 4 | L14: 2
A15: QF7 | B15: SOUTH YORKSHIRE AND BASSETLAW STP | C15: 160 | D15: 1033 | E15: 0.98125 | F15: 0.0125 | G15: 140 | H15: 17 | I15: 1 | J15: 1 | K15: 1 | L15: 0
A16: QGH | B16: HEREFORDSHIRE AND WORCESTERSHIRE STP | C16: 2 | D16: 132 | E16: * | F16: * | G16: * | H16: * | I16: * | J16: * | K16: * | L16: *
A17: QH8 | B17: MID AND SOUTH ESSEX STP | C17: 65 | D17: 844 | E17: 0.8307692308 | F17: 0.1076923077 | G17: 48 | H17: 6 | I17: 3 | J17: 2 | K17: 5 | L17: 1
A18: QHG | B18: BEDFORDSHIRE, LUTON AND MILTON KEYNES STP | C18: 57 | D18: 746 | E18: 0.9824561404 | F18: 0 | G18: 46 | H18: 10 | I18: 0 | J18: 0 | K18: 0 | L18: 1
A19: QHL | B19: BIRMINGHAM AND SOLIHULL STP | C19: 2 | D19: 1535 | E19: * | F19: * | G19: * | H19: * | I19: * | J19: * | K19: * | L19: *
A20: QHM | B20: CUMBRIA AND NORTH EAST STP | C20: 129 | D20: 1734 | E20: 0.9379844961 | F20: 0.03100775194 | G20: 100 | H20: 21 | I20: 4 | J20: 4 | K20: 0 | L20: 0
A21: QJ2 | B21: JOINED UP CARE DERBYSHIRE STP | C21: 5 | D21: 649 | E21: 1 | F21: 0 | G21: * | H21: * | I21: * | J21: * | K21: * | L21: *
A22: QJG | B22: SUFFOLK AND NORTH EAST ESSEX ICS | C22: 20 | D22: 265 | E22: 0.95 | F22: 0 | G22: 17 | H22: 2 | I22: 0 | J22: 0 | K22: 0 | L22: 1
A23: QJK | B23: DEVON STP | C23: 6 | D23: 485 | E23: 1 | F23: 0 | G23: 5 | H23: 1 | I23: 0 | J23: 0 | K23: 0 | L23: 0
A24: QJM | B24: LINCOLNSHIRE STP | C24: 20 | D24: 365 | E24: 1 | F24: 0 | G24: 19 | H24: 1 | I24: 0 | J24: 0 | K24: 0 | L24: 0
A25: QK1 | B25: LEICESTER, LEICESTERSHIRE AND RUTLAND STP | C25: 286 | D25: 675 | E25: 0.958041958 | F25: 0.01748251748 | G25: 228 | H25: 46 | I25: 5 | J25: 2 | K25: 3 | L25: 2
A26: QKK | B26: OUR HEALTHIER SOUTH EAST LONDON STP | C26: 83 | D26: 1564 | E26: 0.9518072289 | F26: 0.02409638554 | G26: 57 | H26: 22 | I26: 2 | J26: 1 | K26: 1 | L26: 0
A27: QKS | B27: KENT AND MEDWAY STP | C27: 242 | D27: 1082 | E27: 0.9917355372 | F27: 0 | G27: 230 | H27: 10 | I27: 1 | J27: 0 | K27: 0 | L27: 1
A28: QM7 | B28: HERTFORDSHIRE AND WEST ESSEX STP | C28: 136 | D28: 983 | E28: 0.9779411765 | F28: 0.01470588235 | G28: 102 | H28: 31 | I28: 1 | J28: 0 | K28: 2 | L28: 0
A29: QMF | B29: EAST LONDON HEALTH & CARE PARTNERSHIP (STP) | C29: 88 | D29: 1034 | E29: 0.9545454545 | F29: 0.01136363636 | G29: 69 | H29: 15 | I29: 3 | J29: 0 | K29: 1 | L29: 0
A30: QMJ | B30: NORTH LONDON PARTNERS IN HEALTH & CARE (STP) | C30: 134 | D30: 924 | E30: 0.9328358209 | F30: 0 | G30: 44 | H30: 81 | I30: 9 | J30: 0 | K30: 0 | L30: 0
A31: QMM | B31: NORFOLK AND WAVENEY HEALTH & CARE PARTNERSHIP (STP) | C31: 28 | D31: 493 | E31: 0.9285714286 | F31: 0.07142857143 | G31: 23 | H31: 3 | I31: 0 | J31: 1 | K31: 1 | L31: 0
A32: QNC | B32: STAFFORDSHIRE & STOKE ON TRENT STP | C32: 0 | D32: 572 | E32: NA | F32: NA | G32: 0 | H32: 0 | I32: 0 | J32: 0 | K32: 0 | L32: 0
A33: QNQ | B33: FRIMLEY HEALTH & CARE (STP) | C33: 44 | D33: 493 | E33: 1 | F33: 0 | G33: 43 | H33: 1 | I33: 0 | J33: 0 | K33: 0 | L33: 0
A34: QNX | B34: SUSSEX HEALTH AND CARE PARTNERSHIP | C34: 116 | D34: 875 | E34: 0.9396551724 | F34: 0.03448275862 | G34: 96 | H34: 13 | I34: 2 | J34: 4 | K34: 0 | L34: 1
A35: QOC | B35: SHROPSHIRE AND TELFORD AND WREKIN STP | C35: 101 | D35: 304 | E35: 1 | F35: 0 | G35: 96 | H35: 5 | I35: 0 | J35: 0 | K35: 0 | L35: 0
A36: QOP | B36: GREATER MANCHESTER HEALTH & SOCIAL CARE PARTNERSHIP | C36: 306 | D36: 2796 | E36: 0.931372549 | F36: 0.04248366013 | G36: 250 | H36: 35 | I36: 6 | J36: 7 | K36: 6 | L36: 2
A37: QOQ | B37: HUMBER, COAST AND VALE STP | C37: 89 | D37: 791 | E37: 1 | F37: 0 | G37: 84 | H37: 5 | I37: 0 | J37: 0 | K37: 0 | L37: 0
A38: QOX | B38: BATH AND NORTH EAST SOMERSET, SWINDON AND WILTSHIRE STP | C38: 1 | D38: 850 | E38: * | F38: * | G38: * | H38: * | I38: * | J38: * | K38: * | L38: *
A39: QPM | B39: NORTHAMPTONSHIRE STP | C39: 2 | D39: 571 | E39: * | F39: * | G39: * | H39: * | I39: * | J39: * | K39: * | L39: *
A40: QR1 | B40: GLOUCESTERSHIRE STP | C40: 30 | D40: 126 | E40: 0.9666666667 | F40: 0.03333333333 | G40: * | H40: * | I40: * | J40: * | K40: * | L40: *
A41: QRL | B41: HAMPSHIRE AND THE ISLE OF WIGHT STP | C41: 138 | D41: 1244 | E41: 0.8913043478 | F41: 0.09420289855 | G41: 100 | H41: 23 | I41: 1 | J41: 6 | K41: 7 | L41: 1
A42: QRV | B42: NORTH WEST LONDON HEALTH & CARE PARTNERSHIP (STP) | C42: 118 | D42: 1363 | E42: 0.9576271186 | F42: 0.03389830508 | G42: 104 | H42: 9 | I42: 1 | J42: 2 | K42: 2 | L42: 0
A43: QSL | B43: SOMERSET STP | C43: 4 | D43: 352 | E43: * | F43: * | G43: * | H43: * | I43: * | J43: * | K43: * | L43: *
A44: QT1 | B44: NOTTINGHAM AND NOTTINGHAMSHIRE HEALTH AND CARE STP | C44: 2 | D44: 584 | E44: * | F44: * | G44: * | H44: * | I44: * | J44: * | K44: * | L44: *
A45: QT6 | B45: CORNWALL AND THE ISLES OF SCILLY HEALTH & SOCIAL CARE PARTNERSHIP (STP) | C45: 6 | D45: 322 | E45: 1 | F45: 0 | G45: * | H45: * | I45: * | J45: * | K45: * | L45: *
A46: QU9 | B46: BUCKINGHAMSHIRE, OXFORDSHIRE AND BERKSHIRE WEST STP | C46: 111 | D46: 1105 | E46: 0.9459459459 | F46: 0.03603603604 | G46: 71 | H46: 34 | I46: 2 | J46: 2 | K46: 2 | L46: 0
A47: QUA | B47: THE BLACK COUNTRY AND WEST BIRMINGHAM STP | C47: 98 | D47: 776 | E47: 0.8673469388 | F47: 0.08163265306 | G47: 76 | H47: 9 | I47: 0 | J47: 2 | K47: 6 | L47: 5
A48: QUE | B48: CAMBRIDGESHIRE AND PETERBOROUGH STP | C48: 74 | D48: 884 | E48: 0.9864864865 | F48: 0 | G48: 65 | H48: 8 | I48: 0 | J48: 0 | K48: 0 | L48: 1
A49: QUY | B49: BRISTOL, NORTH SOMERSET AND SOUTH GLOUCESTERSHIRE STP | C49: 18 | D49: 362 | E49: 0.9444444444 | F49: 0 | G49: 13 | H49: 4 | I49: 1 | J49: 0 | K49: 0 | L49: 0
A50: QVV | B50: DORSET STP | C50: 136 | D50: 402 | E50: 0.9558823529 | F50: 0.02941176471 | G50: 120 | H50: 10 | I50: 0 | J50: 2 | K50: 2 | L50: 2
A51: QWE | B51: SOUTH WEST LONDON HEALTH & CARE PARTNERSHIP (STP) | C51: 60 | D51: 1268 | E51: 0.9333333333 | F51: 0.05 | G51: 53 | H51: 3 | I51: 0 | J51: 0 | K51: 3 | L51: 1
A52: QWO | B52: WEST YORKSHIRE AND HARROGATE HEALTH & CARE PARTNERSHIP (STP) | C52: 183 | D52: 1696 | E52: 0.9726775956 | F52: 0.0218579235 | G52: 170 | H52: 8 | I52: 1 | J52: 0 | K52: 4 | L52: 0
A53: QWU | B53: COVENTRY AND WARWICKSHIRE STP | C53: 103 | D53: 837 | E53: 0.9417475728 | F53: 0.04854368932 | G53: 89 | H53: 8 | I53: 0 | J53: 4 | K53: 1 | L53: 1
A54: QXU | B54: SURREY HEARTLANDS HEALTH & CARE PARTNERSHIP (STP) | C54: 53 | D54: 565 | E54: 1 | F54: 0 | G54: 51 | H54: 2 | I54: 0 | J54: 0 | K54: 0 | L54: 0
A55: QYG | B55: CHESHIRE AND MERSEYSIDE STP | C55: 119 | D55: 1742 | E55: 0.9495798319 | F55: 0.03361344538 | G55: 102 | H55: 11 | I55: 2 | J55: 2 | K55: 2 | L55: 0

Sheet Trusts Q2
B6: Sort data by:
A9: STP Code | B9: Trust Code | C9: Trust Name | D9: Total Responses | E9: Total Eligible | F9: Percentage Positive | G9: Percentage Negative | H9: Breakdown of Responses | N9: Mode of Collection
H10: Very Good | I10: Good | J10: Neither Good nor Poor | K10: Poor | L10: Very Poor | M10: Don't Know | N10: Mode SMS | O10: Mode Electronic Discharge | P10: Mode Electronic Home | Q10: Mode Paper Discharge | R10: Mode Paper Home | S10: Mode Telephone | T10: Mode Online | U10: Mode Other
C11: England (including Independent Sector providers) | D11: 3517 | E11: 36549 | F11: 0.9516633494 | G11: 0.02758032414 | H11: 2866 | I11: 481 | J11: 51 | K11: 43 | L11: 54 | M11: 22 | N11: 1211 | O11: 725 | P11: 191 | Q11: 1036 | R11: 122 | S11: 0 | T11: 216 | U11: 16
C12: England (excluding Independent Sector providers) | D12: 3517 | E12: 36549 | F12: 0.9516633494 | G12: 0.02758032414 | H12: 2866 | I12: 481 | J12: 51 | K12: 43 | L12: 54 | M12: 22 | N12: 1211 | O12: 725 | P12: 191 | Q12: 1036 | R12: 122 | S12: 0 | T12: 216 | U12: 16
C13: Selection (excluding suppressed data) | D13: =SUBTOTAL(9,D14:D298) -> 3517 | E13: =SUBTOTAL(9,E14:E298) -> 36549 | F13: =IFERROR((H13+I13)/SUM(H13:M13), "-") -> 0.9495229301 | G13: =IFERROR((K13+L13)/SUM(H13:M13), "-") -> 0.02862419206 | H13: =SUBTOTAL(9,H14:H298) -> 2658 | I13: 427 | J13: 49 | K13: 42 | L13: 51 | M13: 22 | N13: 1167 | O13: 580 | P13: 187 | Q13: 980 | R13: 122 | S13: 0 | T13: 197 | U13: 16
A14: QE1 | B14: RXL | C14: BLACKPOOL TEACHING HOSPITALS NHS FOUNDATION TRUST | D14: 20 | E14: 201 | F14: 0.9 | G14: 0.05 | H14: 12 | I14: 6 | J14: 1 | K14: 0 | L14: 1 | M14: 0 | N14: 20 | O14: 0 | P14: 0 | Q14: 0 | R14: 0 | S14: 0 | T14: 0 | U14: 0
A15: QE1 | B15: RXR | C15: EAST LANCASHIRE HOSPITALS NHS TRUST | D15: 79 | E15: 478 | F15: 0.8734177215 | G15: 0.05063291139 | H15: 57 | I15: 12 | J15: 4 | K15: 1 | L15: 3 | M15: 2 | N15: 72 | O15: 0 | P15: 0 | Q15: 4 | R15: 0 | S15: 0 | T15: 0 | U15: 3
A16: QE1 | B16: RXN | C16: LANCASHIRE TEACHING HOSPITALS NHS FOUNDATION TRUST | D16: 20 | E16: 253 | F16: 1 | G16: 0 | H16: 18 | I16: 2 | J16: 0 | K16: 0 | L16: 0 | M16: 0 | N16: 20 | O16: 0 | P16: 0 | Q16: 0 | R16: 0 | S16: 0 | T16: 0 | U16: 0
A17: QE1 | B17: RTX | C17: UNIVERSITY HOSPITALS OF MORECAMBE BAY NHS FOUNDATION TRUST | D17: 23 | E17: 194 | F17: 1 | G17: 0 | H17: 20 | I17: 3 | J17: 0 | K17: 0 | L17: 0 | M17: 0 | N17: 23 | O17: 0 | P17: 0 | Q17: 0 | R17: 0 | S17: 0 | T17: 0 | U17: 0
A18: QF7 | B18: RFF | C18: BARNSLEY HOSPITAL NHS FOUNDATION TRUST | D18: 2 | E18: 78 | F18: * | G18: * | H18: * | I18: * | J18: * | K18: * | L18: * | M18: * | N18: * | O18: * | P18: * | Q18: * | R18: * | S18: * | T18: * | U18: *
A19: QF7 | B19: RP5 | C19: DONCASTER AND BASSETLAW TEACHING HOSPITALS NHS FOUNDATION TRUST | D19: 148 | E19: 477 | F19: 0.9864864865 | G19: 0.006756756757 | H19: 129 | I19: 17 | J19: 1 | K19: 0 | L19: 1 | M19: 0 | N19: 0 | O19: 0 | P19: 0 | Q19: 148 | R19: 0 | S19: 0 | T19: 0 | U19: 0
A20: QF7 | B20: RHQ | C20: SHEFFIELD TEACHING HOSPITALS NHS FOUNDATION TRUST | D20: 10 | E20: 478 | F20: 0.9 | G20: 0.1 | H20: * | I20: * | J20: * | K20: * | L20: * | M20: * | N20: * | O20: * | P20: * | Q20: * | R20: * | S20: * | T20: * | U20: *
A21: QF7 | B21: RFR | C21: THE ROTHERHAM NHS FOUNDATION TRUST | D21: 0 | E21: 0 | F21: NA | G21: NA | H21: 0 | I21: 0 | J21: 0 | K21: 0 | L21: 0 | M21: 0 | N21: 0 | O21: 0 | P21: 0 | Q21: 0 | R21: 0 | S21: 0 | T21: 0 | U21: 0
A22: QGH | B22: RWP | C22: WORCESTERSHIRE ACUTE HOSPITALS NHS TRUST | D22: 2 | E22: 132 | F22: * | G22: * | H22: * | I22: * | J22: * | K22: * | L22: * | M22: * | N22: * | O22: * | P22: * | Q22: * | R22: * | S22: * | T22: * | U22: *
A23: QH8 | B23: RAJ | C23: MID AND SOUTH ESSEX NHS FOUNDATION TRUST | D23: 65 | E23: 844 | F23: 0.8307692308 | G23: 0.1076923077 | H23: 48 | I23: 6 | J23: 3 | K23: 2 | L23: 5 | M23: 1 | N23: 65 | O23: 0 | P23: 0 | Q23: 0 | R23: 0 | S23: 0 | T23: 0 | U23: 0
A24: QHG | B24: RC9 | C24: BEDFORDSHIRE HOSPITALS NHS FOUNDATION TRUST | D24: 20 | E24: 502 | F24: 1 | G24: 0 | H24: 16 | I24: 4 | J24: 0 | K24: 0 | L24: 0 | M24: 0 | N24: 10 | O24: 0 | P24: 0 | Q24: 8 | R24: 0 | S24: 0 | T24: 2 | U24: 0
A25: QHG | B25: RD8 | C25: MILTON KEYNES UNIVERSITY HOSPITAL NHS FOUNDATION TRUST | D25: 37 | E25: 244 | F25: 0.972972973 | G25: 0 | H25: 30 | I25: 6 | J25: 0 | K25: 0 | L25: 0 | M25: 1 | N25: 0 | O25: 0 | P25: 0 | Q25: 29 | R25: 0 | S25: 0 | T25: 8 | U25: 0
A26: QHL | B26: RQ3 | C26: BIRMINGHAM WOMEN'S AND CHILDREN'S NHS FOUNDATION TRUST | D26: 2 | E26: 635 | F26: * | G26: * | H26: * | I26: * | J26: * | K26: * | L26: * | M26: * | N26: * | O26: * | P26: * | Q26: * | R26: * | S26: * | T26: * | U26: *
A27: QHL | B27: RRK | C27: UNIVERSITY HOSPITALS BIRMINGHAM NHS FOUNDATION TRUST | D27: 0 | E27: 900 | F27: NA | G27: NA | H27: 0 | I27: 0 | J27: 0 | K27: 0 | L27: 0 | M27: 0 | N27: 0 | O27: 0 | P27: 0 | Q27: 0 | R27: 0 | S27: 0 | T27: 0 | U27: 0
A28: QHM | B28: RXP | C28: COUNTY DURHAM AND DARLINGTON NHS FOUNDATION TRUST | D28: 11 | E28: 356 | F28: 1 | G28: 0 | H28: 11 | I28: 0 | J28: 0 | K28: 0 | L28: 0 | M28: 0 | N28: 0 | O28: 0 | P28: 0 | Q28: 11 | R28: 0 | S28: 0 | T28: 0 | U28: 0
A29: QHM | B29: RNN | C29: NORTH CUMBRIA INTEGRATED CARE NHS FOUNDATION TRUST | D29: 14 | E29: 221 | F29: 0.9285714286 | G29: 0 | H29: 12 | I29: 1 | J29: 1 | K29: 0 | L29: 0 | M29: 0 | N29: 0 | O29: 0 | P29: 0 | Q29: 1 | R29: 0 | S29: 0 | T29: 0 | U29: 13
A30: QHM | B30: RVW | C30: NORTH TEES AND HARTLEPOOL NHS FOUNDATION TRUST | D30: 4 | E30: 256 | F30: * | G30: * | H30: * | I30: * | J30: * | K30: * | L30: * | M30: * | N30: * | O30: * | P30: * | Q30: * | R30: * | S30: * | T30: * | U30: *
A31: QHM | B31: RTF | C31: NORTHUMBRIA HEALTHCARE NHS FOUNDATION TRUST | D31: 74 | E31: 251 | F31: 0.9054054054 | G31: 0.05405405405 | H31: 49 | I31: 18 | J31: 3 | K31: 4 | L31: 0 | M31: 0 | N31: 74 | O31: 0 | P31: 0 | Q31: 0 | R31: 0 | S31: 0 | T31: 0 | U31: 0
A32: QHM | B32: RTR | C32: SOUTH TEES HOSPITALS NHS FOUNDATION TRUST | D32: 2 | E32: 351 | F32: * | G32: * | H32: * | I32: * | J32: * | K32: * | L32: * | M32: * | N32: * | O32: * | P32: * | Q32: * | R32: * | S32: * | T32: * | U32: *
A33: QHM | B33: R0B | C33: SOUTH TYNESIDE AND SUNDERLAND NHS FOUNDATION TRUST | D33: 24 | E33: 299 | F33: 1 | G33: 0 | H33: 23 | I33: 1 | J33: 0 | K33: 0 | L33: 0 | M33: 0 | N33: 0 | O33: 0 | P33: 24 | Q33: 0 | R33: 0 | S33: 0 | T33: 0 | U33: 0
A34: QJ2 | B34: RFS | C34: CHESTERFIELD ROYAL HOSPITAL NHS FOUNDATION TRUST | D34: 4 | E34: 194 | F34: * | G34: * | H34: * | I34: * | J34: * | K34: * | L34: * | M34: * | N34: * | O34: * | P34: * | Q34: * | R34: * | S34: * | T34: * | U34: *
A35: QJ2 | B35: RTG | C35: UNIVERSITY HOSPITALS OF DERBY AND BURTON NHS FOUNDATION TRUST | D35: 1 | E35: 455 | F35: * | G35: * | H35: * | I35: * | J35: * | K35: * | L35: * | M35: * | N35: * | O35: * | P35: * | Q35: * | R35: * | S35: * | T35: * | U35: *
A36: QJG | B36: RDE | C36: EAST SUFFOLK AND NORTH ESSEX NHS FOUNDATION TRUST | D36: 11 | E36: 11 | F36: 0.9090909091 | G36: 0 | H36: 8 | I36: 2 | J36: 0 | K36: 0 | L36: 0 | M36: 1 | N36: 0 | O36: 0 | P36: 0 | Q36: 8 | R36: 0 | S36: 0 | T36: 3 | U36: 0
A37: QJG | B37: RGR | C37: WEST SUFFOLK NHS FOUNDATION TRUST | D37: 9 | E37: 254 | F37: 1 | G37: 0 | H37: 9 | I37: 0 | J37: 0 | K37: 0 | L37: 0 | M37: 0 | N37: 0 | O37: 0 | P37: 0 | Q37: 9 | R37: 0 | S37: 0 | T37: 0 | U37: 0
A38: QJK | B38: RBZ | C38: NORTHERN DEVON HEALTHCARE NHS TRUST | D38: 0 | E38: 99 | F38: NA | G38: NA | H38: 0 | I38: 0 | J38: 0 | K38: 0 | L38: 0 | M38: 0 | N38: 0 | O38: 0 | P38: 0 | Q38: 0 | R38: 0 | S38: 0 | T38: 0 | U38: 0
A39: QJK | B39: RH8 | C39: ROYAL DEVON AND EXETER NHS FOUNDATION TRUST | D39: 0 | E39: 301 | F39: NA | G39: NA | H39: 0 | I39: 0 | J39: 0 | K39: 0 | L39: 0 | M39: 0 | N39: 0 | O39: 0 | P39: 0 | Q39: 0 | R39: 0 | S39: 0 | T39: 0 | U39: 0
A40: QJK | B40: RK9 | C40: UNIVERSITY HOSPITALS PLYMOUTH NHS TRUST | D40: 6 | E40: 85 | F40: 1 | G40: 0 | H40: 5 | I40: 1 | J40: 0 | K40: 0 | L40: 0 | M40: 0 | N40: 0 | O40: 0 | P40: 0 | Q40: 6 | R40: 0 | S40: 0 | T40: 0 | U40: 0
A41: QJM | B41: RWD | C41: UNITED LINCOLNSHIRE HOSPITALS NHS TRUST | D41: 20 | E41: 365 | F41: 1 | G41: 0 | H41: 19 | I41: 1 | J41: 0 | K41: 0 | L41: 0 | M41: 0 | N41: 0 | O41: 0 | P41: 0 | Q41: 20 | R41: 0 | S41: 0 | T41: 0 | U41: 0
A42: QK1 | B42: RWE | C42: UNIVERSITY HOSPITALS OF LEICESTER NHS TRUST | D42: 286 | E42: 675 | F42: 0.958041958 | G42: 0.01748251748 | H42: 228 | I42: 46 | J42: 5 | K42: 2 | L42: 3 | M42: 2 | N42: 0 | O42: 266 | P42: 0 | Q42: 0 | R42: 20 | S42: 0 | T42: 0 | U42: 0
A43: QKK | B43: RJ1 | C43: GUY'S AND ST THOMAS' NHS FOUNDATION TRUST | D43: 12 | E43: 448 | F43: 0.8333333333 | G43: 0.08333333333 | H43: 9 | I43: 1 | J43: 1 | K43: 1 | L43: 0 | M43: 0 | N43: 0 | O43: 0 | P43: 0 | Q43: 11 | R43: 0 | S43: 0 | T43: 1 | U43: 0
A44: QKK | B44: RJZ | C44: KING'S COLLEGE HOSPITAL NHS FOUNDATION TRUST | D44: 0 | E44: 549 | F44: NA | G44: NA | H44: 0 | I44: 0 | J44: 0 | K44: 0 | L44: 0 | M44: 0 | N44: 0 | O44: 0 | P44: 0 | Q44: 0 | R44: 0 | S44: 0 | T44: 0 | U44: 0
A45: QKK | B45: RJ2 | C45: LEWISHAM AND GREENWICH NHS TRUST | D45: 71 | E45: 567 | F45: 0.9718309859 | G45: 0.01408450704 | H45: 48 | I45: 21 | J45: 1 | K45: 0 | L45: 1 | M45: 0 | N45: 0 | O45: 0 | P45: 0 | Q45: 68 | R45: 0 | S45: 0 | T45: 3 | U45: 0
A46: QKS | B46: RN7 | C46: DARTFORD AND GRAVESHAM NHS TRUST | D46: 7 | E46: 304 | F46: 0.8571428571 | G46: 0 | H46: 5 | I46: 1 | J46: 0 | K46: 0 | L46: 0 | M46: 1 | N46: 0 | O46: 0 | P46: 0 | Q46: 7 | R46: 0 | S46: 0 | T46: 0 | U46: 0
A47: QKS | B47: RWF | C47: MAIDSTONE AND TUNBRIDGE WELLS NHS TRUST | D47: 108 | E47: 423 | F47: 0.9907407407 | G47: 0 | H47: 98 | I47: 9 | J47: 1 | K47: 0 | L47: 0 | M47: 0 | N47: 0 | O47: 0 | P47: 0 | Q47: 108 | R47: 0 | S47: 0 | T47: 0 | U47: 0
A48: QKS | B48: RPA | C48: MEDWAY NHS FOUNDATION TRUST | D48: 127 | E48: 355 | F48: 1 | G48: 0 | H48: 127 | I48: 0 | J48: 0 | K48: 0 | L48: 0 | M48: 0 | N48: 0 | O48: 0 | P48: 127 | Q48: 0 | R48: 0 | S48: 0 | T48: 0 | U48: 0
A49: QM7 | B49: RWH | C49: EAST AND NORTH HERTFORDSHIRE NHS TRUST | D49: 135 | E49: 373 | F49: 0.9777777778 | G49: 0.01481481481 | H49: * | I49: * | J49: * | K49: * | L49: * | M49: * | N49: * | O49: * | P49: * | Q49: * | R49: * | S49: * | T49: * | U49: *
A50: QM7 | B50: RQW | C50: THE PRINCESS ALEXANDRA HOSPITAL NHS TRUST | D50: 0 | E50: 290 | F50: NA | G50: NA | H50: 0 | I50: 0 | J50: 0 | K50: 0 | L50: 0 | M50: 0 | N50: 0 | O50: 0 | P50: 0 | Q50: 0 | R50: 0 | S50: 0 | T50: 0 | U50: 0
A51: QM7 | B51: RWG | C51: WEST HERTFORDSHIRE HOSPITALS NHS TRUST | D51: 1 | E51: 320 | F51: * | G51: * | H51: * | I51: * | J51: * | K51: * | L51: * | M51: * | N51: * | O51: * | P51: * | Q51: * | R51: * | S51: * | T51: * | U51: *
A52: QMF | B52: RF4 | C52: BARKING, HAVERING AND REDBRIDGE UNIVERSITY HOSPITALS NHS TRUST | D52: 0 | E52: 0 | F52: NA | G52: NA | H52: 0 | I52: 0 | J52: 0 | K52: 0 | L52: 0 | M52: 0 | N52: 0 | O52: 0 | P52: 0 | Q52: 0 | R52: 0 | S52: 0 | T52: 0 | U52: 0
A53: QMF | B53: R1H | C53: BARTS HEALTH NHS TRUST | D53: 88 | E53: 1034 | F53: 0.9545454545 | G53: 0.01136363636 | H53: 69 | I53: 15 | J53: 3 | K53: 0 | L53: 1 | M53: 0 | N53: 9 | O53: 0 | P53: 0 | Q53: 0 | R53: 79 | S53: 0 | T53: 0 | U53: 0
A54: QMJ | B54: RAL | C54: ROYAL FREE LONDON NHS FOUNDATION TRUST | D54: 81 | E54: 638 | F54: 0.9012345679 | G54: 0 | H54: 44 | I54: 29 | J54: 8 | K54: 0 | L54: 0 | M54: 0 | N54: 0 | O54: 81 | P54: 0 | Q54: 0 | R54: 0 | S54: 0 | T54: 0 | U54: 0
A55: QMJ | B55: RKE | C55: WHITTINGTON HEALTH NHS TRUST | D55: 53 | E55: 286 | F55: 0.9811320755 | G55: 0 | H55: 0 | I55: 52 | J55: 1 | K55: 0 | L55: 0 | M55: 0 | N55: 0 | O55: 53 | P55: 0 | Q55: 0 | R55: 0 | S55: 0 | T55: 0 | U55: 0
A56: QMM | B56: RM1 | C56: NORFOLK AND NORWICH UNIVERSITY HOSPITALS NHS FOUNDATION TRUST | D56: 5 | E56: 333 | F56: 1 | G56: 0 | H56: 4 | I56: 1 | J56: 0 | K56: 0 | L56: 0 | M56: 0 | N56: 0 | O56: 0 | P56: 0 | Q56: 0 | R56: 0 | S56: 0 | T56: 5 | U56: 0
A57: QMM | B57: RCX | C57: THE QUEEN ELIZABETH HOSPITAL, KING'S LYNN, NHS FOUNDATION TRUST | D57: 23 | E57: 160 | F57: 0.9130434783 | G57: 0.08695652174 | H57: 19 | I57: 2 | J57: 0 | K57: 1 | L57: 1 | M57: 0 | N57: 0 | O57: 16 | P57: 0 | Q57: 0 | R57: 0 | S57: 0 | T57: 7 | U57: 0
A58: QNC | B58: RJE | C58: UNIVERSITY HOSPITALS OF NORTH MIDLANDS NHS TRUST | D58: 0 | E58: 572 | F58: NA | G58: NA | H58: 0 | I58: 0 | J58: 0 | K58: 0 | L58: 0 | M58: 0 | N58: 0 | O58: 0 | P58: 0 | Q58: 0 | R58: 0 | S58: 0 | T58: 0 | U58: 0
A59: QNQ | B59: RDU | C59: FRIMLEY HEALTH NHS FOUNDATION TRUST | D59: 44 | E59: 493 | F59: 1 | G59: 0 | H59: 43 | I59: 1 | J59: 0 | K59: 0 | L59: 0 | M59: 0 | N59: 0 | O59: 0 | P59: 0 | Q59: 44 | R59: 0 | S59: 0 | T59: 0 | U59: 0
A60: QNX | B60: RXH | C60: BRIGHTON AND SUSSEX UNIVERSITY HOSPITALS NHS TRUST | D60: 48 | E60: 364 | F60: 0.8958333333 | G60: 0.0625 | H60: 39 | I60: 4 | J60: 2 | K60: 3 | L60: 0 | M60: 0 | N60: 48 | O60: 0 | P60: 0 | Q60: 0 | R60: 0 | S60: 0 | T60: 0 | U60: 0
A61: QNX | B61: RXC | C61: EAST SUSSEX HEALTHCARE NHS TRUST | D61: 46 | E61: 202 | F61: 0.9782608696 | G61: 0 | H61: 39 | I61: 6 | J61: 0 | K61: 0 | L61: 0 | M61: 1 | N61: 0 | O61: 46 | P61: 0 | Q61: 0 | R61: 0 | S61: 0 | T61: 0 | U61: 0
A62: QNX | B62: RYR | C62: WESTERN SUSSEX HOSPITALS NHS FOUNDATION TRUST | D62: 22 | E62: 309 | F62: 0.9545454545 | G62: 0.04545454545 | H62: 18 | I62: 3 | J62: 0 | K62: 1 | L62: 0 | M62: 0 | N62: 0 | O62: 0 | P62: 0 | Q62: 20 | R62: 0 | S62: 0 | T62: 2 | U62: 0
A63: QOC | B63: RXW | C63: THE SHREWSBURY AND TELFORD HOSPITAL NHS TRUST | D63: 101 | E63: 304 | F63: 1 | G63: 0 | H63: 96 | I63: 5 | J63: 0 | K63: 0 | L63: 0 | M63: 0 | N63: 0 | O63: 0 | P63: 0 | Q63: 101 | R63: 0 | S63: 0 | T63: 0 | U63: 0
A64: QOP | B64: RMC | C64: BOLTON NHS FOUNDATION TRUST | D64: 164 | E64: 437 | F64: 0.9024390244 | G64: 0.06097560976 | H64: 125 | I64: 23 | J64: 5 | K64: 5 | L64: 5 | M64: 1 | N64: 164 | O64: 0 | P64: 0 | Q64: 0 | R64: 0 | S64: 0 | T64: 0 | U64: 0
A65: QOP | B65: R0A | C65: MANCHESTER UNIVERSITY NHS FOUNDATION TRUST | D65: 81 | E65: 1030 | F65: 1 | G65: 0 | H65: 76 | I65: 5 | J65: 0 | K65: 0 | L65: 0 | M65: 0 | N65: 0 | O65: 11 | P65: 0 | Q65: 70 | R65: 0 | S65: 0 | T65: 0 | U65: 0
A66: QOP | B66: RW6 | C66: PENNINE ACUTE HOSPITALS NHS TRUST | D66: 5 | E66: 681 | F66: 0.6 | G66: 0.4 | H66: 2 | I66: 1 | J66: 0 | K66: 1 | L66: 1 | M66: 0 | N66: 5 | O66: 0 | P66: 0 | Q66: 0 | R66: 0 | S66: 0 | T66: 0 | U66: 0
A67: QOP | B67: RWJ | C67: STOCKPORT NHS FOUNDATION TRUST | D67: 44 | E67: 284 | F67: 0.9318181818 | G67: 0.02272727273 | H67: 37 | I67: 4 | J67: 1 | K67: 1 | L67: 0 | M67: 1 | N67: 0 | O67: 0 | P67: 0 | Q67: 44 | R67: 0 | S67: 0 | T67: 0 | U67: 0
A68: QOP | B68: RMP | C68: TAMESIDE AND GLOSSOP INTEGRATED CARE NHS FOUNDATION TRUST | D68: 12 | E68: 174 | F68: 1 | G68: 0 | H68: 10 | I68: 2 | J68: 0 | K68: 0 | L68: 0 | M68: 0 | N68: 0 | O68: 12 | P68: 0 | Q68: 0 | R68: 0 | S68: 0 | T68: 0 | U68: 0
A69: QOP | B69: RRF | C69: WRIGHTINGTON, WIGAN AND LEIGH NHS FOUNDATION TRUST | D69: 0 | E69: 190 | F69: NA | G69: NA | H69: 0 | I69: 0 | J69: 0 | K69: 0 | L69: 0 | M69: 0 | N69: 0 | O69: 0 | P69: 0 | Q69: 0 | R69: 0 | S69: 0 | T69: 0 | U69: 0
A70: QOQ | B70: RCD | C70: HARROGATE AND DISTRICT NHS FOUNDATION TRUST | D70: 43 | E70: 144 | F70: 1 | G70: 0 | H70: 39 | I70: 4 | J70: 0 | K70: 0 | L70: 0 | M70: 0 | N70: 0 | O70: 0 | P70: 0 | Q70: 43 | R70: 0 | S70: 0 | T70: 0 | U70: 0
A71: QOQ | B71: RWA | C71: HULL UNIVERSITY TEACHING HOSPITALS NHS TRUST | D71: 10 | E71: 10 | F71: 1 | G71: 0 | H71: 9 | I71: 1 | J71: 0 | K71: 0 | L71: 0 | M71: 0 | N71: 0 | O71: 0 | P71: 0 | Q71: 9 | R71: 0 | S71: 0 | T71: 1 | U71: 0
A72: QOQ | B72: RJL | C72: NORTHERN LINCOLNSHIRE AND GOOLE NHS FOUNDATION TRUST | D72: 0 | E72: 318 | F72: NA | G72: NA | H72: 0 | I72: 0 | J72: 0 | K72: 0 | L72: 0 | M72: 0 | N72: 0 | O72: 0 | P72: 0 | Q72: 0 | R72: 0 | S72: 0 | T72: 0 | U72: 0
A73: QOQ | B73: RCB | C73: YORK TEACHING HOSPITAL NHS FOUNDATION TRUST | D73: 36 | E73: 319 | F73: 1 | G73: 0 | H73: 36 | I73: 0 | J73: 0 | K73: 0 | L73: 0 | M73: 0 | N73: 0 | O73: 0 | P73: 36 | Q73: 0 | R73: 0 | S73: 0 | T73: 0 | U73: 0
A74: QOX | B74: RN3 | C74: GREAT WESTERN HOSPITALS NHS FOUNDATION TRUST | D74: 0 | E74: 313 | F74: NA | G74: NA | H74: 0 | I74: 0 | J74: 0 | K74: 0 | L74: 0 | M74: 0 | N74: 0 | O74: 0 | P74: 0 | Q74: 0 | R74: 0 | S74: 0 | T74: 0 | U74: 0
A75: QOX | B75: RD1 | C75: ROYAL UNITED HOSPITALS BATH NHS FOUNDATION TRUST | D75: 1 | E75: 360 | F75: * | G75: * | H75: * | I75: * | J75: * | K75: * | L75: * | M75: * | N75: * | O75: * | P75: * | Q75: * | R75: * | S75: * | T75: * | U75: *
A76: QOX | B76: RNZ | C76: SALISBURY NHS FOUNDATION TRUST | D76: 0 | E76: 177 | F76: NA | G76: NA | H76: 0 | I76: 0 | J76: 0 | K76: 0 | L76: 0 | M76: 0 | N76: 0 | O76: 0 | P76: 0 | Q76: 0 | R76: 0 | S76: 0 | T76: 0 | U76: 0
A77: QPM | B77: RNQ | C77: KETTERING GENERAL HOSPITAL NHS FOUNDATION TRUST | D77: 2 | E77: 265 | F77: * | G77: * | H77: * | I77: * | J77: * | K77: * | L77: * | M77: * | N77: * | O77: * | P77: * | Q77: * | R77: * | S77: * | T77: * | U77: *
A78: QPM | B78: RNS | C78: NORTHAMPTON GENERAL HOSPITAL NHS TRUST | D78: 0 | E78: 306 | F78: NA | G78: NA | H78: 0 | I78: 0 | J78: 0 | K78: 0 | L78: 0 | M78: 0 | N78: 0 | O78: 0 | P78: 0 | Q78: 0 | R78: 0 | S78: 0 | T78: 0 | U78: 0
A79: QR1 | B79: RTE | C79: GLOUCESTERSHIRE HOSPITALS NHS FOUNDATION TRUST | D79: 30 | E79: 126 | F79: 0.9666666667 | G79: 0.03333333333 | H79: * | I79: * | J79: * | K79: * | L79: * | M79: * | N79: * | O79: * | P79: * | Q79: * | R79: * | S79: * | T79: * | U79: *
A80: QRL | B80: RN5 | C80: HAMPSHIRE HOSPITALS NHS FOUNDATION TRUST | D80: 8 | E80: 326 | F80: 1 | G80: 0 | H80: 5 | I80: 3 | J80: 0 | K80: 0 | L80: 0 | M80: 0 | N80: 0 | O80: 0 | P80: 0 | Q80: 0 | R80: 5 | S80: 0 | T80: 3 | U80: 0
A81: QRL | B81: R1F | C81: ISLE OF WIGHT NHS TRUST | D81: 6 | E81: 73 | F81: 1 | G81: 0 | H81: 5 | I81: 1 | J81: 0 | K81: 0 | L81: 0 | M81: 0 | N81: 0 | O81: 0 | P81: 0 | Q81: 6 | R81: 0 | S81: 0 | T81: 0 | U81: 0
A82: QRL | B82: RHU | C82: PORTSMOUTH HOSPITALS UNIVERSITY NATIONAL HEALTH SERVICE TRUST | D82: 0 | E82: 397 | F82: NA | G82: NA | H82: 0 | I82: 0 | J82: 0 | K82: 0 | L82: 0 | M82: 0 | N82: 0 | O82: 0 | P82: 0 | Q82: 0 | R82: 0 | S82: 0 | T82: 0 | U82: 0
A83: QRL | B83: RHM | C83: UNIVERSITY HOSPITAL SOUTHAMPTON NHS FOUNDATION TRUST | D83: 124 | E83: 448 | F83: 0.8790322581 | G83: 0.1048387097 | H83: 90 | I83: 19 | J83: 1 | K83: 6 | L83: 7 | M83: 1 | N83: 0 | O83: 0 | P83: 0 | Q83: 28 | R83: 0 | S83: 0 | T83: 96 | U83: 0
A84: QRV | B84: RQM | C84: CHELSEA AND WESTMINSTER HOSPITAL NHS FOUNDATION TRUST | D84: 39 | E84: 143 | F84: 1 | G84: 0 | H84: 37 | I84: 2 | J84: 0 | K84: 0 | L84: 0 | M84: 0 | N84: 19 | O84: 1 | P84: 0 | Q84: 0 | R84: 0 | S84: 0 | T84: 19 | U84: 0
A85: QRV | B85: RYJ | C85: IMPERIAL COLLEGE HEALTHCARE NHS TRUST | D85: 74 | E85: 618 | F85: 0.9324324324 | G85: 0.05405405405 | H85: 63 | I85: 6 | J85: 1 | K85: 2 | L85: 2 | M85: 0 | N85: 65 | O85: 9 | P85: 0 | Q85: 0 | R85: 0 | S85: 0 | T85: 0 | U85: 0
A86: QRV | B86: R1K | C86: LONDON NORTH WEST UNIVERSITY HEALTHCARE NHS TRUST | D86: 0 | E86: 294 | F86: NA | G86: NA | H86: 0 | I86: 0 | J86: 0 | K86: 0 | L86: 0 | M86: 0 | N86: 0 | O86: 0 | P86: 0 | Q86: 0 | R86: 0 | S86: 0 | T86: 0 | U86: 0
A87: QRV | B87: RAS | C87: THE HILLINGDON HOSPITALS NHS FOUNDATION TRUST | D87: 5 | E87: 308 | F87: 1 | G87: 0 | H87: 4 | I87: 1 | J87: 0 | K87: 0 | L87: 0 | M87: 0 | N87: 0 | O87: 0 | P87: 0 | Q87: 0 | R87: 0 | S87: 0 | T87: 5 | U87: 0
A88: QSL | B88: RH5 | C88: SOMERSET NHS FOUNDATION TRUST | D88: 0 | E88: 244 | F88: NA | G88: NA | H88: 0 | I88: 0 | J88: 0 | K88: 0 | L88: 0 | M88: 0 | N88: 0 | O88: 0 | P88: 0 | Q88: 0 | R88: 0 | S88: 0 | T88: 0 | U88: 0
A89: QSL | B89: RA4 | C89: YEOVIL DISTRICT HOSPITAL NHS FOUNDATION TRUST | D89: 4 | E89: 108 | F89: * | G89: * | H89: * | I89: * | J89: * | K89: * | L89: * | M89: * | N89: * | O89: * | P89: * | Q89: * | R89: * | S89: * | T89: * | U89: *
A90: QT1 | B90: RX1 | C90: NOTTINGHAM UNIVERSITY HOSPITALS NHS TRUST | D90: 2 | E90: 584 | F90: * | G90: * | H90: * | I90: * | J90: * | K90: * | L90: * | M90: * | N90: * | O90: * | P90: * | Q90: * | R90: * | S90: * | T90: * | U90: *
A91: QT1 | B91: RK5 | C91: SHERWOOD FOREST HOSPITALS NHS FOUNDATION TRUST | D91: 0 | E91: 0 | F91: NA | G91: NA | H91: 0 | I91: 0 | J91: 0 | K91: 0 | L91: 0 | M91: 0 | N91: 0 | O91: 0 | P91: 0 | Q91: 0 | R91: 0 | S91: 0 | T91: 0 | U91: 0
A92: QT6 | B92: REF | C92: ROYAL CORNWALL HOSPITALS NHS TRUST | D92: 6 | E92: 322 | F92: 1 | G92: 0 | H92: * | I92: * | J92: * | K92: * | L92: * | M92: * | N92: * | O92: * | P92: * | Q92: * | R92: * | S92: * | T92: * | U92: *
A93: QU9 | B93: RXQ | C93: BUCKINGHAMSHIRE HEALTHCARE NHS TRUST | D93: 55 | E93: 296 | F93: 0.8909090909 | G93: 0.07272727273 | H93: 32 | I93: 17 | J93: 2 | K93: 2 | L93: 2 | M93: 0 | N93: 55 | O93: 0 | P93: 0 | Q93: 0 | R93: 0 | S93: 0 | T93: 0 | U93: 0
A94: QU9 | B94: RTH | C94: OXFORD UNIVERSITY HOSPITALS NHS FOUNDATION TRUST | D94: 1 | E94: 507 | F94: * | G94: * | H94: * | I94: * | J94: * | K94: * | L94: * | M94: * | N94: * | O94: * | P94: * | Q94: * | R94: * | S94: * | T94: * | U94: *
A95: QU9 | B95: RHW | C95: ROYAL BERKSHIRE NHS FOUNDATION TRUST | D95: 55 | E95: 302 | F95: 1 | G95: 0 | H95: * | I95: * | J95: * | K95: * | L95: * | M95: * | N95: * | O95: * | P95: * | Q95: * | R95: * | S95: * | T95: * | U95: *
A96: QUA | B96: RXK | C96: SANDWELL AND WEST BIRMINGHAM HOSPITALS NHS TRUST | D96: 20 | E96: 308 | F96: 0.85 | G96: 0.15 | H96: 16 | I96: 1 | J96: 0 | K96: 0 | L96: 3 | M96: 0 | N96: 20 | O96: 0 | P96: 0 | Q96: 0 | R96: 0 | S96: 0 | T96: 0 | U96: 0
A97: QUA | B97: RNA | C97: THE DUDLEY GROUP NHS FOUNDATION TRUST | D97: 47 | E97: 284 | F97: 0.8936170213 | G97: 0 | H97: 37 | I97: 5 | J97: 0 | K97: 0 | L97: 0 | M97: 5 | N97: 0 | O97: 0 | P97: 0 | Q97: 47 | R97: 0 | S97: 0 | T97: 0 | U97: 0
A98: QUA | B98: RBK | C98: WALSALL HEALTHCARE NHS TRUST | D98: 31 | E98: 184 | F98: 0.8387096774 | G98: 0.1612903226 | H98: 23 | I98: 3 | J98: 0 | K98: 2 | L98: 3 | M98: 0 | N98: 31 | O98: 0 | P98: 0 | Q98: 0 | R98: 0 | S98: 0 | T98: 0 | U98: 0
A99: QUE | B99: RGT | C99: CAMBRIDGE UNIVERSITY HOSPITALS NHS FOUNDATION TRUST | D99: 36 | E99: 347 | F99: 0.9722222222 | G99: 0 | H99: 29 | I99: 6 | J99: 0 | K99: 0 | L99: 0 | M99: 1 | N99: 0 | O99: 36 | P99: 0 | Q99: 0 | R99: 0 | S99: 0 | T99: 0 | U99: 0
A100: QUE | B100: RGN | C100: NORTH WEST ANGLIA NHS FOUNDATION TRUST | D100: 38 | E100: 537 | F100: 1 | G100: 0 | H100: 36 | I100: 2 | J100: 0 | K100: 0 | L100: 0 | M100: 0 | N100: 0 | O100: 0 | P100: 0 | Q100: 38 | R100: 0 | S100: 0 | T100: 0 | U100: 0
A101: QUY | B101: RVJ | C101: NORTH BRISTOL NHS TRUST | D101: 0 | E101: 0 | F101: NA | G101: NA | H101: 0 | I101: 0 | J101: 0 | K101: 0 | L101: 0 | M101: 0 | N101: 0 | O101: 0 | P101: 0 | Q101: 0 | R101: 0 | S101: 0 | T101: 0 | U101: 0
A102: QUY | B102: RA7 | C102: UNIVERSITY HOSPITALS BRISTOL AND WESTON NHS FOUNDATION TRUST | D102: 18 | E102: 362 | F102: 0.9444444444 | G102: 0 | H102: 13 | I102: 4 | J102: 1 | K102: 0 | L102: 0 | M102: 0 | N102: 0 | O102: 0 | P102: 0 | Q102: 0 | R102: 18 | S102: 0 | T102: 0 | U102: 0
A103: QVV | B103: RBD | C103: DORSET COUNTY HOSPITAL NHS FOUNDATION TRUST | D103: 46 | E103: 127 | F103: 0.9130434783 | G103: 0.0652173913 | H103: 41 | I103: 1 | J103: 0 | K103: 1 | L103: 2 | M103: 1 | N103: 46 | O103: 0 | P103: 0 | Q103: 0 | R103: 0 | S103: 0 | T103: 0 | U103: 0
A104: QVV | B104: R0D | C104: UNIVERSITY HOSPITALS DORSET NHS FOUNDATION TRUST | D104: 90 | E104: 275 | F104: 0.9777777778 | G104: 0.01111111111 | H104: 79 | I104: 9 | J104: 0 | K104: 1 | L104: 0 | M104: 1 | N104: 88 | O104: 0 | P104: 0 | Q104: 2 | R104: 0 | S104: 0 | T104: 0 | U104: 0
A105: QWE | B105: RJ6 | C105: CROYDON HEALTH SERVICES NHS TRUST | D105: 22 | E105: 247 | F105: 0.8636363636 | G105: 0.1363636364 | H105: 18 | I105: 1 | J105: 0 | K105: 0 | L105: 3 | M105: 0 | N105: 22 | O105: 0 | P105: 0 | Q105: 0 | R105: 0 | S105: 0 | T105: 0 | U105: 0
A106: QWE | B106: RVR | C106: EPSOM AND ST HELIER UNIVERSITY HOSPITALS NHS TRUST | D106: 34 | E106: 315 | F106: 0.9705882353 | G106: 0 | H106: 32 | I106: 1 | J106: 0 | K106: 0 | L106: 0 | M106: 1 | N106: 11 | O106: 1 | P106: 0 | Q106: 20 | R106: 0 | S106: 0 | T106: 2 | U106: 0
A107: QWE | B107: RAX | C107: KINGSTON HOSPITAL NHS FOUNDATION TRUST | D107: 2 | E107: 356 | F107: * | G107: * | H107: * | I107: * | J107: * | K107: * | L107: * | M107: * | N107: * | O107: * | P107: * | Q107: * | R107: * | S107: * | T107: * | U107: *
A108: QWE | B108: RJ7 | C108: ST GEORGE'S UNIVERSITY HOSPITALS NHS FOUNDATION TRUST | D108: 2 | E108: 350 | F108: * | G108: * | H108: * | I108: * | J108: * | K108: * | L108: * | M108: * | N108: * | O108: * | P108: * | Q108: * | R108: * | S108: * | T108: * | U108: *
A109: QWO | B109: RCF | C109: AIREDALE NHS FOUNDATION TRUST | D109: 0 | E109: 0 | F109: NA | G109: NA | H109: 0 | I109: 0 | J109: 0 | K109: 0 | L109: 0 | M109: 0 | N109: 0 | O109: 0 | P109: 0 | Q109: 0 | R109: 0 | S109: 0 | T109: 0 | U109: 0
A110: QWO | B110: RAE | C110: BRADFORD TEACHING HOSPITALS NHS FOUNDATION TRUST | D110: 0 | E110: 381 | F110: NA | G110: NA | H110: 0 | I110: 0 | J110: 0 | K110: 0 | L110: 0 | M110: 0 | N110: 0 | O110: 0 | P110: 0 | Q110: 0 | R110: 0 | S110: 0 | T110: 0 | U110: 0
A111: QWO | B111: RWY | C111: CALDERDALE AND HUDDERSFIELD NHS FOUNDATION TRUST | D111: 0 | E111: 355 | F111: NA | G111: NA | H111: 0 | I111: 0 | J111: 0 | K111: 0 | L111: 0 | M111: 0 | N111: 0 | O111: 0 | P111: 0 | Q111: 0 | R111: 0 | S111: 0 | T111: 0 | U111: 0
A112: QWO | B112: RR8 | C112: LEEDS TEACHING HOSPITALS NHS TRUST | D112: 171 | E112: 564 | F112: 0.9766081871 | G112: 0.01754385965 | H112: 159 | I112: 8 | J112: 1 | K112: 0 | L112: 3 | M112: 0 | N112: 150 | O112: 21 | P112: 0 | Q112: 0 | R112: 0 | S112: 0 | T112: 0 | U112: 0
A113: QWO | B113: RXF | C113: MID YORKSHIRE HOSPITALS NHS TRUST | D113: 12 | E113: 396 | F113: 0.9166666667 | G113: 0.08333333333 | H113: 11 | I113: 0 | J113: 0 | K113: 0 | L113: 1 | M113: 0 | N113: 0 | O113: 0 | P113: 0 | Q113: 10 | R113: 0 | S113: 0 | T113: 2 | U113: 0
A114: QWU | B114: RLT | C114: GEORGE ELIOT HOSPITAL NHS TRUST | D114: 73 | E114: 178 | F114: 0.9178082192 | G114: 0.06849315068 | H114: 62 | I114: 5 | J114: 0 | K114: 4 | L114: 1 | M114: 1 | N114: 69 | O114: 0 | P114: 0 | Q114: 4 | R114: 0 | S114: 0 | T114: 0 | U114: 0
A115: QWU | B115: RJC | C115: SOUTH WARWICKSHIRE NHS FOUNDATION TRUST | D115: 0 | E115: 232 | F115: NA | G115: NA | H115: 0 | I115: 0 | J115: 0 | K115: 0 | L115: 0 | M115: 0 | N115: 0 | O115: 0 | P115: 0 | Q115: 0 | R115: 0 | S115: 0 | T115: 0 | U115: 0
A116: QWU | B116: RKB | C116: UNIVERSITY HOSPITALS COVENTRY AND WARWICKSHIRE NHS TRUST | D116: 30 | E116: 427 | F116: 1 | G116: 0 | H116: 27 | I116: 3 | J116: 0 | K116: 0 | L116: 0 | M116: 0 | N116: 0 | O116: 27 | P116: 0 | Q116: 0 | R116: 0 | S116: 0 | T116: 3 | U116: 0
A117: QXU | B117: RA2 | C117: ROYAL SURREY COUNTY HOSPITAL NHS FOUNDATION TRUST | D117: 22 | E117: 198 | F117: 1 | G117: 0 | H117: 21 | I117: 1 | J117: 0 | K117: 0 | L117: 0 | M117: 0 | N117: 21 | O117: 0 | P117: 0 | Q117: 0 | R117: 0 | S117: 0 | T117: 1 | U117: 0
A118: QXU | B118: RTP | C118: SURREY AND SUSSEX HEALTHCARE NHS TRUST | D118: 31 | E118: 367 | F118: 1 | G118: 0 | H118: 30 | I118: 1 | J118: 0 | K118: 0 | L118: 0 | M118: 0 | N118: 0 | O118: 0 | P118: 0 | Q118: 31 | R118: 0 | S118: 0 | T118: 0 | U118: 0
A119: QYG | B119: RJR | C119: COUNTESS OF CHESTER HOSPITAL NHS FOUNDATION TRUST | D119: 37 | E119: 163 | F119: 0.972972973 | G119: 0.02702702703 | H119: 33 | I119: 3 | J119: 0 | K119: 0 | L119: 1 | M119: 0 | N119: 37 | O119: 0 | P119: 0 | Q119: 0 | R119: 0 | S119: 0 | T119: 0 | U119: 0
A120: QYG | B120: RJN | C120: EAST CHESHIRE NHS TRUST | D120: 0 | E120: 0 | F120: NA | G120: NA | H120: 0 | I120: 0 | J120: 0 | K120: 0 | L120: 0 | M120: 0 | N120: 0 | O120: 0 | P120: 0 | Q120: 0 | R120: 0 | S120: 0 | T120: 0 | U120: 0
A121: QYG | B121: REP | C121: LIVERPOOL WOMEN'S NHS FOUNDATION TRUST | D121: 34 | E121: 593 | F121: 0.9705882353 | G121: 0.02941176471 | H121: 31 | I121: 2 | J121: 0 | K121: 1 | L121: 0 | M121: 0 | N121: 0 | O121: 0 | P121: 0 | Q121: 0 | R121: 0 | S121: 0 | T121: 34 | U121: 0
A122: QYG | B122: RBT | C122: MID CHESHIRE HOSPITALS NHS FOUNDATION TRUST | D122: 12 | E122: 242 | F122: 0.9166666667 | G122: 0.08333333333 | H122: 11 | I122: 0 | J122: 0 | K122: 0 | L122: 1 | M122: 0 | N122: 11 | O122: 0 | P122: 0 | Q122: 1 | R122: 0 | S122: 0 | T122: 0 | U122: 0
A123: QYG | B123: RVY | C123: SOUTHPORT AND ORMSKIRK HOSPITAL NHS TRUST | D123: 12 | E123: 62 | F123: 1 | G123: 0 | H123: 11 | I123: 1 | J123: 0 | K123: 0 | L123: 0 | M123: 0 | N123: 12 | O123: 0 | P123: 0 | Q123: 0 | R123: 0 | S123: 0 | T123: 0 | U123: 0
A124: QYG | B124: RBN | C124: ST HELENS AND KNOWSLEY TEACHING HOSPITALS NHS TRUST | D124: 9 | E124: 312 | F124: 1 | G124: 0 | H124: 8 | I124: 1 | J124: 0 | K124: 0 | L124: 0 | M124: 0 | N124: 0 | O124: 0 | P124: 0 | Q124: 9 | R124: 0 | S124: 0 | T124: 0 | U124: 0
A125: QYG | B125: RWW | C125: WARRINGTON AND HALTON TEACHING HOSPITALS NHS FOUNDATION TRUST | D125: 0 | E125: 167 | F125: NA | G125: NA | H125: 0 | I125: 0 | J125: 0 | K125: 0 | L125: 0 | M125: 0 | N125: 0 | O125: 0 | P125: 0 | Q125: 0 | R125: 0 | S125: 0 | T125: 0 | U125: 0
A126: QYG | B126: RBL | C126: WIRRAL UNIVERSITY TEACHING HOSPITAL NHS FOUNDATION TRUST | D126: 15 | E126: 203 | F126: 0.8 | G126: 0.06666666667 | H126: 8 | I126: 4 | J126: 2 | K126: 1 | L126: 0 | M126: 0 | N126: 0 | O126: 0 | P126: 0 | Q126: 15 | R126: 0 | S126: 0 | T126: 0 | U126: 0

Sheet Sites Q2
B6: Sort data by:
A9: STP Code | B9: Trust Code | C9: Trust Name | D9: Site Code | E9: Site Name | F9: Total Responses | G9: Percentage Positive | H9: Percentage Negative | I9: Breakdown of Responses
I10: Very Good | J10: Good | K10: Neither Good nor Poor | L10: Poor | M10: Very Poor | N10: Don't Know
E11: England (including Independent Sector providers) | F11: 3517 | G11: 0.9516633494 | H11: 0.02758032414 | I11: 2866 | J11: 481 | K11: 51 | L11: 43 | M11: 54 | N11: 22
E12: England (excluding Independent Sector providers) | F12: 3517 | G12: 0.9516633494 | H12: 0.02758032414 | I12: 2866 | J12: 481 | K12: 51 | L12: 43 | M12: 54 | N12: 22
E13: Selection (excluding suppressed data) | F13: =SUBTOTAL(9,F14:F298) -> 3517 | G13: =IFERROR((I13+J13)/SUM(I13:N13), "-") -> 0.9506302521 | H13: =IFERROR((L13+M13)/SUM(I13:N13), "-") -> 0.02976190476 | I13: =SUBTOTAL(9,I14:I298) -> 2358 | J13: 357 | K13: 38 | L13: 35 | M13: 50 | N13: 18
A14: QE1 | B14: RXL | C14: BLACKPOOL TEACHING HOSPITALS NHS FOUNDATION TRUST | D14: RXL01 | E14: Blackpool Victoria Hospital | F14: 20 | G14: 0.9 | H14: 0.05 | I14: 12 | J14: 6 | K14: 1 | L14: 0 | M14: 1 | N14: 0
A15: QE1 | B15: RXR | C15: EAST LANCASHIRE HOSPITALS NHS TRUST | D15: RXR20 | E15: Royal Blackburn Hospital | F15: 79 | G15: 0.8734177215 | H15: 0.05063291139 | I15: 57 | J15: 12 | K15: 4 | L15: 1 | M15: 3 | N15: 2
A16: QE1 | B16: RXN | C16: LANCASHIRE TEACHING HOSPITALS NHS FOUNDATION TRUST | D16: RXN01 | E16: Chorley and South Ribble Hospital | F16: 0 | G16: NA | H16: NA | I16: 0 | J16: 0 | K16: 0 | L16: 0 | M16: 0 | N16: 0
A17: QE1 | B17: RXN | C17: LANCASHIRE TEACHING HOSPITALS NHS FOUNDATION TRUST | D17: RXN02 | E17: Royal Preston Hospital | F17: 20 | G17: 1 | H17: 0 | I17: 18 | J17: 2 | K17: 0 | L17: 0 | M17: 0 | N17: 0
A18: QE1 | B18: RTX | C18: UNIVERSITY HOSPITALS OF MORECAMBE BAY NHS FOUNDATION TRUST | D18: RTXBW | E18: Westmorland General Hospital | F18: 0 | G18: NA | H18: NA | I18: 0 | J18: 0 | K18: 0 | L18: 0 | M18: 0 | N18: 0
A19: QE1 | B19: RTX | C19: UNIVERSITY HOSPITALS OF MORECAMBE BAY NHS FOUNDATION TRUST | D19: RTXBU | E19: Furness General Hospital | F19: 11 | G19: 1 | H19: 0 | I19: 10 | J19: 1 | K19: 0 | L19: 0 | M19: 0 | N19: 0
A20: QE1 | B20: RTX | C20: UNIVERSITY HOSPITALS OF MORECAMBE BAY NHS FOUNDATION TRUST | D20: RTX02 | E20: Royal Lancaster Infirmary | F20: 12 | G20: 1 | H20: 0 | I20: 10 | J20: 2 | K20: 0 | L20: 0 | M20: 0 | N20: 0
A21: QF7 | B21: RFF | C21: BARNSLEY HOSPITAL NHS FOUNDATION TRUST | D21: RFFAA | E21: Barnsley Hospital NHS Foundation Trust HQ | F21: 2 | G21: * | H21: * | I21: * | J21: * | K21: * | L21: * | M21: * | N21: *
A22: QF7 | B22: RP5 | C22: DONCASTER AND BASSETLAW TEACHING HOSPITALS NHS FOUNDATION TRUST | D22: RP5XXX | E22: Non-hospital site | F22: 0 | G22: NA | H22: NA | I22: 0 | J22: 0 | K22: 0 | L22: 0 | M22: 0 | N22: 0
A23: QF7 | B23: RP5 | C23: DONCASTER AND BASSETLAW TEACHING HOSPITALS NHS FOUNDATION TRUST | D23: RP5BA | E23: Bassetlaw Hospital | F23: 23 | G23: 1 | H23: 0 | I23: 22 | J23: 1 | K23: 0 | L23: 0 | M23: 0 | N23: 0
A24: QF7 | B24: RP5 | C24: DONCASTER AND BASSETLAW TEACHING HOSPITALS NHS FOUNDATION TRUST | D24: RP5DR | E24: Doncaster Royal Infirmary | F24: 125 | G24: 0.984 | H24: 0.008 | I24: 107 | J24: 16 | K24: 1 | L24: 0 | M24: 1 | N24: 0
A25: QF7 | B25: RHQ | C25: SHEFFIELD TEACHING HOSPITALS NHS FOUNDATION TRUST | D25: RHQHH | E25: Royal Hallamshire Hospital | F25: 10 | G25: 0.9 | H25: 0.1 | I25: * | J25: * | K25: * | L25: * | M25: * | N25: *
A26: QF7 | B26: RFR | C26: THE ROTHERHAM NHS FOUNDATION TRUST | D26: RFRPA | E26: Rotherham District General Hospital | F26: 0 | G26: NA | H26: NA | I26: 0 | J26: 0 | K26: 0 | L26: 0 | M26: 0 | N26: 0
A27: QGH | B27: RWP | C27: WORCESTERSHIRE ACUTE HOSPITALS NHS TRUST | D27: RWP50 | E27: Worcestershire Royal Hospital | F27: 2 | G27: * | H27: * | I27: * | J27: * | K27: * | L27: * | M27: * | N27: *
A28: QH8 | B28: RAJ | C28: MID AND SOUTH ESSEX NHS FOUNDATION TRUST | D28: RAJ12 | E28: BASILDON HOSPITAL | F28: 7 | G28: 0.4285714286 | H28: 0.5714285714 | I28: 3 | J28: 0 | K28: 0 | L28: 1 | M28: 3 | N28: 0
A29: QH8 | B29: RAJ | C29: MID AND SOUTH ESSEX NHS FOUNDATION TRUST | D29: RAJ01 | E29: Southend Hospital | F29: 25 | G29: 0.92 | H29: 0.08 | I29: 22 | J29: 1 | K29: 0 | L29: 1 | M29: 1 | N29: 0
A30: QH8 | B30: RAJ | C30: MID AND SOUTH ESSEX NHS FOUNDATION TRUST | D30: RAJ32 | E30: MID ESSEX HOSPITAL | F30: 33 | G30: 0.8484848485 | H30: 0.0303030303 | I30: 23 | J30: 5 | K30: 3 | L30: 0 | M30: 1 | N30: 1
A31: QHG | B31: RC9 | C31: BEDFORDSHIRE HOSPITALS NHS FOUNDATION TRUST | D31: RC971 | E31: Luton and Dunstable Hospital | F31: 3 | G31: * | H31: * | I31: * | J31: * | K31: * | L31: * | M31: * | N31: *
A32: QHG | B32: RC9 | C32: BEDFORDSHIRE HOSPITALS NHS FOUNDATION TRUST | D32: RC979 | E32: BEDFORD HOSPITAL SOUTH WING | F32: 17 | G32: 1 | H32: 0 | I32: * | J32: * | K32: * | L32: * | M32: * | N32: *
A33: QHG | B33: RD8 | C33: MILTON KEYNES UNIVERSITY HOSPITAL NHS FOUNDATION TRUST | D33: RD816 | E33: Milton Keynes Hospital | F33: 37 | G33: 0.972972973 | H33: 0 | I33: 30 | J33: 6 | K33: 0 | L33: 0 | M33: 0 | N33: 1
A34: QHL | B34: RQ3 | C34: BIRMINGHAM WOMEN'S AND CHILDREN'S NHS FOUNDATION TRUST | D34: RQ370 | E34: Birmingham Women's Hospital | F34: 2 | G34: * | H34: * | I34: * | J34: * | K34: * | L34: * | M34: * | N34: *
A35: QHL | B35: RRK | C35: UNIVERSITY HOSPITALS BIRMINGHAM NHS FOUNDATION TRUST | D35: RRK97 | E35: Heartlands Hospital | F35: 0 | G35: NA | H35: NA | I35: 0 | J35: 0 | K35: 0 | L35: 0 | M35: 0 | N35: 0
A36: QHL | B36: RRK | C36: UNIVERSITY HOSPITALS BIRMINGHAM NHS FOUNDATION TRUST | D36: RRK98 | E36: Good Hope Hospital | F36: 0 | G36: NA | H36: NA | I36: 0 | J36: 0 | K36: 0 | L36: 0 | M36: 0 | N36: 0
A37: QHL | B37: RRK | C37: UNIVERSITY HOSPITALS BIRMINGHAM NHS FOUNDATION TRUST | D37: RRK99 | E37: Solihull Hospital | F37: 0 | G37: NA | H37: NA | I37: 0 | J37: 0 | K37: 0 | L37: 0 | M37: 0 | N37: 0
A38: QHM | B38: RXP | C38: COUNTY DURHAM AND DARLINGTON NHS FOUNDATION TRUST | D38: RXPCP | E38: University Hospital Of North Durham | F38: 4 | G38: * | H38: * | I38: * | J38: * | K38: * | L38: * | M38: * | N38: *
A39: QHM | B39: RXP | C39: COUNTY DURHAM AND DARLINGTON NHS FOUNDATION TRUST | D39: RXPDA | E39: Darlington Memorial Hospital | F39: 7 | G39: 1 | H39: 0 | I39: * | J39: * | K39: * | L39: * | M39: * | N39: *
A40: QHM | B40: RNN | C40: NORTH CUMBRIA INTEGRATED CARE NHS FOUNDATION TRUST | D40: RNNXXX | E40: Non-hospital site | F40: 0 | G40: NA | H40: NA | I40: 0 | J40: 0 | K40: 0 | L40: 0 | M40: 0 | N40: 0
A41: QHM | B41: RNN | C41: NORTH CUMBRIA INTEGRATED CARE NHS FOUNDATION TRUST | D41: RNNKV | E41: Penrith Hospital | F41: 1 | G41: * | H41: * | I41: * | J41: * | K41: * | L41: * | M41: * | N41: *
A42: QHM | B42: RNN | C42: NORTH CUMBRIA INTEGRATED CARE NHS FOUNDATION TRUST | D42: RNN62 | E42: Cumberland Infirmary | F42: 5 | G42: 1 | H42: 0 | I42: * | J42: * | K42: * | L42: * | M42: * | N42: *
A43: QHM | B43: RNN | C43: NORTH CUMBRIA INTEGRATED CARE NHS FOUNDATION TRUST | D43: RNNBX | E43: West Cumberland Hospital | F43: 8 | G43: 0.875 | H43: 0 | I43: 6 | J43: 1 | K43: 1 | L43: 0 | M43: 0 | N43: 0
A44: QHM | B44: RVW | C44: NORTH TEES AND HARTLEPOOL NHS FOUNDATION TRUST | D44: RVWAE | E44: University Hospital Of North Tees | F44: 4 | G44: * | H44: * | I44: * | J44: * | K44: * | L44: * | M44: * | N44: *
A45: QHM | B45: RTF | C45: NORTHUMBRIA HEALTHCARE NHS FOUNDATION TRUST | D45: RTFDH | E45: Berwick Infirmary | F45: 0 | G45: NA | H45: NA | I45: 0 | J45: 0 | K45: 0 | L45: 0 | M45: 0 | N45: 0
A46: QHM | B46: RTF | C46: NORTHUMBRIA HEALTHCARE NHS FOUNDATION TRUST | D46: RTFDR | E46: Hexham General Hospital | F46: 0 | G46: NA | H46: NA | I46: 0 | J46: 0 | K46: 0 | L46: 0 | M46: 0 | N46: 0
A47: QHM | B47: RTF | C47: NORTHUMBRIA HEALTHCARE NHS FOUNDATION TRUST | D47: RTFXXX | E47: Non-hospital site | F47: 0 | G47: NA | H47: NA | I47: 0 | J47: 0 | K47: 0 | L47: 0 | M47: 0 | N47: 0
A48: QHM | B48: RTF | C48: NORTHUMBRIA HEALTHCARE NHS FOUNDATION TRUST | D48: RTFDJ | E48: Alnwick Infirmary | F48: 2 | G48: * | H48: * | I48: * | J48: * | K48: * | L48: * | M48: * | N48: *
A49: QHM | B49: RTF | C49: NORTHUMBRIA HEALTHCARE NHS FOUNDATION TRUST | D49: RTF86 | E49: The Northumbria | F49: 72 | G49: 0.9027777778 | H49: 0.05555555556 | I49: * | J49: * | K49: * | L49: * | M49: * | N49: *
A50: QHM | B50: RTR | C50: SOUTH TEES HOSPITALS NHS FOUNDATION TRUST | D50: RTRAT | E50: The James Cook University Hospital | F50: 0 | G50: NA | H50: NA | I50: 0 | J50: 0 | K50: 0 | L50: 0 | M50: 0 | N50: 0
A51: QHM | B51: RTR | C51: SOUTH TEES HOSPITALS NHS FOUNDATION TRUST | D51: RTR45 | E51: Friarage Hospital Site | F51: 2 | G51: * | H51: * | I51: * | J51: * | K51: * | L51: * | M51: * | N51: *
A52: QHM | B52: R0B | C52: SOUTH TYNESIDE AND SUNDERLAND NHS FOUNDATION TRUST | D52: R0B01 | E52: Sunderland Royal Hospital | F52: 11 | G52: 1 | H52: 0 | I52: 11 | J52: 0 | K52: 0 | L52: 0 | M52: 0 | N52: 0
A53: QHM | B53: R0B | C53: SOUTH TYNESIDE AND SUNDERLAND NHS FOUNDATION TRUST | D53: R0B0Q | E53: South Tyneside District Hospital | F53: 13 | G53: 1 | H53: 0 | I53: 12 | J53: 1 | K53: 0 | L53: 0 | M53: 0 | N53: 0
A54: QJ2 | B54: RFS | C54: CHESTERFIELD ROYAL HOSPITAL NHS FOUNDATION TRUST | D54: RFSDA | E54: Chesterfield Royal Hospital | F54: 4 | G54: * | H54: * | I54: * | J54: * | K54: * | L54: * | M54: * | N54: *
A55: QJ2 | B55: RTG | C55: UNIVERSITY HOSPITALS OF DERBY AND BURTON NHS FOUNDATION TRUST | D55: RTGFG | E55: Royal Derby Hospital | F55: 1 | G55: * | H55: * | I55: * | J55: * | K55: * | L55: * | M55: * | N55: *
A56: QJG | B56: RDE | C56: EAST SUFFOLK AND NORTH ESSEX NHS FOUNDATION TRUST | D56: RDE03 | E56: Ipswich Hospital | F56: 1 | G56: * | H56: * | I56: * | J56: * | K56: * | L56: * | M56: * | N56: *
A57: QJG | B57: RDE | C57: EAST SUFFOLK AND NORTH ESSEX NHS FOUNDATION TRUST | D57: RDEE4 | E57: Colchester General Hospital | F57: 10 | G57: 0.9 | H57: 0 | I57: * | J57: * | K57: * | L57: * | M57: * | N57: *
A58: QJG | B58: RGR | C58: WEST SUFFOLK NHS FOUNDATION TRUST | D58: RGR50 | E58: West Suffolk Hospital | F58: 9 | G58: 1 | H58: 0 | I58: 9 | J58: 0 | K58: 0 | L58: 0 | M58: 0 | N58: 0
A59: QJK | B59: RBZ | C59: NORTHERN DEVON HEALTHCARE NHS TRUST | D59: RBZ12 | E59: North Devon District Hospital | F59: 0 | G59: NA | H59: NA | I59: 0 | J59: 0 | K59: 0 | L59: 0 | M59: 0 | N59: 0
A60: QJK | B60: RH8 | C60: ROYAL DEVON AND EXETER NHS FOUNDATION TRUST | D60: RH801 | E60: Royal Devon and Exeter Hospital (Wonford) | F60: 0 | G60: NA | H60: NA | I60: 0 | J60: 0 | K60: 0 | L60: 0 | M60: 0 | N60: 0
A61: QJK | B61: RK9 | C61: UNIVERSITY HOSPITALS PLYMOUTH NHS TRUST | D61: RK953 | E61: Royal Eye Infirmary | F61: 0 | G61: NA | H61: NA | I61: 0 | J61: 0 | K61: 0 | L61: 0 | M61: 0 | N61: 0
A62: QJK | B62: RK9 | C62: UNIVERSITY HOSPITALS PLYMOUTH NHS TRUST | D62: RK950 | E62: Derriford Hospital | F62: 6 | G62: 1 | H62: 0 | I62: 5 | J62: 1 | K62: 0 | L62: 0 | M62: 0 | N62: 0
A63: QJM | B63: RWD | C63: UNITED LINCOLNSHIRE HOSPITALS NHS TRUST | D63: RWDDA | E63: Lincoln County Hospital | F63: 0 | G63: NA | H63: NA | I63: 0 | J63: 0 | K63: 0 | L63: 0 | M63: 0 | N63: 0
A64: QJM | B64: RWD | C64: UNITED LINCOLNSHIRE HOSPITALS NHS TRUST | D64: RWDLP | E64: Grantham and District Hospital | F64: 0 | G64: NA | H64: NA | I64: 0 | J64: 0 | K64: 0 | L64: 0 | M64: 0 | N64: 0
A65: QJM | B65: RWD | C65: UNITED LINCOLNSHIRE HOSPITALS NHS TRUST | D65: RWDXXX | E65: Non-hospital site | F65: 0 | G65: NA | H65: NA | I65: 0 | J65: 0 | K65: 0 | L65: 0 | M65: 0 | N65: 0
A66: QJM | B66: RWD | C66: UNITED LINCOLNSHIRE HOSPITALS NHS TRUST | D66: RWDLA | E66: Pilgrim Hospital | F66: 20 | G66: 1 | H66: 0 | I66: 19 | J66: 1 | K66: 0 | L66: 0 | M66: 0 | N66: 0
A67: QK1 | B67: RWE | C67: UNIVERSITY HOSPITALS OF LEICESTER NHS TRUST | D67: RWE10 | E67: St Mary's Hospital | F67: 10 | G67: 1 | H67: 0 | I67: 10 | J67: 0 | K67: 0 | L67: 0 | M67: 0 | N67: 0
A68: QK1 | B68: RWE | C68: UNIVERSITY HOSPITALS OF LEICESTER NHS TRUST | D68: RWEXXX | E68: Non-hospital site | F68: 54 | G68: 0.962962963 | H68: 0.01851851852 | I68: 42 | J68: 10 | K68: 0 | L68: 0 | M68: 1 | N68: 1
A69: QK1 | B69: RWE | C69: UNIVERSITY HOSPITALS OF LEICESTER NHS TRUST | D69: RWEAK | E69: Leicester General Hospital | F69: 71 | G69: 0.9577464789 | H69: 0.02816901408 | I69: 60 | J69: 8 | K69: 1 | L69: 0 | M69: 2 | N69: 0
A70: QK1 | B70: RWE | C70: UNIVERSITY HOSPITALS OF LEICESTER NHS TRUST | D70: RWEAA | E70: Leicester Royal Infirmary | F70: 151 | G70: 0.9536423841 | H70: 0.01324503311 | I70: 116 | J70: 28 | K70: 4 | L70: 2 | M70: 0 | N70: 1
A71: QKK | B71: RJ1 | C71: GUY'S AND ST THOMAS' NHS FOUNDATION TRUST | D71: RJ1XXX | E71: Non-hospital site | F71: 0 | G71: NA | H71: NA | I71: 0 | J71: 0 | K71: 0 | L71: 0 | M71: 0 | N71: 0
A72: QKK | B72: RJ1 | C72: GUY'S AND ST THOMAS' NHS FOUNDATION TRUST | D72: RJ122 | E72: St Thomas' Hospital | F72: 12 | G72: 0.8333333333 | H72: 0.08333333333 | I72: 9 | J72: 1 | K72: 1 | L72: 1 | M72: 0 | N72: 0
A73: QKK | B73: RJZ | C73: KING'S COLLEGE HOSPITAL NHS FOUNDATION TRUST | D73: RJZ01 | E73: King's College Hospital (Denmark Hill) | F73: 0 | G73: NA | H73: NA | I73: 0 | J73: 0 | K73: 0 | L73: 0 | M73: 0 | N73: 0
A74: QKK | B74: RJZ | C74: KING'S COLLEGE HOSPITAL NHS FOUNDATION TRUST | D74: RJZ30 | E74: Princess Royal University Hospital | F74: 0 | G74: NA | H74: NA | I74: 0 | J74: 0 | K74: 0 | L74: 0 | M74: 0 | N74: 0
A75: QKK | B75: RJ2 | C75: LEWISHAM AND GREENWICH NHS TRUST | D75: RJ2XXX | E75: Non-hospital site | F75: 0 | G75: NA | H75: NA | I75: 0 | J75: 0 | K75: 0 | L75: 0 | M75: 0 | N75: 0
A76: QKK | B76: RJ2 | C76: LEWISHAM AND GREENWICH NHS TRUST | D76: RJ231 | E76: Queen Elizabeth Hospital | F76: 18 | G76: 0.9444444444 | H76: 0.05555555556 | I76: 12 | J76: 5 | K76: 0 | L76: 0 | M76: 1 | N76: 0
A77: QKK | B77: RJ2 | C77: LEWISHAM AND GREENWICH NHS TRUST | D77: RJ224 | E77: University Hospital Lewisham | F77: 53 | G77: 0.9811320755 | H77: 0 | I77: 36 | J77: 16 | K77: 1 | L77: 0 | M77: 0 | N77: 0
A78: QKS | B78: RN7 | C78: DARTFORD AND GRAVESHAM NHS TRUST | D78: RN707 | E78: Darent Valley Hospital | F78: 7 | G78: 0.8571428571 | H78: 0 | I78: 5 | J78: 1 | K78: 0 | L78: 0 | M78: 0 | N78: 1
A79: QKS | B79: RWF | C79: MAIDSTONE AND TUNBRIDGE WELLS NHS TRUST | D79: RWFXXX | E79: Non-hospital site | F79: 0 | G79: NA | H79: NA | I79: 0 | J79: 0 | K79: 0 | L79: 0 | M79: 0 | N79: 0
A80: QKS | B80: RWF | C80: MAIDSTONE AND TUNBRIDGE WELLS NHS TRUST | D80: RWF08 | E80: Crowborough Birthing Centre | F80: 1 | G80: * | H80: * | I80: * | J80: * | K80: * | L80: * | M80: * | N80: *
A81: QKS | B81: RWF | C81: MAIDSTONE AND TUNBRIDGE WELLS NHS TRUST | D81: RWF03 | E81: Maidstone District General Hospital | F81: 32 | G81: 1 | H81: 0 | I81: * | J81: * | K81: * | L81: * | M81: * | N81: *
A82: QKS | B82: RWF | C82: MAIDSTONE AND TUNBRIDGE WELLS NHS TRUST | D82: RWFTW | E82: The Tunbridge Wells Hospital | F82: 75 | G82: 0.9866666667 | H82: 0 | I82: 66 | J82: 8 | K82: 1 | L82: 0 | M82: 0 | N82: 0
A83: QKS | B83: RPA | C83: MEDWAY NHS FOUNDATION TRUST | D83: RPA02 | E83: Medway Maritime Hospital | F83: 127 | G83: 1 | H83: 0 | I83: 127 | J83: 0 | K83: 0 | L83: 0 | M83: 0 | N83: 0
A84: QM7 | B84: RWH | C84: EAST AND NORTH HERTFORDSHIRE NHS TRUST | D84: RWHXXX | E84: Non-hospital site | F84: 0 | G84: NA | H84: NA | I84: 0 | J84: 0 | K84: 0 | L84: 0 | M84: 0 | N84: 0
A85: QM7 | B85: RWH | C85: EAST AND NORTH HERTFORDSHIRE NHS TRUST | D85: RWH01 | E85: Lister Hospital | F85: 135 | G85: 0.9777777778 | H85: 0.01481481481 | I85: * | J85: * | K85: * | L85: * | M85: * | N85: *
A86: QM7 | B86: RQW | C86: THE PRINCESS ALEXANDRA HOSPITAL NHS TRUST | D86: RQWG0 | E86: Princess Alexandra Hospital | F86: 0 | G86: NA | H86: NA | I86: 0 | J86: 0 | K86: 0 | L86: 0 | M86: 0 | N86: 0
A87: QM7 | B87: RWG | C87: WEST HERTFORDSHIRE HOSPITALS NHS TRUST | D87: RWG02 | E87: Watford General Hospital | F87: 1 | G87: * | H87: * | I87: * | J87: * | K87: * | L87: * | M87: * | N87: *
A88: QMF | B88: RF4 | C88: BARKING, HAVERING AND REDBRIDGE UNIVERSITY HOSPITALS NHS TRUST | D88: RF4QH | E88: Queen's Hospital | F88: 0 | G88: NA | H88: NA | I88: 0 | J88: 0 | K88: 0 | L88: 0 | M88: 0 | N88: 0
A89: QMF | B89: R1H | C89: BARTS HEALTH NHS TRUST | D89: R1H12 | E89: The Royal London Hospital | F89: 0 | G89: NA | H89: NA | I89: 0 | J89: 0 | K89: 0 | L89: 0 | M89: 0 | N89: 0
A90: QMF | B90: R1H | C90: BARTS HEALTH NHS TRUST | D90: R1HNH | E90: Newham General Hospital | F90: 42 | G90: 0.9285714286 | H90: 0.02380952381 | I90: 30 | J90: 9 | K90: 2 | L90: 0 | M90: 1 | N90: 0
A91: QMF | B91: R1H | C91: BARTS HEALTH NHS TRUST | D91: R1HKH | E91: Whipps Cross University Hospital | F91: 46 | G91: 0.9782608696 | H91: 0 | I91: 39 | J91: 6 | K91: 1 | L91: 0 | M91: 0 | N91: 0
A92: QMJ | B92: RAL | C92: ROYAL FREE LONDON NHS FOUNDATION TRUST | D92: RAL26 | E92: Barnet Hospital | F92: 2 | G92: * | H92: * | I92: * | J92: * | K92: * | L92: * | M92: * | N92: *
A93: QMJ | B93: RAL | C93: ROYAL FREE LONDON NHS FOUNDATION TRUST | D93: RAL01 | E93: Royal Free Hospital | F93: 79 | G93: 0.8987341772 | H93: 0 | I93: * | J93: * | K93: * | L93: * | M93: * | N93: *
A94: QMJ | B94: RKE | C94: WHITTINGTON HEALTH NHS TRUST | D94: RKEXXX | E94: Non-hospital site | F94: 0 | G94: NA | H94: NA | I94: 0 | J94: 0 | K94: 0 | L94: 0 | M94: 0 | N94: 0
A95: QMJ | B95: RKE | C95: WHITTINGTON HEALTH NHS TRUST | D95: RKEQ4 | E95: The Whittington Hospital | F95: 53 | G95: 0.9811320755 | H95: 0 | I95: 0 | J95: 52 | K95: 1 | L95: 0 | M95: 0 | N95: 0
A96: QMM | B96: RM1 | C96: NORFOLK AND NORWICH UNIVERSITY HOSPITALS NHS FOUNDATION TRUST | D96: RM102 | E96: Norfolk and Norwich University Hospital | F96: 5 | G96: 1 | H96: 0 | I96: 4 | J96: 1 | K96: 0 | L96: 0 | M96: 0 | N96: 0
A97: QMM | B97: RCX | C97: THE QUEEN ELIZABETH HOSPITAL, KING'S LYNN, NHS FOUNDATION TRUST | D97: RCXXXX | E97: Non-hospital site | F97: 1 | G97: * | H97: * | I97: * | J97: * | K97: * | L97: * | M97: * | N97: *
A98: QMM | B98: RCX | C98: THE QUEEN ELIZABETH HOSPITAL, KING'S LYNN, NHS FOUNDATION TRUST | D98: RCX70 | E98: The Queen Elizabeth Hospital | F98: 22 | G98: 0.9090909091 | H98: 0.09090909091 | I98: * | J98: * | K98: * | L98: * | M98: * | N98: *
A99: QNC | B99: RJE | C99: UNIVERSITY HOSPITALS OF NORTH MIDLANDS NHS TRUST | D99: RJE01 | E99: Royal Stoke University Hospital | F99: 0 | G99: NA | H99: NA | I99: 0 | J99: 0 | K99: 0 | L99: 0 | M99: 0 | N99: 0
A100: QNC | B100: RJE | C100: UNIVERSITY HOSPITALS OF NORTH MIDLANDS NHS TRUST | D100: RJE09 | E100: County Hospital | F100: 0 | G100: NA | H100: NA | I100: 0 | J100: 0 | K100: 0 | L100: 0 | M100: 0 | N100: 0
A101: QNC | B101: RJE | C101: UNIVERSITY HOSPITALS OF NORTH MIDLANDS NHS TRUST | D101: RJEXXX | E101: Non-hospital site | F101: 0 | G101: NA | H101: NA | I101: 0 | J101: 0 | K101: 0 | L101: 0 | M101: 0 | N101: 0
A102: QNQ | B102: RDU | C102: FRIMLEY HEALTH NHS FOUNDATION TRUST | D102: RDU50 | E102: Wexham Park Hospital | F102: 21 | G102: 1 | H102: 0 | I102: 20 | J102: 1 | K102: 0 | L102: 0 | M102: 0 | N102: 0
A103: QNQ | B103: RDU | C103: FRIMLEY HEALTH NHS FOUNDATION TRUST | D103: RDU01 | E103: Frimley Park Hospital | F103: 23 | G103: 1 | H103: 0 | I103: 23 | J103: 0 | K103: 0 | L103: 0 | M103: 0 | N103: 0
A104: QNX | B104: RXH | C104: BRIGHTON AND SUSSEX UNIVERSITY HOSPITALS NHS TRUST | D104: RXHXXX | E104: Non-hospital site | F104: 0 | G104: NA | H104: NA | I104: 0 | J104: 0 | K104: 0 | L104: 0 | M104: 0 | N104: 0
A105: QNX | B105: RXH | C105: BRIGHTON AND SUSSEX UNIVERSITY HOSPITALS NHS TRUST | D105: RXH09 | E105: Princess Royal Hospital | F105: 6 | G105: 0.6666666667 | H105: 0 | I105: 3 | J105: 1 | K105: 2 | L105: 0 | M105: 0 | N105: 0
A106: QNX | B106: RXH | C106: BRIGHTON AND SUSSEX UNIVERSITY HOSPITALS NHS TRUST | D106: RXH01 | E106: Royal Sussex County Hospital | F106: 42 | G106: 0.9285714286 | H106: 0.07142857143 | I106: 36 | J106: 3 | K106: 0 | L106: 3 | M106: 0 | N106: 0
A107: QNX | B107: RXC | C107: EAST SUSSEX HEALTHCARE NHS TRUST | D107: RXCXXX | E107: Non-hospital site | F107: 0 | G107: NA | H107: NA | I107: 0 | J107: 0 | K107: 0 | L107: 0 | M107: 0 | N107: 0
A108: QNX | B108: RXC | C108: EAST SUSSEX HEALTHCARE NHS TRUST | D108: RXC02 | E108: Eastbourne District General Hospital | F108: 1 | G108: * | H108: * | I108: * | J108: * | K108: * | L108: * | M108: * | N108: *
A109: QNX | B109: RXC | C109: EAST SUSSEX HEALTHCARE NHS TRUST | D109: RXC01 | E109: Conquest Hospital | F109: 45 | G109: 0.9777777778 | H109: 0 | I109: * | J109: * | K109: * | L109: * | M109: * | N109: *
A110: QNX | B110: RYR | C110: WESTERN SUSSEX HOSPITALS NHS FOUNDATION TRUST | D110: RYR18 | E110: Worthing Hospital | F110: 6 | G110: 1 | H110: 0 | I110: 6 | J110: 0 | K110: 0 | L110: 0 | M110: 0 | N110: 0
A111: QNX | B111: RYR | C111: WESTERN SUSSEX HOSPITALS NHS FOUNDATION TRUST | D111: RYR16 | E111: St Richard's Hospital | F111: 16 | G111: 0.9375 | H111: 0.0625 | I111: 12 | J111: 3 | K111: 0 | L111: 1 | M111: 0 | N111: 0
A112: QOC | B112: RXW | C112: THE SHREWSBURY AND TELFORD HOSPITAL NHS TRUST | D112: RXWAS | E112: Royal Shrewsbury Hospital | F112: 0 | G112: NA | H112: NA | I112: 0 | J112: 0 | K112: 0 | L112: 0 | M112: 0 | N112: 0
A113: QOC | B113: RXW | C113: THE SHREWSBURY AND TELFORD HOSPITAL NHS TRUST | D113: RXWMB | E113: Bridgnorth Hospital (Maternity) | F113: 0 | G113: NA | H113: NA | I113: 0 | J113: 0 | K113: 0 | L113: 0 | M113: 0 | N113: 0
A114: QOC | B114: RXW | C114: THE SHREWSBURY AND TELFORD HOSPITAL NHS TRUST | D114: RXWMJ | E114: Robert Jones & Agnes Hunt Orthopaedic & District Hospital | F114: 0 | G114: NA | H114: NA | I114: 0 | J114: 0 | K114: 0 | L114: 0 | M114: 0 | N114: 0
A115: QOC | B115: RXW | C115: THE SHREWSBURY AND TELFORD HOSPITAL NHS TRUST | D115: RXWXXX | E115: Non-hospital site | F115: 0 | G115: NA | H115: NA | I115: 0 | J115: 0 | K115: 0 | L115: 0 | M115: 0 | N115: 0
A116: QOC | B116: RXW | C116: THE SHREWSBURY AND TELFORD HOSPITAL NHS TRUST | D116: RXWAT | E116: The Princess Royal Hospital | F116: 101 | G116: 1 | H116: 0 | I116: 96 | J116: 5 | K116: 0 | L116: 0 | M116: 0 | N116: 0
A117: QOP | B117: RMC | C117: BOLTON NHS FOUNDATION TRUST | D117: RMC01 | E117: Royal Bolton Hospital | F117: 164 | G117: 0.9024390244 | H117: 0.06097560976 | I117: 125 | J117: 23 | K117: 5 | L117: 5 | M117: 5 | N117: 1
A118: QOP | B118: R0A | C118: MANCHESTER UNIVERSITY NHS FOUNDATION TRUST | D118: R0A05 | E118: St Mary's Hospital | F118: 81 | G118: 1 | H118: 0 | I118: 76 | J118: 5 | K118: 0 | L118: 0 | M118: 0 | N118: 0
A119: QOP | B119: RW6 | C119: PENNINE ACUTE HOSPITALS NHS TRUST | D119: RW602 | E119: North Manchester General Hospital | F119: 1 | G119: * | H119: * | I119: * | J119: * | K119: * | L119: * | M119: * | N119: *
A120: QOP | B120: RW6 | C120: PENNINE ACUTE HOSPITALS NHS TRUST | D120: RW603 | E120: Royal Oldham Hospital | F120: 4 | G120: * | H120: * | I120: * | J120: * | K120: * | L120: * | M120: * | N120: *
A121: QOP | B121: RWJ | C121: STOCKPORT NHS FOUNDATION TRUST | D121: RWJ09 | E121: Stepping Hill Hospital | F121: 44 | G121: 0.9318181818 | H121: 0.02272727273 | I121: 37 | J121: 4 | K121: 1 | L121: 1 | M121: 0 | N121: 1
A122: QOP | B122: RMP | C122: TAMESIDE AND GLOSSOP INTEGRATED CARE NHS FOUNDATION TRUST | D122: RMP01 | E122: Tameside General Hospital | F122: 12 | G122: 1 | H122: 0 | I122: 10 | J122: 2 | K122: 0 | L122: 0 | M122: 0 | N122: 0
A123: QOP | B123: RRF | C123: WRIGHTINGTON, WIGAN AND LEIGH NHS FOUNDATION TRUST | D123: RRF02 | E123: Royal Albert Edward Infirmary | F123: 0 | G123: NA | H123: NA | I123: 0 | J123: 0 | K123: 0 | L123: 0 | M123: 0 | N123: 0
A124: QOQ | B124: RCD | C124: HARROGATE AND DISTRICT NHS FOUNDATION TRUST | D124: RCD01 | E124: Harrogate District Hospital | F124: 43 | G124: 1 | H124: 0 | I124: 39 | J124: 4 | K124: 0 | L124: 0 | M124: 0 | N124: 0
A125: QOQ | B125: RWA | C125: HULL UNIVERSITY TEACHING HOSPITALS NHS TRUST | D125: RWA01 | E125: Hull Royal Infirmary | F125: 10 | G125: 1 | H125: 0 | I125: 9 | J125: 1 | K125: 0 | L125: 0 | M125: 0 | N125: 0
A126: QOQ | B126: RJL | C126: NORTHERN LINCOLNSHIRE AND GOOLE NHS FOUNDATION TRUST | D126: RJL30 | E126: Diana, Princess Of Wales Hospital | F126: 0 | G126: NA | H126: NA | I126: 0 | J126: 0 | K126: 0 | L126: 0 | M126: 0 | N126: 0
A127: QOQ | B127: RJL | C127: NORTHERN LINCOLNSHIRE AND GOOLE NHS FOUNDATION TRUST | D127: RJL32 | E127: Scunthorpe General Hospital | F127: 0 | G127: NA | H127: NA | I127: 0 | J127: 0 | K127: 0 | L127: 0 | M127: 0 | N127: 0
A128: QOQ | B128: RCB | C128: YORK TEACHING HOSPITAL NHS FOUNDATION TRUST | D128: RCB55 | E128: York Hospital | F128: 10 | G128: 1 | H128: 0 | I128: 10 | J128: 0 | K128: 0 | L128: 0 | M128: 0 | N128: 0
A129: QOQ | B129: RCB | C129: YORK TEACHING HOSPITAL NHS FOUNDATION TRUST | D129: RCBCA | E129: Scarborough General Hospital | F129: 26 | G129: 1 | H129: 0 | I129: 26 | J129: 0 | K129: 0 | L129: 0 | M129: 0 | N129: 0
A130: QOX | B130: RN3 | C130: GREAT WESTERN HOSPITALS NHS FOUNDATION TRUST | D130: RN325 | E130: The Great Western Hospital | F130: 0 | G130: NA | H130: NA | I130: 0 | J130: 0 | K130: 0 | L130: 0 | M130: 0 | N130: 0
A131: QOX | B131: RN3 | C131: GREAT WESTERN HOSPITALS NHS FOUNDATION TRUST | D131: RN3XXX | E131: Non-hospital site | F131: 0 | G131: NA | H131: NA | I131: 0 | J131: 0 | K131: 0 | L131: 0 | M131: 0 | N131: 0
A132: QOX | B132: RD1 | C132: ROYAL UNITED HOSPITALS BATH NHS FOUNDATION TRUST | D132: RD102 | E132: Chippenham Community Hospital | F132: 0 | G132: NA | H132: NA | I132: 0 | J132: 0 | K132: 0 | L132: 0 | M132: 0 | N132: 0
A133: QOX | B133: RD1 | C133: ROYAL UNITED HOSPITALS BATH NHS FOUNDATION TRUST | D133: RD108 | E133: Trowbridge Community Hospital | F133: 0 | G133: NA | H133: NA | I133: 0 | J133: 0 | K133: 0 | L133: 0 | M133: 0 | N133: 0
A134: QOX | B134: RD1 | C134: ROYAL UNITED HOSPITALS BATH NHS FOUNDATION TRUST | D134: RD121 | E134: Frome Community Hospital | F134: 0 | G134: NA | H134: NA | I134: 0 | J134: 0 | K134: 0 | L134: 0 | M134: 0 | N134: 0
A135: QOX | B135: RD1 | C135: ROYAL UNITED HOSPITALS BATH NHS FOUNDATION TRUST | D135: RD1XXX | E135: Non Hospital Site | F135: 0 | G135: NA | H135: NA | I135: 0 | J135: 0 | K135: 0 | L135: 0 | M135: 0 | N135: 0
A136: QOX | B136: RD1 | C136: ROYAL UNITED HOSPITALS BATH NHS FOUNDATION TRUST | D136: RD130 | E136: Princess Anne Wing RUH | F136: 1 | G136: * | H136: * | I136: * | J136: * | K136: * | L136: * | M136: * | N136: *
A137: QOX | B137: RNZ | C137: SALISBURY NHS FOUNDATION TRUST | D137: RNZ02 | E137: Salisbury District Hospital | F137: 0 | G137: NA | H137: NA | I137: 0 | J137: 0 | K137: 0 | L137: 0 | M137: 0 | N137: 0
A138: QOX | B138: RNZ | C138: SALISBURY NHS FOUNDATION TRUST | D138: RNZXXX | E138: Non-hospital site | F138: 0 | G138: NA | H138: NA | I138: 0 | J138: 0 | K138: 0 | L138: 0 | M138: 0 | N138: 0
A139: QPM | B139: RNQ | C139: KETTERING GENERAL HOSPITAL NHS FOUNDATION TRUST | D139: RNQ51 | E139: Kettering General Hospital | F139: 2 | G139: * | H139: * | I139: * | J139: * | K139: * | L139: * | M139: * | N139: *
A140: QPM | B140: RNS | C140: NORTHAMPTON GENERAL HOSPITAL NHS TRUST | D140: RNS01 | E140: Northampton General Hospital (Acute) | F140: 0 | G140: NA | H140: NA | I140: 0 | J140: 0 | K140: 0 | L140: 0 | M140: 0 | N140: 0
A141: QR1 | B141: RTE | C141: GLOUCESTERSHIRE HOSPITALS NHS FOUNDATION TRUST | D141: RTEXXX | E141: Non-hospital site | F141: 0 | G141: NA | H141: NA | I141: 0 | J141: 0 | K141: 0 | L141: 0 | M141: 0 | N141: 0
A142: QR1 | B142: RTE | C142: GLOUCESTERSHIRE HOSPITALS NHS FOUNDATION TRUST | D142: RTE01 | E142: Cheltenham General Hospital | F142: 3 | G142: * | H142: * | I142: * | J142: * | K142: * | L142: * | M142: * | N142: *
A143: QR1 | B143: RTE | C143: GLOUCESTERSHIRE HOSPITALS NHS FOUNDATION TRUST | D143: RTE27 | E143: Stroud Maternity Hospital | F143: 3 | G143: * | H143: * | I143: * | J143: * | K143: * | L143: * | M143: * | N143: *
A144: QR1 | B144: RTE | C144: GLOUCESTERSHIRE HOSPITALS NHS FOUNDATION TRUST | D144: RTE03 | E144: Gloucestershire Royal Hospital | F144: 24 | G144: 0.9583333333 | H144: 0.04166666667 | I144: 20 | J144: 3 | K144: 0 | L144: 0 | M144: 1 | N144: 0
A145: QRL | B145: RN5 | C145: HAMPSHIRE HOSPITALS NHS FOUNDATION TRUST | D145: RN541 | E145: Royal Hampshire County Hospital | F145: 0 | G145: NA | H145: NA | I145: 0 | J145: 0 | K145: 0 | L145: 0 | M145: 0 | N145: 0
A146: QRL | B146: RN5 | C146: HAMPSHIRE HOSPITALS NHS FOUNDATION TRUST | D146: RN542 | E146: Andover War Memorial Hospital | F146: 0 | G146: NA | H146: NA | I146: 0 | J146: 0 | K146: 0 | L146: 0 | M146: 0 | N146: 0
A147: QRL | B147: RN5 | C147: HAMPSHIRE HOSPITALS NHS FOUNDATION TRUST | D147: RN506 | E147: Basingstoke and North Hampshire Hospital | F147: 8 | G147: 1 | H147: 0 | I147: 5 | J147: 3 | K147: 0 | L147: 0 | M147: 0 | N147: 0
A148: QRL | B148: R1F | C148: ISLE OF WIGHT NHS TRUST | D148: R1F01 | E148: St Mary's Hospital | F148: 6 | G148: 1 | H148: 0 | I148: 5 | J148: 1 | K148: 0 | L148: 0 | M148: 0 | N148: 0
A149: QRL | B149: RHU | C149: PORTSMOUTH HOSPITALS UNIVERSITY NATIONAL HEALTH SERVICE TRUST | D149: RHU02 | E149: St Mary's Hospital | F149: 0 | G149: NA | H149: NA | I149: 0 | J149: 0 | K149: 0 | L149: 0 | M149: 0 | N149: 0
A150: QRL | B150: RHU | C150: PORTSMOUTH HOSPITALS UNIVERSITY NATIONAL HEALTH SERVICE TRUST | D150: RHU03 | E150: Queen Alexandra Hospital | F150: 0 | G150: NA | H150: NA | I150: 0 | J150: 0 | K150: 0 | L150: 0 | M150: 0 | N150: 0
A151: QRL | B151: RHU | C151: PORTSMOUTH HOSPITALS UNIVERSITY NATIONAL HEALTH SERVICE TRUST | D151: RHU04 | E151: Petersfield Community Hospital | F151: 0 | G151: NA | H151: NA | I151: 0 | J151: 0 | K151: 0 | L151: 0 | M151: 0 | N151: 0
A152: QRL | B152: RHU | C152: PORTSMOUTH HOSPITALS UNIVERSITY NATIONAL HEALTH SERVICE TRUST | D152: RHU10 | E152: Gosport War Memorial Hospital | F152: 0 | G152: NA | H152: NA | I152: 0 | J152: 0 | K152: 0 | L152: 0 | M152: 0 | N152: 0
A153: QRL | B153: RHM | C153: UNIVERSITY HOSPITAL SOUTHAMPTON NHS FOUNDATION TRUST | D153: RHM12 | E153: Princess Anne Hospital | F153: 124 | G153: 0.8790322581 | H153: 0.1048387097 | I153: 90 | J153: 19 | K153: 1 | L153: 6 | M153: 7 | N153: 1
A154: QRV | B154: RQM | C154: CHELSEA AND WESTMINSTER HOSPITAL NHS FOUNDATION TRUST | D154: RQM91 | E154: West Middlesex University Hospital | F154: 11 | G154: 1 | H154: 0 | I154: 11 | J154: 0 | K154: 0 | L154: 0 | M154: 0 | N154: 0
A155: QRV | B155: RQM | C155: CHELSEA AND WESTMINSTER HOSPITAL NHS FOUNDATION TRUST | D155: RQM01 | E155: Chelsea and Westminster Hospital | F155: 28 | G155: 1 | H155: 0 | I155: 26 | J155: 2 | K155: 0 | L155: 0 | M155: 0 | N155: 0
A156: QRV | B156: RYJ | C156: IMPERIAL COLLEGE HEALTHCARE NHS TRUST | D156: RYJ01 | E156: St Mary's Hospital (HQ) | F156: 29 | G156: 0.9310344828 | H156: 0.03448275862 | I156: 24 | J156: 3 | K156: 1 | L156: 1 | M156: 0 | N156: 0
A157: QRV | B157: RYJ | C157: IMPERIAL COLLEGE HEALTHCARE NHS TRUST | D157: RYJ04 | E157: Queen Charlotte's Hospital | F157: 45 | G157: 0.9333333333 | H157: 0.06666666667 | I157: 39 | J157: 3 | K157: 0 | L157: 1 | M157: 2 | N157: 0
A158: QRV | B158: R1K | C158: LONDON NORTH WEST UNIVERSITY HEALTHCARE NHS TRUST | D158: R1K01 | E158: Northwick Park Hospital | F158: 0 | G158: NA | H158: NA | I158: 0 | J158: 0 | K158: 0 | L158: 0 | M158: 0 | N158: 0
A159: QRV | B159: RAS | C159: THE HILLINGDON HOSPITALS NHS FOUNDATION TRUST | D159: RAS01 | E159: Hillingdon Hospital | F159: 5 | G159: 1 | H159: 0 | I159: 4 | J159: 1 | K159: 0 | L159: 0 | M159: 0 | N159: 0
A160: QSL | B160: RH5 | C160: SOMERSET NHS FOUNDATION TRUST | D160: RH5A8 | E160: MUSGROVE PARK HOSPITAL | F160: 0 | G160: NA | H160: NA | I160: 0 | J160: 0 | K160: 0 | L160: 0 | M160: 0 | N160: 0
A161: QSL | B161: RA4 | C161: YEOVIL DISTRICT HOSPITAL NHS FOUNDATION TRUST | D161: RA430 | E161: Yeovil District Hospital | F161: 4 | G161: * | H161: * | I161: * | J161: * | K161: * | L161: * | M161: * | N161: *
A162: QT1 | B162: RX1 | C162: NOTTINGHAM UNIVERSITY HOSPITALS NHS TRUST | D162: RX1CC | E162: Nottingham University Hospitals NHS Trust - City Campus | F162: 2 | G162: * | H162: * | I162: * | J162: * | K162: * | L162: * | M162: * | N162: *
A163: QT1 | B163: RK5 | C163: SHERWOOD FOREST HOSPITALS NHS FOUNDATION TRUST | D163: RK5BC | E163: King's Mill Hospital | F163: 0 | G163: NA | H163: NA | I163: 0 | J163: 0 | K163: 0 | L163: 0 | M163: 0 | N163: 0
A164: QT1 | B164: RK5 | C164: SHERWOOD FOREST HOSPITALS NHS FOUNDATION TRUST | D164: RK5XXX | E164: Non-hospital site | F164: 0 | G164: NA | H164: NA | I164: 0 | J164: 0 | K164: 0 | L164: 0 | M164: 0 | N164: 0
A165: QT6 | B165: REF | C165: ROYAL CORNWALL HOSPITALS NHS TRUST | D165: REFXXX | E165: Non-hospital site | F165: 0 | G165: NA | H165: NA | I165: 0 | J165: 0 | K165: 0 | L165: 0 | M165: 0 | N165: 0
A166: QT6 | B166: REF | C166: ROYAL CORNWALL HOSPITALS NHS TRUST | D166: REF12 | E166: Royal Cornwall Hospital (Treliske) | F166: 6 | G166: 1 | H166: 0 | I166: * | J166: * | K166: * | L166: * | M166: * | N166: *
A167: QU9 | B167: RXQ | C167: BUCKINGHAMSHIRE HEALTHCARE NHS TRUST | D167: RXQ02 | E167: Stoke Mandeville Hospital | F167: 55 | G167: 0.8909090909 | H167: 0.07272727273 | I167: 32 | J167: 17 | K167: 2 | L167: 2 | M167: 2 | N167: 0
A168: QU9 | B168: RTH | C168: OXFORD UNIVERSITY HOSPITALS NHS FOUNDATION TRUST | D168: RTH05 | E168: Horton General Hospital | F168: 0 | G168: NA | H168: NA | I168: 0 | J168: 0 | K168: 0 | L168: 0 | M168: 0 | N168: 0
A169: QU9 | B169: RTH | C169: OXFORD UNIVERSITY HOSPITALS NHS FOUNDATION TRUST | D169: RTH16 | E169: Wallingford Community Hospital | F169: 0 | G169: NA | H169: NA | I169: 0 | J169: 0 | K169: 0 | L169: 0 | M169: 0 | N169: 0
A170: QU9 | B170: RTH | C170: OXFORD UNIVERSITY HOSPITALS NHS FOUNDATION TRUST | D170: RTH19 | E170: Chipping Norton Community Hospital | F170: 0 | G170: NA | H170: NA | I170: 0 | J170: 0 | K170: 0 | L170: 0 | M170: 0 | N170: 0
A171: QU9 | B171: RTH | C171: OXFORD UNIVERSITY HOSPITALS NHS FOUNDATION TRUST | D171: RTH21 | E171: Wantage Community Hospital | F171: 0 | G171: NA | H171: NA | I171: 0 | J171: 0 | K171: 0 | L171: 0 | M171: 0 | N171: 0
A172: QU9 | B172: RTH | C172: OXFORD UNIVERSITY HOSPITALS NHS FOUNDATION TRUST | D172: RTH08 | E172: John Radcliffe Hospital | F172: 1 | G172: * | H172: * | I172: * | J172: * | K172: * | L172: * | M172: * | N172: *
A173: QU9 | B173: RHW | C173: ROYAL BERKSHIRE NHS FOUNDATION TRUST | D173: RHW01 | E173: Royal Berkshire Hospital | F173: 55 | G173: 1 | H173: 0 | I173: * | J173: * | K173: * | L173: * | M173: * | N173: *
A174: QUA | B174: RXK | C174: SANDWELL AND WEST BIRMINGHAM HOSPITALS NHS TRUST | D174: RXK02 | E174: City Hospital | F174: 20 | G174: 0.85 | H174: 0.15 | I174: 16 | J174: 1 | K174: 0 | L174: 0 | M174: 3 | N174: 0
A175: QUA | B175: RNA | C175: THE DUDLEY GROUP NHS FOUNDATION TRUST | D175: RNA01 | E175: Russells Hall Hospital | F175: 47 | G175: 0.8936170213 | H175: 0 | I175: 37 | J175: 5 | K175: 0 | L175: 0 | M175: 0 | N175: 5
A176: QUA | B176: RBK | C176: WALSALL HEALTHCARE NHS TRUST | D176: RBK02 | E176: Manor Hospital | F176: 31 | G176: 0.8387096774 | H176: 0.1612903226 | I176: 23 | J176: 3 | K176: 0 | L176: 2 | M176: 3 | N176: 0
A177: QUE | B177: RGT | C177: CAMBRIDGE UNIVERSITY HOSPITALS NHS FOUNDATION TRUST | D177: RGT32 | E177: Rosie Hospital | F177: 36 | G177: 0.9722222222 | H177: 0 | I177: 29 | J177: 6 | K177: 0 | L177: 0 | M177: 0 | N177: 1
A178: QUE | B178: RGN | C178: NORTH WEST ANGLIA NHS FOUNDATION TRUST | D178: RGN90 | E178: Hinchingbrooke Hospital | F178: 11 | G178: 1 | H178: 0 | I178: 11 | J178: 0 | K178: 0 | L178: 0 | M178: 0 | N178: 0
A179: QUE | B179: RGN | C179: NORTH WEST ANGLIA NHS FOUNDATION TRUST | D179: RGN80 | E179: Peterborough City Hospital | F179: 27 | G179: 1 | H179: 0 | I179: 25 | J179: 2 | K179: 0 | L179: 0 | M179: 0 | N179: 0
A180: QUY | B180: RVJ | C180: NORTH BRISTOL NHS TRUST | D180: RVJ01 | E180: Southmead Hospital | F180: 0 | G180: NA | H180: NA | I180: 0 | J180: 0 | K180: 0 | L180: 0 | M180: 0 | N180: 0
A181: QUY | B181: RA7 | C181: UNIVERSITY HOSPITALS BRISTOL AND WESTON NHS FOUNDATION TRUST | D181: RA707 | E181: St Michael's Hospital | F181: 18 | G181: 0.9444444444 | H181: 0 | I181: 13 | J181: 4 | K181: 1 | L181: 0 | M181: 0 | N181: 0
A182: QVV | B182: RBD | C182: DORSET COUNTY HOSPITAL NHS FOUNDATION TRUST | D182: RBD01 | E182: Dorset County Hospital | F182: 46 | G182: 0.9130434783 | H182: 0.0652173913 | I182: 41 | J182: 1 | K182: 0 | L182: 1 | M182: 2 | N182: 1
A183: QVV | B183: R0D | C183: UNIVERSITY HOSPITALS DORSET NHS FOUNDATION TRUST | D183: R0D02 | E183: Royal Bournemouth Hospital | F183: 2 | G183: * | H183: * | I183: * | J183: * | K183: * | L183: * | M183: * | N183: *
A184: QVV | B184: R0D | C184: UNIVERSITY HOSPITALS DORSET NHS FOUNDATION TRUST | D184: R0D01 | E184: Poole Hospital | F184: 88 | G184: 0.9772727273 | H184: 0.01136363636 | I184: * | J184: * | K184: * | L184: * | M184: * | N184: *
A185: QWE | B185: RJ6 | C185: CROYDON HEALTH SERVICES NHS TRUST | D185: RJ611 | E185: Croydon University Hospital | F185: 22 | G185: 0.8636363636 | H185: 0.1363636364 | I185: 18 | J185: 1 | K185: 0 | L185: 0 | M185: 3 | N185: 0
A186: QWE | B186: RVR | C186: EPSOM AND ST HELIER UNIVERSITY HOSPITALS NHS TRUST | D186: RVRXXX | E186: Non-hospital site | F186: 1 | G186: * | H186: * | I186: * | J186: * | K186: * | L186: * | M186: * | N186: *
A187: QWE | B187: RVR | C187: EPSOM AND ST HELIER UNIVERSITY HOSPITALS NHS TRUST | D187: RVR05 | E187: St Helier Hospital | F187: 16 | G187: 0.9375 | H187: 0 | I187: * | J187: * | K187: * | L187: * | M187: * | N187: *
A188: QWE | B188: RVR | C188: EPSOM AND ST HELIER UNIVERSITY HOSPITALS NHS TRUST | D188: RVR50 | E188: Epsom Hospital | F188: 17 | G188: 1 | H188: 0 | I188: 17 | J188: 0 | K188: 0 | L188: 0 | M188: 0 | N188: 0
A189: QWE | B189: RAX | C189: KINGSTON HOSPITAL NHS FOUNDATION TRUST | D189: RAX01 | E189: Kingston Hospital | F189: 2 | G189: * | H189: * | I189: * | J189: * | K189: * | L189: * | M189: * | N189: *
A190: QWE | B190: RJ7 | C190: ST GEORGE'S UNIVERSITY HOSPITALS NHS FOUNDATION TRUST | D190: RJ701 | E190: St George's Hospital (Tooting) | F190: 2 | G190: * | H190: * | I190: * | J190: * | K190: * | L190: * | M190: * | N190: *
A191: QWO | B191: RCF | C191: AIREDALE NHS FOUNDATION TRUST | D191: RCF22 | E191: Airedale General Hospital | F191: 0 | G191: NA | H191: NA | I191: 0 | J191: 0 | K191: 0 | L191: 0 | M191: 0 | N191: 0
A192: QWO | B192: RAE | C192: BRADFORD TEACHING HOSPITALS NHS FOUNDATION TRUST | D192: RAE01 | E192: Bradford Royal Infirmary | F192: 0 | G192: NA | H192: NA | I192: 0 | J192: 0 | K192: 0 | L192: 0 | M192: 0 | N192: 0
A193: QWO | B193: RWY | C193: CALDERDALE AND HUDDERSFIELD NHS FOUNDATION TRUST | D193: RWY02 | E193: Calderdale Royal Hospital | F193: 0 | G193: NA | H193: NA | I193: 0 | J193: 0 | K193: 0 | L193: 0 | M193: 0 | N193: 0
A194: QWO | B194: RR8 | C194: LEEDS TEACHING HOSPITALS NHS TRUST | D194: RR8XXX | E194: Non-hospital site | F194: 0 | G194: NA | H194: NA | I194: 0 | J194: 0 | K194: 0 | L194: 0 | M194: 0 | N194: 0
A195: QWO | B195: RR8 | C195: LEEDS TEACHING HOSPITALS NHS TRUST | D195: RR813 | E195: St James's University Hospital | F195: 77 | G195: 0.987012987 | H195: 0.01298701299 | I195: 71 | J195: 5 | K195: 0 | L195: 0 | M195: 1 | N195: 0
A196: QWO | B196: RR8 | C196: LEEDS TEACHING HOSPITALS NHS TRUST | D196: RR801 | E196: Leeds General Infirmary | F196: 94 | G196: 0.9680851064 | H196: 0.02127659574 | I196: 88 | J196: 3 | K196: 1 | L196: 0 | M196: 2 | N196: 0
A197: QWO | B197: RXF | C197: MID YORKSHIRE HOSPITALS NHS TRUST | D197: RXF03 | E197: Pontefract General Infirmary | F197: 0 | G197: NA | H197: NA | I197: 0 | J197: 0 | K197: 0 | L197: 0 | M197: 0 | N197: 0
A198: QWO | B198: RXF | C198: MID YORKSHIRE HOSPITALS NHS TRUST | D198: RXFXXX | E198: Non-hospital site | F198: 0 | G198: NA | H198: NA | I198: 0 | J198: 0 | K198: 0 | L198: 0 | M198: 0 | N198: 0
A199: QWO | B199: RXF | C199: MID YORKSHIRE HOSPITALS NHS TRUST | D199: RXF10 | E199: Dewsbury and District Hospital | F199: 5 | G199: 1 | H199: 0 | I199: 5 | J199: 0 | K199: 0 | L199: 0 | M199: 0 | N199: 0
A200: QWO | B200: RXF | C200: MID YORKSHIRE HOSPITALS NHS TRUST | D200: RXF05 | E200: Pinderfields General Hospital | F200: 7 | G200: 0.8571428571 | H200: 0.1428571429 | I200: 6 | J200: 0 | K200: 0 | L200: 0 | M200: 1 | N200: 0
A201: QWU | B201: RLT | C201: GEORGE ELIOT HOSPITAL NHS TRUST | D201: RLT01 | E201: George Eliot Hospital - Acute Services | F201: 73 | G201: 0.9178082192 | H201: 0.06849315068 | I201: 62 | J201: 5 | K201: 0 | L201: 4 | M201: 1 | N201: 1
A202: QWU | B202: RJC | C202: SOUTH WARWICKSHIRE NHS FOUNDATION TRUST | D202: RJC02 | E202: Warwick Hospital | F202: 0 | G202: NA | H202: NA | I202: 0 | J202: 0 | K202: 0 | L202: 0 | M202: 0 | N202: 0
A203: QWU | B203: RJC | C203: SOUTH WARWICKSHIRE NHS FOUNDATION TRUST | D203: RJCXXX | E203: Non-hospital site | F203: 0 | G203: NA | H203: NA | I203: 0 | J203: 0 | K203: 0 | L203: 0 | M203: 0 | N203: 0
A204: QWU | B204: RKB | C204: UNIVERSITY HOSPITALS COVENTRY AND WARWICKSHIRE NHS TRUST | D204: RKB03 | E204: Hospital Of St Cross | F204: 0 | G204: NA | H204: NA | I204: 0 | J204: 0 | K204: 0 | L204: 0 | M204: 0 | N204: 0
A205: QWU | B205: RKB | C205: UNIVERSITY HOSPITALS COVENTRY AND WARWICKSHIRE NHS TRUST | D205: RKBXXX | E205: Non-hospital site | F205: 0 | G205: NA | H205: NA | I205: 0 | J205: 0 | K205: 0 | L205: 0 | M205: 0 | N205: 0
A206: QWU | B206: RKB | C206: UNIVERSITY HOSPITALS COVENTRY AND WARWICKSHIRE NHS TRUST | D206: RKB01 | E206: University Hospital (Coventry) | F206: 30 | G206: 1 | H206: 0 | I206: 27 | J206: 3 | K206: 0 | L206: 0 | M206: 0 | N206: 0
A207: QXU | B207: RA2 | C207: ROYAL SURREY COUNTY HOSPITAL NHS FOUNDATION TRUST | D207: RA201 | E207: Royal Surrey County Hospital | F207: 22 | G207: 1 | H207: 0 | I207: 21 | J207: 1 | K207: 0 | L207: 0 | M207: 0 | N207: 0
... 9 more rows

Sheet Region (Local Office) Q3
B6: Sort data by:
A9: STP Code | B9: STP | C9: Total Responses | D9: Percentage Positive | E9: Percentage Negative | F9: Breakdown of Responses
F10: Very Good | G10: Good | H10: Neither Good nor Poor | I10: Poor | J10: Very Poor | K10: Don't Know
B11: England (including Independent Sector providers) | C11: 4356 | D11: 0.9302112029 | E11: 0.03213957759 | F11: 3199 | G11: 853 | H11: 111 | I11: 77 | J11: 63 | K11: 53
B12: England (excluding Independent Sector providers) | C12: 4356 | D12: 0.9302112029 | E12: 0.03213957759 | F12: 3199 | G12: 853 | H12: 111 | I12: 77 | J12: 63 | K12: 53
B13: Selection (excluding suppressed data) | C13: =SUBTOTAL(9,C14:C60) -> 4356 | D13: =IFERROR((F13+G13)/SUM(F13:K13), "-") -> 0.9296470588 | E13: =IFERROR((I13+J13)/SUM(F13:K13), "-") -> 0.03247058824 | F13: =SUBTOTAL(9,F14:F60) -> 3119 | G13: 832 | H13: 108 | I13: 77 | J13: 61 | K13: 53
A14: QE1 | B14: HEALTHIER LANCASHIRE AND SOUTH CUMBRIA | C14: 169 | D14: 0.8579881657 | E14: 0.1065088757 | F14: 109 | G14: 36 | H14: 2 | I14: 11 | J14: 7 | K14: 4
A15: QF7 | B15: SOUTH YORKSHIRE AND BASSETLAW STP | C15: 220 | D15: 0.9181818182 | E15: 0.04545454545 | F15: 156 | G15: 46 | H15: 5 | I15: 6 | J15: 4 | K15: 3
A16: QGH | B16: HEREFORDSHIRE AND WORCESTERSHIRE STP | C16: 6 | D16: 1 | E16: 0 | F16: 5 | G16: 1 | H16: 0 | I16: 0 | J16: 0 | K16: 0
A17: QH8 | B17: MID AND SOUTH ESSEX STP | C17: 82 | D17: 0.7804878049 | E17: 0.1585365854 | F17: 46 | G17: 18 | H17: 5 | I17: 4 | J17: 9 | K17: 0
A18: QHG | B18: BEDFORDSHIRE, LUTON AND MILTON KEYNES STP | C18: 188 | D18: 0.9361702128 | E18: 0.04255319149 | F18: 131 | G18: 45 | H18: 3 | I18: 5 | J18: 3 | K18: 1
A19: QHL | B19: BIRMINGHAM AND SOLIHULL STP | C19: 18 | D19: 0.9444444444 | E19: 0 | F19: 13 | G19: 4 | H19: 1 | I19: 0 | J19: 0 | K19: 0
A20: QHM | B20: CUMBRIA AND NORTH EAST STP | C20: 115 | D20: 0.9304347826 | E20: 0.0347826087 | F20: 85 | G20: 22 | H20: 4 | I20: 4 | J20: 0 | K20: 0
A21: QJ2 | B21: JOINED UP CARE DERBYSHIRE STP | C21: 77 | D21: 0.974025974 | E21: 0 | F21: 60 | G21: 15 | H21: 2 | I21: 0 | J21: 0 | K21: 0
A22: QJG | B22: SUFFOLK AND NORTH EAST ESSEX ICS | C22: 27 | D22: 1 | E22: 0 | F22: 20 | G22: 7 | H22: 0 | I22: 0 | J22: 0 | K22: 0
A23: QJK | B23: DEVON STP | C23: 45 | D23: 1 | E23: 0 | F23: 36 | G23: 9 | H23: 0 | I23: 0 | J23: 0 | K23: 0
A24: QJM | B24: LINCOLNSHIRE STP | C24: 18 | D24: 1 | E24: 0 | F24: 17 | G24: 1 | H24: 0 | I24: 0 | J24: 0 | K24: 0
A25: QK1 | B25: LEICESTER, LEICESTERSHIRE AND RUTLAND STP | C25: 306 | D25: 0.9575163399 | E25: 0.009803921569 | F25: 232 | G25: 61 | H25: 8 | I25: 2 | J25: 1 | K25: 2
A26: QKK | B26: OUR HEALTHIER SOUTH EAST LONDON STP | C26: 233 | D26: 0.9442060086 | E26: 0.02145922747 | F26: 146 | G26: 74 | H26: 7 | I26: 4 | J26: 1 | K26: 1
A27: QKS | B27: KENT AND MEDWAY STP | C27: 235 | D27: 0.9872340426 | E27: 0.004255319149 | F27: 203 | G27: 29 | H27: 2 | I27: 0 | J27: 1 | K27: 0
A28: QM7 | B28: HERTFORDSHIRE AND WEST ESSEX STP | C28: 197 | D28: 0.9492385787 | E28: 0.005076142132 | F28: 144 | G28: 43 | H28: 7 | I28: 0 | J28: 1 | K28: 2
A29: QMF | B29: EAST LONDON HEALTH & CARE PARTNERSHIP (STP) | C29: 88 | D29: 0.9545454545 | E29: 0.02272727273 | F29: 64 | G29: 20 | H29: 2 | I29: 1 | J29: 1 | K29: 0
A30: QMJ | B30: NORTH LONDON PARTNERS IN HEALTH & CARE (STP) | C30: 123 | D30: 0.9512195122 | E30: 0.0243902439 | F30: 39 | G30: 78 | H30: 3 | I30: 2 | J30: 1 | K30: 0
A31: QMM | B31: NORFOLK AND WAVENEY HEALTH & CARE PARTNERSHIP (STP) | C31: 26 | D31: 0.9615384615 | E31: 0 | F31: 24 | G31: 1 | H31: 1 | I31: 0 | J31: 0 | K31: 0
A32: QNC | B32: STAFFORDSHIRE & STOKE ON TRENT STP | C32: 4 | D32: * | E32: * | F32: * | G32: * | H32: * | I32: * | J32: * | K32: *
A33: QNQ | B33: FRIMLEY HEALTH & CARE (STP) | C33: 76 | D33: 1 | E33: 0 | F33: * | G33: * | H33: * | I33: * | J33: * | K33: *
A34: QNX | B34: SUSSEX HEALTH AND CARE PARTNERSHIP | C34: 111 | D34: 0.972972973 | E34: 0.01801801802 | F34: 90 | G34: 18 | H34: 1 | I34: 1 | J34: 1 | K34: 0
A35: QOC | B35: SHROPSHIRE AND TELFORD AND WREKIN STP | C35: 49 | D35: 1 | E35: 0 | F35: 41 | G35: 8 | H35: 0 | I35: 0 | J35: 0 | K35: 0
A36: QOP | B36: GREATER MANCHESTER HEALTH & SOCIAL CARE PARTNERSHIP | C36: 304 | D36: 0.9671052632 | E36: 0.01973684211 | F36: 260 | G36: 34 | H36: 2 | I36: 3 | J36: 3 | K36: 2
A37: QOQ | B37: HUMBER, COAST AND VALE STP | C37: 195 | D37: 0.9948717949 | E37: 0 | F37: 173 | G37: 21 | H37: 1 | I37: 0 | J37: 0 | K37: 0
A38: QOX | B38: BATH AND NORTH EAST SOMERSET, SWINDON AND WILTSHIRE STP | C38: 1 | D38: * | E38: * | F38: * | G38: * | H38: * | I38: * | J38: * | K38: *
A39: QPM | B39: NORTHAMPTONSHIRE STP | C39: 3 | D39: * | E39: * | F39: * | G39: * | H39: * | I39: * | J39: * | K39: *
A40: QR1 | B40: GLOUCESTERSHIRE STP | C40: 22 | D40: 0.8181818182 | E40: 0.09090909091 | F40: * | G40: * | H40: * | I40: * | J40: * | K40: *
A41: QRL | B41: HAMPSHIRE AND THE ISLE OF WIGHT STP | C41: 126 | D41: 0.6746031746 | E41: 0.126984127 | F41: 53 | G41: 32 | H41: 10 | I41: 12 | J41: 4 | K41: 15
A42: QRV | B42: NORTH WEST LONDON HEALTH & CARE PARTNERSHIP (STP) | C42: 113 | D42: 0.8318584071 | E42: 0.1061946903 | F42: 76 | G42: 18 | H42: 7 | I42: 5 | J42: 7 | K42: 0
A43: QSL | B43: SOMERSET STP | C43: 23 | D43: 1 | E43: 0 | F43: 22 | G43: 1 | H43: 0 | I43: 0 | J43: 0 | K43: 0
A44: QT1 | B44: NOTTINGHAM AND NOTTINGHAMSHIRE HEALTH AND CARE STP | C44: 37 | D44: 0.8918918919 | E44: 0.02702702703 | F44: 25 | G44: 8 | H44: 2 | I44: 0 | J44: 1 | K44: 1
A45: QT6 | B45: CORNWALL AND THE ISLES OF SCILLY HEALTH & SOCIAL CARE PARTNERSHIP (STP) | C45: 0 | D45: NA | E45: NA | F45: 0 | G45: 0 | H45: 0 | I45: 0 | J45: 0 | K45: 0
A46: QU9 | B46: BUCKINGHAMSHIRE, OXFORDSHIRE AND BERKSHIRE WEST STP | C46: 89 | D46: 0.9101123596 | E46: 0.02247191011 | F46: 54 | G46: 27 | H46: 6 | I46: 1 | J46: 1 | K46: 0
A47: QUA | B47: THE BLACK COUNTRY AND WEST BIRMINGHAM STP | C47: 65 | D47: 0.8 | E47: 0.04615384615 | F47: 42 | G47: 10 | H47: 1 | I47: 1 | J47: 2 | K47: 9
A48: QUE | B48: CAMBRIDGESHIRE AND PETERBOROUGH STP | C48: 309 | D48: 0.9611650485 | E48: 0.006472491909 | F48: 235 | G48: 62 | H48: 9 | I48: 2 | J48: 0 | K48: 1
A49: QUY | B49: BRISTOL, NORTH SOMERSET AND SOUTH GLOUCESTERSHIRE STP | C49: 51 | D49: 0.8823529412 | E49: 0.05882352941 | F49: 38 | G49: 7 | H49: 2 | I49: 2 | J49: 1 | K49: 1
A50: QVV | B50: DORSET STP | C50: 122 | D50: 0.868852459 | E50: 0.06557377049 | F50: 91 | G50: 15 | H50: 3 | I50: 4 | J50: 4 | K50: 5
A51: QWE | B51: SOUTH WEST LONDON HEALTH & CARE PARTNERSHIP (STP) | C51: 87 | D51: 0.9540229885 | E51: 0.02298850575 | F51: 79 | G51: 4 | H51: 1 | I51: 0 | J51: 2 | K51: 1
A52: QWO | B52: WEST YORKSHIRE AND HARROGATE HEALTH & CARE PARTNERSHIP (STP) | C52: 104 | D52: 0.9326923077 | E52: 0.02884615385 | F52: 79 | G52: 18 | H52: 4 | I52: 1 | J52: 2 | K52: 0
A53: QWU | B53: COVENTRY AND WARWICKSHIRE STP | C53: 97 | D53: 0.9484536082 | E53: 0.0206185567 | F53: 81 | G53: 11 | H53: 2 | I53: 2 | J53: 0 | K53: 1
A54: QXU | B54: SURREY HEARTLANDS HEALTH & CARE PARTNERSHIP (STP) | C54: 32 | D54: 0.9375 | E54: 0.03125 | F54: 24 | G54: 6 | H54: 0 | I54: 0 | J54: 1 | K54: 1
A55: QYG | B55: CHESHIRE AND MERSEYSIDE STP | C55: 163 | D55: 0.9079754601 | E55: 0.04294478528 | F55: 126 | G55: 22 | H55: 5 | I55: 4 | J55: 3 | K55: 3

Sheet Trusts Q3
B6: Sort data by:
A9: STP Code | B9: Trust Code | C9: Name | D9: Total Responses | E9: Percentage Positive | F9: Percentage Negative | G9: Breakdown of Responses | M9: Mode of Collection
G10: Very Good | H10: Good | I10: Neither Good nor Poor | J10: Poor | K10: Very Poor | L10: Don't Know | M10: Mode SMS | N10: Mode Electronic Discharge | O10: Mode Electronic Home | P10: Mode Paper Discharge | Q10: Mode Paper Home | R10: Mode Telephone | S10: Mode Online | T10: Mode Other
C11: England (including Independent Sector providers) | D11: 4356 | E11: 0.9302112029 | F11: 0.03213957759 | G11: 3199 | H11: 853 | I11: 111 | J11: 77 | K11: 63 | L11: 53 | M11: 1153 | N11: 1356 | O11: 161 | P11: 1322 | Q11: 94 | R11: 0 | S11: 270 | T11: 0
C12: England (excluding Independent Sector providers) | D12: 4356 | E12: 0.9302112029 | F12: 0.03213957759 | G12: 3199 | H12: 853 | I12: 111 | J12: 77 | K12: 63 | L12: 53 | M12: 1153 | N12: 1356 | O12: 161 | P12: 1322 | Q12: 94 | R12: 0 | S12: 270 | T12: 0
C13: Selection (excluding suppressed data) | D13: =SUBTOTAL(9,D14:D298) -> 4356 | E13: =IFERROR((G13+H13)/SUM(G13:L13), "-") -> 0.9296215956 | F13: =IFERROR((J13+K13)/SUM(G13:L13), "-") -> 0.03253796095 | G13: =SUBTOTAL(9,G14:G298) -> 3036 | H13: 821 | I13: 105 | J13: 76 | K13: 59 | L13: 52 | M13: 1094 | N13: 1334 | O13: 145 | P13: 1223 | Q13: 94 | R13: 0 | S13: 259 | T13: 0
A14: QE1 | B14: RTX | C14: UNIVERSITY HOSPITALS OF MORECAMBE BAY NHS FOUNDATION TRUST | D14: 23 | E14: 1 | F14: 0 | G14: 20 | H14: 3 | I14: 0 | J14: 0 | K14: 0 | L14: 0 | M14: 23 | N14: 0 | O14: 0 | P14: 0 | Q14: 0 | R14: 0 | S14: 0 | T14: 0
A15: QE1 | B15: RXN | C15: LANCASHIRE TEACHING HOSPITALS NHS FOUNDATION TRUST | D15: 28 | E15: 0.8214285714 | F15: 0.1428571429 | G15: 20 | H15: 3 | I15: 1 | J15: 3 | K15: 1 | L15: 0 | M15: 28 | N15: 0 | O15: 0 | P15: 0 | Q15: 0 | R15: 0 | S15: 0 | T15: 0
A16: QE1 | B16: RXR | C16: EAST LANCASHIRE HOSPITALS NHS TRUST | D16: 118 | E16: 0.8389830508 | F16: 0.1186440678 | G16: 69 | H16: 30 | I16: 1 | J16: 8 | K16: 6 | L16: 4 | M16: 116 | N16: 0 | O16: 0 | P16: 0 | Q16: 0 | R16: 0 | S16: 2 | T16: 0
A17: QF7 | B17: RFR | C17: THE ROTHERHAM NHS FOUNDATION TRUST | D17: 18 | E17: 0.9444444444 | F17: 0 | G17: 15 | H17: 2 | I17: 0 | J17: 0 | K17: 0 | L17: 1 | M17: 0 | N17: 0 | O17: 0 | P17: 18 | Q17: 0 | R17: 0 | S17: 0 | T17: 0
A18: QF7 | B18: RFF | C18: BARNSLEY HOSPITAL NHS FOUNDATION TRUST | D18: 22 | E18: 0.9090909091 | F18: 0.04545454545 | G18: 11 | H18: 9 | I18: 1 | J18: 1 | K18: 0 | L18: 0 | M18: 0 | N18: 22 | O18: 0 | P18: 0 | Q18: 0 | R18: 0 | S18: 0 | T18: 0
A19: QF7 | B19: RP5 | C19: DONCASTER AND BASSETLAW TEACHING HOSPITALS NHS FOUNDATION TRUST | D19: 74 | E19: 0.9864864865 | F19: 0 | G19: 63 | H19: 10 | I19: 1 | J19: 0 | K19: 0 | L19: 0 | M19: 0 | N19: 0 | O19: 0 | P19: 74 | Q19: 0 | R19: 0 | S19: 0 | T19: 0
A20: QF7 | B20: RHQ | C20: SHEFFIELD TEACHING HOSPITALS NHS FOUNDATION TRUST | D20: 106 | E20: 0.8679245283 | F20: 0.08490566038 | G20: 67 | H20: 25 | I20: 3 | J20: 5 | K20: 4 | L20: 2 | M20: 106 | N20: 0 | O20: 0 | P20: 0 | Q20: 0 | R20: 0 | S20: 0 | T20: 0
A21: QGH | B21: RWP | C21: WORCESTERSHIRE ACUTE HOSPITALS NHS TRUST | D21: 2 | E21: * | F21: * | G21: * | H21: * | I21: * | J21: * | K21: * | L21: * | M21: * | N21: * | O21: * | P21: * | Q21: * | R21: * | S21: * | T21: *
A22: QGH | B22: RLQ | C22: WYE VALLEY NHS TRUST | D22: 4 | E22: * | F22: * | G22: * | H22: * | I22: * | J22: * | K22: * | L22: * | M22: * | N22: * | O22: * | P22: * | Q22: * | R22: * | S22: * | T22: *
A23: QH8 | B23: RAJ | C23: MID AND SOUTH ESSEX NHS FOUNDATION TRUST | D23: 82 | E23: 0.7804878049 | F23: 0.1585365854 | G23: 46 | H23: 18 | I23: 5 | J23: 4 | K23: 9 | L23: 0 | M23: 81 | N23: 0 | O23: 0 | P23: 0 | Q23: 0 | R23: 0 | S23: 1 | T23: 0
A24: QHG | B24: RD8 | C24: MILTON KEYNES UNIVERSITY HOSPITAL NHS FOUNDATION TRUST | D24: 58 | E24: 0.9482758621 | F24: 0.03448275862 | G24: 39 | H24: 16 | I24: 0 | J24: 0 | K24: 2 | L24: 1 | M24: 0 | N24: 0 | O24: 0 | P24: 48 | Q24: 0 | R24: 0 | S24: 10 | T24: 0
A25: QHG | B25: RC9 | C25: BEDFORDSHIRE HOSPITALS NHS FOUNDATION TRUST | D25: 130 | E25: 0.9307692308 | F25: 0.04615384615 | G25: 92 | H25: 29 | I25: 3 | J25: 5 | K25: 1 | L25: 0 | M25: 10 | N25: 108 | O25: 0 | P25: 1 | Q25: 7 | R25: 0 | S25: 4 | T25: 0
A26: QHL | B26: RQ3 | C26: BIRMINGHAM WOMEN'S AND CHILDREN'S NHS FOUNDATION TRUST | D26: 2 | E26: * | F26: * | G26: * | H26: * | I26: * | J26: * | K26: * | L26: * | M26: * | N26: * | O26: * | P26: * | Q26: * | R26: * | S26: * | T26: *
A27: QHL | B27: RRK | C27: UNIVERSITY HOSPITALS BIRMINGHAM NHS FOUNDATION TRUST | D27: 16 | E27: 0.9375 | F27: 0 | G27: * | H27: * | I27: * | J27: * | K27: * | L27: * | M27: * | N27: * | O27: * | P27: * | Q27: * | R27: * | S27: * | T27: *
A28: QHM | B28: R0B | C28: SOUTH TYNESIDE AND SUNDERLAND NHS FOUNDATION TRUST | D28: 0 | E28: NA | F28: NA | G28: 0 | H28: 0 | I28: 0 | J28: 0 | K28: 0 | L28: 0 | M28: 0 | N28: 0 | O28: 0 | P28: 0 | Q28: 0 | R28: 0 | S28: 0 | T28: 0
A29: QHM | B29: RVW | C29: NORTH TEES AND HARTLEPOOL NHS FOUNDATION TRUST | D29: 2 | E29: * | F29: * | G29: * | H29: * | I29: * | J29: * | K29: * | L29: * | M29: * | N29: * | O29: * | P29: * | Q29: * | R29: * | S29: * | T29: *
A30: QHM | B30: RXP | C30: COUNTY DURHAM AND DARLINGTON NHS FOUNDATION TRUST | D30: 10 | E30: 1 | F30: 0 | G30: * | H30: * | I30: * | J30: * | K30: * | L30: * | M30: * | N30: * | O30: * | P30: * | Q30: * | R30: * | S30: * | T30: *
A31: QHM | B31: RNN | C31: NORTH CUMBRIA INTEGRATED CARE NHS FOUNDATION TRUST | D31: 13 | E31: 0.9230769231 | F31: 0 | G31: 11 | H31: 1 | I31: 1 | J31: 0 | K31: 0 | L31: 0 | M31: 0 | N31: 0 | O31: 0 | P31: 13 | Q31: 0 | R31: 0 | S31: 0 | T31: 0
A32: QHM | B32: RTR | C32: SOUTH TEES HOSPITALS NHS FOUNDATION TRUST | D32: 16 | E32: 1 | F32: 0 | G32: 15 | H32: 1 | I32: 0 | J32: 0 | K32: 0 | L32: 0 | M32: 0 | N32: 16 | O32: 0 | P32: 0 | Q32: 0 | R32: 0 | S32: 0 | T32: 0
A33: QHM | B33: RTF | C33: NORTHUMBRIA HEALTHCARE NHS FOUNDATION TRUST | D33: 74 | E33: 0.9054054054 | F33: 0.05405405405 | G33: 49 | H33: 18 | I33: 3 | J33: 4 | K33: 0 | L33: 0 | M33: 74 | N33: 0 | O33: 0 | P33: 0 | Q33: 0 | R33: 0 | S33: 0 | T33: 0
A34: QJ2 | B34: RFS | C34: CHESTERFIELD ROYAL HOSPITAL NHS FOUNDATION TRUST | D34: 37 | E34: 1 | F34: 0 | G34: 32 | H34: 5 | I34: 0 | J34: 0 | K34: 0 | L34: 0 | M34: 0 | N34: 37 | O34: 0 | P34: 0 | Q34: 0 | R34: 0 | S34: 0 | T34: 0
A35: QJ2 | B35: RTG | C35: UNIVERSITY HOSPITALS OF DERBY AND BURTON NHS FOUNDATION TRUST | D35: 40 | E35: 0.95 | F35: 0 | G35: 28 | H35: 10 | I35: 2 | J35: 0 | K35: 0 | L35: 0 | M35: 0 | N35: 40 | O35: 0 | P35: 0 | Q35: 0 | R35: 0 | S35: 0 | T35: 0
A36: QJG | B36: RGR | C36: WEST SUFFOLK NHS FOUNDATION TRUST | D36: 0 | E36: NA | F36: NA | G36: 0 | H36: 0 | I36: 0 | J36: 0 | K36: 0 | L36: 0 | M36: 0 | N36: 0 | O36: 0 | P36: 0 | Q36: 0 | R36: 0 | S36: 0 | T36: 0
A37: QJG | B37: RDE | C37: EAST SUFFOLK AND NORTH ESSEX NHS FOUNDATION TRUST | D37: 27 | E37: 1 | F37: 0 | G37: 20 | H37: 7 | I37: 0 | J37: 0 | K37: 0 | L37: 0 | M37: 0 | N37: 0 | O37: 0 | P37: 0 | Q37: 0 | R37: 0 | S37: 27 | T37: 0
A38: QJK | B38: RH8 | C38: ROYAL DEVON AND EXETER NHS FOUNDATION TRUST | D38: 0 | E38: NA | F38: NA | G38: 0 | H38: 0 | I38: 0 | J38: 0 | K38: 0 | L38: 0 | M38: 0 | N38: 0 | O38: 0 | P38: 0 | Q38: 0 | R38: 0 | S38: 0 | T38: 0
A39: QJK | B39: RBZ | C39: NORTHERN DEVON HEALTHCARE NHS TRUST | D39: 13 | E39: 1 | F39: 0 | G39: 12 | H39: 1 | I39: 0 | J39: 0 | K39: 0 | L39: 0 | M39: 0 | N39: 0 | O39: 0 | P39: 13 | Q39: 0 | R39: 0 | S39: 0 | T39: 0
A40: QJK | B40: RK9 | C40: UNIVERSITY HOSPITALS PLYMOUTH NHS TRUST | D40: 32 | E40: 1 | F40: 0 | G40: 24 | H40: 8 | I40: 0 | J40: 0 | K40: 0 | L40: 0 | M40: 0 | N40: 32 | O40: 0 | P40: 0 | Q40: 0 | R40: 0 | S40: 0 | T40: 0
A41: QJM | B41: RWD | C41: UNITED LINCOLNSHIRE HOSPITALS NHS TRUST | D41: 18 | E41: 1 | F41: 0 | G41: 17 | H41: 1 | I41: 0 | J41: 0 | K41: 0 | L41: 0 | M41: 0 | N41: 0 | O41: 0 | P41: 18 | Q41: 0 | R41: 0 | S41: 0 | T41: 0
A42: QK1 | B42: RWE | C42: UNIVERSITY HOSPITALS OF LEICESTER NHS TRUST | D42: 306 | E42: 0.9575163399 | F42: 0.009803921569 | G42: 232 | H42: 61 | I42: 8 | J42: 2 | K42: 1 | L42: 2 | M42: 0 | N42: 242 | O42: 0 | P42: 64 | Q42: 0 | R42: 0 | S42: 0 | T42: 0
A43: QKK | B43: RJ1 | C43: GUY'S AND ST THOMAS' NHS FOUNDATION TRUST | D43: 12 | E43: 0.9166666667 | F43: 0 | G43: 9 | H43: 2 | I43: 1 | J43: 0 | K43: 0 | L43: 0 | M43: 0 | N43: 0 | O43: 0 | P43: 11 | Q43: 0 | R43: 0 | S43: 1 | T43: 0
A44: QKK | B44: RJ2 | C44: LEWISHAM AND GREENWICH NHS TRUST | D44: 63 | E44: 0.9047619048 | F44: 0.03174603175 | G44: 32 | H44: 25 | I44: 3 | J44: 1 | K44: 1 | L44: 1 | M44: 0 | N44: 0 | O44: 0 | P44: 60 | Q44: 0 | R44: 0 | S44: 3 | T44: 0
A45: QKK | B45: RJZ | C45: KING'S COLLEGE HOSPITAL NHS FOUNDATION TRUST | D45: 158 | E45: 0.9620253165 | F45: 0.01898734177 | G45: 105 | H45: 47 | I45: 3 | J45: 3 | K45: 0 | L45: 0 | M45: 0 | N45: 157 | O45: 0 | P45: 0 | Q45: 0 | R45: 0 | S45: 1 | T45: 0
A46: QKS | B46: RN7 | C46: DARTFORD AND GRAVESHAM NHS TRUST | D46: 45 | E46: 0.9555555556 | F46: 0.02222222222 | G46: 38 | H46: 5 | I46: 1 | J46: 0 | K46: 1 | L46: 0 | M46: 0 | N46: 0 | O46: 0 | P46: 45 | Q46: 0 | R46: 0 | S46: 0 | T46: 0
A47: QKS | B47: RPA | C47: MEDWAY NHS FOUNDATION TRUST | D47: 74 | E47: 0.9864864865 | F47: 0 | G47: 63 | H47: 10 | I47: 1 | J47: 0 | K47: 0 | L47: 0 | M47: 0 | N47: 0 | O47: 0 | P47: 74 | Q47: 0 | R47: 0 | S47: 0 | T47: 0
A48: QKS | B48: RWF | C48: MAIDSTONE AND TUNBRIDGE WELLS NHS TRUST | D48: 116 | E48: 1 | F48: 0 | G48: 102 | H48: 14 | I48: 0 | J48: 0 | K48: 0 | L48: 0 | M48: 0 | N48: 0 | O48: 0 | P48: 116 | Q48: 0 | R48: 0 | S48: 0 | T48: 0
A49: QM7 | B49: RQW | C49: THE PRINCESS ALEXANDRA HOSPITAL NHS TRUST | D49: 0 | E49: NA | F49: NA | G49: 0 | H49: 0 | I49: 0 | J49: 0 | K49: 0 | L49: 0 | M49: 0 | N49: 0 | O49: 0 | P49: 0 | Q49: 0 | R49: 0 | S49: 0 | T49: 0
A50: QM7 | B50: RWG | C50: WEST HERTFORDSHIRE HOSPITALS NHS TRUST | D50: 72 | E50: 0.9583333333 | F50: 0.01388888889 | G50: 55 | H50: 14 | I50: 1 | J50: 0 | K50: 1 | L50: 1 | M50: 0 | N50: 72 | O50: 0 | P50: 0 | Q50: 0 | R50: 0 | S50: 0 | T50: 0
A51: QM7 | B51: RWH | C51: EAST AND NORTH HERTFORDSHIRE NHS TRUST | D51: 125 | E51: 0.944 | F51: 0 | G51: 89 | H51: 29 | I51: 6 | J51: 0 | K51: 0 | L51: 1 | M51: 0 | N51: 125 | O51: 0 | P51: 0 | Q51: 0 | R51: 0 | S51: 0 | T51: 0
A52: QMF | B52: RF4 | C52: BARKING, HAVERING AND REDBRIDGE UNIVERSITY HOSPITALS NHS TRUST | D52: 0 | E52: NA | F52: NA | G52: 0 | H52: 0 | I52: 0 | J52: 0 | K52: 0 | L52: 0 | M52: 0 | N52: 0 | O52: 0 | P52: 0 | Q52: 0 | R52: 0 | S52: 0 | T52: 0
A53: QMF | B53: R1H | C53: BARTS HEALTH NHS TRUST | D53: 88 | E53: 0.9545454545 | F53: 0.02272727273 | G53: 64 | H53: 20 | I53: 2 | J53: 1 | K53: 1 | L53: 0 | M53: 2 | N53: 0 | O53: 0 | P53: 0 | Q53: 86 | R53: 0 | S53: 0 | T53: 0
A54: QMJ | B54: RKE | C54: WHITTINGTON HEALTH NHS TRUST | D54: 53 | E54: 1 | F54: 0 | G54: 0 | H54: 53 | I54: 0 | J54: 0 | K54: 0 | L54: 0 | M54: 0 | N54: 53 | O54: 0 | P54: 0 | Q54: 0 | R54: 0 | S54: 0 | T54: 0
A55: QMJ | B55: RAL | C55: ROYAL FREE LONDON NHS FOUNDATION TRUST | D55: 70 | E55: 0.9142857143 | F55: 0.04285714286 | G55: 39 | H55: 25 | I55: 3 | J55: 2 | K55: 1 | L55: 0 | M55: 0 | N55: 70 | O55: 0 | P55: 0 | Q55: 0 | R55: 0 | S55: 0 | T55: 0
A56: QMM | B56: RM1 | C56: NORFOLK AND NORWICH UNIVERSITY HOSPITALS NHS FOUNDATION TRUST | D56: 4 | E56: * | F56: * | G56: * | H56: * | I56: * | J56: * | K56: * | L56: * | M56: * | N56: * | O56: * | P56: * | Q56: * | R56: * | S56: * | T56: *
A57: QMM | B57: RCX | C57: THE QUEEN ELIZABETH HOSPITAL, KING'S LYNN, NHS FOUNDATION TRUST | D57: 22 | E57: 1 | F57: 0 | G57: * | H57: * | I57: * | J57: * | K57: * | L57: * | M57: * | N57: * | O57: * | P57: * | Q57: * | R57: * | S57: * | T57: *
A58: QNC | B58: RJE | C58: UNIVERSITY HOSPITALS OF NORTH MIDLANDS NHS TRUST | D58: 4 | E58: * | F58: * | G58: * | H58: * | I58: * | J58: * | K58: * | L58: * | M58: * | N58: * | O58: * | P58: * | Q58: * | R58: * | S58: * | T58: *
A59: QNQ | B59: RDU | C59: FRIMLEY HEALTH NHS FOUNDATION TRUST | D59: 76 | E59: 1 | F59: 0 | G59: * | H59: * | I59: * | J59: * | K59: * | L59: * | M59: * | N59: * | O59: * | P59: * | Q59: * | R59: * | S59: * | T59: *
A60: QNX | B60: RYR | C60: WESTERN SUSSEX HOSPITALS NHS FOUNDATION TRUST | D60: 22 | E60: 0.9545454545 | F60: 0.04545454545 | G60: 18 | H60: 3 | I60: 0 | J60: 1 | K60: 0 | L60: 0 | M60: 0 | N60: 0 | O60: 0 | P60: 20 | Q60: 0 | R60: 0 | S60: 2 | T60: 0
A61: QNX | B61: RXC | C61: EAST SUSSEX HEALTHCARE NHS TRUST | D61: 44 | E61: 0.9772727273 | F61: 0 | G61: 34 | H61: 9 | I61: 1 | J61: 0 | K61: 0 | L61: 0 | M61: 0 | N61: 44 | O61: 0 | P61: 0 | Q61: 0 | R61: 0 | S61: 0 | T61: 0
A62: QNX | B62: RXH | C62: BRIGHTON AND SUSSEX UNIVERSITY HOSPITALS NHS TRUST | D62: 45 | E62: 0.9777777778 | F62: 0.02222222222 | G62: 38 | H62: 6 | I62: 0 | J62: 0 | K62: 1 | L62: 0 | M62: 45 | N62: 0 | O62: 0 | P62: 0 | Q62: 0 | R62: 0 | S62: 0 | T62: 0
A63: QOC | B63: RXW | C63: THE SHREWSBURY AND TELFORD HOSPITAL NHS TRUST | D63: 49 | E63: 1 | F63: 0 | G63: 41 | H63: 8 | I63: 0 | J63: 0 | K63: 0 | L63: 0 | M63: 0 | N63: 0 | O63: 0 | P63: 49 | Q63: 0 | R63: 0 | S63: 0 | T63: 0
A64: QOP | B64: RMP | C64: TAMESIDE AND GLOSSOP INTEGRATED CARE NHS FOUNDATION TRUST | D64: 1 | E64: * | F64: * | G64: * | H64: * | I64: * | J64: * | K64: * | L64: * | M64: * | N64: * | O64: * | P64: * | Q64: * | R64: * | S64: * | T64: *
A65: QOP | B65: RW6 | C65: PENNINE ACUTE HOSPITALS NHS TRUST | D65: 32 | E65: 0.84375 | F65: 0.09375 | G65: * | H65: * | I65: * | J65: * | K65: * | L65: * | M65: * | N65: * | O65: * | P65: * | Q65: * | R65: * | S65: * | T65: *
A66: QOP | B66: RWJ | C66: STOCKPORT NHS FOUNDATION TRUST | D66: 57 | E66: 0.9649122807 | F66: 0.01754385965 | G66: 49 | H66: 6 | I66: 0 | J66: 0 | K66: 1 | L66: 1 | M66: 0 | N66: 0 | O66: 0 | P66: 57 | Q66: 0 | R66: 0 | S66: 0 | T66: 0
A67: QOP | B67: R0A | C67: MANCHESTER UNIVERSITY NHS FOUNDATION TRUST | D67: 214 | E67: 0.9859813084 | F67: 0.009345794393 | G67: 186 | H67: 25 | I67: 1 | J67: 2 | K67: 0 | L67: 0 | M67: 0 | N67: 9 | O67: 0 | P67: 205 | Q67: 0 | R67: 0 | S67: 0 | T67: 0
A68: QOQ | B68: RWA | C68: HULL UNIVERSITY TEACHING HOSPITALS NHS TRUST | D68: 7 | E68: 1 | F68: 0 | G68: 5 | H68: 2 | I68: 0 | J68: 0 | K68: 0 | L68: 0 | M68: 0 | N68: 0 | O68: 0 | P68: 7 | Q68: 0 | R68: 0 | S68: 0 | T68: 0
A69: QOQ | B69: RCD | C69: HARROGATE AND DISTRICT NHS FOUNDATION TRUST | D69: 43 | E69: 1 | F69: 0 | G69: 38 | H69: 5 | I69: 0 | J69: 0 | K69: 0 | L69: 0 | M69: 0 | N69: 0 | O69: 0 | P69: 43 | Q69: 0 | R69: 0 | S69: 0 | T69: 0
A70: QOQ | B70: RCB | C70: YORK TEACHING HOSPITAL NHS FOUNDATION TRUST | D70: 145 | E70: 0.9931034483 | F70: 0 | G70: 130 | H70: 14 | I70: 1 | J70: 0 | K70: 0 | L70: 0 | M70: 0 | N70: 0 | O70: 145 | P70: 0 | Q70: 0 | R70: 0 | S70: 0 | T70: 0
A71: QOX | B71: RN3 | C71: GREAT WESTERN HOSPITALS NHS FOUNDATION TRUST | D71: 0 | E71: NA | F71: NA | G71: 0 | H71: 0 | I71: 0 | J71: 0 | K71: 0 | L71: 0 | M71: 0 | N71: 0 | O71: 0 | P71: 0 | Q71: 0 | R71: 0 | S71: 0 | T71: 0
A72: QOX | B72: RNZ | C72: SALISBURY NHS FOUNDATION TRUST | D72: 0 | E72: NA | F72: NA | G72: 0 | H72: 0 | I72: 0 | J72: 0 | K72: 0 | L72: 0 | M72: 0 | N72: 0 | O72: 0 | P72: 0 | Q72: 0 | R72: 0 | S72: 0 | T72: 0
A73: QOX | B73: RD1 | C73: ROYAL UNITED HOSPITALS BATH NHS FOUNDATION TRUST | D73: 1 | E73: * | F73: * | G73: * | H73: * | I73: * | J73: * | K73: * | L73: * | M73: * | N73: * | O73: * | P73: * | Q73: * | R73: * | S73: * | T73: *
A74: QPM | B74: RNS | C74: NORTHAMPTON GENERAL HOSPITAL NHS TRUST | D74: 3 | E74: * | F74: * | G74: * | H74: * | I74: * | J74: * | K74: * | L74: * | M74: * | N74: * | O74: * | P74: * | Q74: * | R74: * | S74: * | T74: *
A75: QR1 | B75: RTE | C75: GLOUCESTERSHIRE HOSPITALS NHS FOUNDATION TRUST | D75: 22 | E75: 0.8181818182 | F75: 0.09090909091 | G75: * | H75: * | I75: * | J75: * | K75: * | L75: * | M75: * | N75: * | O75: * | P75: * | Q75: * | R75: * | S75: * | T75: *
A76: QRL | B76: RHU | C76: PORTSMOUTH HOSPITALS UNIVERSITY NATIONAL HEALTH SERVICE TRUST | D76: 0 | E76: NA | F76: NA | G76: 0 | H76: 0 | I76: 0 | J76: 0 | K76: 0 | L76: 0 | M76: 0 | N76: 0 | O76: 0 | P76: 0 | Q76: 0 | R76: 0 | S76: 0 | T76: 0
A77: QRL | B77: RN5 | C77: HAMPSHIRE HOSPITALS NHS FOUNDATION TRUST | D77: 2 | E77: * | F77: * | G77: * | H77: * | I77: * | J77: * | K77: * | L77: * | M77: * | N77: * | O77: * | P77: * | Q77: * | R77: * | S77: * | T77: *
A78: QRL | B78: R1F | C78: ISLE OF WIGHT NHS TRUST | D78: 4 | E78: * | F78: * | G78: * | H78: * | I78: * | J78: * | K78: * | L78: * | M78: * | N78: * | O78: * | P78: * | Q78: * | R78: * | S78: * | T78: *
A79: QRL | B79: RHM | C79: UNIVERSITY HOSPITAL SOUTHAMPTON NHS FOUNDATION TRUST | D79: 120 | E79: 0.6583333333 | F79: 0.1333333333 | G79: 47 | H79: 32 | I79: 10 | J79: 12 | K79: 4 | L79: 15 | M79: 0 | N79: 0 | O79: 0 | P79: 23 | Q79: 0 | R79: 0 | S79: 97 | T79: 0
A80: QRV | B80: R1K | C80: LONDON NORTH WEST UNIVERSITY HEALTHCARE NHS TRUST | D80: 0 | E80: NA | F80: NA | G80: 0 | H80: 0 | I80: 0 | J80: 0 | K80: 0 | L80: 0 | M80: 0 | N80: 0 | O80: 0 | P80: 0 | Q80: 0 | R80: 0 | S80: 0 | T80: 0
A81: QRV | B81: RAS | C81: THE HILLINGDON HOSPITALS NHS FOUNDATION TRUST | D81: 5 | E81: 1 | F81: 0 | G81: 5 | H81: 0 | I81: 0 | J81: 0 | K81: 0 | L81: 0 | M81: 0 | N81: 0 | O81: 0 | P81: 0 | Q81: 0 | R81: 0 | S81: 5 | T81: 0
A82: QRV | B82: RYJ | C82: IMPERIAL COLLEGE HEALTHCARE NHS TRUST | D82: 19 | E82: 0.7894736842 | F82: 0.05263157895 | G82: 11 | H82: 4 | I82: 3 | J82: 1 | K82: 0 | L82: 0 | M82: 19 | N82: 0 | O82: 0 | P82: 0 | Q82: 0 | R82: 0 | S82: 0 | T82: 0
A83: QRV | B83: RQM | C83: CHELSEA AND WESTMINSTER HOSPITAL NHS FOUNDATION TRUST | D83: 89 | E83: 0.8314606742 | F83: 0.1235955056 | G83: 60 | H83: 14 | I83: 4 | J83: 4 | K83: 7 | L83: 0 | M83: 79 | N83: 0 | O83: 0 | P83: 0 | Q83: 0 | R83: 0 | S83: 10 | T83: 0
A84: QSL | B84: RH5 | C84: SOMERSET NHS FOUNDATION TRUST | D84: 0 | E84: NA | F84: NA | G84: 0 | H84: 0 | I84: 0 | J84: 0 | K84: 0 | L84: 0 | M84: 0 | N84: 0 | O84: 0 | P84: 0 | Q84: 0 | R84: 0 | S84: 0 | T84: 0
A85: QSL | B85: RA4 | C85: YEOVIL DISTRICT HOSPITAL NHS FOUNDATION TRUST | D85: 23 | E85: 1 | F85: 0 | G85: 22 | H85: 1 | I85: 0 | J85: 0 | K85: 0 | L85: 0 | M85: 0 | N85: 22 | O85: 0 | P85: 0 | Q85: 1 | R85: 0 | S85: 0 | T85: 0
A86: QT1 | B86: RK5 | C86: SHERWOOD FOREST HOSPITALS NHS FOUNDATION TRUST | D86: 16 | E86: 0.8125 | F86: 0.0625 | G86: 11 | H86: 2 | I86: 1 | J86: 0 | K86: 1 | L86: 1 | M86: 16 | N86: 0 | O86: 0 | P86: 0 | Q86: 0 | R86: 0 | S86: 0 | T86: 0
A87: QT1 | B87: RX1 | C87: NOTTINGHAM UNIVERSITY HOSPITALS NHS TRUST | D87: 21 | E87: 0.9523809524 | F87: 0 | G87: 14 | H87: 6 | I87: 1 | J87: 0 | K87: 0 | L87: 0 | M87: 0 | N87: 0 | O87: 0 | P87: 0 | Q87: 0 | R87: 0 | S87: 21 | T87: 0
A88: QT6 | B88: REF | C88: ROYAL CORNWALL HOSPITALS NHS TRUST | D88: 0 | E88: NA | F88: NA | G88: 0 | H88: 0 | I88: 0 | J88: 0 | K88: 0 | L88: 0 | M88: 0 | N88: 0 | O88: 0 | P88: 0 | Q88: 0 | R88: 0 | S88: 0 | T88: 0
A89: QU9 | B89: RTH | C89: OXFORD UNIVERSITY HOSPITALS NHS FOUNDATION TRUST | D89: 0 | E89: NA | F89: NA | G89: 0 | H89: 0 | I89: 0 | J89: 0 | K89: 0 | L89: 0 | M89: 0 | N89: 0 | O89: 0 | P89: 0 | Q89: 0 | R89: 0 | S89: 0 | T89: 0
A90: QU9 | B90: RXQ | C90: BUCKINGHAMSHIRE HEALTHCARE NHS TRUST | D90: 43 | E90: 0.8372093023 | F90: 0.04651162791 | G90: 25 | H90: 11 | I90: 5 | J90: 1 | K90: 1 | L90: 0 | M90: 43 | N90: 0 | O90: 0 | P90: 0 | Q90: 0 | R90: 0 | S90: 0 | T90: 0
A91: QU9 | B91: RHW | C91: ROYAL BERKSHIRE NHS FOUNDATION TRUST | D91: 46 | E91: 0.9782608696 | F91: 0 | G91: 29 | H91: 16 | I91: 1 | J91: 0 | K91: 0 | L91: 0 | M91: 0 | N91: 0 | O91: 0 | P91: 45 | Q91: 0 | R91: 0 | S91: 1 | T91: 0
A92: QUA | B92: RXK | C92: SANDWELL AND WEST BIRMINGHAM HOSPITALS NHS TRUST | D92: 0 | E92: NA | F92: NA | G92: 0 | H92: 0 | I92: 0 | J92: 0 | K92: 0 | L92: 0 | M92: 0 | N92: 0 | O92: 0 | P92: 0 | Q92: 0 | R92: 0 | S92: 0 | T92: 0
A93: QUA | B93: RBK | C93: WALSALL HEALTHCARE NHS TRUST | D93: 18 | E93: 0.7777777778 | F93: 0.1666666667 | G93: 12 | H93: 2 | I93: 1 | J93: 1 | K93: 2 | L93: 0 | M93: 18 | N93: 0 | O93: 0 | P93: 0 | Q93: 0 | R93: 0 | S93: 0 | T93: 0
A94: QUA | B94: RNA | C94: THE DUDLEY GROUP NHS FOUNDATION TRUST | D94: 47 | E94: 0.8085106383 | F94: 0 | G94: 30 | H94: 8 | I94: 0 | J94: 0 | K94: 0 | L94: 9 | M94: 0 | N94: 0 | O94: 0 | P94: 47 | Q94: 0 | R94: 0 | S94: 0 | T94: 0
A95: QUE | B95: RGN | C95: NORTH WEST ANGLIA NHS FOUNDATION TRUST | D95: 101 | E95: 0.9801980198 | F95: 0 | G95: 87 | H95: 12 | I95: 1 | J95: 0 | K95: 0 | L95: 1 | M95: 0 | N95: 0 | O95: 0 | P95: 101 | Q95: 0 | R95: 0 | S95: 0 | T95: 0
A96: QUE | B96: RGT | C96: CAMBRIDGE UNIVERSITY HOSPITALS NHS FOUNDATION TRUST | D96: 208 | E96: 0.9519230769 | F96: 0.009615384615 | G96: 148 | H96: 50 | I96: 8 | J96: 2 | K96: 0 | L96: 0 | M96: 0 | N96: 196 | O96: 0 | P96: 11 | Q96: 0 | R96: 0 | S96: 1 | T96: 0
A97: QUY | B97: RA7 | C97: UNIVERSITY HOSPITALS BRISTOL AND WESTON NHS FOUNDATION TRUST | D97: 0 | E97: NA | F97: NA | G97: 0 | H97: 0 | I97: 0 | J97: 0 | K97: 0 | L97: 0 | M97: 0 | N97: 0 | O97: 0 | P97: 0 | Q97: 0 | R97: 0 | S97: 0 | T97: 0
A98: QUY | B98: RVJ | C98: NORTH BRISTOL NHS TRUST | D98: 51 | E98: 0.8823529412 | F98: 0.05882352941 | G98: 38 | H98: 7 | I98: 2 | J98: 2 | K98: 1 | L98: 1 | M98: 51 | N98: 0 | O98: 0 | P98: 0 | Q98: 0 | R98: 0 | S98: 0 | T98: 0
A99: QVV | B99: RBD | C99: DORSET COUNTY HOSPITAL NHS FOUNDATION TRUST | D99: 39 | E99: 0.9487179487 | F99: 0.05128205128 | G99: 32 | H99: 5 | I99: 0 | J99: 0 | K99: 2 | L99: 0 | M99: 39 | N99: 0 | O99: 0 | P99: 0 | Q99: 0 | R99: 0 | S99: 0 | T99: 0
A100: QVV | B100: R0D | C100: UNIVERSITY HOSPITALS DORSET NHS FOUNDATION TRUST | D100: 83 | E100: 0.8313253012 | F100: 0.07228915663 | G100: 59 | H100: 10 | I100: 3 | J100: 4 | K100: 2 | L100: 5 | M100: 83 | N100: 0 | O100: 0 | P100: 0 | Q100: 0 | R100: 0 | S100: 0 | T100: 0
A101: QWE | B101: RVR | C101: EPSOM AND ST HELIER UNIVERSITY HOSPITALS NHS TRUST | D101: 18 | E101: 1 | F101: 0 | G101: 18 | H101: 0 | I101: 0 | J101: 0 | K101: 0 | L101: 0 | M101: 0 | N101: 0 | O101: 0 | P101: 18 | Q101: 0 | R101: 0 | S101: 0 | T101: 0
A102: QWE | B102: RJ6 | C102: CROYDON HEALTH SERVICES NHS TRUST | D102: 29 | E102: 0.8620689655 | F102: 0.06896551724 | G102: 23 | H102: 2 | I102: 1 | J102: 0 | K102: 2 | L102: 1 | M102: 29 | N102: 0 | O102: 0 | P102: 0 | Q102: 0 | R102: 0 | S102: 0 | T102: 0
A103: QWE | B103: RJ7 | C103: ST GEORGE'S UNIVERSITY HOSPITALS NHS FOUNDATION TRUST | D103: 40 | E103: 1 | F103: 0 | G103: 38 | H103: 2 | I103: 0 | J103: 0 | K103: 0 | L103: 0 | M103: 0 | N103: 40 | O103: 0 | P103: 0 | Q103: 0 | R103: 0 | S103: 0 | T103: 0
A104: QWO | B104: RAE | C104: BRADFORD TEACHING HOSPITALS NHS FOUNDATION TRUST | D104: 0 | E104: NA | F104: NA | G104: 0 | H104: 0 | I104: 0 | J104: 0 | K104: 0 | L104: 0 | M104: 0 | N104: 0 | O104: 0 | P104: 0 | Q104: 0 | R104: 0 | S104: 0 | T104: 0
A105: QWO | B105: RCF | C105: AIREDALE NHS FOUNDATION TRUST | D105: 0 | E105: NA | F105: NA | G105: 0 | H105: 0 | I105: 0 | J105: 0 | K105: 0 | L105: 0 | M105: 0 | N105: 0 | O105: 0 | P105: 0 | Q105: 0 | R105: 0 | S105: 0 | T105: 0
A106: QWO | B106: RXF | C106: MID YORKSHIRE HOSPITALS NHS TRUST | D106: 8 | E106: 0.75 | F106: 0.25 | G106: 6 | H106: 0 | I106: 0 | J106: 1 | K106: 1 | L106: 0 | M106: 0 | N106: 0 | O106: 0 | P106: 5 | Q106: 0 | R106: 0 | S106: 3 | T106: 0
A107: QWO | B107: RR8 | C107: LEEDS TEACHING HOSPITALS NHS TRUST | D107: 96 | E107: 0.9479166667 | F107: 0.01041666667 | G107: 73 | H107: 18 | I107: 4 | J107: 0 | K107: 1 | L107: 0 | M107: 96 | N107: 0 | O107: 0 | P107: 0 | Q107: 0 | R107: 0 | S107: 0 | T107: 0
A108: QWU | B108: RJC | C108: SOUTH WARWICKSHIRE NHS FOUNDATION TRUST | D108: 0 | E108: NA | F108: NA | G108: 0 | H108: 0 | I108: 0 | J108: 0 | K108: 0 | L108: 0 | M108: 0 | N108: 0 | O108: 0 | P108: 0 | Q108: 0 | R108: 0 | S108: 0 | T108: 0
A109: QWU | B109: RKB | C109: UNIVERSITY HOSPITALS COVENTRY AND WARWICKSHIRE NHS TRUST | D109: 44 | E109: 0.9545454545 | F109: 0.02272727273 | G109: 40 | H109: 2 | I109: 1 | J109: 1 | K109: 0 | L109: 0 | M109: 0 | N109: 40 | O109: 0 | P109: 0 | Q109: 0 | R109: 0 | S109: 4 | T109: 0
A110: QWU | B110: RLT | C110: GEORGE ELIOT HOSPITAL NHS TRUST | D110: 53 | E110: 0.9433962264 | F110: 0.01886792453 | G110: 41 | H110: 9 | I110: 1 | J110: 1 | K110: 0 | L110: 1 | M110: 50 | N110: 0 | O110: 0 | P110: 3 | Q110: 0 | R110: 0 | S110: 0 | T110: 0
A111: QXU | B111: RA2 | C111: ROYAL SURREY COUNTY HOSPITAL NHS FOUNDATION TRUST | D111: 0 | E111: NA | F111: NA | G111: 0 | H111: 0 | I111: 0 | J111: 0 | K111: 0 | L111: 0 | M111: 0 | N111: 0 | O111: 0 | P111: 0 | Q111: 0 | R111: 0 | S111: 0 | T111: 0
A112: QXU | B112: RTP | C112: SURREY AND SUSSEX HEALTHCARE NHS TRUST | D112: 32 | E112: 0.9375 | F112: 0.03125 | G112: 24 | H112: 6 | I112: 0 | J112: 0 | K112: 1 | L112: 1 | M112: 0 | N112: 9 | O112: 0 | P112: 19 | Q112: 0 | R112: 0 | S112: 4 | T112: 0
A113: QYG | B113: RBN | C113: ST HELENS AND KNOWSLEY TEACHING HOSPITALS NHS TRUST | D113: 0 | E113: NA | F113: NA | G113: 0 | H113: 0 | I113: 0 | J113: 0 | K113: 0 | L113: 0 | M113: 0 | N113: 0 | O113: 0 | P113: 0 | Q113: 0 | R113: 0 | S113: 0 | T113: 0
A114: QYG | B114: RJN | C114: EAST CHESHIRE NHS TRUST | D114: 0 | E114: NA | F114: NA | G114: 0 | H114: 0 | I114: 0 | J114: 0 | K114: 0 | L114: 0 | M114: 0 | N114: 0 | O114: 0 | P114: 0 | Q114: 0 | R114: 0 | S114: 0 | T114: 0
A115: QYG | B115: RWW | C115: WARRINGTON AND HALTON TEACHING HOSPITALS NHS FOUNDATION TRUST | D115: 0 | E115: NA | F115: NA | G115: 0 | H115: 0 | I115: 0 | J115: 0 | K115: 0 | L115: 0 | M115: 0 | N115: 0 | O115: 0 | P115: 0 | Q115: 0 | R115: 0 | S115: 0 | T115: 0
A116: QYG | B116: RVY | C116: SOUTHPORT AND ORMSKIRK HOSPITAL NHS TRUST | D116: 13 | E116: 0.8461538462 | F116: 0.07692307692 | G116: 9 | H116: 2 | I116: 0 | J116: 0 | K116: 1 | L116: 1 | M116: 13 | N116: 0 | O116: 0 | P116: 0 | Q116: 0 | R116: 0 | S116: 0 | T116: 0
A117: QYG | B117: RBL | C117: WIRRAL UNIVERSITY TEACHING HOSPITAL NHS FOUNDATION TRUST | D117: 15 | E117: 0.8 | F117: 0.06666666667 | G117: 8 | H117: 4 | I117: 2 | J117: 1 | K117: 0 | L117: 0 | M117: 0 | N117: 0 | O117: 0 | P117: 15 | Q117: 0 | R117: 0 | S117: 0 | T117: 0
A118: QYG | B118: RJR | C118: COUNTESS OF CHESTER HOSPITAL NHS FOUNDATION TRUST | D118: 20 | E118: 0.95 | F118: 0 | G118: 19 | H118: 0 | I118: 0 | J118: 0 | K118: 0 | L118: 1 | M118: 20 | N118: 0 | O118: 0 | P118: 0 | Q118: 0 | R118: 0 | S118: 0 | T118: 0
A119: QYG | B119: RBT | C119: MID CHESHIRE HOSPITALS NHS FOUNDATION TRUST | D119: 53 | E119: 0.9433962264 | F119: 0.03773584906 | G119: 43 | H119: 7 | I119: 0 | J119: 1 | K119: 1 | L119: 1 | M119: 53 | N119: 0 | O119: 0 | P119: 0 | Q119: 0 | R119: 0 | S119: 0 | T119: 0
A120: QYG | B120: REP | C120: LIVERPOOL WOMEN'S NHS FOUNDATION TRUST | D120: 62 | E120: 0.9032258065 | F120: 0.04838709677 | G120: 47 | H120: 9 | I120: 3 | J120: 2 | K120: 1 | L120: 0 | M120: 0 | N120: 0 | O120: 0 | P120: 0 | Q120: 0 | R120: 0 | S120: 62 | T120: 0

Sheet Sites Q3
B6: Sort data by:
A9: STP Code | B9: Trust Code | C9: Trust Name | D9: Site Code | E9: Site Name | F9: Total Responses | G9: Percentage Positive | H9: Percentage Negative | I9: Breakdown of Responses
I10: Very Good | J10: Good | K10: Neither Good nor Poor | L10: Poor | M10: Very Poor | N10: Don't Know
E11: England (including Independent Sector providers) | F11: 4356 | G11: 0.9302112029 | H11: 0.03213957759 | I11: 3199 | J11: 853 | K11: 111 | L11: 77 | M11: 63 | N11: 53
E12: England (excluding Independent Sector providers) | F12: 4356 | G12: 0.9302112029 | H12: 0.03213957759 | I12: 3199 | J12: 853 | K12: 111 | L12: 77 | M12: 63 | N12: 53
E13: Selection (excluding suppressed data) | F13: =SUBTOTAL(9,F14:F297) -> 4356 | G13: =IFERROR((I13+J13)/SUM(I13:N13), "-") -> 0.9289030051 | H13: =IFERROR((L13+M13)/SUM(I13:N13), "-") -> 0.03298314195 | I13: =SUBTOTAL(9,I14:I297) -> 2994 | J13: 808 | K13: 104 | L13: 76 | M13: 59 | N13: 52
A14: QE1 | B14: RXR | C14: EAST LANCASHIRE HOSPITALS NHS TRUST | D14: RXR20 | E14: Royal Blackburn Hospital | F14: 118 | G14: 0.8389830508 | H14: 0.1186440678 | I14: 69 | J14: 30 | K14: 1 | L14: 8 | M14: 6 | N14: 4
A15: QE1 | B15: RXN | C15: LANCASHIRE TEACHING HOSPITALS NHS FOUNDATION TRUST | D15: RXN01 | E15: Chorley and South Ribble Hospital | F15: 0 | G15: NA | H15: NA | I15: 0 | J15: 0 | K15: 0 | L15: 0 | M15: 0 | N15: 0
A16: QE1 | B16: RXN | C16: LANCASHIRE TEACHING HOSPITALS NHS FOUNDATION TRUST | D16: RXN02 | E16: Royal Preston Hospital | F16: 28 | G16: 0.8214285714 | H16: 0.1428571429 | I16: 20 | J16: 3 | K16: 1 | L16: 3 | M16: 1 | N16: 0
A17: QE1 | B17: RTX | C17: UNIVERSITY HOSPITALS OF MORECAMBE BAY NHS FOUNDATION TRUST | D17: RTXBW | E17: Westmorland General Hospital | F17: 0 | G17: NA | H17: NA | I17: 0 | J17: 0 | K17: 0 | L17: 0 | M17: 0 | N17: 0
A18: QE1 | B18: RTX | C18: UNIVERSITY HOSPITALS OF MORECAMBE BAY NHS FOUNDATION TRUST | D18: RTXBU | E18: Furness General Hospital | F18: 11 | G18: 1 | H18: 0 | I18: 10 | J18: 1 | K18: 0 | L18: 0 | M18: 0 | N18: 0
A19: QE1 | B19: RTX | C19: UNIVERSITY HOSPITALS OF MORECAMBE BAY NHS FOUNDATION TRUST | D19: RTX02 | E19: Royal Lancaster Infirmary | F19: 12 | G19: 1 | H19: 0 | I19: 10 | J19: 2 | K19: 0 | L19: 0 | M19: 0 | N19: 0
A20: QF7 | B20: RFF | C20: BARNSLEY HOSPITAL NHS FOUNDATION TRUST | D20: RFFAA | E20: Barnsley Hospital NHS Foundation Trust HQ | F20: 22 | G20: 0.9090909091 | H20: 0.04545454545 | I20: 11 | J20: 9 | K20: 1 | L20: 1 | M20: 0 | N20: 0
A21: QF7 | B21: RP5 | C21: DONCASTER AND BASSETLAW TEACHING HOSPITALS NHS FOUNDATION TRUST | D21: RP5BA | E21: Bassetlaw Hospital | F21: 0 | G21: NA | H21: NA | I21: 0 | J21: 0 | K21: 0 | L21: 0 | M21: 0 | N21: 0
A22: QF7 | B22: RP5 | C22: DONCASTER AND BASSETLAW TEACHING HOSPITALS NHS FOUNDATION TRUST | D22: RP5DR | E22: Doncaster Royal Infirmary | F22: 74 | G22: 0.9864864865 | H22: 0 | I22: 63 | J22: 10 | K22: 1 | L22: 0 | M22: 0 | N22: 0
A23: QF7 | B23: RHQ | C23: SHEFFIELD TEACHING HOSPITALS NHS FOUNDATION TRUST | D23: RHQHH | E23: Royal Hallamshire Hospital | F23: 106 | G23: 0.8679245283 | H23: 0.08490566038 | I23: 67 | J23: 25 | K23: 3 | L23: 5 | M23: 4 | N23: 2
A24: QF7 | B24: RFR | C24: THE ROTHERHAM NHS FOUNDATION TRUST | D24: RFRPA | E24: Rotherham District General Hospital | F24: 18 | G24: 0.9444444444 | H24: 0 | I24: 15 | J24: 2 | K24: 0 | L24: 0 | M24: 0 | N24: 1
A25: QGH | B25: RWP | C25: WORCESTERSHIRE ACUTE HOSPITALS NHS TRUST | D25: RWP50 | E25: Worcestershire Royal Hospital | F25: 2 | G25: * | H25: * | I25: * | J25: * | K25: * | L25: * | M25: * | N25: *
A26: QGH | B26: RLQ | C26: WYE VALLEY NHS TRUST | D26: RLQ01 | E26: Hereford County Hospital | F26: 4 | G26: * | H26: * | I26: * | J26: * | K26: * | L26: * | M26: * | N26: *
A27: QH8 | B27: RAJ | C27: MID AND SOUTH ESSEX NHS FOUNDATION TRUST | D27: RAJ01 | E27: Southend Hospital | F27: 9 | G27: 0.8888888889 | H27: 0 | I27: 4 | J27: 4 | K27: 1 | L27: 0 | M27: 0 | N27: 0
A28: QH8 | B28: RAJ | C28: MID AND SOUTH ESSEX NHS FOUNDATION TRUST | D28: RAJ32 | E28: MID ESSEX HOSPITAL | F28: 21 | G28: 0.7142857143 | H28: 0.2380952381 | I28: 12 | J28: 3 | K28: 1 | L28: 2 | M28: 3 | N28: 0
A29: QH8 | B29: RAJ | C29: MID AND SOUTH ESSEX NHS FOUNDATION TRUST | D29: RAJ12 | E29: BASILDON HOSPITAL | F29: 52 | G29: 0.7884615385 | H29: 0.1538461538 | I29: 30 | J29: 11 | K29: 3 | L29: 2 | M29: 6 | N29: 0
A30: QHG | B30: RC9 | C30: BEDFORDSHIRE HOSPITALS NHS FOUNDATION TRUST | D30: RC979 | E30: BEDFORD HOSPITAL SOUTH WING | F30: 18 | G30: 0.8888888889 | H30: 0.05555555556 | I30: 14 | J30: 2 | K30: 1 | L30: 1 | M30: 0 | N30: 0
A31: QHG | B31: RC9 | C31: BEDFORDSHIRE HOSPITALS NHS FOUNDATION TRUST | D31: RC971 | E31: Luton and Dunstable Hospital | F31: 112 | G31: 0.9375 | H31: 0.04464285714 | I31: 78 | J31: 27 | K31: 2 | L31: 4 | M31: 1 | N31: 0
A32: QHG | B32: RD8 | C32: MILTON KEYNES UNIVERSITY HOSPITAL NHS FOUNDATION TRUST | D32: RD816 | E32: Milton Keynes Hospital | F32: 58 | G32: 0.9482758621 | H32: 0.03448275862 | I32: 39 | J32: 16 | K32: 0 | L32: 0 | M32: 2 | N32: 1
A33: QHL | B33: RQ3 | C33: BIRMINGHAM WOMEN'S AND CHILDREN'S NHS FOUNDATION TRUST | D33: RQ370 | E33: Birmingham Women's Hospital | F33: 2 | G33: * | H33: * | I33: * | J33: * | K33: * | L33: * | M33: * | N33: *
A34: QHL | B34: RRK | C34: UNIVERSITY HOSPITALS BIRMINGHAM NHS FOUNDATION TRUST | D34: RRK97 | E34: Heartlands Hospital | F34: 0 | G34: NA | H34: NA | I34: 0 | J34: 0 | K34: 0 | L34: 0 | M34: 0 | N34: 0
A35: QHL | B35: RRK | C35: UNIVERSITY HOSPITALS BIRMINGHAM NHS FOUNDATION TRUST | D35: RRK99 | E35: Solihull Hospital | F35: 0 | G35: NA | H35: NA | I35: 0 | J35: 0 | K35: 0 | L35: 0 | M35: 0 | N35: 0
A36: QHL | B36: RRK | C36: UNIVERSITY HOSPITALS BIRMINGHAM NHS FOUNDATION TRUST | D36: RRK98 | E36: Good Hope Hospital | F36: 16 | G36: 0.9375 | H36: 0 | I36: * | J36: * | K36: * | L36: * | M36: * | N36: *
A37: QHM | B37: RXP | C37: COUNTY DURHAM AND DARLINGTON NHS FOUNDATION TRUST | D37: RXPDA | E37: Darlington Memorial Hospital | F37: 10 | G37: 1 | H37: 0 | I37: * | J37: * | K37: * | L37: * | M37: * | N37: *
A38: QHM | B38: RNN | C38: NORTH CUMBRIA INTEGRATED CARE NHS FOUNDATION TRUST | D38: RNN62 | E38: Cumberland Infirmary | F38: 5 | G38: 1 | H38: 0 | I38: 5 | J38: 0 | K38: 0 | L38: 0 | M38: 0 | N38: 0
A39: QHM | B39: RNN | C39: NORTH CUMBRIA INTEGRATED CARE NHS FOUNDATION TRUST | D39: RNNBX | E39: West Cumberland Hospital | F39: 8 | G39: 0.875 | H39: 0 | I39: 6 | J39: 1 | K39: 1 | L39: 0 | M39: 0 | N39: 0
A40: QHM | B40: RVW | C40: NORTH TEES AND HARTLEPOOL NHS FOUNDATION TRUST | D40: RVWAE | E40: University Hospital Of North Tees | F40: 2 | G40: * | H40: * | I40: * | J40: * | K40: * | L40: * | M40: * | N40: *
A41: QHM | B41: RTF | C41: NORTHUMBRIA HEALTHCARE NHS FOUNDATION TRUST | D41: RTFDH | E41: Berwick Infirmary | F41: 0 | G41: NA | H41: NA | I41: 0 | J41: 0 | K41: 0 | L41: 0 | M41: 0 | N41: 0
A42: QHM | B42: RTF | C42: NORTHUMBRIA HEALTHCARE NHS FOUNDATION TRUST | D42: RTFDR | E42: Hexham General Hospital | F42: 0 | G42: NA | H42: NA | I42: 0 | J42: 0 | K42: 0 | L42: 0 | M42: 0 | N42: 0
A43: QHM | B43: RTF | C43: NORTHUMBRIA HEALTHCARE NHS FOUNDATION TRUST | D43: RTFDJ | E43: Alnwick Infirmary | F43: 2 | G43: * | H43: * | I43: * | J43: * | K43: * | L43: * | M43: * | N43: *
A44: QHM | B44: RTF | C44: NORTHUMBRIA HEALTHCARE NHS FOUNDATION TRUST | D44: RTF86 | E44: The Northumbria | F44: 72 | G44: 0.9027777778 | H44: 0.05555555556 | I44: 47 | J44: 18 | K44: 3 | L44: 4 | M44: 0 | N44: 0
A45: QHM | B45: RTR | C45: SOUTH TEES HOSPITALS NHS FOUNDATION TRUST | D45: RTRAT | E45: The James Cook University Hospital | F45: 16 | G45: 1 | H45: 0 | I45: 15 | J45: 1 | K45: 0 | L45: 0 | M45: 0 | N45: 0
A46: QHM | B46: R0B | C46: SOUTH TYNESIDE AND SUNDERLAND NHS FOUNDATION TRUST | D46: R0B01 | E46: Sunderland Royal Hospital | F46: 0 | G46: NA | H46: NA | I46: 0 | J46: 0 | K46: 0 | L46: 0 | M46: 0 | N46: 0
A47: QHM | B47: R0B | C47: SOUTH TYNESIDE AND SUNDERLAND NHS FOUNDATION TRUST | D47: R0B0Q | E47: South Tyneside District Hospital | F47: 0 | G47: NA | H47: NA | I47: 0 | J47: 0 | K47: 0 | L47: 0 | M47: 0 | N47: 0
A48: QJ2 | B48: RFS | C48: CHESTERFIELD ROYAL HOSPITAL NHS FOUNDATION TRUST | D48: RFSDA | E48: Chesterfield Royal Hospital | F48: 37 | G48: 1 | H48: 0 | I48: 32 | J48: 5 | K48: 0 | L48: 0 | M48: 0 | N48: 0
A49: QJ2 | B49: RTG | C49: UNIVERSITY HOSPITALS OF DERBY AND BURTON NHS FOUNDATION TRUST | D49: RTG02 | E49: Queens Hospital, Burton Upon Trent | F49: 6 | G49: 1 | H49: 0 | I49: 4 | J49: 2 | K49: 0 | L49: 0 | M49: 0 | N49: 0
A50: QJ2 | B50: RTG | C50: UNIVERSITY HOSPITALS OF DERBY AND BURTON NHS FOUNDATION TRUST | D50: RTGFG | E50: Royal Derby Hospital | F50: 34 | G50: 0.9411764706 | H50: 0 | I50: 24 | J50: 8 | K50: 2 | L50: 0 | M50: 0 | N50: 0
A51: QJG | B51: RDE | C51: EAST SUFFOLK AND NORTH ESSEX NHS FOUNDATION TRUST | D51: RDE03 | E51: Ipswich Hospital | F51: 0 | G51: NA | H51: NA | I51: 0 | J51: 0 | K51: 0 | L51: 0 | M51: 0 | N51: 0
A52: QJG | B52: RDE | C52: EAST SUFFOLK AND NORTH ESSEX NHS FOUNDATION TRUST | D52: RDEE4 | E52: Colchester General Hospital | F52: 27 | G52: 1 | H52: 0 | I52: 20 | J52: 7 | K52: 0 | L52: 0 | M52: 0 | N52: 0
A53: QJG | B53: RGR | C53: WEST SUFFOLK NHS FOUNDATION TRUST | D53: RGR50 | E53: West Suffolk Hospital | F53: 0 | G53: NA | H53: NA | I53: 0 | J53: 0 | K53: 0 | L53: 0 | M53: 0 | N53: 0
A54: QJK | B54: RBZ | C54: NORTHERN DEVON HEALTHCARE NHS TRUST | D54: RBZ12 | E54: North Devon District Hospital | F54: 13 | G54: 1 | H54: 0 | I54: 12 | J54: 1 | K54: 0 | L54: 0 | M54: 0 | N54: 0
A55: QJK | B55: RH8 | C55: ROYAL DEVON AND EXETER NHS FOUNDATION TRUST | D55: RH801 | E55: Royal Devon and Exeter Hospital (Wonford) | F55: 0 | G55: NA | H55: NA | I55: 0 | J55: 0 | K55: 0 | L55: 0 | M55: 0 | N55: 0
A56: QJK | B56: RK9 | C56: UNIVERSITY HOSPITALS PLYMOUTH NHS TRUST | D56: RK950 | E56: Derriford Hospital | F56: 32 | G56: 1 | H56: 0 | I56: 24 | J56: 8 | K56: 0 | L56: 0 | M56: 0 | N56: 0
A57: QJM | B57: RWD | C57: UNITED LINCOLNSHIRE HOSPITALS NHS TRUST | D57: RWDLA | E57: Pilgrim Hospital | F57: 0 | G57: NA | H57: NA | I57: 0 | J57: 0 | K57: 0 | L57: 0 | M57: 0 | N57: 0
A58: QJM | B58: RWD | C58: UNITED LINCOLNSHIRE HOSPITALS NHS TRUST | D58: RWDLP | E58: Grantham and District Hospital | F58: 0 | G58: NA | H58: NA | I58: 0 | J58: 0 | K58: 0 | L58: 0 | M58: 0 | N58: 0
A59: QJM | B59: RWD | C59: UNITED LINCOLNSHIRE HOSPITALS NHS TRUST | D59: RWDDA | E59: Lincoln County Hospital | F59: 18 | G59: 1 | H59: 0 | I59: 17 | J59: 1 | K59: 0 | L59: 0 | M59: 0 | N59: 0
A60: QK1 | B60: RWE | C60: UNIVERSITY HOSPITALS OF LEICESTER NHS TRUST | D60: RWE10 | E60: St Mary's Hospital | F60: 14 | G60: 1 | H60: 0 | I60: 14 | J60: 0 | K60: 0 | L60: 0 | M60: 0 | N60: 0
A61: QK1 | B61: RWE | C61: UNIVERSITY HOSPITALS OF LEICESTER NHS TRUST | D61: RWEAK | E61: Leicester General Hospital | F61: 75 | G61: 0.9866666667 | H61: 0.01333333333 | I61: 60 | J61: 14 | K61: 0 | L61: 0 | M61: 1 | N61: 0
A62: QK1 | B62: RWE | C62: UNIVERSITY HOSPITALS OF LEICESTER NHS TRUST | D62: RWEAA | E62: Leicester Royal Infirmary | F62: 217 | G62: 0.9447004608 | H62: 0.009216589862 | I62: 158 | J62: 47 | K62: 8 | L62: 2 | M62: 0 | N62: 2
A63: QKK | B63: RJ1 | C63: GUY'S AND ST THOMAS' NHS FOUNDATION TRUST | D63: RJ122 | E63: St Thomas' Hospital | F63: 12 | G63: 0.9166666667 | H63: 0 | I63: 9 | J63: 2 | K63: 1 | L63: 0 | M63: 0 | N63: 0
A64: QKK | B64: RJZ | C64: KING'S COLLEGE HOSPITAL NHS FOUNDATION TRUST | D64: RJZ01 | E64: King's College Hospital (Denmark Hill) | F64: 46 | G64: 0.9565217391 | H64: 0.02173913043 | I64: 29 | J64: 15 | K64: 1 | L64: 1 | M64: 0 | N64: 0
A65: QKK | B65: RJZ | C65: KING'S COLLEGE HOSPITAL NHS FOUNDATION TRUST | D65: RJZ30 | E65: Princess Royal University Hospital | F65: 112 | G65: 0.9642857143 | H65: 0.01785714286 | I65: 76 | J65: 32 | K65: 2 | L65: 2 | M65: 0 | N65: 0
A66: QKK | B66: RJ2 | C66: LEWISHAM AND GREENWICH NHS TRUST | D66: RJ231 | E66: Queen Elizabeth Hospital | F66: 22 | G66: 0.7272727273 | H66: 0.09090909091 | I66: 8 | J66: 8 | K66: 3 | L66: 1 | M66: 1 | N66: 1
A67: QKK | B67: RJ2 | C67: LEWISHAM AND GREENWICH NHS TRUST | D67: RJ224 | E67: University Hospital Lewisham | F67: 41 | G67: 1 | H67: 0 | I67: 24 | J67: 17 | K67: 0 | L67: 0 | M67: 0 | N67: 0
A68: QKS | B68: RN7 | C68: DARTFORD AND GRAVESHAM NHS TRUST | D68: RN707 | E68: Darent Valley Hospital | F68: 45 | G68: 0.9555555556 | H68: 0.02222222222 | I68: 38 | J68: 5 | K68: 1 | L68: 0 | M68: 1 | N68: 0
A69: QKS | B69: RWF | C69: MAIDSTONE AND TUNBRIDGE WELLS NHS TRUST | D69: RWFTW | E69: The Tunbridge Wells Hospital | F69: 116 | G69: 1 | H69: 0 | I69: 102 | J69: 14 | K69: 0 | L69: 0 | M69: 0 | N69: 0
A70: QKS | B70: RPA | C70: MEDWAY NHS FOUNDATION TRUST | D70: RPA02 | E70: Medway Maritime Hospital | F70: 74 | G70: 0.9864864865 | H70: 0 | I70: 63 | J70: 10 | K70: 1 | L70: 0 | M70: 0 | N70: 0
A71: QM7 | B71: RWH | C71: EAST AND NORTH HERTFORDSHIRE NHS TRUST | D71: RWH01 | E71: Lister Hospital | F71: 125 | G71: 0.944 | H71: 0 | I71: 89 | J71: 29 | K71: 6 | L71: 0 | M71: 0 | N71: 1
A72: QM7 | B72: RQW | C72: THE PRINCESS ALEXANDRA HOSPITAL NHS TRUST | D72: RQWG0 | E72: Princess Alexandra Hospital | F72: 0 | G72: NA | H72: NA | I72: 0 | J72: 0 | K72: 0 | L72: 0 | M72: 0 | N72: 0
A73: QM7 | B73: RWG | C73: WEST HERTFORDSHIRE HOSPITALS NHS TRUST | D73: RWG02 | E73: Watford General Hospital | F73: 72 | G73: 0.9583333333 | H73: 0.01388888889 | I73: 55 | J73: 14 | K73: 1 | L73: 0 | M73: 1 | N73: 1
A74: QMF | B74: RF4 | C74: BARKING, HAVERING AND REDBRIDGE UNIVERSITY HOSPITALS NHS TRUST | D74: RF4QH | E74: Queen's Hospital | F74: 0 | G74: NA | H74: NA | I74: 0 | J74: 0 | K74: 0 | L74: 0 | M74: 0 | N74: 0
A75: QMF | B75: R1H | C75: BARTS HEALTH NHS TRUST | D75: R1H12 | E75: The Royal London Hospital | F75: 2 | G75: * | H75: * | I75: * | J75: * | K75: * | L75: * | M75: * | N75: *
A76: QMF | B76: R1H | C76: BARTS HEALTH NHS TRUST | D76: R1HKH | E76: Whipps Cross University Hospital | F76: 25 | G76: 1 | H76: 0 | I76: * | J76: * | K76: * | L76: * | M76: * | N76: *
A77: QMF | B77: R1H | C77: BARTS HEALTH NHS TRUST | D77: R1HNH | E77: Newham General Hospital | F77: 61 | G77: 0.9344262295 | H77: 0.03278688525 | I77: 44 | J77: 13 | K77: 2 | L77: 1 | M77: 1 | N77: 0
A78: QMJ | B78: RAL | C78: ROYAL FREE LONDON NHS FOUNDATION TRUST | D78: RAL26 | E78: Barnet Hospital | F78: 2 | G78: * | H78: * | I78: * | J78: * | K78: * | L78: * | M78: * | N78: *
A79: QMJ | B79: RAL | C79: ROYAL FREE LONDON NHS FOUNDATION TRUST | D79: RAL01 | E79: Royal Free Hospital | F79: 68 | G79: 0.9117647059 | H79: 0.04411764706 | I79: 37 | J79: 25 | K79: 3 | L79: 2 | M79: 1 | N79: 0
A80: QMJ | B80: RKE | C80: WHITTINGTON HEALTH NHS TRUST | D80: RKEXXX | E80: Non-hospital site | F80: 0 | G80: NA | H80: NA | I80: 0 | J80: 0 | K80: 0 | L80: 0 | M80: 0 | N80: 0
A81: QMJ | B81: RKE | C81: WHITTINGTON HEALTH NHS TRUST | D81: RKEQ4 | E81: The Whittington Hospital | F81: 53 | G81: 1 | H81: 0 | I81: 0 | J81: 53 | K81: 0 | L81: 0 | M81: 0 | N81: 0
A82: QMM | B82: RM1 | C82: NORFOLK AND NORWICH UNIVERSITY HOSPITALS NHS FOUNDATION TRUST | D82: RM102 | E82: Norfolk and Norwich University Hospital | F82: 4 | G82: * | H82: * | I82: * | J82: * | K82: * | L82: * | M82: * | N82: *
A83: QMM | B83: RCX | C83: THE QUEEN ELIZABETH HOSPITAL, KING'S LYNN, NHS FOUNDATION TRUST | D83: RCX70 | E83: The Queen Elizabeth Hospital | F83: 22 | G83: 1 | H83: 0 | I83: * | J83: * | K83: * | L83: * | M83: * | N83: *
A84: QNC | B84: RJE | C84: UNIVERSITY HOSPITALS OF NORTH MIDLANDS NHS TRUST | D84: RJE01 | E84: Royal Stoke University Hospital | F84: 4 | G84: * | H84: * | I84: * | J84: * | K84: * | L84: * | M84: * | N84: *
A85: QNQ | B85: RDU | C85: FRIMLEY HEALTH NHS FOUNDATION TRUST | D85: RDU01 | E85: Frimley Park Hospital | F85: 38 | G85: 1 | H85: 0 | I85: * | J85: * | K85: * | L85: * | M85: * | N85: *
A86: QNQ | B86: RDU | C86: FRIMLEY HEALTH NHS FOUNDATION TRUST | D86: RDU50 | E86: Wexham Park Hospital | F86: 38 | G86: 1 | H86: 0 | I86: * | J86: * | K86: * | L86: * | M86: * | N86: *
A87: QNX | B87: RXH | C87: BRIGHTON AND SUSSEX UNIVERSITY HOSPITALS NHS TRUST | D87: RXH09 | E87: Princess Royal Hospital | F87: 22 | G87: 1 | H87: 0 | I87: 18 | J87: 4 | K87: 0 | L87: 0 | M87: 0 | N87: 0
A88: QNX | B88: RXH | C88: BRIGHTON AND SUSSEX UNIVERSITY HOSPITALS NHS TRUST | D88: RXH01 | E88: Royal Sussex County Hospital | F88: 23 | G88: 0.9565217391 | H88: 0.04347826087 | I88: 20 | J88: 2 | K88: 0 | L88: 0 | M88: 1 | N88: 0
A89: QNX | B89: RXC | C89: EAST SUSSEX HEALTHCARE NHS TRUST | D89: RXC02 | E89: Eastbourne District General Hospital | F89: 0 | G89: NA | H89: NA | I89: 0 | J89: 0 | K89: 0 | L89: 0 | M89: 0 | N89: 0
A90: QNX | B90: RXC | C90: EAST SUSSEX HEALTHCARE NHS TRUST | D90: RXC01 | E90: Conquest Hospital | F90: 44 | G90: 0.9772727273 | H90: 0 | I90: 34 | J90: 9 | K90: 1 | L90: 0 | M90: 0 | N90: 0
A91: QNX | B91: RYR | C91: WESTERN SUSSEX HOSPITALS NHS FOUNDATION TRUST | D91: RYR18 | E91: Worthing Hospital | F91: 6 | G91: 1 | H91: 0 | I91: 6 | J91: 0 | K91: 0 | L91: 0 | M91: 0 | N91: 0
A92: QNX | B92: RYR | C92: WESTERN SUSSEX HOSPITALS NHS FOUNDATION TRUST | D92: RYR16 | E92: St Richard's Hospital | F92: 16 | G92: 0.9375 | H92: 0.0625 | I92: 12 | J92: 3 | K92: 0 | L92: 1 | M92: 0 | N92: 0
A93: QOC | B93: RXW | C93: THE SHREWSBURY AND TELFORD HOSPITAL NHS TRUST | D93: RXWAS | E93: Royal Shrewsbury Hospital | F93: 0 | G93: NA | H93: NA | I93: 0 | J93: 0 | K93: 0 | L93: 0 | M93: 0 | N93: 0
A94: QOC | B94: RXW | C94: THE SHREWSBURY AND TELFORD HOSPITAL NHS TRUST | D94: RXWMB | E94: Bridgnorth Hospital (Maternity) | F94: 0 | G94: NA | H94: NA | I94: 0 | J94: 0 | K94: 0 | L94: 0 | M94: 0 | N94: 0
A95: QOC | B95: RXW | C95: THE SHREWSBURY AND TELFORD HOSPITAL NHS TRUST | D95: RXWMJ | E95: Robert Jones & Agnes Hunt Orthopaedic & District Hospital | F95: 0 | G95: NA | H95: NA | I95: 0 | J95: 0 | K95: 0 | L95: 0 | M95: 0 | N95: 0
A96: QOC | B96: RXW | C96: THE SHREWSBURY AND TELFORD HOSPITAL NHS TRUST | D96: RXWAT | E96: The Princess Royal Hospital | F96: 49 | G96: 1 | H96: 0 | I96: 41 | J96: 8 | K96: 0 | L96: 0 | M96: 0 | N96: 0
A97: QOP | B97: R0A | C97: MANCHESTER UNIVERSITY NHS FOUNDATION TRUST | D97: R0A05 | E97: St Mary's Hospital | F97: 214 | G97: 0.9859813084 | H97: 0.009345794393 | I97: 186 | J97: 25 | K97: 1 | L97: 2 | M97: 0 | N97: 0
A98: QOP | B98: RW6 | C98: PENNINE ACUTE HOSPITALS NHS TRUST | D98: RW602 | E98: North Manchester General Hospital | F98: 15 | G98: 0.7333333333 | H98: 0.2 | I98: * | J98: * | K98: * | L98: * | M98: * | N98: *
A99: QOP | B99: RW6 | C99: PENNINE ACUTE HOSPITALS NHS TRUST | D99: RW603 | E99: Royal Oldham Hospital | F99: 17 | G99: 0.9411764706 | H99: 0 | I99: * | J99: * | K99: * | L99: * | M99: * | N99: *
A100: QOP | B100: RWJ | C100: STOCKPORT NHS FOUNDATION TRUST | D100: RWJ09 | E100: Stepping Hill Hospital | F100: 57 | G100: 0.9649122807 | H100: 0.01754385965 | I100: 49 | J100: 6 | K100: 0 | L100: 0 | M100: 1 | N100: 1
A101: QOP | B101: RMP | C101: TAMESIDE AND GLOSSOP INTEGRATED CARE NHS FOUNDATION TRUST | D101: RMP01 | E101: Tameside General Hospital | F101: 1 | G101: * | H101: * | I101: * | J101: * | K101: * | L101: * | M101: * | N101: *
A102: QOQ | B102: RCD | C102: HARROGATE AND DISTRICT NHS FOUNDATION TRUST | D102: RCD01 | E102: Harrogate District Hospital | F102: 43 | G102: 1 | H102: 0 | I102: 38 | J102: 5 | K102: 0 | L102: 0 | M102: 0 | N102: 0
A103: QOQ | B103: RWA | C103: HULL UNIVERSITY TEACHING HOSPITALS NHS TRUST | D103: RWA01 | E103: Hull Royal Infirmary | F103: 7 | G103: 1 | H103: 0 | I103: 5 | J103: 2 | K103: 0 | L103: 0 | M103: 0 | N103: 0
A104: QOQ | B104: RCB | C104: YORK TEACHING HOSPITAL NHS FOUNDATION TRUST | D104: RCBCA | E104: Scarborough General Hospital | F104: 47 | G104: 0.9787234043 | H104: 0 | I104: 42 | J104: 4 | K104: 1 | L104: 0 | M104: 0 | N104: 0
A105: QOQ | B105: RCB | C105: YORK TEACHING HOSPITAL NHS FOUNDATION TRUST | D105: RCB55 | E105: York Hospital | F105: 98 | G105: 1 | H105: 0 | I105: 88 | J105: 10 | K105: 0 | L105: 0 | M105: 0 | N105: 0
A106: QOX | B106: RN3 | C106: GREAT WESTERN HOSPITALS NHS FOUNDATION TRUST | D106: RN325 | E106: The Great Western Hospital | F106: 0 | G106: NA | H106: NA | I106: 0 | J106: 0 | K106: 0 | L106: 0 | M106: 0 | N106: 0
A107: QOX | B107: RD1 | C107: ROYAL UNITED HOSPITALS BATH NHS FOUNDATION TRUST | D107: RD130 | E107: Princess Anne Wing RUH | F107: 1 | G107: * | H107: * | I107: * | J107: * | K107: * | L107: * | M107: * | N107: *
A108: QOX | B108: RNZ | C108: SALISBURY NHS FOUNDATION TRUST | D108: RNZ02 | E108: Salisbury District Hospital | F108: 0 | G108: NA | H108: NA | I108: 0 | J108: 0 | K108: 0 | L108: 0 | M108: 0 | N108: 0
A109: QPM | B109: RNS | C109: NORTHAMPTON GENERAL HOSPITAL NHS TRUST | D109: RNS01 | E109: Northampton General Hospital (Acute) | F109: 3 | G109: * | H109: * | I109: * | J109: * | K109: * | L109: * | M109: * | N109: *
A110: QR1 | B110: RTE | C110: GLOUCESTERSHIRE HOSPITALS NHS FOUNDATION TRUST | D110: RTE01 | E110: Cheltenham General Hospital | F110: 0 | G110: NA | H110: NA | I110: 0 | J110: 0 | K110: 0 | L110: 0 | M110: 0 | N110: 0
A111: QR1 | B111: RTE | C111: GLOUCESTERSHIRE HOSPITALS NHS FOUNDATION TRUST | D111: RTE27 | E111: Stroud Maternity Hospital | F111: 0 | G111: NA | H111: NA | I111: 0 | J111: 0 | K111: 0 | L111: 0 | M111: 0 | N111: 0
A112: QR1 | B112: RTE | C112: GLOUCESTERSHIRE HOSPITALS NHS FOUNDATION TRUST | D112: RTEXXX | E112: Non-hospital site | F112: 0 | G112: NA | H112: NA | I112: 0 | J112: 0 | K112: 0 | L112: 0 | M112: 0 | N112: 0
A113: QR1 | B113: RTE | C113: GLOUCESTERSHIRE HOSPITALS NHS FOUNDATION TRUST | D113: RTE03 | E113: Gloucestershire Royal Hospital | F113: 22 | G113: 0.8181818182 | H113: 0.09090909091 | I113: * | J113: * | K113: * | L113: * | M113: * | N113: *
A114: QRL | B114: RN5 | C114: HAMPSHIRE HOSPITALS NHS FOUNDATION TRUST | D114: RN541 | E114: Royal Hampshire County Hospital | F114: 0 | G114: NA | H114: NA | I114: 0 | J114: 0 | K114: 0 | L114: 0 | M114: 0 | N114: 0
A115: QRL | B115: RN5 | C115: HAMPSHIRE HOSPITALS NHS FOUNDATION TRUST | D115: RN506 | E115: Basingstoke and North Hampshire Hospital | F115: 2 | G115: * | H115: * | I115: * | J115: * | K115: * | L115: * | M115: * | N115: *
A116: QRL | B116: R1F | C116: ISLE OF WIGHT NHS TRUST | D116: R1F01 | E116: St Mary's Hospital | F116: 4 | G116: * | H116: * | I116: * | J116: * | K116: * | L116: * | M116: * | N116: *
A117: QRL | B117: RHU | C117: PORTSMOUTH HOSPITALS UNIVERSITY NATIONAL HEALTH SERVICE TRUST | D117: RHU02 | E117: St Mary's Hospital | F117: 0 | G117: NA | H117: NA | I117: 0 | J117: 0 | K117: 0 | L117: 0 | M117: 0 | N117: 0
A118: QRL | B118: RHU | C118: PORTSMOUTH HOSPITALS UNIVERSITY NATIONAL HEALTH SERVICE TRUST | D118: RHU03 | E118: Queen Alexandra Hospital | F118: 0 | G118: NA | H118: NA | I118: 0 | J118: 0 | K118: 0 | L118: 0 | M118: 0 | N118: 0
A119: QRL | B119: RHU | C119: PORTSMOUTH HOSPITALS UNIVERSITY NATIONAL HEALTH SERVICE TRUST | D119: RHU04 | E119: Petersfield Community Hospital | F119: 0 | G119: NA | H119: NA | I119: 0 | J119: 0 | K119: 0 | L119: 0 | M119: 0 | N119: 0
A120: QRL | B120: RHU | C120: PORTSMOUTH HOSPITALS UNIVERSITY NATIONAL HEALTH SERVICE TRUST | D120: RHU10 | E120: Gosport War Memorial Hospital | F120: 0 | G120: NA | H120: NA | I120: 0 | J120: 0 | K120: 0 | L120: 0 | M120: 0 | N120: 0
A121: QRL | B121: RHM | C121: UNIVERSITY HOSPITAL SOUTHAMPTON NHS FOUNDATION TRUST | D121: RHM12 | E121: Princess Anne Hospital | F121: 120 | G121: 0.6583333333 | H121: 0.1333333333 | I121: 47 | J121: 32 | K121: 10 | L121: 12 | M121: 4 | N121: 15
A122: QRV | B122: RQM | C122: CHELSEA AND WESTMINSTER HOSPITAL NHS FOUNDATION TRUST | D122: RQM91 | E122: West Middlesex University Hospital | F122: 6 | G122: 1 | H122: 0 | I122: 6 | J122: 0 | K122: 0 | L122: 0 | M122: 0 | N122: 0
A123: QRV | B123: RQM | C123: CHELSEA AND WESTMINSTER HOSPITAL NHS FOUNDATION TRUST | D123: RQM01 | E123: Chelsea and Westminster Hospital | F123: 83 | G123: 0.8192771084 | H123: 0.1325301205 | I123: 54 | J123: 14 | K123: 4 | L123: 4 | M123: 7 | N123: 0
A124: QRV | B124: RYJ | C124: IMPERIAL COLLEGE HEALTHCARE NHS TRUST | D124: RYJ04 | E124: Queen Charlotte's Hospital | F124: 9 | G124: 0.8888888889 | H124: 0.1111111111 | I124: 7 | J124: 1 | K124: 0 | L124: 1 | M124: 0 | N124: 0
A125: QRV | B125: RYJ | C125: IMPERIAL COLLEGE HEALTHCARE NHS TRUST | D125: RYJ01 | E125: St Mary's Hospital (HQ) | F125: 10 | G125: 0.7 | H125: 0 | I125: 4 | J125: 3 | K125: 3 | L125: 0 | M125: 0 | N125: 0
A126: QRV | B126: R1K | C126: LONDON NORTH WEST UNIVERSITY HEALTHCARE NHS TRUST | D126: R1K01 | E126: Northwick Park Hospital | F126: 0 | G126: NA | H126: NA | I126: 0 | J126: 0 | K126: 0 | L126: 0 | M126: 0 | N126: 0
A127: QRV | B127: RAS | C127: THE HILLINGDON HOSPITALS NHS FOUNDATION TRUST | D127: RAS01 | E127: Hillingdon Hospital | F127: 5 | G127: 1 | H127: 0 | I127: 5 | J127: 0 | K127: 0 | L127: 0 | M127: 0 | N127: 0
A128: QSL | B128: RH5 | C128: SOMERSET NHS FOUNDATION TRUST | D128: RH5A8 | E128: MUSGROVE PARK HOSPITAL | F128: 0 | G128: NA | H128: NA | I128: 0 | J128: 0 | K128: 0 | L128: 0 | M128: 0 | N128: 0
A129: QSL | B129: RA4 | C129: YEOVIL DISTRICT HOSPITAL NHS FOUNDATION TRUST | D129: RA430 | E129: Yeovil District Hospital | F129: 23 | G129: 1 | H129: 0 | I129: 22 | J129: 1 | K129: 0 | L129: 0 | M129: 0 | N129: 0
A130: QT1 | B130: RX1 | C130: NOTTINGHAM UNIVERSITY HOSPITALS NHS TRUST | D130: RX1CC | E130: Nottingham University Hospitals NHS Trust - City Campus | F130: 1 | G130: * | H130: * | I130: * | J130: * | K130: * | L130: * | M130: * | N130: *
A131: QT1 | B131: RX1 | C131: NOTTINGHAM UNIVERSITY HOSPITALS NHS TRUST | D131: RX1RA | E131: Nottingham University Hospitals NHS Trust - Queen's Medical Centre Campus | F131: 20 | G131: 0.95 | H131: 0 | I131: * | J131: * | K131: * | L131: * | M131: * | N131: *
A132: QT1 | B132: RK5 | C132: SHERWOOD FOREST HOSPITALS NHS FOUNDATION TRUST | D132: RK5BC | E132: King's Mill Hospital | F132: 16 | G132: 0.8125 | H132: 0.0625 | I132: 11 | J132: 2 | K132: 1 | L132: 0 | M132: 1 | N132: 1
A133: QT6 | B133: REF | C133: ROYAL CORNWALL HOSPITALS NHS TRUST | D133: REF12 | E133: Royal Cornwall Hospital (Treliske) | F133: 0 | G133: NA | H133: NA | I133: 0 | J133: 0 | K133: 0 | L133: 0 | M133: 0 | N133: 0
A134: QT6 | B134: REF | C134: ROYAL CORNWALL HOSPITALS NHS TRUST | D134: REFXXX | E134: Non-hospital site | F134: 0 | G134: NA | H134: NA | I134: 0 | J134: 0 | K134: 0 | L134: 0 | M134: 0 | N134: 0
A135: QU9 | B135: RXQ | C135: BUCKINGHAMSHIRE HEALTHCARE NHS TRUST | D135: RXQ02 | E135: Stoke Mandeville Hospital | F135: 43 | G135: 0.8372093023 | H135: 0.04651162791 | I135: 25 | J135: 11 | K135: 5 | L135: 1 | M135: 1 | N135: 0
A136: QU9 | B136: RTH | C136: OXFORD UNIVERSITY HOSPITALS NHS FOUNDATION TRUST | D136: RTH08 | E136: John Radcliffe Hospital | F136: 0 | G136: NA | H136: NA | I136: 0 | J136: 0 | K136: 0 | L136: 0 | M136: 0 | N136: 0
A137: QU9 | B137: RTH | C137: OXFORD UNIVERSITY HOSPITALS NHS FOUNDATION TRUST | D137: RTH16 | E137: Wallingford Community Hospital | F137: 0 | G137: NA | H137: NA | I137: 0 | J137: 0 | K137: 0 | L137: 0 | M137: 0 | N137: 0
A138: QU9 | B138: RTH | C138: OXFORD UNIVERSITY HOSPITALS NHS FOUNDATION TRUST | D138: RTH19 | E138: Chipping Norton Community Hospital | F138: 0 | G138: NA | H138: NA | I138: 0 | J138: 0 | K138: 0 | L138: 0 | M138: 0 | N138: 0
A139: QU9 | B139: RTH | C139: OXFORD UNIVERSITY HOSPITALS NHS FOUNDATION TRUST | D139: RTH21 | E139: Wantage Community Hospital | F139: 0 | G139: NA | H139: NA | I139: 0 | J139: 0 | K139: 0 | L139: 0 | M139: 0 | N139: 0
A140: QU9 | B140: RHW | C140: ROYAL BERKSHIRE NHS FOUNDATION TRUST | D140: RHW01 | E140: Royal Berkshire Hospital | F140: 46 | G140: 0.9782608696 | H140: 0 | I140: 29 | J140: 16 | K140: 1 | L140: 0 | M140: 0 | N140: 0
A141: QUA | B141: RXK | C141: SANDWELL AND WEST BIRMINGHAM HOSPITALS NHS TRUST | D141: RXK02 | E141: City Hospital | F141: 0 | G141: NA | H141: NA | I141: 0 | J141: 0 | K141: 0 | L141: 0 | M141: 0 | N141: 0
A142: QUA | B142: RXK | C142: SANDWELL AND WEST BIRMINGHAM HOSPITALS NHS TRUST | D142: RXKTC | E142: Birmingham Treatment Centre | F142: 0 | G142: NA | H142: NA | I142: 0 | J142: 0 | K142: 0 | L142: 0 | M142: 0 | N142: 0
A143: QUA | B143: RNA | C143: THE DUDLEY GROUP NHS FOUNDATION TRUST | D143: RNA01 | E143: Russells Hall Hospital | F143: 47 | G143: 0.8085106383 | H143: 0 | I143: 30 | J143: 8 | K143: 0 | L143: 0 | M143: 0 | N143: 9
A144: QUA | B144: RBK | C144: WALSALL HEALTHCARE NHS TRUST | D144: RBK02 | E144: Manor Hospital | F144: 18 | G144: 0.7777777778 | H144: 0.1666666667 | I144: 12 | J144: 2 | K144: 1 | L144: 1 | M144: 2 | N144: 0
A145: QUE | B145: RGT | C145: CAMBRIDGE UNIVERSITY HOSPITALS NHS FOUNDATION TRUST | D145: RGT32 | E145: Rosie Hospital | F145: 208 | G145: 0.9519230769 | H145: 0.009615384615 | I145: 148 | J145: 50 | K145: 8 | L145: 2 | M145: 0 | N145: 0
A146: QUE | B146: RGN | C146: NORTH WEST ANGLIA NHS FOUNDATION TRUST | D146: RGN80 | E146: Peterborough City Hospital | F146: 33 | G146: 1 | H146: 0 | I146: 32 | J146: 1 | K146: 0 | L146: 0 | M146: 0 | N146: 0
A147: QUE | B147: RGN | C147: NORTH WEST ANGLIA NHS FOUNDATION TRUST | D147: RGN90 | E147: Hinchingbrooke Hospital | F147: 68 | G147: 0.9705882353 | H147: 0 | I147: 55 | J147: 11 | K147: 1 | L147: 0 | M147: 0 | N147: 1
A148: QUY | B148: RVJ | C148: NORTH BRISTOL NHS TRUST | D148: RVJ01 | E148: Southmead Hospital | F148: 51 | G148: 0.8823529412 | H148: 0.05882352941 | I148: 38 | J148: 7 | K148: 2 | L148: 2 | M148: 1 | N148: 1
A149: QUY | B149: RA7 | C149: UNIVERSITY HOSPITALS BRISTOL AND WESTON NHS FOUNDATION TRUST | D149: RA707 | E149: St Michael's Hospital | F149: 0 | G149: NA | H149: NA | I149: 0 | J149: 0 | K149: 0 | L149: 0 | M149: 0 | N149: 0
A150: QVV | B150: RBD | C150: DORSET COUNTY HOSPITAL NHS FOUNDATION TRUST | D150: RBD01 | E150: Dorset County Hospital | F150: 39 | G150: 0.9487179487 | H150: 0.05128205128 | I150: 32 | J150: 5 | K150: 0 | L150: 0 | M150: 2 | N150: 0
A151: QVV | B151: R0D | C151: UNIVERSITY HOSPITALS DORSET NHS FOUNDATION TRUST | D151: R0D01 | E151: Poole Hospital | F151: 83 | G151: 0.8313253012 | H151: 0.07228915663 | I151: 59 | J151: 10 | K151: 3 | L151: 4 | M151: 2 | N151: 5
A152: QWE | B152: RJ6 | C152: CROYDON HEALTH SERVICES NHS TRUST | D152: RJ611 | E152: Croydon University Hospital | F152: 29 | G152: 0.8620689655 | H152: 0.06896551724 | I152: 23 | J152: 2 | K152: 1 | L152: 0 | M152: 2 | N152: 1
A153: QWE | B153: RVR | C153: EPSOM AND ST HELIER UNIVERSITY HOSPITALS NHS TRUST | D153: RVR50 | E153: Epsom Hospital | F153: 4 | G153: * | H153: * | I153: * | J153: * | K153: * | L153: * | M153: * | N153: *
A154: QWE | B154: RVR | C154: EPSOM AND ST HELIER UNIVERSITY HOSPITALS NHS TRUST | D154: RVR05 | E154: St Helier Hospital | F154: 14 | G154: 1 | H154: 0 | I154: 14 | J154: 0 | K154: 0 | L154: 0 | M154: 0 | N154: 0
A155: QWE | B155: RJ7 | C155: ST GEORGE'S UNIVERSITY HOSPITALS NHS FOUNDATION TRUST | D155: RJ701 | E155: St George's Hospital (Tooting) | F155: 40 | G155: 1 | H155: 0 | I155: 38 | J155: 2 | K155: 0 | L155: 0 | M155: 0 | N155: 0
A156: QWO | B156: RCF | C156: AIREDALE NHS FOUNDATION TRUST | D156: RCF22 | E156: Airedale General Hospital | F156: 0 | G156: NA | H156: NA | I156: 0 | J156: 0 | K156: 0 | L156: 0 | M156: 0 | N156: 0
A157: QWO | B157: RAE | C157: BRADFORD TEACHING HOSPITALS NHS FOUNDATION TRUST | D157: RAE01 | E157: Bradford Royal Infirmary | F157: 0 | G157: NA | H157: NA | I157: 0 | J157: 0 | K157: 0 | L157: 0 | M157: 0 | N157: 0
A158: QWO | B158: RR8 | C158: LEEDS TEACHING HOSPITALS NHS TRUST | D158: RR801 | E158: Leeds General Infirmary | F158: 48 | G158: 0.9375 | H158: 0 | I158: 35 | J158: 10 | K158: 3 | L158: 0 | M158: 0 | N158: 0
A159: QWO | B159: RR8 | C159: LEEDS TEACHING HOSPITALS NHS TRUST | D159: RR813 | E159: St James's University Hospital | F159: 48 | G159: 0.9583333333 | H159: 0.02083333333 | I159: 38 | J159: 8 | K159: 1 | L159: 0 | M159: 1 | N159: 0
A160: QWO | B160: RXF | C160: MID YORKSHIRE HOSPITALS NHS TRUST | D160: RXF05 | E160: Pinderfields General Hospital | F160: 8 | G160: 0.75 | H160: 0.25 | I160: 6 | J160: 0 | K160: 0 | L160: 1 | M160: 1 | N160: 0
A161: QWU | B161: RLT | C161: GEORGE ELIOT HOSPITAL NHS TRUST | D161: RLT01 | E161: George Eliot Hospital - Acute Services | F161: 53 | G161: 0.9433962264 | H161: 0.01886792453 | I161: 41 | J161: 9 | K161: 1 | L161: 1 | M161: 0 | N161: 1
A162: QWU | B162: RJC | C162: SOUTH WARWICKSHIRE NHS FOUNDATION TRUST | D162: RJC02 | E162: Warwick Hospital | F162: 0 | G162: NA | H162: NA | I162: 0 | J162: 0 | K162: 0 | L162: 0 | M162: 0 | N162: 0
A163: QWU | B163: RKB | C163: UNIVERSITY HOSPITALS COVENTRY AND WARWICKSHIRE NHS TRUST | D163: RKB01 | E163: University Hospital (Coventry) | F163: 44 | G163: 0.9545454545 | H163: 0.02272727273 | I163: 40 | J163: 2 | K163: 1 | L163: 1 | M163: 0 | N163: 0
A164: QXU | B164: RA2 | C164: ROYAL SURREY COUNTY HOSPITAL NHS FOUNDATION TRUST | D164: RA201 | E164: Royal Surrey County Hospital | F164: 0 | G164: NA | H164: NA | I164: 0 | J164: 0 | K164: 0 | L164: 0 | M164: 0 | N164: 0
A165: QXU | B165: RTP | C165: SURREY AND SUSSEX HEALTHCARE NHS TRUST | D165: RTP04 | E165: East Surrey Hospital | F165: 32 | G165: 0.9375 | H165: 0.03125 | I165: 24 | J165: 6 | K165: 0 | L165: 0 | M165: 1 | N165: 1
A166: QYG | B166: RJR | C166: COUNTESS OF CHESTER HOSPITAL NHS FOUNDATION TRUST | D166: RJR05 | E166: Countess Of Chester Hospital | F166: 20 | G166: 0.95 | H166: 0 | I166: 19 | J166: 0 | K166: 0 | L166: 0 | M166: 0 | N166: 1
A167: QYG | B167: RJN | C167: EAST CHESHIRE NHS TRUST | D167: RJN71 | E167: Macclesfield District General Hospital | F167: 0 | G167: NA | H167: NA | I167: 0 | J167: 0 | K167: 0 | L167: 0 | M167: 0 | N167: 0
A168: QYG | B168: REP | C168: LIVERPOOL WOMEN'S NHS FOUNDATION TRUST | D168: REP01 | E168: Liverpool Womens Hospital | F168: 62 | G168: 0.9032258065 | H168: 0.04838709677 | I168: 47 | J168: 9 | K168: 3 | L168: 2 | M168: 1 | N168: 0
A169: QYG | B169: RBT | C169: MID CHESHIRE HOSPITALS NHS FOUNDATION TRUST | D169: RBT20 | E169: Leighton Hospital | F169: 53 | G169: 0.9433962264 | H169: 0.03773584906 | I169: 43 | J169: 7 | K169: 0 | L169: 1 | M169: 1 | N169: 1
A170: QYG | B170: RVY | C170: SOUTHPORT AND ORMSKIRK HOSPITAL NHS TRUST | D170: RVY02 | E170: Ormskirk and District General Hospital | F170: 13 | G170: 0.8461538462 | H170: 0.07692307692 | I170: 9 | J170: 2 | K170: 0 | L170: 0 | M170: 1 | N170: 1
A171: QYG | B171: RBN | C171: ST HELENS AND KNOWSLEY TEACHING HOSPITALS NHS TRUST | D171: RBN01 | E171: Whiston Hospital | F171: 0 | G171: NA | H171: NA | I171: 0 | J171: 0 | K171: 0 | L171: 0 | M171: 0 | N171: 0
A172: QYG | B172: RWW | C172: WARRINGTON AND HALTON TEACHING HOSPITALS NHS FOUNDATION TRUST | D172: RWWWH | E172: Warrington Hospital | F172: 0 | G172: NA | H172: NA | I172: 0 | J172: 0 | K172: 0 | L172: 0 | M172: 0 | N172: 0
A173: QYG | B173: RBL | C173: WIRRAL UNIVERSITY TEACHING HOSPITAL NHS FOUNDATION TRUST | D173: RBL14 | E173: Arrowe Park Hospital | F173: 15 | G173: 0.8 | H173: 0.06666666667 | I173: 8 | J173: 4 | K173: 2 | L173: 1 | M173: 0 | N173: 0

Sheet Region (Local Office) Q4
B6: Sort data by:
A9: STP Code | B9: STP | C9: Total Responses | D9: Percentage Positive | E9: Percentage Negative | F9: Breakdown of Responses
F10: Very Good | G10: Good | H10: Neither Good nor Poor | I10: Poor | J10: Very Poor | K10: Don't Know
B11: England (including Independent Sector providers) | C11: 1156 | D11: 0.8823529412 | E11: 0.04671280277 | F11: 853 | G11: 167 | H11: 32 | I11: 38 | J11: 16 | K11: 50
B12: England (excluding Independent Sector providers) | C12: 1156 | D12: 0.8823529412 | E12: 0.04671280277 | F12: 853 | G12: 167 | H12: 32 | I12: 38 | J12: 16 | K12: 50
B13: Selection (excluding suppressed data) | C13: =SUBTOTAL(9,C14:C55) -> 1156 | D13: =IFERROR((F13+G13)/SUM(F13:K13), "-") -> 0.8778195489 | E13: =IFERROR((I13+J13)/SUM(F13:K13), "-") -> 0.04605263158 | F13: =SUBTOTAL(9,F14:F55) -> 776 | G13: 158 | H13: 31 | I13: 34 | J13: 15 | K13: 50
A14: QE1 | B14: HEALTHIER LANCASHIRE AND SOUTH CUMBRIA | C14: 120 | D14: 0.9333333333 | E14: 0.025 | F14: 84 | G14: 28 | H14: 2 | I14: 2 | J14: 1 | K14: 3
A15: QF7 | B15: SOUTH YORKSHIRE AND BASSETLAW STP | C15: 45 | D15: 0.9777777778 | E15: 0.02222222222 | F15: 35 | G15: 9 | H15: 0 | I15: 0 | J15: 1 | K15: 0
A16: QGH | B16: HEREFORDSHIRE AND WORCESTERSHIRE STP | C16: 10 | D16: 1 | E16: 0 | F16: 8 | G16: 2 | H16: 0 | I16: 0 | J16: 0 | K16: 0
A17: QH8 | B17: MID AND SOUTH ESSEX STP | C17: 59 | D17: 0.7796610169 | E17: 0.1525423729 | F17: 35 | G17: 11 | H17: 3 | I17: 5 | J17: 4 | K17: 1
A18: QHG | B18: BEDFORDSHIRE, LUTON AND MILTON KEYNES STP | C18: 11 | D18: 1 | E18: 0 | F18: 9 | G18: 2 | H18: 0 | I18: 0 | J18: 0 | K18: 0
A19: QHL | B19: BIRMINGHAM AND SOLIHULL STP | C19: 1 | D19: * | E19: * | F19: * | G19: * | H19: * | I19: * | J19: * | K19: *
A20: QHM | B20: CUMBRIA AND NORTH EAST STP | C20: 92 | D20: 0.902173913 | E20: 0.05434782609 | F20: 66 | G20: 17 | H20: 4 | I20: 2 | J20: 3 | K20: 0
A21: QJ2 | B21: JOINED UP CARE DERBYSHIRE STP | C21: 0 | D21: NA | E21: NA | F21: 0 | G21: 0 | H21: 0 | I21: 0 | J21: 0 | K21: 0
A22: QJG | B22: SUFFOLK AND NORTH EAST ESSEX ICS | C22: 27 | D22: 1 | E22: 0 | F22: 26 | G22: 1 | H22: 0 | I22: 0 | J22: 0 | K22: 0
A23: QJK | B23: DEVON STP | C23: 5 | D23: 1 | E23: 0 | F23: * | G23: * | H23: * | I23: * | J23: * | K23: *
A24: QJM | B24: LINCOLNSHIRE STP | C24: 1 | D24: * | E24: * | F24: * | G24: * | H24: * | I24: * | J24: * | K24: *
A25: QK1 | B25: LEICESTER, LEICESTERSHIRE AND RUTLAND STP | C25: 36 | D25: 1 | E25: 0 | F25: 31 | G25: 5 | H25: 0 | I25: 0 | J25: 0 | K25: 0
A26: QKK | B26: OUR HEALTHIER SOUTH EAST LONDON STP | C26: 8 | D26: 1 | E26: 0 | F26: 6 | G26: 2 | H26: 0 | I26: 0 | J26: 0 | K26: 0
A27: QKS | B27: KENT AND MEDWAY STP | C27: 29 | D27: 1 | E27: 0 | F27: 28 | G27: 1 | H27: 0 | I27: 0 | J27: 0 | K27: 0
A28: QM7 | B28: HERTFORDSHIRE AND WEST ESSEX STP | C28: 10 | D28: 1 | E28: 0 | F28: 10 | G28: 0 | H28: 0 | I28: 0 | J28: 0 | K28: 0
A29: QMF | B29: EAST LONDON HEALTH & CARE PARTNERSHIP (STP) | C29: 0 | D29: NA | E29: NA | F29: 0 | G29: 0 | H29: 0 | I29: 0 | J29: 0 | K29: 0
A30: QMJ | B30: NORTH LONDON PARTNERS IN HEALTH & CARE (STP) | C30: 0 | D30: NA | E30: NA | F30: 0 | G30: 0 | H30: 0 | I30: 0 | J30: 0 | K30: 0
A31: QMM | B31: NORFOLK AND WAVENEY HEALTH & CARE PARTNERSHIP (STP) | C31: 11 | D31: 1 | E31: 0 | F31: 11 | G31: 0 | H31: 0 | I31: 0 | J31: 0 | K31: 0
A32: QNC | B32: STAFFORDSHIRE & STOKE ON TRENT STP | C32: 4 | D32: * | E32: * | F32: * | G32: * | H32: * | I32: * | J32: * | K32: *
A33: QNQ | B33: FRIMLEY HEALTH & CARE (STP) | C33: 37 | D33: 0.972972973 | E33: 0.02702702703 | F33: * | G33: * | H33: * | I33: * | J33: * | K33: *
A34: QNX | B34: SUSSEX HEALTH AND CARE PARTNERSHIP | C34: 39 | D34: 0.9230769231 | E34: 0.02564102564 | F34: 32 | G34: 4 | H34: 2 | I34: 1 | J34: 0 | K34: 0
A35: QOC | B35: SHROPSHIRE AND TELFORD AND WREKIN STP | C35: 12 | D35: 1 | E35: 0 | F35: 12 | G35: 0 | H35: 0 | I35: 0 | J35: 0 | K35: 0
A36: QOP | B36: GREATER MANCHESTER HEALTH & SOCIAL CARE PARTNERSHIP | C36: 38 | D36: 0.6842105263 | E36: 0.3157894737 | F36: 23 | G36: 3 | H36: 0 | I36: 12 | J36: 0 | K36: 0
A37: QOQ | B37: HUMBER, COAST AND VALE STP | C37: 11 | D37: 1 | E37: 0 | F37: 10 | G37: 1 | H37: 0 | I37: 0 | J37: 0 | K37: 0
A38: QOX | B38: BATH AND NORTH EAST SOMERSET, SWINDON AND WILTSHIRE STP | C38: 5 | D38: 1 | E38: 0 | F38: 5 | G38: 0 | H38: 0 | I38: 0 | J38: 0 | K38: 0
A39: QPM | B39: NORTHAMPTONSHIRE STP | C39: 1 | D39: * | E39: * | F39: * | G39: * | H39: * | I39: * | J39: * | K39: *
A40: QR1 | B40: GLOUCESTERSHIRE STP | C40: 0 | D40: NA | E40: NA | F40: * | G40: * | H40: * | I40: * | J40: * | K40: *
A41: QRL | B41: HAMPSHIRE AND THE ISLE OF WIGHT STP | C41: 129 | D41: 0.6821705426 | E41: 0.09302325581 | F41: 45 | G41: 43 | H41: 12 | I41: 8 | J41: 4 | K41: 17
A42: QRV | B42: NORTH WEST LONDON HEALTH & CARE PARTNERSHIP (STP) | C42: 19 | D42: 0.9473684211 | E42: 0.05263157895 | F42: 13 | G42: 5 | H42: 0 | I42: 1 | J42: 0 | K42: 0
A43: QSL | B43: SOMERSET STP | C43: 0 | D43: NA | E43: NA | F43: 0 | G43: 0 | H43: 0 | I43: 0 | J43: 0 | K43: 0
A44: QT1 | B44: NOTTINGHAM AND NOTTINGHAMSHIRE HEALTH AND CARE STP | C44: 13 | D44: 1 | E44: 0 | F44: 12 | G44: 1 | H44: 0 | I44: 0 | J44: 0 | K44: 0
A45: QT6 | B45: CORNWALL AND THE ISLES OF SCILLY HEALTH & SOCIAL CARE PARTNERSHIP (STP) | C45: 1 | D45: * | E45: * | F45: * | G45: * | H45: * | I45: * | J45: * | K45: *
A46: QU9 | B46: BUCKINGHAMSHIRE, OXFORDSHIRE AND BERKSHIRE WEST STP | C46: 32 | D46: 0.84375 | E46: 0.125 | F46: * | G46: * | H46: * | I46: * | J46: * | K46: *
A47: QUA | B47: THE BLACK COUNTRY AND WEST BIRMINGHAM STP | C47: 41 | D47: 0.2926829268 | E47: 0.0243902439 | F47: 11 | G47: 1 | H47: 0 | I47: 0 | J47: 1 | K47: 28
A48: QUE | B48: CAMBRIDGESHIRE AND PETERBOROUGH STP | C48: 93 | D48: 1 | E48: 0 | F48: 92 | G48: 1 | H48: 0 | I48: 0 | J48: 0 | K48: 0
A49: QUY | B49: BRISTOL, NORTH SOMERSET AND SOUTH GLOUCESTERSHIRE STP | C49: 18 | D49: 0.8888888889 | E49: 0.1111111111 | F49: 14 | G49: 2 | H49: 0 | I49: 2 | J49: 0 | K49: 0
A50: QVV | B50: DORSET STP | C50: 65 | D50: 0.8769230769 | E50: 0.01538461538 | F50: 49 | G50: 8 | H50: 7 | I50: 0 | J50: 1 | K50: 0
A51: QWE | B51: SOUTH WEST LONDON HEALTH & CARE PARTNERSHIP (STP) | C51: 3 | D51: * | E51: * | F51: * | G51: * | H51: * | I51: * | J51: * | K51: *
A52: QWO | B52: WEST YORKSHIRE AND HARROGATE HEALTH & CARE PARTNERSHIP (STP) | C52: 7 | D52: 1 | E52: 0 | F52: * | G52: * | H52: * | I52: * | J52: * | K52: *
A53: QWU | B53: COVENTRY AND WARWICKSHIRE STP | C53: 19 | D53: 0.9473684211 | E53: 0 | F53: 14 | G53: 4 | H53: 1 | I53: 0 | J53: 0 | K53: 0
A54: QXU | B54: SURREY HEARTLANDS HEALTH & CARE PARTNERSHIP (STP) | C54: 62 | D54: 0.9838709677 | E54: 0.01612903226 | F54: 55 | G54: 6 | H54: 0 | I54: 1 | J54: 0 | K54: 0
A55: QYG | B55: CHESHIRE AND MERSEYSIDE STP | C55: 42 | D55: 0.9761904762 | E55: 0 | F55: 40 | G55: 1 | H55: 0 | I55: 0 | J55: 0 | K55: 1

Sheet Trusts Q4
B6: Sort data by:
A9: STP Code | B9: Trust Code | C9: Trust Name | D9: Total Responses | E9: Percentage Positive | F9: Percentage Negative | G9: Breakdown of Responses | M9: Mode of Collection
G10: Very Good | H10: Good | I10: Neither Good nor Poor | J10: Poor | K10: Very Poor | L10: Don't Know | M10: Mode SMS | N10: Mode Electronic Discharge | O10: Mode Electronic Home | P10: Mode Paper Discharge | Q10: Mode Paper Home | R10: Mode Telephone | S10: Mode Online | T10: Mode Other
C11: England (including Independent Sector providers) | D11: 1156 | E11: 0.8823529412 | F11: 0.04671280277 | G11: 853 | H11: 167 | I11: 32 | J11: 38 | K11: 16 | L11: 50 | M11: 481 | N11: 14 | O11: 5 | P11: 443 | Q11: 26 | R11: 0 | S11: 187 | T11: 0
C12: England (excluding Independent Sector providers) | D12: 1156 | E12: 0.8823529412 | F12: 0.04671280277 | G12: 853 | H12: 167 | I12: 32 | J12: 38 | K12: 16 | L12: 50 | M12: 481 | N12: 14 | O12: 5 | P12: 443 | Q12: 26 | R12: 0 | S12: 187 | T12: 0
C13: Selection (excluding suppressed data) | D13: =SUBTOTAL(9,D14:D299) -> 1156 | E13: =IFERROR((G13+H13)/SUM(G13:L13), "-") -> 0.8594527363 | F13: =IFERROR((J13+K13)/SUM(G13:L13), "-") -> 0.04353233831 | G13: =SUBTOTAL(9,G14:G299) -> 551 | H13: 140 | I13: 28 | J13: 20 | K13: 15 | L13: 50 | M13: 324 | N13: 13 | O13: 5 | P13: 276 | Q13: 21 | R13: 0 | S13: 165 | T13: 0
A14: QE1 | B14: RTX | C14: UNIVERSITY HOSPITALS OF MORECAMBE BAY NHS FOUNDATION TRUST | D14: 0 | E14: NA | F14: NA | G14: 0 | H14: 0 | I14: 0 | J14: 0 | K14: 0 | L14: 0 | M14: 0 | N14: 0 | O14: 0 | P14: 0 | Q14: 0 | R14: 0 | S14: 0 | T14: 0
A15: QE1 | B15: RXL | C15: BLACKPOOL TEACHING HOSPITALS NHS FOUNDATION TRUST | D15: 0 | E15: NA | F15: NA | G15: 0 | H15: 0 | I15: 0 | J15: 0 | K15: 0 | L15: 0 | M15: 0 | N15: 0 | O15: 0 | P15: 0 | Q15: 0 | R15: 0 | S15: 0 | T15: 0
A16: QE1 | B16: RXN | C16: LANCASHIRE TEACHING HOSPITALS NHS FOUNDATION TRUST | D16: 45 | E16: 1 | F16: 0 | G16: 36 | H16: 9 | I16: 0 | J16: 0 | K16: 0 | L16: 0 | M16: 45 | N16: 0 | O16: 0 | P16: 0 | Q16: 0 | R16: 0 | S16: 0 | T16: 0
A17: QE1 | B17: RXR | C17: EAST LANCASHIRE HOSPITALS NHS TRUST | D17: 75 | E17: 0.8933333333 | F17: 0.04 | G17: 48 | H17: 19 | I17: 2 | J17: 2 | K17: 1 | L17: 3 | M17: 2 | N17: 0 | O17: 0 | P17: 73 | Q17: 0 | R17: 0 | S17: 0 | T17: 0
A18: QF7 | B18: RFF | C18: BARNSLEY HOSPITAL NHS FOUNDATION TRUST | D18: 0 | E18: NA | F18: NA | G18: 0 | H18: 0 | I18: 0 | J18: 0 | K18: 0 | L18: 0 | M18: 0 | N18: 0 | O18: 0 | P18: 0 | Q18: 0 | R18: 0 | S18: 0 | T18: 0
A19: QF7 | B19: RFR | C19: THE ROTHERHAM NHS FOUNDATION TRUST | D19: 0 | E19: NA | F19: NA | G19: 0 | H19: 0 | I19: 0 | J19: 0 | K19: 0 | L19: 0 | M19: 0 | N19: 0 | O19: 0 | P19: 0 | Q19: 0 | R19: 0 | S19: 0 | T19: 0
A20: QF7 | B20: RHQ | C20: SHEFFIELD TEACHING HOSPITALS NHS FOUNDATION TRUST | D20: 0 | E20: NA | F20: NA | G20: 0 | H20: 0 | I20: 0 | J20: 0 | K20: 0 | L20: 0 | M20: 0 | N20: 0 | O20: 0 | P20: 0 | Q20: 0 | R20: 0 | S20: 0 | T20: 0
A21: QF7 | B21: RP5 | C21: DONCASTER AND BASSETLAW TEACHING HOSPITALS NHS FOUNDATION TRUST | D21: 45 | E21: 0.9777777778 | F21: 0.02222222222 | G21: 35 | H21: 9 | I21: 0 | J21: 0 | K21: 1 | L21: 0 | M21: 0 | N21: 0 | O21: 0 | P21: 45 | Q21: 0 | R21: 0 | S21: 0 | T21: 0
A22: QGH | B22: RWP | C22: WORCESTERSHIRE ACUTE HOSPITALS NHS TRUST | D22: 0 | E22: NA | F22: NA | G22: 0 | H22: 0 | I22: 0 | J22: 0 | K22: 0 | L22: 0 | M22: 0 | N22: 0 | O22: 0 | P22: 0 | Q22: 0 | R22: 0 | S22: 0 | T22: 0
A23: QGH | B23: RLQ | C23: WYE VALLEY NHS TRUST | D23: 10 | E23: 1 | F23: 0 | G23: 8 | H23: 2 | I23: 0 | J23: 0 | K23: 0 | L23: 0 | M23: 0 | N23: 0 | O23: 0 | P23: 0 | Q23: 0 | R23: 0 | S23: 10 | T23: 0
A24: QH8 | B24: RAJ | C24: MID AND SOUTH ESSEX NHS FOUNDATION TRUST | D24: 59 | E24: 0.7796610169 | F24: 0.1525423729 | G24: 35 | H24: 11 | I24: 3 | J24: 5 | K24: 4 | L24: 1 | M24: 59 | N24: 0 | O24: 0 | P24: 0 | Q24: 0 | R24: 0 | S24: 0 | T24: 0
A25: QHG | B25: RD8 | C25: MILTON KEYNES UNIVERSITY HOSPITAL NHS FOUNDATION TRUST | D25: 1 | E25: * | F25: * | G25: * | H25: * | I25: * | J25: * | K25: * | L25: * | M25: * | N25: * | O25: * | P25: * | Q25: * | R25: * | S25: * | T25: *
A26: QHG | B26: RC9 | C26: BEDFORDSHIRE HOSPITALS NHS FOUNDATION TRUST | D26: 10 | E26: 1 | F26: 0 | G26: * | H26: * | I26: * | J26: * | K26: * | L26: * | M26: * | N26: * | O26: * | P26: * | Q26: * | R26: * | S26: * | T26: *
A27: QHL | B27: RRK | C27: UNIVERSITY HOSPITALS BIRMINGHAM NHS FOUNDATION TRUST | D27: 0 | E27: NA | F27: NA | G27: 0 | H27: 0 | I27: 0 | J27: 0 | K27: 0 | L27: 0 | M27: 0 | N27: 0 | O27: 0 | P27: 0 | Q27: 0 | R27: 0 | S27: 0 | T27: 0
A28: QHL | B28: RQ3 | C28: BIRMINGHAM WOMEN'S AND CHILDREN'S NHS FOUNDATION TRUST | D28: 1 | E28: * | F28: * | G28: * | H28: * | I28: * | J28: * | K28: * | L28: * | M28: * | N28: * | O28: * | P28: * | Q28: * | R28: * | S28: * | T28: *
A29: QHM | B29: R0B | C29: SOUTH TYNESIDE AND SUNDERLAND NHS FOUNDATION TRUST | D29: 0 | E29: NA | F29: NA | G29: 0 | H29: 0 | I29: 0 | J29: 0 | K29: 0 | L29: 0 | M29: 0 | N29: 0 | O29: 0 | P29: 0 | Q29: 0 | R29: 0 | S29: 0 | T29: 0
A30: QHM | B30: RR7 | C30: GATESHEAD HEALTH NHS FOUNDATION TRUST | D30: 0 | E30: NA | F30: NA | G30: 0 | H30: 0 | I30: 0 | J30: 0 | K30: 0 | L30: 0 | M30: 0 | N30: 0 | O30: 0 | P30: 0 | Q30: 0 | R30: 0 | S30: 0 | T30: 0
A31: QHM | B31: RTD | C31: THE NEWCASTLE UPON TYNE HOSPITALS NHS FOUNDATION TRUST | D31: 0 | E31: NA | F31: NA | G31: 0 | H31: 0 | I31: 0 | J31: 0 | K31: 0 | L31: 0 | M31: 0 | N31: 0 | O31: 0 | P31: 0 | Q31: 0 | R31: 0 | S31: 0 | T31: 0
A32: QHM | B32: RTR | C32: SOUTH TEES HOSPITALS NHS FOUNDATION TRUST | D32: 0 | E32: NA | F32: NA | G32: 0 | H32: 0 | I32: 0 | J32: 0 | K32: 0 | L32: 0 | M32: 0 | N32: 0 | O32: 0 | P32: 0 | Q32: 0 | R32: 0 | S32: 0 | T32: 0
A33: QHM | B33: RXP | C33: COUNTY DURHAM AND DARLINGTON NHS FOUNDATION TRUST | D33: 0 | E33: NA | F33: NA | G33: 0 | H33: 0 | I33: 0 | J33: 0 | K33: 0 | L33: 0 | M33: 0 | N33: 0 | O33: 0 | P33: 0 | Q33: 0 | R33: 0 | S33: 0 | T33: 0
A34: QHM | B34: RVW | C34: NORTH TEES AND HARTLEPOOL NHS FOUNDATION TRUST | D34: 2 | E34: * | F34: * | G34: * | H34: * | I34: * | J34: * | K34: * | L34: * | M34: * | N34: * | O34: * | P34: * | Q34: * | R34: * | S34: * | T34: *
A35: QHM | B35: RNN | C35: NORTH CUMBRIA INTEGRATED CARE NHS FOUNDATION TRUST | D35: 10 | E35: 1 | F35: 0 | G35: * | H35: * | I35: * | J35: * | K35: * | L35: * | M35: * | N35: * | O35: * | P35: * | Q35: * | R35: * | S35: * | T35: *
A36: QHM | B36: RTF | C36: NORTHUMBRIA HEALTHCARE NHS FOUNDATION TRUST | D36: 80 | E36: 0.8875 | F36: 0.0625 | G36: 56 | H36: 15 | I36: 4 | J36: 2 | K36: 3 | L36: 0 | M36: 80 | N36: 0 | O36: 0 | P36: 0 | Q36: 0 | R36: 0 | S36: 0 | T36: 0
A37: QJ2 | B37: RFS | C37: CHESTERFIELD ROYAL HOSPITAL NHS FOUNDATION TRUST | D37: 0 | E37: NA | F37: NA | G37: 0 | H37: 0 | I37: 0 | J37: 0 | K37: 0 | L37: 0 | M37: 0 | N37: 0 | O37: 0 | P37: 0 | Q37: 0 | R37: 0 | S37: 0 | T37: 0
A38: QJ2 | B38: RTG | C38: UNIVERSITY HOSPITALS OF DERBY AND BURTON NHS FOUNDATION TRUST | D38: 0 | E38: NA | F38: NA | G38: 0 | H38: 0 | I38: 0 | J38: 0 | K38: 0 | L38: 0 | M38: 0 | N38: 0 | O38: 0 | P38: 0 | Q38: 0 | R38: 0 | S38: 0 | T38: 0
A39: QJG | B39: RDE | C39: EAST SUFFOLK AND NORTH ESSEX NHS FOUNDATION TRUST | D39: 0 | E39: NA | F39: NA | G39: 0 | H39: 0 | I39: 0 | J39: 0 | K39: 0 | L39: 0 | M39: 0 | N39: 0 | O39: 0 | P39: 0 | Q39: 0 | R39: 0 | S39: 0 | T39: 0
A40: QJG | B40: RGR | C40: WEST SUFFOLK NHS FOUNDATION TRUST | D40: 27 | E40: 1 | F40: 0 | G40: 26 | H40: 1 | I40: 0 | J40: 0 | K40: 0 | L40: 0 | M40: 15 | N40: 0 | O40: 0 | P40: 12 | Q40: 0 | R40: 0 | S40: 0 | T40: 0
A41: QJK | B41: RBZ | C41: NORTHERN DEVON HEALTHCARE NHS TRUST | D41: 0 | E41: NA | F41: NA | G41: 0 | H41: 0 | I41: 0 | J41: 0 | K41: 0 | L41: 0 | M41: 0 | N41: 0 | O41: 0 | P41: 0 | Q41: 0 | R41: 0 | S41: 0 | T41: 0
A42: QJK | B42: RH8 | C42: ROYAL DEVON AND EXETER NHS FOUNDATION TRUST | D42: 0 | E42: NA | F42: NA | G42: 0 | H42: 0 | I42: 0 | J42: 0 | K42: 0 | L42: 0 | M42: 0 | N42: 0 | O42: 0 | P42: 0 | Q42: 0 | R42: 0 | S42: 0 | T42: 0
A43: QJK | B43: RK9 | C43: UNIVERSITY HOSPITALS PLYMOUTH NHS TRUST | D43: 5 | E43: 1 | F43: 0 | G43: * | H43: * | I43: * | J43: * | K43: * | L43: * | M43: * | N43: * | O43: * | P43: * | Q43: * | R43: * | S43: * | T43: *
A44: QJM | B44: RWD | C44: UNITED LINCOLNSHIRE HOSPITALS NHS TRUST | D44: 1 | E44: * | F44: * | G44: * | H44: * | I44: * | J44: * | K44: * | L44: * | M44: * | N44: * | O44: * | P44: * | Q44: * | R44: * | S44: * | T44: *
A45: QK1 | B45: RWE | C45: UNIVERSITY HOSPITALS OF LEICESTER NHS TRUST | D45: 36 | E45: 1 | F45: 0 | G45: 31 | H45: 5 | I45: 0 | J45: 0 | K45: 0 | L45: 0 | M45: 0 | N45: 0 | O45: 5 | P45: 31 | Q45: 0 | R45: 0 | S45: 0 | T45: 0
A46: QKK | B46: RJ2 | C46: LEWISHAM AND GREENWICH NHS TRUST | D46: 0 | E46: NA | F46: NA | G46: 0 | H46: 0 | I46: 0 | J46: 0 | K46: 0 | L46: 0 | M46: 0 | N46: 0 | O46: 0 | P46: 0 | Q46: 0 | R46: 0 | S46: 0 | T46: 0
A47: QKK | B47: RJZ | C47: KING'S COLLEGE HOSPITAL NHS FOUNDATION TRUST | D47: 0 | E47: NA | F47: NA | G47: 0 | H47: 0 | I47: 0 | J47: 0 | K47: 0 | L47: 0 | M47: 0 | N47: 0 | O47: 0 | P47: 0 | Q47: 0 | R47: 0 | S47: 0 | T47: 0
A48: QKK | B48: RJ1 | C48: GUY'S AND ST THOMAS' NHS FOUNDATION TRUST | D48: 8 | E48: 1 | F48: 0 | G48: 6 | H48: 2 | I48: 0 | J48: 0 | K48: 0 | L48: 0 | M48: 0 | N48: 0 | O48: 0 | P48: 0 | Q48: 0 | R48: 0 | S48: 8 | T48: 0
A49: QKS | B49: RN7 | C49: DARTFORD AND GRAVESHAM NHS TRUST | D49: 0 | E49: NA | F49: NA | G49: 0 | H49: 0 | I49: 0 | J49: 0 | K49: 0 | L49: 0 | M49: 0 | N49: 0 | O49: 0 | P49: 0 | Q49: 0 | R49: 0 | S49: 0 | T49: 0
A50: QKS | B50: RPA | C50: MEDWAY NHS FOUNDATION TRUST | D50: 0 | E50: NA | F50: NA | G50: 0 | H50: 0 | I50: 0 | J50: 0 | K50: 0 | L50: 0 | M50: 0 | N50: 0 | O50: 0 | P50: 0 | Q50: 0 | R50: 0 | S50: 0 | T50: 0
A51: QKS | B51: RVV | C51: EAST KENT HOSPITALS UNIVERSITY NHS FOUNDATION TRUST | D51: 0 | E51: NA | F51: NA | G51: 0 | H51: 0 | I51: 0 | J51: 0 | K51: 0 | L51: 0 | M51: 0 | N51: 0 | O51: 0 | P51: 0 | Q51: 0 | R51: 0 | S51: 0 | T51: 0
A52: QKS | B52: RWF | C52: MAIDSTONE AND TUNBRIDGE WELLS NHS TRUST | D52: 29 | E52: 1 | F52: 0 | G52: 28 | H52: 1 | I52: 0 | J52: 0 | K52: 0 | L52: 0 | M52: 0 | N52: 0 | O52: 0 | P52: 29 | Q52: 0 | R52: 0 | S52: 0 | T52: 0
A53: QM7 | B53: RQW | C53: THE PRINCESS ALEXANDRA HOSPITAL NHS TRUST | D53: 0 | E53: NA | F53: NA | G53: 0 | H53: 0 | I53: 0 | J53: 0 | K53: 0 | L53: 0 | M53: 0 | N53: 0 | O53: 0 | P53: 0 | Q53: 0 | R53: 0 | S53: 0 | T53: 0
A54: QM7 | B54: RWG | C54: WEST HERTFORDSHIRE HOSPITALS NHS TRUST | D54: 0 | E54: NA | F54: NA | G54: 0 | H54: 0 | I54: 0 | J54: 0 | K54: 0 | L54: 0 | M54: 0 | N54: 0 | O54: 0 | P54: 0 | Q54: 0 | R54: 0 | S54: 0 | T54: 0
A55: QM7 | B55: RWH | C55: EAST AND NORTH HERTFORDSHIRE NHS TRUST | D55: 10 | E55: 1 | F55: 0 | G55: 10 | H55: 0 | I55: 0 | J55: 0 | K55: 0 | L55: 0 | M55: 0 | N55: 10 | O55: 0 | P55: 0 | Q55: 0 | R55: 0 | S55: 0 | T55: 0
A56: QMF | B56: R1H | C56: BARTS HEALTH NHS TRUST | D56: 0 | E56: NA | F56: NA | G56: 0 | H56: 0 | I56: 0 | J56: 0 | K56: 0 | L56: 0 | M56: 0 | N56: 0 | O56: 0 | P56: 0 | Q56: 0 | R56: 0 | S56: 0 | T56: 0
A57: QMF | B57: RF4 | C57: BARKING, HAVERING AND REDBRIDGE UNIVERSITY HOSPITALS NHS TRUST | D57: 0 | E57: NA | F57: NA | G57: 0 | H57: 0 | I57: 0 | J57: 0 | K57: 0 | L57: 0 | M57: 0 | N57: 0 | O57: 0 | P57: 0 | Q57: 0 | R57: 0 | S57: 0 | T57: 0
A58: QMJ | B58: RAL | C58: ROYAL FREE LONDON NHS FOUNDATION TRUST | D58: 0 | E58: NA | F58: NA | G58: 0 | H58: 0 | I58: 0 | J58: 0 | K58: 0 | L58: 0 | M58: 0 | N58: 0 | O58: 0 | P58: 0 | Q58: 0 | R58: 0 | S58: 0 | T58: 0
A59: QMJ | B59: RAP | C59: NORTH MIDDLESEX UNIVERSITY HOSPITAL NHS TRUST | D59: 0 | E59: NA | F59: NA | G59: 0 | H59: 0 | I59: 0 | J59: 0 | K59: 0 | L59: 0 | M59: 0 | N59: 0 | O59: 0 | P59: 0 | Q59: 0 | R59: 0 | S59: 0 | T59: 0
A60: QMJ | B60: RKE | C60: WHITTINGTON HEALTH NHS TRUST | D60: 0 | E60: NA | F60: NA | G60: 0 | H60: 0 | I60: 0 | J60: 0 | K60: 0 | L60: 0 | M60: 0 | N60: 0 | O60: 0 | P60: 0 | Q60: 0 | R60: 0 | S60: 0 | T60: 0
A61: QMJ | B61: RRV | C61: UNIVERSITY COLLEGE LONDON HOSPITALS NHS FOUNDATION TRUST | D61: 0 | E61: NA | F61: NA | G61: 0 | H61: 0 | I61: 0 | J61: 0 | K61: 0 | L61: 0 | M61: 0 | N61: 0 | O61: 0 | P61: 0 | Q61: 0 | R61: 0 | S61: 0 | T61: 0
A62: QMM | B62: RGP | C62: JAMES PAGET UNIVERSITY HOSPITALS NHS FOUNDATION TRUST | D62: 0 | E62: NA | F62: NA | G62: 0 | H62: 0 | I62: 0 | J62: 0 | K62: 0 | L62: 0 | M62: 0 | N62: 0 | O62: 0 | P62: 0 | Q62: 0 | R62: 0 | S62: 0 | T62: 0
A63: QMM | B63: RM1 | C63: NORFOLK AND NORWICH UNIVERSITY HOSPITALS NHS FOUNDATION TRUST | D63: 5 | E63: 1 | F63: 0 | G63: 5 | H63: 0 | I63: 0 | J63: 0 | K63: 0 | L63: 0 | M63: 0 | N63: 0 | O63: 0 | P63: 5 | Q63: 0 | R63: 0 | S63: 0 | T63: 0
A64: QMM | B64: RCX | C64: THE QUEEN ELIZABETH HOSPITAL, KING'S LYNN, NHS FOUNDATION TRUST | D64: 6 | E64: 1 | F64: 0 | G64: 6 | H64: 0 | I64: 0 | J64: 0 | K64: 0 | L64: 0 | M64: 0 | N64: 3 | O64: 0 | P64: 0 | Q64: 0 | R64: 0 | S64: 3 | T64: 0
A65: QNC | B65: RJE | C65: UNIVERSITY HOSPITALS OF NORTH MIDLANDS NHS TRUST | D65: 4 | E65: * | F65: * | G65: * | H65: * | I65: * | J65: * | K65: * | L65: * | M65: * | N65: * | O65: * | P65: * | Q65: * | R65: * | S65: * | T65: *
A66: QNQ | B66: RDU | C66: FRIMLEY HEALTH NHS FOUNDATION TRUST | D66: 37 | E66: 0.972972973 | F66: 0.02702702703 | G66: * | H66: * | I66: * | J66: * | K66: * | L66: * | M66: * | N66: * | O66: * | P66: * | Q66: * | R66: * | S66: * | T66: *
A67: QNX | B67: RXC | C67: EAST SUSSEX HEALTHCARE NHS TRUST | D67: 0 | E67: NA | F67: NA | G67: 0 | H67: 0 | I67: 0 | J67: 0 | K67: 0 | L67: 0 | M67: 0 | N67: 0 | O67: 0 | P67: 0 | Q67: 0 | R67: 0 | S67: 0 | T67: 0
A68: QNX | B68: RYR | C68: WESTERN SUSSEX HOSPITALS NHS FOUNDATION TRUST | D68: 1 | E68: * | F68: * | G68: * | H68: * | I68: * | J68: * | K68: * | L68: * | M68: * | N68: * | O68: * | P68: * | Q68: * | R68: * | S68: * | T68: *
A69: QNX | B69: RXH | C69: BRIGHTON AND SUSSEX UNIVERSITY HOSPITALS NHS TRUST | D69: 38 | E69: 0.9210526316 | F69: 0.02631578947 | G69: * | H69: * | I69: * | J69: * | K69: * | L69: * | M69: * | N69: * | O69: * | P69: * | Q69: * | R69: * | S69: * | T69: *
A70: QOC | B70: RXW | C70: THE SHREWSBURY AND TELFORD HOSPITAL NHS TRUST | D70: 12 | E70: 1 | F70: 0 | G70: 12 | H70: 0 | I70: 0 | J70: 0 | K70: 0 | L70: 0 | M70: 0 | N70: 0 | O70: 0 | P70: 12 | Q70: 0 | R70: 0 | S70: 0 | T70: 0
A71: QOP | B71: RMC | C71: BOLTON NHS FOUNDATION TRUST | D71: 0 | E71: NA | F71: NA | G71: 0 | H71: 0 | I71: 0 | J71: 0 | K71: 0 | L71: 0 | M71: 0 | N71: 0 | O71: 0 | P71: 0 | Q71: 0 | R71: 0 | S71: 0 | T71: 0
A72: QOP | B72: RMP | C72: TAMESIDE AND GLOSSOP INTEGRATED CARE NHS FOUNDATION TRUST | D72: 0 | E72: NA | F72: NA | G72: 0 | H72: 0 | I72: 0 | J72: 0 | K72: 0 | L72: 0 | M72: 0 | N72: 0 | O72: 0 | P72: 0 | Q72: 0 | R72: 0 | S72: 0 | T72: 0
A73: QOP | B73: RRF | C73: WRIGHTINGTON, WIGAN AND LEIGH NHS FOUNDATION TRUST | D73: 0 | E73: NA | F73: NA | G73: 0 | H73: 0 | I73: 0 | J73: 0 | K73: 0 | L73: 0 | M73: 0 | N73: 0 | O73: 0 | P73: 0 | Q73: 0 | R73: 0 | S73: 0 | T73: 0
A74: QOP | B74: RWJ | C74: STOCKPORT NHS FOUNDATION TRUST | D74: 3 | E74: * | F74: * | G74: * | H74: * | I74: * | J74: * | K74: * | L74: * | M74: * | N74: * | O74: * | P74: * | Q74: * | R74: * | S74: * | T74: *
A75: QOP | B75: RW6 | C75: PENNINE ACUTE HOSPITALS NHS TRUST | D75: 17 | E75: 0.2941176471 | F75: 0.7058823529 | G75: * | H75: * | I75: * | J75: * | K75: * | L75: * | M75: * | N75: * | O75: * | P75: * | Q75: * | R75: * | S75: * | T75: *
A76: QOP | B76: R0A | C76: MANCHESTER UNIVERSITY NHS FOUNDATION TRUST | D76: 18 | E76: 1 | F76: 0 | G76: 17 | H76: 1 | I76: 0 | J76: 0 | K76: 0 | L76: 0 | M76: 0 | N76: 0 | O76: 0 | P76: 18 | Q76: 0 | R76: 0 | S76: 0 | T76: 0
A77: QOQ | B77: RCD | C77: HARROGATE AND DISTRICT NHS FOUNDATION TRUST | D77: 0 | E77: NA | F77: NA | G77: 0 | H77: 0 | I77: 0 | J77: 0 | K77: 0 | L77: 0 | M77: 0 | N77: 0 | O77: 0 | P77: 0 | Q77: 0 | R77: 0 | S77: 0 | T77: 0
A78: QOQ | B78: RWA | C78: HULL UNIVERSITY TEACHING HOSPITALS NHS TRUST | D78: 0 | E78: NA | F78: NA | G78: 0 | H78: 0 | I78: 0 | J78: 0 | K78: 0 | L78: 0 | M78: 0 | N78: 0 | O78: 0 | P78: 0 | Q78: 0 | R78: 0 | S78: 0 | T78: 0
A79: QOQ | B79: RCB | C79: YORK TEACHING HOSPITAL NHS FOUNDATION TRUST | D79: 11 | E79: 1 | F79: 0 | G79: 10 | H79: 1 | I79: 0 | J79: 0 | K79: 0 | L79: 0 | M79: 11 | N79: 0 | O79: 0 | P79: 0 | Q79: 0 | R79: 0 | S79: 0 | T79: 0
A80: QOX | B80: RN3 | C80: GREAT WESTERN HOSPITALS NHS FOUNDATION TRUST | D80: 0 | E80: NA | F80: NA | G80: 0 | H80: 0 | I80: 0 | J80: 0 | K80: 0 | L80: 0 | M80: 0 | N80: 0 | O80: 0 | P80: 0 | Q80: 0 | R80: 0 | S80: 0 | T80: 0
A81: QOX | B81: RNZ | C81: SALISBURY NHS FOUNDATION TRUST | D81: 1 | E81: * | F81: * | G81: * | H81: * | I81: * | J81: * | K81: * | L81: * | M81: * | N81: * | O81: * | P81: * | Q81: * | R81: * | S81: * | T81: *
A82: QOX | B82: RD1 | C82: ROYAL UNITED HOSPITALS BATH NHS FOUNDATION TRUST | D82: 4 | E82: * | F82: * | G82: * | H82: * | I82: * | J82: * | K82: * | L82: * | M82: * | N82: * | O82: * | P82: * | Q82: * | R82: * | S82: * | T82: *
A83: QPM | B83: RNS | C83: NORTHAMPTON GENERAL HOSPITAL NHS TRUST | D83: 0 | E83: NA | F83: NA | G83: 0 | H83: 0 | I83: 0 | J83: 0 | K83: 0 | L83: 0 | M83: 0 | N83: 0 | O83: 0 | P83: 0 | Q83: 0 | R83: 0 | S83: 0 | T83: 0
A84: QPM | B84: RNQ | C84: KETTERING GENERAL HOSPITAL NHS FOUNDATION TRUST | D84: 1 | E84: * | F84: * | G84: * | H84: * | I84: * | J84: * | K84: * | L84: * | M84: * | N84: * | O84: * | P84: * | Q84: * | R84: * | S84: * | T84: *
A85: QR1 | B85: RTE | C85: GLOUCESTERSHIRE HOSPITALS NHS FOUNDATION TRUST | D85: 0 | E85: NA | F85: NA | G85: 0 | H85: 0 | I85: 0 | J85: 0 | K85: 0 | L85: 0 | M85: 0 | N85: 0 | O85: 0 | P85: 0 | Q85: 0 | R85: 0 | S85: 0 | T85: 0
A86: QRL | B86: R1F | C86: ISLE OF WIGHT NHS TRUST | D86: 0 | E86: NA | F86: NA | G86: 0 | H86: 0 | I86: 0 | J86: 0 | K86: 0 | L86: 0 | M86: 0 | N86: 0 | O86: 0 | P86: 0 | Q86: 0 | R86: 0 | S86: 0 | T86: 0
A87: QRL | B87: RHU | C87: PORTSMOUTH HOSPITALS UNIVERSITY NATIONAL HEALTH SERVICE TRUST | D87: 0 | E87: NA | F87: NA | G87: 0 | H87: 0 | I87: 0 | J87: 0 | K87: 0 | L87: 0 | M87: 0 | N87: 0 | O87: 0 | P87: 0 | Q87: 0 | R87: 0 | S87: 0 | T87: 0
A88: QRL | B88: RN5 | C88: HAMPSHIRE HOSPITALS NHS FOUNDATION TRUST | D88: 10 | E88: 0.9 | F88: 0.1 | G88: 7 | H88: 2 | I88: 0 | J88: 1 | K88: 0 | L88: 0 | M88: 0 | N88: 0 | O88: 0 | P88: 1 | Q88: 0 | R88: 0 | S88: 9 | T88: 0
A89: QRL | B89: RHM | C89: UNIVERSITY HOSPITAL SOUTHAMPTON NHS FOUNDATION TRUST | D89: 119 | E89: 0.6638655462 | F89: 0.09243697479 | G89: 38 | H89: 41 | I89: 12 | J89: 7 | K89: 4 | L89: 17 | M89: 0 | N89: 0 | O89: 0 | P89: 22 | Q89: 0 | R89: 0 | S89: 97 | T89: 0
A90: QRV | B90: R1K | C90: LONDON NORTH WEST UNIVERSITY HEALTHCARE NHS TRUST | D90: 0 | E90: NA | F90: NA | G90: 0 | H90: 0 | I90: 0 | J90: 0 | K90: 0 | L90: 0 | M90: 0 | N90: 0 | O90: 0 | P90: 0 | Q90: 0 | R90: 0 | S90: 0 | T90: 0
A91: QRV | B91: RAS | C91: THE HILLINGDON HOSPITALS NHS FOUNDATION TRUST | D91: 0 | E91: NA | F91: NA | G91: 0 | H91: 0 | I91: 0 | J91: 0 | K91: 0 | L91: 0 | M91: 0 | N91: 0 | O91: 0 | P91: 0 | Q91: 0 | R91: 0 | S91: 0 | T91: 0
A92: QRV | B92: RQM | C92: CHELSEA AND WESTMINSTER HOSPITAL NHS FOUNDATION TRUST | D92: 9 | E92: 1 | F92: 0 | G92: 9 | H92: 0 | I92: 0 | J92: 0 | K92: 0 | L92: 0 | M92: 1 | N92: 0 | O92: 0 | P92: 0 | Q92: 0 | R92: 0 | S92: 8 | T92: 0
A93: QRV | B93: RYJ | C93: IMPERIAL COLLEGE HEALTHCARE NHS TRUST | D93: 10 | E93: 0.9 | F93: 0.1 | G93: 4 | H93: 5 | I93: 0 | J93: 1 | K93: 0 | L93: 0 | M93: 10 | N93: 0 | O93: 0 | P93: 0 | Q93: 0 | R93: 0 | S93: 0 | T93: 0
A94: QSL | B94: RA4 | C94: YEOVIL DISTRICT HOSPITAL NHS FOUNDATION TRUST | D94: 0 | E94: NA | F94: NA | G94: 0 | H94: 0 | I94: 0 | J94: 0 | K94: 0 | L94: 0 | M94: 0 | N94: 0 | O94: 0 | P94: 0 | Q94: 0 | R94: 0 | S94: 0 | T94: 0
A95: QSL | B95: RH5 | C95: SOMERSET NHS FOUNDATION TRUST | D95: 0 | E95: NA | F95: NA | G95: 0 | H95: 0 | I95: 0 | J95: 0 | K95: 0 | L95: 0 | M95: 0 | N95: 0 | O95: 0 | P95: 0 | Q95: 0 | R95: 0 | S95: 0 | T95: 0
A96: QT1 | B96: RK5 | C96: SHERWOOD FOREST HOSPITALS NHS FOUNDATION TRUST | D96: 4 | E96: * | F96: * | G96: * | H96: * | I96: * | J96: * | K96: * | L96: * | M96: * | N96: * | O96: * | P96: * | Q96: * | R96: * | S96: * | T96: *
A97: QT1 | B97: RX1 | C97: NOTTINGHAM UNIVERSITY HOSPITALS NHS TRUST | D97: 9 | E97: 1 | F97: 0 | G97: * | H97: * | I97: * | J97: * | K97: * | L97: * | M97: * | N97: * | O97: * | P97: * | Q97: * | R97: * | S97: * | T97: *
A98: QT6 | B98: REF | C98: ROYAL CORNWALL HOSPITALS NHS TRUST | D98: 1 | E98: * | F98: * | G98: * | H98: * | I98: * | J98: * | K98: * | L98: * | M98: * | N98: * | O98: * | P98: * | Q98: * | R98: * | S98: * | T98: *
A99: QU9 | B99: RHW | C99: ROYAL BERKSHIRE NHS FOUNDATION TRUST | D99: 0 | E99: NA | F99: NA | G99: 0 | H99: 0 | I99: 0 | J99: 0 | K99: 0 | L99: 0 | M99: 0 | N99: 0 | O99: 0 | P99: 0 | Q99: 0 | R99: 0 | S99: 0 | T99: 0
A100: QU9 | B100: RTH | C100: OXFORD UNIVERSITY HOSPITALS NHS FOUNDATION TRUST | D100: 0 | E100: NA | F100: NA | G100: 0 | H100: 0 | I100: 0 | J100: 0 | K100: 0 | L100: 0 | M100: 0 | N100: 0 | O100: 0 | P100: 0 | Q100: 0 | R100: 0 | S100: 0 | T100: 0
A101: QU9 | B101: RXQ | C101: BUCKINGHAMSHIRE HEALTHCARE NHS TRUST | D101: 32 | E101: 0.84375 | F101: 0.125 | G101: * | H101: * | I101: * | J101: * | K101: * | L101: * | M101: * | N101: * | O101: * | P101: * | Q101: * | R101: * | S101: * | T101: *
A102: QUA | B102: RXK | C102: SANDWELL AND WEST BIRMINGHAM HOSPITALS NHS TRUST | D102: 0 | E102: NA | F102: NA | G102: 0 | H102: 0 | I102: 0 | J102: 0 | K102: 0 | L102: 0 | M102: 0 | N102: 0 | O102: 0 | P102: 0 | Q102: 0 | R102: 0 | S102: 0 | T102: 0
A103: QUA | B103: RBK | C103: WALSALL HEALTHCARE NHS TRUST | D103: 6 | E103: 0.8333333333 | F103: 0.1666666667 | G103: 4 | H103: 1 | I103: 0 | J103: 0 | K103: 1 | L103: 0 | M103: 6 | N103: 0 | O103: 0 | P103: 0 | Q103: 0 | R103: 0 | S103: 0 | T103: 0
A104: QUA | B104: RNA | C104: THE DUDLEY GROUP NHS FOUNDATION TRUST | D104: 35 | E104: 0.2 | F104: 0 | G104: 7 | H104: 0 | I104: 0 | J104: 0 | K104: 0 | L104: 28 | M104: 0 | N104: 0 | O104: 0 | P104: 5 | Q104: 0 | R104: 0 | S104: 30 | T104: 0
A105: QUE | B105: RGT | C105: CAMBRIDGE UNIVERSITY HOSPITALS NHS FOUNDATION TRUST | D105: 4 | E105: * | F105: * | G105: * | H105: * | I105: * | J105: * | K105: * | L105: * | M105: * | N105: * | O105: * | P105: * | Q105: * | R105: * | S105: * | T105: *
A106: QUE | B106: RGN | C106: NORTH WEST ANGLIA NHS FOUNDATION TRUST | D106: 89 | E106: 1 | F106: 0 | G106: * | H106: * | I106: * | J106: * | K106: * | L106: * | M106: * | N106: * | O106: * | P106: * | Q106: * | R106: * | S106: * | T106: *
A107: QUY | B107: RA7 | C107: UNIVERSITY HOSPITALS BRISTOL AND WESTON NHS FOUNDATION TRUST | D107: 0 | E107: NA | F107: NA | G107: 0 | H107: 0 | I107: 0 | J107: 0 | K107: 0 | L107: 0 | M107: 0 | N107: 0 | O107: 0 | P107: 0 | Q107: 0 | R107: 0 | S107: 0 | T107: 0
A108: QUY | B108: RVJ | C108: NORTH BRISTOL NHS TRUST | D108: 18 | E108: 0.8888888889 | F108: 0.1111111111 | G108: 14 | H108: 2 | I108: 0 | J108: 2 | K108: 0 | L108: 0 | M108: 18 | N108: 0 | O108: 0 | P108: 0 | Q108: 0 | R108: 0 | S108: 0 | T108: 0
A109: QVV | B109: RBD | C109: DORSET COUNTY HOSPITAL NHS FOUNDATION TRUST | D109: 27 | E109: 0.9259259259 | F109: 0 | G109: 23 | H109: 2 | I109: 2 | J109: 0 | K109: 0 | L109: 0 | M109: 27 | N109: 0 | O109: 0 | P109: 0 | Q109: 0 | R109: 0 | S109: 0 | T109: 0
A110: QVV | B110: R0D | C110: UNIVERSITY HOSPITALS DORSET NHS FOUNDATION TRUST | D110: 38 | E110: 0.8421052632 | F110: 0.02631578947 | G110: 26 | H110: 6 | I110: 5 | J110: 0 | K110: 1 | L110: 0 | M110: 17 | N110: 0 | O110: 0 | P110: 0 | Q110: 21 | R110: 0 | S110: 0 | T110: 0
A111: QWE | B111: RAX | C111: KINGSTON HOSPITAL NHS FOUNDATION TRUST | D111: 0 | E111: NA | F111: NA | G111: 0 | H111: 0 | I111: 0 | J111: 0 | K111: 0 | L111: 0 | M111: 0 | N111: 0 | O111: 0 | P111: 0 | Q111: 0 | R111: 0 | S111: 0 | T111: 0
A112: QWE | B112: RJ6 | C112: CROYDON HEALTH SERVICES NHS TRUST | D112: 0 | E112: NA | F112: NA | G112: 0 | H112: 0 | I112: 0 | J112: 0 | K112: 0 | L112: 0 | M112: 0 | N112: 0 | O112: 0 | P112: 0 | Q112: 0 | R112: 0 | S112: 0 | T112: 0
A113: QWE | B113: RJ7 | C113: ST GEORGE'S UNIVERSITY HOSPITALS NHS FOUNDATION TRUST | D113: 0 | E113: NA | F113: NA | G113: 0 | H113: 0 | I113: 0 | J113: 0 | K113: 0 | L113: 0 | M113: 0 | N113: 0 | O113: 0 | P113: 0 | Q113: 0 | R113: 0 | S113: 0 | T113: 0
A114: QWE | B114: RVR | C114: EPSOM AND ST HELIER UNIVERSITY HOSPITALS NHS TRUST | D114: 3 | E114: * | F114: * | G114: * | H114: * | I114: * | J114: * | K114: * | L114: * | M114: * | N114: * | O114: * | P114: * | Q114: * | R114: * | S114: * | T114: *
A115: QWO | B115: RAE | C115: BRADFORD TEACHING HOSPITALS NHS FOUNDATION TRUST | D115: 0 | E115: NA | F115: NA | G115: 0 | H115: 0 | I115: 0 | J115: 0 | K115: 0 | L115: 0 | M115: 0 | N115: 0 | O115: 0 | P115: 0 | Q115: 0 | R115: 0 | S115: 0 | T115: 0
A116: QWO | B116: RCF | C116: AIREDALE NHS FOUNDATION TRUST | D116: 0 | E116: NA | F116: NA | G116: 0 | H116: 0 | I116: 0 | J116: 0 | K116: 0 | L116: 0 | M116: 0 | N116: 0 | O116: 0 | P116: 0 | Q116: 0 | R116: 0 | S116: 0 | T116: 0
A117: QWO | B117: RR8 | C117: LEEDS TEACHING HOSPITALS NHS TRUST | D117: 0 | E117: NA | F117: NA | G117: 0 | H117: 0 | I117: 0 | J117: 0 | K117: 0 | L117: 0 | M117: 0 | N117: 0 | O117: 0 | P117: 0 | Q117: 0 | R117: 0 | S117: 0 | T117: 0
A118: QWO | B118: RXF | C118: MID YORKSHIRE HOSPITALS NHS TRUST | D118: 0 | E118: NA | F118: NA | G118: 0 | H118: 0 | I118: 0 | J118: 0 | K118: 0 | L118: 0 | M118: 0 | N118: 0 | O118: 0 | P118: 0 | Q118: 0 | R118: 0 | S118: 0 | T118: 0
A119: QWO | B119: RWY | C119: CALDERDALE AND HUDDERSFIELD NHS FOUNDATION TRUST | D119: 7 | E119: 1 | F119: 0 | G119: * | H119: * | I119: * | J119: * | K119: * | L119: * | M119: * | N119: * | O119: * | P119: * | Q119: * | R119: * | S119: * | T119: *
A120: QWU | B120: RKB | C120: UNIVERSITY HOSPITALS COVENTRY AND WARWICKSHIRE NHS TRUST | D120: 2 | E120: * | F120: * | G120: * | H120: * | I120: * | J120: * | K120: * | L120: * | M120: * | N120: * | O120: * | P120: * | Q120: * | R120: * | S120: * | T120: *
A121: QWU | B121: RJC | C121: SOUTH WARWICKSHIRE NHS FOUNDATION TRUST | D121: 3 | E121: * | F121: * | G121: * | H121: * | I121: * | J121: * | K121: * | L121: * | M121: * | N121: * | O121: * | P121: * | Q121: * | R121: * | S121: * | T121: *
A122: QWU | B122: RLT | C122: GEORGE ELIOT HOSPITAL NHS TRUST | D122: 14 | E122: 1 | F122: 0 | G122: 10 | H122: 4 | I122: 0 | J122: 0 | K122: 0 | L122: 0 | M122: 13 | N122: 0 | O122: 0 | P122: 1 | Q122: 0 | R122: 0 | S122: 0 | T122: 0
A123: QXU | B123: RTP | C123: SURREY AND SUSSEX HEALTHCARE NHS TRUST | D123: 3 | E123: * | F123: * | G123: * | H123: * | I123: * | J123: * | K123: * | L123: * | M123: * | N123: * | O123: * | P123: * | Q123: * | R123: * | S123: * | T123: *
A124: QXU | B124: RA2 | C124: ROYAL SURREY COUNTY HOSPITAL NHS FOUNDATION TRUST | D124: 59 | E124: 0.9830508475 | F124: 0.01694915254 | G124: * | H124: * | I124: * | J124: * | K124: * | L124: * | M124: * | N124: * | O124: * | P124: * | Q124: * | R124: * | S124: * | T124: *
A125: QYG | B125: RBL | C125: WIRRAL UNIVERSITY TEACHING HOSPITAL NHS FOUNDATION TRUST | D125: 0 | E125: NA | F125: NA | G125: 0 | H125: 0 | I125: 0 | J125: 0 | K125: 0 | L125: 0 | M125: 0 | N125: 0 | O125: 0 | P125: 0 | Q125: 0 | R125: 0 | S125: 0 | T125: 0
A126: QYG | B126: RBT | C126: MID CHESHIRE HOSPITALS NHS FOUNDATION TRUST | D126: 0 | E126: NA | F126: NA | G126: 0 | H126: 0 | I126: 0 | J126: 0 | K126: 0 | L126: 0 | M126: 0 | N126: 0 | O126: 0 | P126: 0 | Q126: 0 | R126: 0 | S126: 0 | T126: 0
A127: QYG | B127: REP | C127: LIVERPOOL WOMEN'S NHS FOUNDATION TRUST | D127: 0 | E127: NA | F127: NA | G127: 0 | H127: 0 | I127: 0 | J127: 0 | K127: 0 | L127: 0 | M127: 0 | N127: 0 | O127: 0 | P127: 0 | Q127: 0 | R127: 0 | S127: 0 | T127: 0
A128: QYG | B128: RJN | C128: EAST CHESHIRE NHS TRUST | D128: 0 | E128: NA | F128: NA | G128: 0 | H128: 0 | I128: 0 | J128: 0 | K128: 0 | L128: 0 | M128: 0 | N128: 0 | O128: 0 | P128: 0 | Q128: 0 | R128: 0 | S128: 0 | T128: 0
A129: QYG | B129: RVY | C129: SOUTHPORT AND ORMSKIRK HOSPITAL NHS TRUST | D129: 0 | E129: NA | F129: NA | G129: 0 | H129: 0 | I129: 0 | J129: 0 | K129: 0 | L129: 0 | M129: 0 | N129: 0 | O129: 0 | P129: 0 | Q129: 0 | R129: 0 | S129: 0 | T129: 0
A130: QYG | B130: RWW | C130: WARRINGTON AND HALTON TEACHING HOSPITALS NHS FOUNDATION TRUST | D130: 0 | E130: NA | F130: NA | G130: 0 | H130: 0 | I130: 0 | J130: 0 | K130: 0 | L130: 0 | M130: 0 | N130: 0 | O130: 0 | P130: 0 | Q130: 0 | R130: 0 | S130: 0 | T130: 0
A131: QYG | B131: RY2 | C131: BRIDGEWATER COMMUNITY HEALTHCARE NHS FOUNDATION TRUST | D131: 0 | E131: NA | F131: NA | G131: 0 | H131: 0 | I131: 0 | J131: 0 | K131: 0 | L131: 0 | M131: 0 | N131: 0 | O131: 0 | P131: 0 | Q131: 0 | R131: 0 | S131: 0 | T131: 0
A132: QYG | B132: RJR | C132: COUNTESS OF CHESTER HOSPITAL NHS FOUNDATION TRUST | D132: 20 | E132: 0.95 | F132: 0 | G132: 18 | H132: 1 | I132: 0 | J132: 0 | K132: 0 | L132: 1 | M132: 20 | N132: 0 | O132: 0 | P132: 0 | Q132: 0 | R132: 0 | S132: 0 | T132: 0
A133: QYG | B133: RBN | C133: ST HELENS AND KNOWSLEY TEACHING HOSPITALS NHS TRUST | D133: 22 | E133: 1 | F133: 0 | G133: 22 | H133: 0 | I133: 0 | J133: 0 | K133: 0 | L133: 0 | M133: 0 | N133: 0 | O133: 0 | P133: 22 | Q133: 0 | R133: 0 | S133: 0 | T133: 0

Sheet BSQ1 (hidden)
B1: Sort | C1: Region (LO) | D1: Region (LO) | E1: Trusts | F1: Trusts | G1: Sites | H1: Sites | J1: Sort ranges: | K1: Sort range… | L1: Sort range… | M1: Sort range… | N1: Reference Region List: | O1: Code… | P1: Name… | Q1: Linked Region List: | R1: Code… | S1: Name… | T1: Reference Lists: | U1: Code… | V1: Code… | W1: Name… | X1: Code… | Y1: Name… | Z1: Trusts Linked Lists: | AA1: Code… | AB1: Name… | AC1: Site Linked Lists: | AD1: Code… | AE1: Name… | AF1: Code… | AG1: Name…
A2: Region (LO) | B2: 1 | C2: 1 | D2: 1 | E2: - | F2: - | G2: - | H2: - | K2: Region (LO) Code | L2: Region (LO) Code | M2: Region (LO) Code | O2: QE1 | P2: HEALTHIER LANCASHIRE AND SOUTH CUMBRIA | R2: QE1 | S2: HEALTHIER LANCASHIRE AND SOUTH CUMBRIA | U2: QE1 | V2: RXR | W2: EAST LANCASHIRE HOSPITALS NHS TRUST | X2: RXR20 | Y2: Royal Blackburn Hospital | AA2: R0A | AB2: AIREDALE NHS FOUNDATION TRUST | AD2: R0A | AE2: AIREDALE NHS FOUNDATION TRUST | AF2: R0A05 | AG2: Airedale General Hospital
A3: Trusts | B3: 1 | C3: 1 | D3: 1 | E3: 1 | F3: 1 | G3: - | H3: - | K3: Region (Local Office) | L3: Trust Code | M3: Trust Code | O3: QF7 | P3: SOUTH YORKSHIRE AND BASSETLAW STP | R3: QF7 | S3: SOUTH YORKSHIRE AND BASSETLAW STP | U3: QE1 | V3: RXN | W3: LANCASHIRE TEACHING HOSPITALS NHS FOUNDATION TRUST | X3: RXN01 | Y3: Chorley and South Ribble Hospital | AA3: R0B | AB3: BARKING, HAVERING AND REDBRIDGE UNIVERSITY HOSPITALS NHS TRUST | AD3: R0B | AE3: BARKING, HAVERING AND REDBRIDGE UNIVERSITY HOSPITALS NHS TRUST | AF3: R0B01 | AG3: Alexandra Hospital
A4: Sites | B4: 1 | C4: 1 | D4: 1 | E4: 1 | F4: 1 | G4: 1 | H4: 1 | K4: Total Responses | L4: Trust Name | M4: Trust Name | O4: QGH | P4: HEREFORDSHIRE AND WORCESTERSHIRE STP | R4: QGH | S4: HEREFORDSHIRE AND WORCESTERSHIRE STP | U4: QE1 | V4: RXN | W4: LANCASHIRE TEACHING HOSPITALS NHS FOUNDATION TRUST | X4: RXN02 | Y4: Royal Preston Hospital | AA4: R0D | AB4: BARNSLEY HOSPITAL NHS FOUNDATION TRUST | AD4: R0D | AE4: BARNSLEY HOSPITAL NHS FOUNDATION TRUST | AF4: R0B0Q | AG4: Arrowe Park Hospital
K5: Percentage Recommended | L5: Total Responses | M5: Site Code | O5: QH8 | P5: MID AND SOUTH ESSEX STP | R5: QH8 | S5: MID AND SOUTH ESSEX STP | U5: QE1 | V5: RTX | W5: UNIVERSITY HOSPITALS OF MORECAMBE BAY NHS FOUNDATION TRUST | X5: RTX02 | Y5: Royal Lancaster Infirmary | AA5: R1F | AB5: BARTS HEALTH NHS TRUST | AD5: R1F | AE5: BARTS HEALTH NHS TRUST | AF5: R0D01 | AG5: Barnet Hospital
K6: Percentage Not Recommended | L6: Percentage Recommended | M6: Site Name | O6: QHG | P6: BEDFORDSHIRE, LUTON AND MILTON KEYNES STP | R6: QHG | S6: BEDFORDSHIRE, LUTON AND MILTON KEYNES STP | U6: QE1 | V6: RTX | W6: UNIVERSITY HOSPITALS OF MORECAMBE BAY NHS FOUNDATION TRUST | X6: RTXBU | Y6: Furness General Hospital | AA6: R1H | AB6: BEDFORDSHIRE HOSPITALS NHS FOUNDATION TRUST | AD6: R1H | AE6: BEDFORDSHIRE HOSPITALS NHS FOUNDATION TRUST | AF6: R0D02 | AG6: Barnsley Hospital NHS Foundation Trust HQ
K7: Extremely Likely | L7: Percentage Not Recommended | M7: Total Responses | O7: QHL | P7: BIRMINGHAM AND SOLIHULL STP | R7: QHL | S7: BIRMINGHAM AND SOLIHULL STP | U7: QE1 | V7: RTX | W7: UNIVERSITY HOSPITALS OF MORECAMBE BAY NHS FOUNDATION TRUST | X7: RTXBW | Y7: Westmorland General Hospital | AA7: R1K | AB7: BIRMINGHAM WOMEN'S AND CHILDREN'S NHS FOUNDATION TRUST | AD7: R1K | AE7: BIRMINGHAM WOMEN'S AND CHILDREN'S NHS FOUNDATION TRUST | AF7: R1F01 | AG7: Basingstoke and North Hampshire Hospital
K8: Likely | L8: Extremely Likely | M8: Percentage Recommended | O8: QHM | P8: CUMBRIA AND NORTH EAST STP | R8: QHM | S8: CUMBRIA AND NORTH EAST STP | U8: QF7 | V8: RFF | W8: BARNSLEY HOSPITAL NHS FOUNDATION TRUST | X8: RFFAA | Y8: Barnsley Hospital NHS Foundation Trust HQ | AA8: RA2 | AB8: BRADFORD TEACHING HOSPITALS NHS FOUNDATION TRUST | AD8: RA2 | AE8: BRADFORD TEACHING HOSPITALS NHS FOUNDATION TRUST | AF8: R1H12 | AG8: Bassetlaw Hospital
K9: Neither | L9: Likely | M9: Percentage Not Recommended | O9: QJ2 | P9: JOINED UP CARE DERBYSHIRE STP | R9: QJ2 | S9: JOINED UP CARE DERBYSHIRE STP | U9: QF7 | V9: RP5 | W9: DONCASTER AND BASSETLAW TEACHING HOSPITALS NHS FOUNDATION TRUST | X9: RP5BA | Y9: Bassetlaw Hospital | AA9: RA4 | AB9: BRIDGEWATER COMMUNITY HEALTHCARE NHS FOUNDATION TRUST | AD9: RA4 | AE9: BRIDGEWATER COMMUNITY HEALTHCARE NHS FOUNDATION TRUST | AF9: R1HKH | AG9: BEDFORD HOSPITAL SOUTH WING
K10: Unlikely | L10: Neither | M10: Extremely Likely | O10: QJG | P10: SUFFOLK AND NORTH EAST ESSEX ICS | R10: QJG | S10: SUFFOLK AND NORTH EAST ESSEX ICS | U10: QF7 | V10: RP5 | W10: DONCASTER AND BASSETLAW TEACHING HOSPITALS NHS FOUNDATION TRUST | X10: RP5XXX | Y10: Non-hospital site | AA10: RA7 | AB10: BRIGHTON AND SUSSEX UNIVERSITY HOSPITALS NHS TRUST | AD10: RA7 | AE10: BRIGHTON AND SUSSEX UNIVERSITY HOSPITALS NHS TRUST | AF10: R1HNH | AG10: Birmingham Women's Hospital
K11: Extremely Unlikely | L11: Unlikely | M11: Likely | O11: QJK | P11: DEVON STP | R11: QJK | S11: DEVON STP | U11: QF7 | V11: RP5 | W11: DONCASTER AND BASSETLAW TEACHING HOSPITALS NHS FOUNDATION TRUST | X11: RP5DR | Y11: Doncaster Royal Infirmary | AA11: RAE | AB11: BUCKINGHAMSHIRE HEALTHCARE NHS TRUST | AD11: RAE | AE11: BUCKINGHAMSHIRE HEALTHCARE NHS TRUST | AF11: R1K01 | AG11: Bradford Royal Infirmary
K12: Don't Know | L12: Extremely Unlikely | M12: Neither | O12: QJM | P12: LINCOLNSHIRE STP | R12: QJM | S12: LINCOLNSHIRE STP | U12: QF7 | V12: RHQ | W12: SHEFFIELD TEACHING HOSPITALS NHS FOUNDATION TRUST | X12: RHQHH | Y12: Royal Hallamshire Hospital | AA12: RAL | AB12: CALDERDALE AND HUDDERSFIELD NHS FOUNDATION TRUST | AD12: RAL | AE12: CALDERDALE AND HUDDERSFIELD NHS FOUNDATION TRUST | AF12: R1K02 | AG12: Calderdale Royal Hospital
L13: Don't Know | M13: Unlikely | O13: QK1 | P13: LEICESTER, LEICESTERSHIRE AND RUTLAND STP | R13: QK1 | S13: LEICESTER, LEICESTERSHIRE AND RUTLAND STP | U13: QF7 | V13: RFR | W13: THE ROTHERHAM NHS FOUNDATION TRUST | X13: RFRPA | Y13: Rotherham District General Hospital | AA13: RAS | AB13: CAMBRIDGE UNIVERSITY HOSPITALS NHS FOUNDATION TRUST | AD13: RAS | AE13: CAMBRIDGE UNIVERSITY HOSPITALS NHS FOUNDATION TRUST | AF13: R1K04 | AG13: Central Middlesex Hospital
L14: SMS/Text / Smartphone App | M14: Extremely Unlikely | O14: QKK | P14: OUR HEALTHIER SOUTH EAST LONDON STP | R14: QKK | S14: OUR HEALTHIER SOUTH EAST LONDON STP | U14: QGH | V14: RWP | W14: WORCESTERSHIRE ACUTE HOSPITALS NHS TRUST | X14: RWP01 | Y14: Alexandra Hospital | AA14: RAX | AB14: CHELSEA AND WESTMINSTER HOSPITAL NHS FOUNDATION TRUST | AD14: RAX | AE14: CHELSEA AND WESTMINSTER HOSPITAL NHS FOUNDATION TRUST | AF14: R1KXXX | AG14: Chelsea and Westminster Hospital
L15: Electronic tablet/kiosk at point of discharge | M15: Don't Know | O15: QKS | P15: KENT AND MEDWAY STP | R15: QKS | S15: KENT AND MEDWAY STP | U15: QGH | V15: RWP | W15: WORCESTERSHIRE ACUTE HOSPITALS NHS TRUST | X15: RWP50 | Y15: Worcestershire Royal Hospital | AA15: RBD | AB15: CHESTERFIELD ROYAL HOSPITAL NHS FOUNDATION TRUST | AD15: RBD | AE15: CHESTERFIELD ROYAL HOSPITAL NHS FOUNDATION TRUST | AF15: RA201 | AG15: Cheltenham General Hospital
L16: Paper / postcard at point of discharge | O16: QM7 | P16: HERTFORDSHIRE AND WEST ESSEX STP | R16: QM7 | S16: HERTFORDSHIRE AND WEST ESSEX STP | U16: QGH | V16: RWP | W16: WORCESTERSHIRE ACUTE HOSPITALS NHS TRUST | X16: RWP31 | Y16: Kidderminster Hospital | AA16: RBK | AB16: COUNTESS OF CHESTER HOSPITAL NHS FOUNDATION TRUST | AD16: RBK | AE16: COUNTESS OF CHESTER HOSPITAL NHS FOUNDATION TRUST | AF16: RA430 | AG16: Chesterfield Royal Hospital
L17: Paper survey, sent to the patients home | O17: QMF | P17: EAST LONDON HEALTH & CARE PARTNERSHIP (STP) | R17: QMF | S17: EAST LONDON HEALTH & CARE PARTNERSHIP (STP) | U17: QGH | V17: RLQ | W17: WYE VALLEY NHS TRUST | X17: RLQ01 | Y17: Hereford County Hospital | AA17: RBL | AB17: CROYDON HEALTH SERVICES NHS TRUST | AD17: RBL | AE17: CROYDON HEALTH SERVICES NHS TRUST | AF17: RA707 | AG17: Chippenham Community Hospital
L18: Telephone survey once patient is home | O18: QMJ | P18: NORTH LONDON PARTNERS IN HEALTH & CARE (STP) | R18: QMJ | S18: NORTH LONDON PARTNERS IN HEALTH & CARE (STP) | U18: QHG | V18: RC9 | W18: BEDFORDSHIRE HOSPITALS NHS FOUNDATION TRUST | X18: RC979 | Y18: BEDFORD HOSPITAL SOUTH WING | AA18: RBN | AB18: DONCASTER AND BASSETLAW TEACHING HOSPITALS NHS FOUNDATION TRUST | AD18: RBN | AE18: DONCASTER AND BASSETLAW TEACHING HOSPITALS NHS FOUNDATION TRUST | AF18: RAE01 | AG18: Chorley and South Ribble Hospital
L19: Online survey once patient is home | O19: QMM | P19: NORFOLK AND WAVENEY HEALTH & CARE PARTNERSHIP (STP) | R19: QMM | S19: NORFOLK AND WAVENEY HEALTH & CARE PARTNERSHIP (STP) | U19: QHG | V19: RC9 | W19: BEDFORDSHIRE HOSPITALS NHS FOUNDATION TRUST | X19: RC971 | Y19: Luton and Dunstable Hospital | AA19: RBT | AB19: DORSET COUNTY HOSPITAL NHS FOUNDATION TRUST | AD19: RBT | AE19: DORSET COUNTY HOSPITAL NHS FOUNDATION TRUST | AF19: RAEXXX | AG19: City Hospital
L20: Other | O20: QNC | P20: STAFFORDSHIRE & STOKE ON TRENT STP | R20: QNC | S20: STAFFORDSHIRE & STOKE ON TRENT STP | U20: QHG | V20: RD8 | W20: MILTON KEYNES UNIVERSITY HOSPITAL NHS FOUNDATION TRUST | X20: RD816 | Y20: Milton Keynes Hospital | AA20: RBZ | AB20: EAST AND NORTH HERTFORDSHIRE NHS TRUST | AD20: RBZ | AE20: EAST AND NORTH HERTFORDSHIRE NHS TRUST | AF20: RAL01 | AG20: Colchester General Hospital
O21: QNQ | P21: FRIMLEY HEALTH & CARE (STP) | R21: QNQ | S21: FRIMLEY HEALTH & CARE (STP) | U21: QHL | V21: RQ3 | W21: BIRMINGHAM WOMEN'S AND CHILDREN'S NHS FOUNDATION TRUST | X21: RQ370 | Y21: Birmingham Women's Hospital | AA21: RC9 | AB21: EAST CHESHIRE NHS TRUST | AD21: RC9 | AE21: EAST CHESHIRE NHS TRUST | AF21: RAL26 | AG21: Conquest Hospital
O22: QNX | P22: SUSSEX HEALTH AND CARE PARTNERSHIP | R22: QNX | S22: SUSSEX HEALTH AND CARE PARTNERSHIP | U22: QHL | V22: RRK | W22: UNIVERSITY HOSPITALS BIRMINGHAM NHS FOUNDATION TRUST | X22: RRK97 | Y22: Heartlands Hospital | AA22: RCB | AB22: EAST KENT HOSPITALS UNIVERSITY NHS FOUNDATION TRUST | AD22: RCB | AE22: EAST KENT HOSPITALS UNIVERSITY NHS FOUNDATION TRUST | AF22: RAS01 | AG22: Countess Of Chester Hospital
O23: QOC | P23: SHROPSHIRE AND TELFORD AND WREKIN STP | R23: QOC | S23: SHROPSHIRE AND TELFORD AND WREKIN STP | U23: QHL | V23: RRK | W23: UNIVERSITY HOSPITALS BIRMINGHAM NHS FOUNDATION TRUST | X23: RRK98 | Y23: Good Hope Hospital | AA23: RCD | AB23: EAST LANCASHIRE HOSPITALS NHS TRUST | AD23: RCD | AE23: EAST LANCASHIRE HOSPITALS NHS TRUST | AF23: RAX01 | AG23: County Hospital
O24: QOP | P24: GREATER MANCHESTER HEALTH & SOCIAL CARE PARTNERSHIP | R24: QOP | S24: GREATER MANCHESTER HEALTH & SOCIAL CARE PARTNERSHIP | U24: QHL | V24: RRK | W24: UNIVERSITY HOSPITALS BIRMINGHAM NHS FOUNDATION TRUST | X24: RRK99 | Y24: Solihull Hospital | AA24: RCF | AB24: EAST SUFFOLK AND NORTH ESSEX NHS FOUNDATION TRUST | AD24: RCF | AE24: EAST SUFFOLK AND NORTH ESSEX NHS FOUNDATION TRUST | AF24: RBD01 | AG24: Coventry and Warwickshire Hospital
O25: QOQ | P25: HUMBER, COAST AND VALE STP | R25: QOQ | S25: HUMBER, COAST AND VALE STP | U25: QHM | V25: RNN | W25: NORTH CUMBRIA INTEGRATED CARE NHS FOUNDATION TRUST | X25: RNNXXX | Y25: Non-hospital site | AA25: RCX | AB25: EAST SUSSEX HEALTHCARE NHS TRUST | AD25: RCX | AE25: EAST SUSSEX HEALTHCARE NHS TRUST | AF25: RBK02 | AG25: Croydon University Hospital
O26: QOX | P26: BATH AND NORTH EAST SOMERSET, SWINDON AND WILTSHIRE STP | R26: QOX | S26: BATH AND NORTH EAST SOMERSET, SWINDON AND WILTSHIRE STP | U26: QHM | V26: RVW | W26: NORTH TEES AND HARTLEPOOL NHS FOUNDATION TRUST | X26: RVWAE | Y26: University Hospital Of North Tees | AA26: RD1 | AB26: EPSOM AND ST HELIER UNIVERSITY HOSPITALS NHS TRUST | AD26: RD1 | AE26: EPSOM AND ST HELIER UNIVERSITY HOSPITALS NHS TRUST | AF26: RBL14 | AG26: Dewsbury and District Hospital
O27: QPM | P27: NORTHAMPTONSHIRE STP | R27: QPM | S27: NORTHAMPTONSHIRE STP | U27: QHM | V27: RVW | W27: NORTH TEES AND HARTLEPOOL NHS FOUNDATION TRUST | X27: RVWXXX | Y27: Non-hospital site | AA27: RD8 | AB27: FRIMLEY HEALTH NHS FOUNDATION TRUST | AD27: RD8 | AE27: FRIMLEY HEALTH NHS FOUNDATION TRUST | AF27: RBN01 | AG27: Diana, Princess Of Wales Hospital
O28: QR1 | P28: GLOUCESTERSHIRE STP | R28: QR1 | S28: GLOUCESTERSHIRE STP | U28: QHM | V28: RTF | W28: NORTHUMBRIA HEALTHCARE NHS FOUNDATION TRUST | X28: RTFXXX | Y28: Non-hospital site | AA28: RDE | AB28: GEORGE ELIOT HOSPITAL NHS TRUST | AD28: RDE | AE28: GEORGE ELIOT HOSPITAL NHS TRUST | AF28: RBT20 | AG28: Doncaster Royal Infirmary
O29: QRL | P29: HAMPSHIRE AND THE ISLE OF WIGHT STP | R29: QRL | S29: HAMPSHIRE AND THE ISLE OF WIGHT STP | U29: QHM | V29: RTR | W29: SOUTH TEES HOSPITALS NHS FOUNDATION TRUST | X29: RTRAT | Y29: The James Cook University Hospital | AA29: RDU | AB29: GLOUCESTERSHIRE HOSPITALS NHS FOUNDATION TRUST | AD29: RDU | AE29: GLOUCESTERSHIRE HOSPITALS NHS FOUNDATION TRUST | AF29: RBZ12 | AG29: Dorset County Hospital
O30: QRV | P30: NORTH WEST LONDON HEALTH & CARE PARTNERSHIP (STP) | R30: QRV | S30: NORTH WEST LONDON HEALTH & CARE PARTNERSHIP (STP) | U30: QHM | V30: R0B | W30: SOUTH TYNESIDE AND SUNDERLAND NHS FOUNDATION TRUST | X30: R0B0Q | Y30: South Tyneside District Hospital | AA30: REF | AB30: GREAT WESTERN HOSPITALS NHS FOUNDATION TRUST | AD30: REF | AE30: GREAT WESTERN HOSPITALS NHS FOUNDATION TRUST | AF30: RC971 | AG30: Ealing Hospital
O31: QSL | P31: SOMERSET STP | R31: QSL | S31: SOMERSET STP | U31: QHM | V31: R0B | W31: SOUTH TYNESIDE AND SUNDERLAND NHS FOUNDATION TRUST | X31: R0B01 | Y31: Sunderland Royal Hospital | AA31: REP | AB31: GUY'S AND ST THOMAS' NHS FOUNDATION TRUST | AD31: REP | AE31: GUY'S AND ST THOMAS' NHS FOUNDATION TRUST | AF31: RC979 | AG31: East Surrey Hospital
O32: QT1 | P32: NOTTINGHAM AND NOTTINGHAMSHIRE HEALTH AND CARE STP | R32: QT1 | S32: NOTTINGHAM AND NOTTINGHAMSHIRE HEALTH AND CARE STP | U32: QJ2 | V32: RFS | W32: CHESTERFIELD ROYAL HOSPITAL NHS FOUNDATION TRUST | X32: RFSDA | Y32: Chesterfield Royal Hospital | AA32: RF4 | AB32: HAMPSHIRE HOSPITALS NHS FOUNDATION TRUST | AD32: RF4 | AE32: HAMPSHIRE HOSPITALS NHS FOUNDATION TRUST | AF32: RCB55 | AG32: Eastbourne District General Hospital
O33: QT6 | P33: CORNWALL AND THE ISLES OF SCILLY HEALTH & SOCIAL CARE PARTNERSHIP (STP) | R33: QT6 | S33: CORNWALL AND THE ISLES OF SCILLY HEALTH & SOCIAL CARE PARTNERSHIP (STP) | U33: QJ2 | V33: RTG | W33: UNIVERSITY HOSPITALS OF DERBY AND BURTON NHS FOUNDATION TRUST | X33: RTG02 | Y33: Queens Hospital, Burton Upon Trent | AA33: RFF | AB33: HARROGATE AND DISTRICT NHS FOUNDATION TRUST | AD33: RFF | AE33: HARROGATE AND DISTRICT NHS FOUNDATION TRUST | AF33: RCBCA | AG33: Epsom Hospital
O34: QU9 | P34: BUCKINGHAMSHIRE, OXFORDSHIRE AND BERKSHIRE WEST STP | R34: QU9 | S34: BUCKINGHAMSHIRE, OXFORDSHIRE AND BERKSHIRE WEST STP | U34: QJ2 | V34: RTG | W34: UNIVERSITY HOSPITALS OF DERBY AND BURTON NHS FOUNDATION TRUST | X34: RTGFG | Y34: Royal Derby Hospital | AA34: RFR | AB34: IMPERIAL COLLEGE HEALTHCARE NHS TRUST | AD34: RFR | AE34: IMPERIAL COLLEGE HEALTHCARE NHS TRUST | AF34: RCD01 | AG34: Frimley Park Hospital
O35: QUA | P35: THE BLACK COUNTRY AND WEST BIRMINGHAM STP | R35: QUA | S35: THE BLACK COUNTRY AND WEST BIRMINGHAM STP | U35: QJG | V35: RDE | W35: EAST SUFFOLK AND NORTH ESSEX NHS FOUNDATION TRUST | X35: RDEE4 | Y35: Colchester General Hospital | AA35: RFS | AB35: ISLE OF WIGHT NHS TRUST | AD35: RFS | AE35: ISLE OF WIGHT NHS TRUST | AF35: RCF22 | AG35: Frome Community Hospital
O36: QUE | P36: CAMBRIDGESHIRE AND PETERBOROUGH STP | R36: QUE | S36: CAMBRIDGESHIRE AND PETERBOROUGH STP | U36: QJG | V36: RGR | W36: WEST SUFFOLK NHS FOUNDATION TRUST | X36: RGR50 | Y36: West Suffolk Hospital | AA36: RGN | AB36: KING'S COLLEGE HOSPITAL NHS FOUNDATION TRUST | AD36: RGN | AE36: KING'S COLLEGE HOSPITAL NHS FOUNDATION TRUST | AF36: RCX66 | AG36: Furness General Hospital
O37: QUY | P37: BRISTOL, NORTH SOMERSET AND SOUTH GLOUCESTERSHIRE STP | R37: QUY | S37: BRISTOL, NORTH SOMERSET AND SOUTH GLOUCESTERSHIRE STP | U37: QJK | V37: RBZ | W37: NORTHERN DEVON HEALTHCARE NHS TRUST | X37: RBZ12 | Y37: North Devon District Hospital | AA37: RGR | AB37: KINGSTON HOSPITAL NHS FOUNDATION TRUST | AD37: RGR | AE37: KINGSTON HOSPITAL NHS FOUNDATION TRUST | AF37: RCX70 | AG37: George Eliot Hospital - Acute Services
O38: QVV | P38: DORSET STP | R38: QVV | S38: DORSET STP | U38: QJK | V38: RH8 | W38: ROYAL DEVON AND EXETER NHS FOUNDATION TRUST | X38: RH801 | Y38: Royal Devon and Exeter Hospital (Wonford) | AA38: RGT | AB38: LANCASHIRE TEACHING HOSPITALS NHS FOUNDATION TRUST | AD38: RGT | AE38: LANCASHIRE TEACHING HOSPITALS NHS FOUNDATION TRUST | AF38: RCXXXX | AG38: Gloucestershire Royal Hospital
O39: QWE | P39: SOUTH WEST LONDON HEALTH & CARE PARTNERSHIP (STP) | R39: QWE | S39: SOUTH WEST LONDON HEALTH & CARE PARTNERSHIP (STP) | U39: QJK | V39: RK9 | W39: UNIVERSITY HOSPITALS PLYMOUTH NHS TRUST | X39: RK9XXX | Y39: Non-hospital site | AA39: RH5 | AB39: LEEDS TEACHING HOSPITALS NHS TRUST | AD39: RH5 | AE39: LEEDS TEACHING HOSPITALS NHS TRUST | AF39: RD102 | AG39: Good Hope Hospital
O40: QWO | P40: WEST YORKSHIRE AND HARROGATE HEALTH & CARE PARTNERSHIP (STP) | R40: QWO | S40: WEST YORKSHIRE AND HARROGATE HEALTH & CARE PARTNERSHIP (STP) | U40: QJM | V40: RWD | W40: UNITED LINCOLNSHIRE HOSPITALS NHS TRUST | X40: RWDLA | Y40: Pilgrim Hospital | AA40: RH8 | AB40: LEWISHAM AND GREENWICH NHS TRUST | AD40: RH8 | AE40: LEWISHAM AND GREENWICH NHS TRUST | AF40: RD121 | AG40: Gosport War Memorial Hospital
O41: QWU | P41: COVENTRY AND WARWICKSHIRE STP | R41: QWU | S41: COVENTRY AND WARWICKSHIRE STP | U41: QJM | V41: RWD | W41: UNITED LINCOLNSHIRE HOSPITALS NHS TRUST | X41: RWDLP | Y41: Grantham and District Hospital | AA41: RHM | AB41: LIVERPOOL WOMEN'S NHS FOUNDATION TRUST | AD41: RHM | AE41: LIVERPOOL WOMEN'S NHS FOUNDATION TRUST | AF41: RD816 | AG41: Grantham and District Hospital
O42: QXU | P42: SURREY HEARTLANDS HEALTH & CARE PARTNERSHIP (STP) | R42: QXU | S42: SURREY HEARTLANDS HEALTH & CARE PARTNERSHIP (STP) | U42: QJM | V42: RWD | W42: UNITED LINCOLNSHIRE HOSPITALS NHS TRUST | X42: RWDXXX | Y42: Non-hospital site | AA42: RHQ | AB42: LONDON NORTH WEST UNIVERSITY HEALTHCARE NHS TRUST | AD42: RHQ | AE42: LONDON NORTH WEST UNIVERSITY HEALTHCARE NHS TRUST | AF42: RDEE4 | AG42: Harrogate District Hospital
O43: QYG | P43: CHESHIRE AND MERSEYSIDE STP | R43: QYG | S43: CHESHIRE AND MERSEYSIDE STP | U43: QJM | V43: RWD | W43: UNITED LINCOLNSHIRE HOSPITALS NHS TRUST | X43: RWDDA | Y43: Lincoln County Hospital | AA43: RHU | AB43: MAIDSTONE AND TUNBRIDGE WELLS NHS TRUST | AD43: RHU | AE43: MAIDSTONE AND TUNBRIDGE WELLS NHS TRUST | AF43: RDU01 | AG43: Health Care Resource Centre
O44: zIS1 | P44: Independent Sector Provider | R44: zIS1 | S44: Independent Sector Provider | U44: QK1 | V44: RWE | W44: UNIVERSITY HOSPITALS OF LEICESTER NHS TRUST | X44: RWEXXX | Y44: Non-hospital site | AA44: RHW | AB44: MANCHESTER UNIVERSITY NHS FOUNDATION TRUST | AD44: RHW | AE44: MANCHESTER UNIVERSITY NHS FOUNDATION TRUST | AF44: REFXXX | AG44: Heartlands Hospital
U45: QK1 | V45: RWE | W45: UNIVERSITY HOSPITALS OF LEICESTER NHS TRUST | X45: RWEAA | Y45: Leicester Royal Infirmary | AA45: RJ1 | AB45: MEDWAY NHS FOUNDATION TRUST | AD45: RJ1 | AE45: MEDWAY NHS FOUNDATION TRUST | AF45: REP01 | AG45: Hereford County Hospital
U46: QK1 | V46: RWE | W46: UNIVERSITY HOSPITALS OF LEICESTER NHS TRUST | X46: RWEAK | Y46: Leicester General Hospital | AA46: RJ2 | AB46: MID CHESHIRE HOSPITALS NHS FOUNDATION TRUST | AD46: RJ2 | AE46: MID CHESHIRE HOSPITALS NHS FOUNDATION TRUST | AF46: RF4XXX | AG46: Hillingdon Hospital
U47: QKK | V47: RJ1 | W47: GUY'S AND ST THOMAS' NHS FOUNDATION TRUST | X47: RJ122 | Y47: St Thomas' Hospital | AA47: RJ6 | AB47: MID YORKSHIRE HOSPITALS NHS TRUST | AD47: RJ6 | AE47: MID YORKSHIRE HOSPITALS NHS TRUST | AF47: RFFAA | AG47: Hinchingbrooke Hospital
U48: QKK | V48: RJZ | W48: KING'S COLLEGE HOSPITAL NHS FOUNDATION TRUST | X48: RJZ30 | Y48: Princess Royal University Hospital | AA48: RJ7 | AB48: MILTON KEYNES UNIVERSITY HOSPITAL NHS FOUNDATION TRUST | AD48: RJ7 | AE48: MILTON KEYNES UNIVERSITY HOSPITAL NHS FOUNDATION TRUST | AF48: RFRPA | AG48: Hospital Of St Cross
U49: QKK | V49: RJZ | W49: KING'S COLLEGE HOSPITAL NHS FOUNDATION TRUST | X49: RJZ01 | Y49: King's College Hospital (Denmark Hill) | AA49: RJC | AB49: NORFOLK AND NORWICH UNIVERSITY HOSPITALS NHS FOUNDATION TRUST | AD49: RJC | AE49: NORFOLK AND NORWICH UNIVERSITY HOSPITALS NHS FOUNDATION TRUST | AF49: RFSDA | AG49: Huddersfield Royal Infirmary
U50: QKK | V50: RJ2 | W50: LEWISHAM AND GREENWICH NHS TRUST | X50: RJ224 | Y50: University Hospital Lewisham | AA50: RJE | AB50: NORTH BRISTOL NHS TRUST | AD50: RJE | AE50: NORTH BRISTOL NHS TRUST | AF50: RGN80 | AG50: John Radcliffe Hospital
U51: QKK | V51: RJ2 | W51: LEWISHAM AND GREENWICH NHS TRUST | X51: RJ2XXX | Y51: Non-hospital site | AA51: RJL | AB51: NORTH CUMBRIA INTEGRATED CARE NHS FOUNDATION TRUST | AD51: RJL | AE51: NORTH CUMBRIA INTEGRATED CARE NHS FOUNDATION TRUST | AF51: RGN90 | AG51: Kidderminster Hospital
U52: QKK | V52: RJ2 | W52: LEWISHAM AND GREENWICH NHS TRUST | X52: RJ231 | Y52: Queen Elizabeth Hospital | AA52: RJN | AB52: NORTH TEES AND HARTLEPOOL NHS FOUNDATION TRUST | AD52: RJN | AE52: NORTH TEES AND HARTLEPOOL NHS FOUNDATION TRUST | AF52: RGR50 | AG52: King's College Hospital (Denmark Hill)
U53: QKS | V53: RVV | W53: EAST KENT HOSPITALS UNIVERSITY NHS FOUNDATION TRUST | X53: RVV01 | Y53: William Harvey Hospital (Ashford) | AA53: RJR | AB53: NORTH WEST ANGLIA NHS FOUNDATION TRUST | AD53: RJR | AE53: NORTH WEST ANGLIA NHS FOUNDATION TRUST | AF53: RGT32 | AG53: King's Mill Hospital
U54: QKS | V54: RWF | W54: MAIDSTONE AND TUNBRIDGE WELLS NHS TRUST | X54: RWF03 | Y54: Maidstone District General Hospital | AA54: RJZ | AB54: NORTHAMPTON GENERAL HOSPITAL NHS TRUST | AD54: RJZ | AE54: NORTHAMPTON GENERAL HOSPITAL NHS TRUST | AF54: RH5A8 | AG54: Kingston Hospital
U55: QKS | V55: RWF | W55: MAIDSTONE AND TUNBRIDGE WELLS NHS TRUST | X55: RWFXXX | Y55: Non-hospital site | AA55: RK5 | AB55: NORTHERN DEVON HEALTHCARE NHS TRUST | AD55: RK5 | AE55: NORTHERN DEVON HEALTHCARE NHS TRUST | AF55: RH801 | AG55: Leeds General Infirmary
U56: QKS | V56: RWF | W56: MAIDSTONE AND TUNBRIDGE WELLS NHS TRUST | X56: RWFTW | Y56: The Tunbridge Wells Hospital | AA56: RK9 | AB56: NORTHERN LINCOLNSHIRE AND GOOLE NHS FOUNDATION TRUST | AD56: RK9 | AE56: NORTHERN LINCOLNSHIRE AND GOOLE NHS FOUNDATION TRUST | AF56: RHM12 | AG56: Leicester General Hospital
U57: QKS | V57: RPA | W57: MEDWAY NHS FOUNDATION TRUST | X57: RPA02 | Y57: Medway Maritime Hospital | AA57: RKB | AB57: NORTHUMBRIA HEALTHCARE NHS FOUNDATION TRUST | AD57: RKB | AE57: NORTHUMBRIA HEALTHCARE NHS FOUNDATION TRUST | AF57: RHQHH | AG57: Leicester Royal Infirmary
U58: QM7 | V58: RWH | W58: EAST AND NORTH HERTFORDSHIRE NHS TRUST | X58: RWHXXX | Y58: Non-hospital site | AA58: RKE | AB58: NOTTINGHAM UNIVERSITY HOSPITALS NHS TRUST | AD58: RKE | AE58: NOTTINGHAM UNIVERSITY HOSPITALS NHS TRUST | AF58: RHU02 | AG58: Leighton Hospital
U59: QM7 | V59: RWH | W59: EAST AND NORTH HERTFORDSHIRE NHS TRUST | X59: RWH01 | Y59: Lister Hospital | AA59: RLQ | AB59: OXFORD UNIVERSITY HOSPITALS NHS FOUNDATION TRUST | AD59: RLQ | AE59: OXFORD UNIVERSITY HOSPITALS NHS FOUNDATION TRUST | AF59: RHU03 | AG59: Lincoln County Hospital
U60: QM7 | V60: RQW | W60: THE PRINCESS ALEXANDRA HOSPITAL NHS TRUST | X60: RQWG0 | Y60: Princess Alexandra Hospital | AA60: RLT | AB60: PORTSMOUTH HOSPITALS UNIVERSITY NATIONAL HEALTH SERVICE TRUST | AD60: RLT | AE60: PORTSMOUTH HOSPITALS UNIVERSITY NATIONAL HEALTH SERVICE TRUST | AF60: RHU04 | AG60: Lister Hospital
U61: QM7 | V61: RWG | W61: WEST HERTFORDSHIRE HOSPITALS NHS TRUST | X61: RWG02 | Y61: Watford General Hospital | AA61: RM1 | AB61: ROYAL BERKSHIRE NHS FOUNDATION TRUST | AD61: RM1 | AE61: ROYAL BERKSHIRE NHS FOUNDATION TRUST | AF61: RHU10 | AG61: Liverpool Womens Hospital
U62: QMF | V62: RF4 | W62: BARKING, HAVERING AND REDBRIDGE UNIVERSITY HOSPITALS NHS TRUST | X62: RF4XXX | Y62: Non-hospital site | AA62: RMP | AB62: ROYAL CORNWALL HOSPITALS NHS TRUST | AD62: RMP | AE62: ROYAL CORNWALL HOSPITALS NHS TRUST | AF62: RHW01 | AG62: Luton and Dunstable Hospital
U63: QMF | V63: R1H | W63: BARTS HEALTH NHS TRUST | X63: R1H12 | Y63: The Royal London Hospital | AA63: RN3 | AB63: ROYAL DEVON AND EXETER NHS FOUNDATION TRUST | AD63: RN3 | AE63: ROYAL DEVON AND EXETER NHS FOUNDATION TRUST | AF63: RJ122 | AG63: Macclesfield District General Hospital
U64: QMF | V64: R1H | W64: BARTS HEALTH NHS TRUST | X64: R1HKH | Y64: Whipps Cross University Hospital | AA64: RN5 | AB64: ROYAL FREE LONDON NHS FOUNDATION TRUST | AD64: RN5 | AE64: ROYAL FREE LONDON NHS FOUNDATION TRUST | AF64: RJ224 | AG64: Maidstone District General Hospital
U65: QMF | V65: R1H | W65: BARTS HEALTH NHS TRUST | X65: R1HNH | Y65: Newham General Hospital | AA65: RNA | AB65: ROYAL SURREY COUNTY HOSPITAL NHS FOUNDATION TRUST | AD65: RNA | AE65: ROYAL SURREY COUNTY HOSPITAL NHS FOUNDATION TRUST | AF65: RJ231 | AG65: Manor Hospital
U66: QMJ | V66: RAL | W66: ROYAL FREE LONDON NHS FOUNDATION TRUST | X66: RAL01 | Y66: Royal Free Hospital | AA66: RNN | AB66: ROYAL UNITED HOSPITALS BATH NHS FOUNDATION TRUST | AD66: RNN | AE66: ROYAL UNITED HOSPITALS BATH NHS FOUNDATION TRUST | AF66: RJ2XXX | AG66: Medway Maritime Hospital
U67: QMJ | V67: RAL | W67: ROYAL FREE LONDON NHS FOUNDATION TRUST | X67: RAL26 | Y67: Barnet Hospital | AA67: RNS | AB67: SALISBURY NHS FOUNDATION TRUST | AD67: RNS | AE67: SALISBURY NHS FOUNDATION TRUST | AF67: RJ611 | AG67: Milton Keynes Hospital
U68: QMJ | V68: RKE | W68: WHITTINGTON HEALTH NHS TRUST | X68: RKEQ4 | Y68: The Whittington Hospital | AA68: RNZ | AB68: SANDWELL AND WEST BIRMINGHAM HOSPITALS NHS TRUST | AD68: RNZ | AE68: SANDWELL AND WEST BIRMINGHAM HOSPITALS NHS TRUST | AF68: RJ701 | AG68: MUSGROVE PARK HOSPITAL
U69: QMJ | V69: RKE | W69: WHITTINGTON HEALTH NHS TRUST | X69: RKEXXX | Y69: Non-hospital site | AA69: RP5 | AB69: SHEFFIELD TEACHING HOSPITALS NHS FOUNDATION TRUST | AD69: RP5 | AE69: SHEFFIELD TEACHING HOSPITALS NHS FOUNDATION TRUST | AF69: RJCXXX | AG69: Newham General Hospital
U70: QMM | V70: RM1 | W70: NORFOLK AND NORWICH UNIVERSITY HOSPITALS NHS FOUNDATION TRUST | X70: RM102 | Y70: Norfolk and Norwich University Hospital | AA70: RPA | AB70: SHERWOOD FOREST HOSPITALS NHS FOUNDATION TRUST | AD70: RPA | AE70: SHERWOOD FOREST HOSPITALS NHS FOUNDATION TRUST | AF70: RJE01 | AG70: Non-hospital site
U71: QMM | V71: RCX | W71: THE QUEEN ELIZABETH HOSPITAL, KING'S LYNN, NHS FOUNDATION TRUST | X71: RCX66 | Y71: North Cambridgeshire Hospital | AA71: RQ3 | AB71: SOMERSET NHS FOUNDATION TRUST | AD71: RQ3 | AE71: SOMERSET NHS FOUNDATION TRUST | AF71: RJE09 | AG71: Non-hospital site
U72: QMM | V72: RCX | W72: THE QUEEN ELIZABETH HOSPITAL, KING'S LYNN, NHS FOUNDATION TRUST | X72: RCX70 | Y72: The Queen Elizabeth Hospital | AA72: RQM | AB72: SOUTH TEES HOSPITALS NHS FOUNDATION TRUST | AD72: RQM | AE72: SOUTH TEES HOSPITALS NHS FOUNDATION TRUST | AF72: RJEXXX | AG72: Non-hospital site
U73: QMM | V73: RCX | W73: THE QUEEN ELIZABETH HOSPITAL, KING'S LYNN, NHS FOUNDATION TRUST | X73: RCXXXX | Y73: Non-hospital site | AA73: RQW | AB73: SOUTH TYNESIDE AND SUNDERLAND NHS FOUNDATION TRUST | AD73: RQW | AE73: SOUTH TYNESIDE AND SUNDERLAND NHS FOUNDATION TRUST | AF73: RJL30 | AG73: Non-hospital site
U74: QNC | V74: RJE | W74: UNIVERSITY HOSPITALS OF NORTH MIDLANDS NHS TRUST | X74: RJE01 | Y74: Royal Stoke University Hospital | AA74: RR8 | AB74: SOUTH WARWICKSHIRE NHS FOUNDATION TRUST | AD74: RR8 | AE74: SOUTH WARWICKSHIRE NHS FOUNDATION TRUST | AF74: RJL32 | AG74: Non-hospital site
U75: QNC | V75: RJE | W75: UNIVERSITY HOSPITALS OF NORTH MIDLANDS NHS TRUST | X75: RJE09 | Y75: County Hospital | AA75: RRK | AB75: ST GEORGE'S UNIVERSITY HOSPITALS NHS FOUNDATION TRUST | AD75: RRK | AE75: ST GEORGE'S UNIVERSITY HOSPITALS NHS FOUNDATION TRUST | AF75: RJN71 | AG75: Non-hospital site
U76: QNC | V76: RJE | W76: UNIVERSITY HOSPITALS OF NORTH MIDLANDS NHS TRUST | X76: RJEXXX | Y76: Non-hospital site | AA76: RTE | AB76: ST HELENS AND KNOWSLEY TEACHING HOSPITALS NHS TRUST | AD76: RTE | AE76: ST HELENS AND KNOWSLEY TEACHING HOSPITALS NHS TRUST | AF76: RJR05 | AG76: Non-hospital site
U77: QNQ | V77: RDU | W77: FRIMLEY HEALTH NHS FOUNDATION TRUST | X77: RDU01 | Y77: Frimley Park Hospital | AA77: RTF | AB77: SURREY AND SUSSEX HEALTHCARE NHS TRUST | AD77: RTF | AE77: SURREY AND SUSSEX HEALTHCARE NHS TRUST | AF77: RJZ01 | AG77: Non-hospital site
U78: QNX | V78: RXH | W78: BRIGHTON AND SUSSEX UNIVERSITY HOSPITALS NHS TRUST | X78: RXH01 | Y78: Royal Sussex County Hospital | AA78: RTG | AB78: TAMESIDE AND GLOSSOP INTEGRATED CARE NHS FOUNDATION TRUST | AD78: RTG | AE78: TAMESIDE AND GLOSSOP INTEGRATED CARE NHS FOUNDATION TRUST | AF78: RJZ30 | AG78: Non-hospital site
U79: QNX | V79: RXC | W79: EAST SUSSEX HEALTHCARE NHS TRUST | X79: RXC01 | Y79: Conquest Hospital | AA79: RTH | AB79: THE DUDLEY GROUP NHS FOUNDATION TRUST | AD79: RTH | AE79: THE DUDLEY GROUP NHS FOUNDATION TRUST | AF79: RK5BC | AG79: Non-hospital site
U80: QNX | V80: RXC | W80: EAST SUSSEX HEALTHCARE NHS TRUST | X80: RXC02 | Y80: Eastbourne District General Hospital | AA80: RTP | AB80: THE HILLINGDON HOSPITALS NHS FOUNDATION TRUST | AD80: RTP | AE80: THE HILLINGDON HOSPITALS NHS FOUNDATION TRUST | AF80: RK9XXX | AG80: Non-hospital site
U81: QNX | V81: RXC | W81: EAST SUSSEX HEALTHCARE NHS TRUST | X81: RXCXXX | Y81: Non-hospital site | AA81: RTR | AB81: THE PRINCESS ALEXANDRA HOSPITAL NHS TRUST | AD81: RTR | AE81: THE PRINCESS ALEXANDRA HOSPITAL NHS TRUST | AF81: RKB02 | AG81: Non-hospital site
U82: QNX | V82: RYR | W82: WESTERN SUSSEX HOSPITALS NHS FOUNDATION TRUST | X82: RYR18 | Y82: Worthing Hospital | AA82: RTX | AB82: THE QUEEN ELIZABETH HOSPITAL, KING'S LYNN, NHS FOUNDATION TRUST | AD82: RTX | AE82: THE QUEEN ELIZABETH HOSPITAL, KING'S LYNN, NHS FOUNDATION TRUST | AF82: RKB03 | AG82: Non-hospital site
U83: QOC | V83: RXW | W83: THE SHREWSBURY AND TELFORD HOSPITAL NHS TRUST | X83: RXWXXX | Y83: Non-hospital site | AA83: RVJ | AB83: THE ROTHERHAM NHS FOUNDATION TRUST | AD83: RVJ | AE83: THE ROTHERHAM NHS FOUNDATION TRUST | AF83: RKBXXX | AG83: Non-hospital site
U84: QOP | V84: R0A | W84: MANCHESTER UNIVERSITY NHS FOUNDATION TRUST | X84: R0A05 | Y84: St Mary's Hospital | AA84: RVR | AB84: THE SHREWSBURY AND TELFORD HOSPITAL NHS TRUST | AD84: RVR | AE84: THE SHREWSBURY AND TELFORD HOSPITAL NHS TRUST | AF84: RKEQ4 | AG84: Non-hospital site
U85: QOP | V85: RMP | W85: TAMESIDE AND GLOSSOP INTEGRATED CARE NHS FOUNDATION TRUST | X85: RMP01 | Y85: Tameside General Hospital | AA85: RVV | AB85: UNITED LINCOLNSHIRE HOSPITALS NHS TRUST | AD85: RVV | AE85: UNITED LINCOLNSHIRE HOSPITALS NHS TRUST | AF85: RKEXXX | AG85: Non-hospital site
U86: QOQ | V86: RCD | W86: HARROGATE AND DISTRICT NHS FOUNDATION TRUST | X86: RCD01 | Y86: Harrogate District Hospital | AA86: RVW | AB86: UNIVERSITY HOSPITAL SOUTHAMPTON NHS FOUNDATION TRUST | AD86: RVW | AE86: UNIVERSITY HOSPITAL SOUTHAMPTON NHS FOUNDATION TRUST | AF86: RLQ01 | AG86: Non-hospital site
U87: QOQ | V87: RJL | W87: NORTHERN LINCOLNSHIRE AND GOOLE NHS FOUNDATION TRUST | X87: RJL30 | Y87: Diana, Princess Of Wales Hospital | AA87: RWD | AB87: UNIVERSITY HOSPITALS BIRMINGHAM NHS FOUNDATION TRUST | AD87: RWD | AE87: UNIVERSITY HOSPITALS BIRMINGHAM NHS FOUNDATION TRUST | AF87: RLT01 | AG87: Non-hospital site
U88: QOQ | V88: RJL | W88: NORTHERN LINCOLNSHIRE AND GOOLE NHS FOUNDATION TRUST | X88: RJL32 | Y88: Scunthorpe General Hospital | AA88: RWE | AB88: UNIVERSITY HOSPITALS BRISTOL AND WESTON NHS FOUNDATION TRUST | AD88: RWE | AE88: UNIVERSITY HOSPITALS BRISTOL AND WESTON NHS FOUNDATION TRUST | AF88: RM102 | AG88: Non-hospital site
U89: QOQ | V89: RCB | W89: YORK TEACHING HOSPITAL NHS FOUNDATION TRUST | X89: RCBCA | Y89: Scarborough General Hospital | AA89: RWF | AB89: UNIVERSITY HOSPITALS COVENTRY AND WARWICKSHIRE NHS TRUST | AD89: RWF | AE89: UNIVERSITY HOSPITALS COVENTRY AND WARWICKSHIRE NHS TRUST | AF89: RMP01 | AG89: Non-hospital site
U90: QOQ | V90: RCB | W90: YORK TEACHING HOSPITAL NHS FOUNDATION TRUST | X90: RCB55 | Y90: York Hospital | AA90: RWG | AB90: UNIVERSITY HOSPITALS DORSET NHS FOUNDATION TRUST | AD90: RWG | AE90: UNIVERSITY HOSPITALS DORSET NHS FOUNDATION TRUST | AF90: RN325 | AG90: Non-hospital site
U91: QOX | V91: RN3 | W91: GREAT WESTERN HOSPITALS NHS FOUNDATION TRUST | X91: RN325 | Y91: The Great Western Hospital | AA91: RWH | AB91: UNIVERSITY HOSPITALS OF DERBY AND BURTON NHS FOUNDATION TRUST | AD91: RWH | AE91: UNIVERSITY HOSPITALS OF DERBY AND BURTON NHS FOUNDATION TRUST | AF91: RN501 | AG91: Non-hospital site
U92: QOX | V92: RD1 | W92: ROYAL UNITED HOSPITALS BATH NHS FOUNDATION TRUST | X92: RD102 | Y92: Chippenham Community Hospital | AA92: RWP | AB92: UNIVERSITY HOSPITALS OF LEICESTER NHS TRUST | AD92: RWP | AE92: UNIVERSITY HOSPITALS OF LEICESTER NHS TRUST | AF92: RN506 | AG92: Non-hospital site
U93: QOX | V93: RD1 | W93: ROYAL UNITED HOSPITALS BATH NHS FOUNDATION TRUST | X93: RD121 | Y93: Frome Community Hospital | AA93: RWW | AB93: UNIVERSITY HOSPITALS OF MORECAMBE BAY NHS FOUNDATION TRUST | AD93: RWW | AE93: UNIVERSITY HOSPITALS OF MORECAMBE BAY NHS FOUNDATION TRUST | AF93: RN541 | AG93: Non-hospital site
U94: QOX | V94: RNZ | W94: SALISBURY NHS FOUNDATION TRUST | X94: RNZ02 | Y94: Salisbury District Hospital | AA94: RWY | AB94: UNIVERSITY HOSPITALS OF NORTH MIDLANDS NHS TRUST | AD94: RWY | AE94: UNIVERSITY HOSPITALS OF NORTH MIDLANDS NHS TRUST | AF94: RNA01 | AG94: Non-hospital site
U95: QPM | V95: RNS | W95: NORTHAMPTON GENERAL HOSPITAL NHS TRUST | X95: RNS01 | Y95: Northampton General Hospital (Acute) | AA95: RX1 | AB95: UNIVERSITY HOSPITALS PLYMOUTH NHS TRUST | AD95: RX1 | AE95: UNIVERSITY HOSPITALS PLYMOUTH NHS TRUST | AF95: RNAXXX | AG95: Non-hospital site
U96: QR1 | V96: RTE | W96: GLOUCESTERSHIRE HOSPITALS NHS FOUNDATION TRUST | X96: RTE01 | Y96: Cheltenham General Hospital | AA96: RXC | AB96: WALSALL HEALTHCARE NHS TRUST | AD96: RXC | AE96: WALSALL HEALTHCARE NHS TRUST | AF96: RNNXXX | AG96: Non-hospital site
U97: QR1 | V97: RTE | W97: GLOUCESTERSHIRE HOSPITALS NHS FOUNDATION TRUST | X97: RTE03 | Y97: Gloucestershire Royal Hospital | AA97: RXF | AB97: WARRINGTON AND HALTON TEACHING HOSPITALS NHS FOUNDATION TRUST | AD97: RXF | AE97: WARRINGTON AND HALTON TEACHING HOSPITALS NHS FOUNDATION TRUST | AF97: RNS01 | AG97: Non-hospital site
U98: QR1 | V98: RTE | W98: GLOUCESTERSHIRE HOSPITALS NHS FOUNDATION TRUST | X98: RTE27 | Y98: Stroud Maternity Hospital | AA98: RXH | AB98: WEST HERTFORDSHIRE HOSPITALS NHS TRUST | AD98: RXH | AE98: WEST HERTFORDSHIRE HOSPITALS NHS TRUST | AF98: RNZ02 | AG98: Norfolk and Norwich University Hospital
U99: QR1 | V99: RTE | W99: GLOUCESTERSHIRE HOSPITALS NHS FOUNDATION TRUST | X99: RTEXXX | Y99: Non-hospital site | AA99: RXK | AB99: WEST SUFFOLK NHS FOUNDATION TRUST | AD99: RXK | AE99: WEST SUFFOLK NHS FOUNDATION TRUST | AF99: RP5BA | AG99: North Cambridgeshire Hospital
U100: QRL | V100: RN5 | W100: HAMPSHIRE HOSPITALS NHS FOUNDATION TRUST | X100: RN501 | Y100: North Hampshire Hospital (Parklands) Paediatric Outpatients | AA100: RXN | AB100: WESTERN SUSSEX HOSPITALS NHS FOUNDATION TRUST | AD100: RXN | AE100: WESTERN SUSSEX HOSPITALS NHS FOUNDATION TRUST | AF100: RP5DR | AG100: North Devon District Hospital
U101: QRL | V101: RN5 | W101: HAMPSHIRE HOSPITALS NHS FOUNDATION TRUST | X101: RN541 | Y101: Royal Hampshire County Hospital | AA101: RXQ | AB101: WHITTINGTON HEALTH NHS TRUST | AD101: RXQ | AE101: WHITTINGTON HEALTH NHS TRUST | AF101: RP5XXX | AG101: North Hampshire Hospital (Parklands) Paediatric Outpatients
U102: QRL | V102: RN5 | W102: HAMPSHIRE HOSPITALS NHS FOUNDATION TRUST | X102: RN506 | Y102: Basingstoke and North Hampshire Hospital | AA102: RXR | AB102: WIRRAL UNIVERSITY TEACHING HOSPITAL NHS FOUNDATION TRUST | AD102: RXR | AE102: WIRRAL UNIVERSITY TEACHING HOSPITAL NHS FOUNDATION TRUST | AF102: RPA02 | AG102: Northampton General Hospital (Acute)
U103: QRL | V103: R1F | W103: ISLE OF WIGHT NHS TRUST | X103: R1F01 | Y103: St Mary's Hospital | AA103: RXW | AB103: WORCESTERSHIRE ACUTE HOSPITALS NHS TRUST | AD103: RXW | AE103: WORCESTERSHIRE ACUTE HOSPITALS NHS TRUST | AF103: RQ370 | AG103: Northwick Park Hospital
U104: QRL | V104: RHU | W104: PORTSMOUTH HOSPITALS UNIVERSITY NATIONAL HEALTH SERVICE TRUST | X104: RHU02 | Y104: St Mary's Hospital | AA104: RY2 | AB104: WYE VALLEY NHS TRUST | AD104: RY2 | AE104: WYE VALLEY NHS TRUST | AF104: RQM01 | AG104: Peterborough City Hospital
U105: QRL | V105: RHU | W105: PORTSMOUTH HOSPITALS UNIVERSITY NATIONAL HEALTH SERVICE TRUST | X105: RHU03 | Y105: Queen Alexandra Hospital | AA105: RYJ | AB105: YEOVIL DISTRICT HOSPITAL NHS FOUNDATION TRUST | AD105: RYJ | AE105: YEOVIL DISTRICT HOSPITAL NHS FOUNDATION TRUST | AF105: RQM91 | AG105: Petersfield Community Hospital
U106: QRL | V106: RHU | W106: PORTSMOUTH HOSPITALS UNIVERSITY NATIONAL HEALTH SERVICE TRUST | X106: RHU04 | Y106: Petersfield Community Hospital | AA106: RYR | AB106: YORK TEACHING HOSPITAL NHS FOUNDATION TRUST | AD106: RYR | AE106: YORK TEACHING HOSPITAL NHS FOUNDATION TRUST | AF106: RQWG0 | AG106: Pilgrim Hospital
U107: QRL | V107: RHU | W107: PORTSMOUTH HOSPITALS UNIVERSITY NATIONAL HEALTH SERVICE TRUST | X107: RHU10 | Y107: Gosport War Memorial Hospital | AF107: RR801 | AG107: Pinderfields General Hospital
U108: QRL | V108: RHM | W108: UNIVERSITY HOSPITAL SOUTHAMPTON NHS FOUNDATION TRUST | X108: RHM12 | Y108: Princess Anne Hospital | AF108: RR813 | AG108: Pontefract General Infirmary
U109: QRV | V109: RQM | W109: CHELSEA AND WESTMINSTER HOSPITAL NHS FOUNDATION TRUST | X109: RQM91 | Y109: West Middlesex University Hospital | AF109: RR8XXX | AG109: Poole Hospital
U110: QRV | V110: RQM | W110: CHELSEA AND WESTMINSTER HOSPITAL NHS FOUNDATION TRUST | X110: RQM01 | Y110: Chelsea and Westminster Hospital | AF110: RRK97 | AG110: Princess Alexandra Hospital
U111: QRV | V111: RYJ | W111: IMPERIAL COLLEGE HEALTHCARE NHS TRUST | X111: RYJ01 | Y111: St Mary's Hospital (HQ) | AF111: RRK98 | AG111: Princess Anne Hospital
U112: QRV | V112: RYJ | W112: IMPERIAL COLLEGE HEALTHCARE NHS TRUST | X112: RYJ04 | Y112: Queen Charlotte's Hospital | AF112: RRK99 | AG112: Princess Royal University Hospital
U113: QRV | V113: R1K | W113: LONDON NORTH WEST UNIVERSITY HEALTHCARE NHS TRUST | X113: R1K02 | Y113: Central Middlesex Hospital | AF113: RTE01 | AG113: Queen Alexandra Hospital
U114: QRV | V114: R1K | W114: LONDON NORTH WEST UNIVERSITY HEALTHCARE NHS TRUST | X114: R1K04 | Y114: Ealing Hospital | AF114: RTE03 | AG114: Queen Charlotte's Hospital
U115: QRV | V115: R1K | W115: LONDON NORTH WEST UNIVERSITY HEALTHCARE NHS TRUST | X115: R1KXXX | Y115: Non-hospital site | AF115: RTE27 | AG115: Queen Elizabeth Hospital
U116: QRV | V116: R1K | W116: LONDON NORTH WEST UNIVERSITY HEALTHCARE NHS TRUST | X116: R1K01 | Y116: Northwick Park Hospital | AF116: RTEXXX | AG116: Queens Hospital, Burton Upon Trent
U117: QRV | V117: RAS | W117: THE HILLINGDON HOSPITALS NHS FOUNDATION TRUST | X117: RAS01 | Y117: Hillingdon Hospital | AF117: RTFXXX | AG117: Rosie Hospital
U118: QSL | V118: RH5 | W118: SOMERSET NHS FOUNDATION TRUST | X118: RH5A8 | Y118: MUSGROVE PARK HOSPITAL | AF118: RTG02 | AG118: Rotherham District General Hospital
U119: QSL | V119: RA4 | W119: YEOVIL DISTRICT HOSPITAL NHS FOUNDATION TRUST | X119: RA430 | Y119: Yeovil District Hospital | AF119: RTGFG | AG119: Royal Berkshire Hospital
U120: QT1 | V120: RX1 | W120: NOTTINGHAM UNIVERSITY HOSPITALS NHS TRUST | X120: RX1XXX | Y120: Non-hospital site | AF120: RTH08 | AG120: Royal Blackburn Hospital
U121: QT1 | V121: RK5 | W121: SHERWOOD FOREST HOSPITALS NHS FOUNDATION TRUST | X121: RK5BC | Y121: King's Mill Hospital | AF121: RTP04 | AG121: Royal Bournemouth Hospital
U122: QT6 | V122: REF | W122: ROYAL CORNWALL HOSPITALS NHS TRUST | X122: REFXXX | Y122: Non-hospital site | AF122: RTRAT | AG122: Royal Derby Hospital
U123: QU9 | V123: RXQ | W123: BUCKINGHAMSHIRE HEALTHCARE NHS TRUST | X123: RXQ50 | Y123: Wycombe Hospital | AF123: RTX02 | AG123: Royal Devon and Exeter Hospital (Wonford)
U124: QU9 | V124: RXQ | W124: BUCKINGHAMSHIRE HEALTHCARE NHS TRUST | X124: RXQ02 | Y124: Stoke Mandeville Hospital | AF124: RTXBU | AG124: Royal Free Hospital
U125: QU9 | V125: RTH | W125: OXFORD UNIVERSITY HOSPITALS NHS FOUNDATION TRUST | X125: RTH08 | Y125: John Radcliffe Hospital | AF125: RTXBW | AG125: Royal Hallamshire Hospital
U126: QU9 | V126: RHW | W126: ROYAL BERKSHIRE NHS FOUNDATION TRUST | X126: RHW01 | Y126: Royal Berkshire Hospital | AF126: RVJ01 | AG126: Royal Hampshire County Hospital
U127: QUA | V127: RXK | W127: SANDWELL AND WEST BIRMINGHAM HOSPITALS NHS TRUST | X127: RXK01 | Y127: Sandwell General Hospital | AF127: RVR05 | AG127: Royal Lancaster Infirmary
U128: QUA | V128: RXK | W128: SANDWELL AND WEST BIRMINGHAM HOSPITALS NHS TRUST | X128: RXK02 | Y128: City Hospital | AF128: RVR50 | AG128: Royal Preston Hospital
U129: QUA | V129: RNA | W129: THE DUDLEY GROUP NHS FOUNDATION TRUST | X129: RNAXXX | Y129: Non-hospital site | AF129: RVRXXX | AG129: Royal Stoke University Hospital
U130: QUA | V130: RNA | W130: THE DUDLEY GROUP NHS FOUNDATION TRUST | X130: RNA01 | Y130: Russells Hall Hospital | AF130: RVV01 | AG130: Royal Surrey County Hospital
U131: QUA | V131: RBK | W131: WALSALL HEALTHCARE NHS TRUST | X131: RBK02 | Y131: Manor Hospital | AF131: RVWAE | AG131: Royal Sussex County Hospital
U132: QUE | V132: RGT | W132: CAMBRIDGE UNIVERSITY HOSPITALS NHS FOUNDATION TRUST | X132: RGT32 | Y132: Rosie Hospital | AF132: RVWXXX | AG132: Russells Hall Hospital
U133: QUE | V133: RGN | W133: NORTH WEST ANGLIA NHS FOUNDATION TRUST | X133: RGN80 | Y133: Peterborough City Hospital | AF133: RWDDA | AG133: Salisbury District Hospital
U134: QUE | V134: RGN | W134: NORTH WEST ANGLIA NHS FOUNDATION TRUST | X134: RGN90 | Y134: Hinchingbrooke Hospital | AF134: RWDLA | AG134: Sandwell General Hospital
